Workbook

Sheet SUMMARY
C3: SUMMARY / REKAPITULACIJA
C6: SUM PRICE WITHOUT VAT/ UKUPNA CENA BEZ PDV-A
B7: UKUPNO/ TOTAL | C7: =CENA!I282 -> 0
B11: Napomena I: | C11: štampati samo sheetove (SUMMARY, CENA)
B12: Napomena II: | C12: Na zahtev Naručioca, najkasnije 5 dana nakon zaključenja ugovora, Dobavljač je dužan da dostavi kompletno popunjenu Vendors listu u skladu sa zahtevima datim u delu C tenderskog dosijea, dokument: PROJEKTNI ZADATAK ZA ISPORUKU DOBARA.
C13: unositi cene samo u zeleno obeležen sheet u zelena polja (CENA) od G5 - G266 (jedinične cene)
C14: popuniti zelena polja u VendorsList
B16: Remark I: | C16: print only green sheet (SUMMARY, CENA)
B17: Remark II: | C17: At the request of the Contracting Authority, at the latest 5 days after the conclusion of the contract, the Supplier is obliged to submit the fully completed Vendors list in accordance with the requirements given in part C of the tender dossier, document: TERMS OF REFERNCES FOR THE DELIVERY OF SUPPLIES.
C18: The prices entered only in the green marked sheet in green cells (CENA) G5 - G266 (unit price)

Sheet CENA
A2: KOD/ CODE | D2: Opis građevinskog materijala | E2: Description of building materials | F2: Jed. prod./ UNIT | G2: Jedinična prod.cena/ UNIT PRICE | H2: Zbir Količina po materijalima/ SUM QTY | I2: ZBIR UKUPNO PO MATERIJALIMA/ SUM PRICE
A4: 1 | B4: A | D4: OSNOVNI GRAĐEVINSKI MATERIJAL | E4: BASIC BUILDING MATERIALS
A5: 1.1 | B5: O | C5: 1 | D5: Cement za betone do MB 30 | E5: Cement for concrete up to 30 MB | F5: kg | H5: =KORISNICI!H9 -> 27700 | I5: =G5*H5 -> 0
A6: 1.2 | B6: O | C6: 2 | D6: Hidratisani gašeni kreč pripremljen u prahu | E6: Hydrated slaked lime powdered | F6: kg | H6: =KORISNICI!H10 -> 0 | I6: =G6*H6 -> 0
A7: 1.3 | B7: O | C7: 3 | D7: Rebrasto betonsko gvožđe (RA) | E7: Ribbed reinforcement steel | F7: / | G7: / | H7: / | I7: /
A8: 1.3.1 | C8: A | D8: 10 mm - dužine 12m | E8: 10 mm - length 12m | F8: kg | H8: =KORISNICI!H12 -> 12 | I8: =G8*H8 -> 0
A9: 1.3.2 | C9: B | D9: 12 mm - dužine 12m | E9: 12 mm - length 12m | F9: kg | H9: =KORISNICI!H13 -> 0 | I9: 0
A10: 1.3.3 | C10: C | D10: 14 mm - dužine 12m | E10: 14 mm - length 12m | F10: kg | H10: =KORISNICI!H14 -> 0 | I10: 0
A11: 1.3.4 | C11: D | D11: 16 mm - dužine 12m | E11: 16 mm - length 12m | F11: kg | H11: =KORISNICI!H15 -> 0 | I11: 0
A12: 1.4 | B12: O | C12: 4 | D12: Glatko betonsko gvožđe (GA) | E12: Glibly reinforcement steel | F12: / | G12: / | H12: / | I12: /
A13: 1.4.1 | C13: B | D13: 8 mm - dužine 12m | E13: 8 mm - length 12m | F13: kg | H13: =KORISNICI!H17 -> 14.22 | I13: =G13*H13 -> 0
A14: 1.4.2 | C14: C | D14: 10 mm - dužine 12m | E14: 10 mm - length 12m | F14: kg | H14: =KORISNICI!H18 -> 14.8 | I14: 0
A15: 1.5 | B15: O | C15: 5 | D15: Armaturna betonska mreža dim. (dxš) 6000 x 2150 = 12,9 m2/kom | E15: Reinforcement mesh dim. (lxw) 6000 x 2150 = 12,9 m2/pcs | F15: / | G15: / | H15: / | I15: /
A16: 1.5.1 | C16: A | D16: Q84 /4x4/150x150/ | E16: Q84 /4x4/150x150/ | F16: kg | H16: =KORISNICI!H20 -> 0 | I16: =G16*H16 -> 0
A17: 1.5.2 | C17: B | D17: Q131 /5x5/150x150/ | E17: Q131 /5x5/150x150/ | F17: kg | H17: =KORISNICI!H21 -> 492.84 | I17: 0
A18: 1.5.3 | C18: C | D18: Q188 /6x6/150x150/ | E18: Q188 /6x6/150x150/ | F18: kg | H18: =KORISNICI!H22 -> 0 | I18: 0
A19: 1.5.4 | C19: D | D19: Q283 /6x6/100x100/ | E19: Q283 /6x6/100x100/ | F19: kg | H19: =KORISNICI!H23 -> 0 | I19: 0
A20: 1.5.5 | C20: E | D20: Q335 /8x8/150x150/ | E20: Q335 /8x8/150x150/ | F20: kg | H20: =KORISNICI!H24 -> 0 | I20: 0
A22: 2 | B22: Z | D22: MATERIJAL ZA ZIDANJE, MALTERISANJE, GLETOVANJE I FARBANJE | E22: MASONRY, PLASTERING FAIRING AND PAINTING MATERIAL
A23: 2.1 | B23: Z | C23: 1 | D23: Giter blok (d/š/v) 250x190x190 mm | E23: Gitter block (l/w/h) 250x190x190 mm | F23: kom/pcs | H23: =KORISNICI!H27 -> 3330 | I23: =G23*H23 -> 0
A24: 2.2 | B24: Z | C24: 2 | D24: Giter polublok (12cm) (d/š/v) 250x120x190mm | E24: Gitter half block (12cm) (l/w/h) 250x120x190mm | F24: kom/pcs | H24: =KORISNICI!H28 -> 0 | I24: 0
A25: 2.3 | B25: Z | C25: 3 | D25: Opeka puna (d/š/v) 250x120x65 mm | E25: Brick (full-without holes) (l/w/h) 250x120x65 mm | F25: kom/pcs | H25: =KORISNICI!H29 -> 512 | I25: 0
A26: 2.4 | B26: Z | C26: 4 | D26: Blok od porobetona za pregradni zid (d/š/v) 625x200x200 mm | E26: Aerated concrete block for partition wall (l/w/h) 625x200x200 mm | F26: kom/pcs | H26: =KORISNICI!H30 -> 0 | I26: 0
A27: 2.5 | B27: Z | C27: 5 | D27: Fert nosači (gredice) Dužina nosača je jednaka dužini binora = širina otvora između zidova + 30 cm. Broj gredica = dužina prostorije x 0,40 | E27: Fert beams Boom length is equal to the length of Binor = width of the openings between the walls + 30 cm. Number of beams = length of room x 0.40 | F27: / | G27: / | H27: / | I27: /
A28: 2.5.1 | C28: A | D28: 0,00-3,90 m | E28: 0,00-3,90 m | F28: m1 | H28: =KORISNICI!H32 -> 14 | I28: =G28*H28 -> 0
A29: 2.5.2 | C29: B | D29: 3,91-4,50 m | E29: 3,91-4,50 m | F29: m1 | H29: =KORISNICI!H33 -> 0 | I29: 0
A30: 2.5.3 | C30: C | D30: 4,51-4,90 m | E30: 4,51-4,90 m | F30: m1 | H30: =KORISNICI!H34 -> 0 | I30: 0
A31: 2.5.4 | C31: D | D31: 4,91-5,30 m | E31: 4,91-5,30 m | F31: m1 | H31: =KORISNICI!H35 -> 0 | I31: 0
A32: 2.5.5 | C32: E | D32: 5,31-5,90 m | E32: 5,31-5,90 m | F32: m1 | H32: =KORISNICI!H36 -> 0 | I32: 0
A33: 2.5.6 | C33: F | D33: 5,91-6,30 m | E33: 5,91-6,30 m | F33: m1 | H33: =KORISNICI!H37 -> 0 | I33: 0
A34: 2.6 | B34: Z | C34: 6 | D34: Fert ispuna (d/š/v) 245x285/275x160 mm | E34: Fert fillings (l/w/h) 245x285/275x160 mm | F34: kom/pcs | H34: =KORISNICI!H38 -> 200 | I34: 0
A35: 2.7 | B35: Z | C35: 7 | D35: Malter za zidanje Pripremljeno krečno - cementno vezivo | E35: Mortar for masonry Prepared lime - cement binder | F35: kg | H35: =KORISNICI!H39 -> 520 | I35: 0
A36: 2.8 | B36: Z | C36: 8 | D36: Malter za malterisanje Pripremljeno krečno - cementno vezivo | E36: Mortar for plastering Prepared lime - cement binder | F36: kg | H36: =KORISNICI!H40 -> 1800 | I36: 0
A37: 2.9 | B37: Z | C37: 9 | D37: Krečna glet masa Bezcementna krečna masa za gletovanje | E37: Lime smoothing mass No cement lime compound for smoothing | F37: kg | H37: =KORISNICI!H41 -> 200 | I37: 0
A38: 2.10 | B38: Z | C38: 10 | D38: Poludisperzivna boja Poludisperziona boja razrediva vodom | E38: Semi dispersion paint | F38: kg | H38: =KORISNICI!H42 -> 0 | I38: 0
G39: /
A40: 3 | B40: K | D40: MATERIJAL ZA KROVNU KONSTRUKCIJU, KROVNI POKRIVAČ, OSB I GIPS KARONSKE TABLE | E40: ROOF CONSTRUCTION AND ROOFING MATERIAL, OSB AND PLASTERBOARD TABLE
A41: 3.1 | B41: K | C41: 1 | D41: Presovani glineni crep I klase dimenzija: 400-450x245-275 mm | E41: Pressed clay tiles class 1 dim: 400-450x245-275 mm | F41: kom/pcs | H41: =KORISNICI!H45 -> 7700 | I41: =G41*H41 -> 0
A42: 3.2 | B42: K | C42: 3 | D42: Biber crep I klase dimenzija: 180x380 mm | E42: Biber clay tiles class 1 dim: 180x380 mm | F42: kom/pcs | H42: =KORISNICI!H46 -> 0 | I42: 0
A43: 3.3 | B43: K | C43: 2 | D43: Slemeni crep I klase (žljebnjak) | E43: Ridge clay tiles class 1 | F43: kom/pcs | H43: =KORISNICI!H47 -> 65 | I43: 0
A44: 3.4 | B44: K | C44: 4 | D44: Paropropusna i vodonepropusna krovna folija kontrola vodene pare iznad termoizolacije | E44: Vapour permeable and waterproof roof sheeting control of water vapor above the insulation | F44: m2 | H44: =KORISNICI!H48 -> 0 | I44: 0
A45: 3.5 | B45: K | C45: 5 | D45: Staklena mineralna vuna termoizolacija potkrovlja između rogova | E45: Glass Mineral Wool loft insulation between the rafters | F45: / | G45: / | H45: / | I45: /
A46: 3.5.1 | C46: A | D46: debljina d=10 cm | E46: thickness d=10 cm | F46: m2 | H46: =KORISNICI!H50 -> 42 | I46: =G46*H46 -> 0
A47: 3.5.2 | C47: B | D47: debljina d=12 cm | E47: thickness d=12 cm | F47: m2 | H47: =KORISNICI!H51 -> 0 | I47: 0
A48: 3.5.3 | C48: C | D48: debljina d=14 cm | E48: thickness d=14 cm | F48: m2 | H48: =KORISNICI!H52 -> 0 | I48: 0
A49: 3.6 | B49: K | C49: 6 | D49: Parna brana kontrola vodene pare ispod termoizolacije | E49: Vapor barrier control of water vapor below the insulation | F49: m2 | H49: =KORISNICI!H53 -> 0 | I49: 0
A50: 3.7 | B50: K | C50: 7 | D50: Čamova rezana građa različitog preseka dužine 400 cm | E50: Fir lumber of different cross-section length 400 cm | F50: / | G50: / | H50: / | I50: /
A51: 3.7.1 | C51: A | D51: Rog/Venčanica/Raspinjača 10/12 cm | E51: rafters / wall plate / ridge collar 10/12 cm | F51: m3 | H51: =KORISNICI!H55 -> 0 | I51: =G51*H51 -> 0
A52: 3.7.2 | C52: B | D52: Rog/Stub/Grebenjača/Slemenja. 12/14 cm | E52: column / pile / hip rafter / ridge 12/14 cm | F52: m3 | H52: =KORISNICI!H56 -> 0 | I52: 0
A53: 3.7.3 | C53: C | D53: Stub/Grebenjača 14/14 cm | E53: column / hip rafter 14/14 cm | F53: m3 | H53: =KORISNICI!H57 -> 0 | I53: 0
A54: 3.7.4 | C54: H | D54: Tavanjače 18/26 cm | E54: attic beams 18/26 cm | F54: m3 | H54: =KORISNICI!H58 -> 0 | I54: 0
A55: 3.8 | B55: K | C55: 8 | D55: Čamova rezana građa različitog preseka dužine 600 cm | E55: Fir lumber of different cross-section length 600 cm | F55: / | G55: / | H55: / | I55: /
A56: 3.8.1 | C56: A | D56: Rog/Venčanica/Raspinjača 10/12 cm | E56: rafters / wall plate / ridge collar 10/12 cm | F56: m3 | H56: =KORISNICI!H60 -> 6.1 | I56: =G56*H56 -> 0
A57: 3.8.2 | C57: B | D57: Rog/Stub/Grebenjača/Slemenja. 12/14 cm | E57: column / pile / hip rafter / ridge 12/14 cm | F57: m3 | H57: =KORISNICI!H61 -> 2.4 | I57: 0
A58: 3.8.3 | C58: C | D58: Stub/Grebenjača 14/14 cm | E58: column / hip rafter 14/14 cm | F58: m3 | H58: =KORISNICI!H62 -> 0 | I58: 0
A59: 3.8.4 | C59: D | D59: Rožnjača 14/16 cm | E59: Purlin 14/16 cm | F59: m3 | H59: =KORISNICI!H63 -> 0 | I59: 0
A60: 3.8.5 | C60: E | D60: Kosnik/Pajanta 10/10 cm | E60: Strut 10/10 cm | F60: m3 | H60: =KORISNICI!H64 -> 0 | I60: 0
A61: 3.8.6 | C61: F | D61: Klešta 6/12 cm | E61: Collar tie 6/12 cm | F61: m3 | H61: =KORISNICI!H65 -> 0 | I61: 0
A62: 3.8.7 | C62: G | D62: Krovna štafla 5/8 cm | E62: Roof battens 5/8 cm | F62: m3 | H62: =KORISNICI!H66 -> 0.32 | I62: 0
A63: 3.8.8 | C63: H | D63: Tavanjače 18/26 cm | E63: attic beams 18/26 cm | F63: m3 | H63: =KORISNICI!H67 -> 0 | I63: 0
A64: 3.9 | B64: K | C64: 9 | D64: Građevinska daska - fosna 4,8/25/400 cm | E64: Fir board 4,8/25/400 cm | F64: m3 | H64: =KORISNICI!H68 -> 0 | I64: 0
A65: 3.10 | B65: K | C65: 10 | D65: Krovna daska od čamove rezane građe 2,4-2,5/15 cm, isporučuje se dužine l=3,0 metra | E65: Roof fir board 2,4-2,5/15 cm, lenght l=3,0 m | F65: m3 | H65: =KORISNICI!H69 -> 2.5 | I65: 0
A66: 3.11 | B66: K | C66: 11 | D66: Krovna letva od čamove rezane građe 3 / 5 cm , isporučuje se dužine l=3,0 metra | E66: Fir batten 3 / 5 cm , lenght l=3,0 m | F66: m1 | H66: =KORISNICI!H70 -> 2328 | I66: 0
A67: 3.12 | B67: K | C67: 12 | D67: OSB3 vlagootporne konstruktivne ploče d=18 mm / dim. 2440 x 1220 | E67: OSB3 moisture resistant structural panels d=18 mm / dim. 2440 x 1220 | F67: kom/pcs | H67: =KORISNICI!H71 -> 42 | I67: 0
A68: 3.13 | B68: K | C68: 13 | D68: Standardne gips kartonske ploče - Tip A dimenzije: 1200-1250 x 2000 mm | E68: Standard plasterboard table - Type A dim: 1200-1250 x 2000 mm | F68: kom/pcs | H68: =KORISNICI!H72 -> 239 | I68: 0
A69: 3.14 | B69: K | C69: 14 | D69: Vlagootporne gips kartonske ploče - Tip H2 dimenzije: 1200-1250 x 2000 mm | E69: Moisture resistant Plasterboard - Type H2 dim: 1200-1250 x 2000 mm | F69: kom/pcs | H69: =KORISNICI!H73 -> 109 | I69: 0
A70: 3.15 | B70: K | C70: 15 | D70: Čelični pocinkovani i farbani olučni elementi prečnika: Ø 100 mm dužine 600 cm | E70: Galvanized steel and painted gutter elements diameter: Ø 100 mm length 600 cm | F70: / | G70: / | H70: / | I70: /
A71: 3.15.1 | C71: A | D71: Horizontalni polukružni | E71: horizontal semicircular gutter | F71: kom/pcs | H71: =KORISNICI!H75 -> 0 | I71: =G71*H71 -> 0
A72: 3.15.2 | C72: B | D72: Vertikalni kružni oluk | E72: Vertical circular gutter | F72: kom/pcs | H72: =KORISNICI!H76 -> 0 | I72: 0
A74: 4 | B74: P | D74: MATERIJAL ZA PODOVE, LAMINAT, PLOČICE I XPS | E74: FLOORING, LAMINATE, TILES AND XPS
A75: 4.1 | B75: P | C75: 1 | D75: Unutrašnje podne keramičke pločice Min. dimenzije pločica: 200x300 mm | E75: Floor tiles for inside Min. tile size: 200x300 mm | F75: m2 | H75: =KORISNICI!H79 -> 80 | I75: =G75*H75 -> 0
A76: 4.2 | B76: P | C76: 2 | D76: Unutrašnje zidne keramičke pločice Min. dimenzije pločica: 200x300 mm | E76: Wall tiles for inside Min. tile size: 200x300 mm | F76: m2 | H76: =KORISNICI!H80 -> 79 | I76: 0
A77: 4.3 | B77: P | C77: 3 | D77: Lepak za keramičke pločice Fleksibilni, polimer-cementni lepak | E77: Glue for ceramic tiles Flexible, polymer-cement glue | F77: kg | H77: =KORISNICI!H81 -> 1000 | I77: 0
A78: 4.4 | B78: P | C78: 4 | D78: Fleksibilna masa za fugovanje Vodoodbojna fug masa na bazi cementa | E78: Flexible mass for grouting Waterproof grout cement based | F78: kg | H78: =KORISNICI!H82 -> 4 | I78: 0
A79: 4.5 | B79: P | C79: 5 | D79: Laminat - jakopresovani (HLP) sa klik sistemom, dezen: hrast natur (prirodni) | E79: Laminate (HLP) with click system, design: oak natural (natural) | F79: m2 | H79: =KORISNICI!H83 -> 110 | I79: 0
A80: 4.6 | B80: P | C80: 6 | D80: Lajsne za laminat od medijapana materijal: medijapan / MDF | E80: Moldings for laminate MDF Material: MDF / MDF | F80: m1 | H80: =KORISNICI!H84 -> 78 | I80: 0
A81: 4.7 | B81: P | C81: 7 | D81: Podloga za laminat od polietilenske pene Sunđerasta podloga za laminat | E81: The base for laminate of polyethylene foam Foam base for laminate | F81: m2 | H81: =KORISNICI!H85 -> 33 | I81: 0
A82: 4.8 | B82: P | C82: 8 | D82: Cementni suvi estrih (cementna košuljica). Pripremljeno cementno praškasto vezivo | E82: Cement dry screed (cement screed) Prepared cement powder binder | F82: kg | H82: =KORISNICI!H86 -> 0 | I82: 0
A83: 4.9 | B83: P | C83: 9 | D83: Građevinska PVC folija Za razdvajanje cementne košuljice od termo izolacije. | E83: PVC foil for construction. To separate the cement screed of thermal insulation. | F83: m2 | H83: =KORISNICI!H87 -> 0 | I83: 0
A84: 4.10 | B84: P | C84: 10 | D84: Stirodur (XPS za izolaciju na podovima) ploča od ekstrudirane polistirenske pene | E84: Stirodur (XPS insulation for floors) panel of extruded polystyrene foam | F84: / | G84: / | H84: / | I84: /
A85: 4.10.1 | C85: A | D85: debljine d=2 cm | E85: d=2 cm | F85: m2 | H85: =KORISNICI!H89 -> 30 | I85: =G85*H85 -> 0
A86: 4.10.2 | C86: B | D86: debljine d=5 cm | E86: d=5 cm | F86: m2 | H86: =KORISNICI!H90 -> 48 | I86: 0
A88: 5 | B88: F | D88: MATERIJAL ZA IZRADU FASADE | E88: FACADE MATERIAL
A89: 5.1 | B89: F | C89: 1 | D89: EPS za termoizolaciju fasadnih zidova ploča od ekspandiranog polistirena | E89: Thermal insulation for facade walls (EPS) plates made of expanded polystyrene | F89: / | G89: / | H89: / | I89: /
A90: 5.1.1 | C90: A | D90: debljina d=8 cm | E90: d=8 cm | F90: m2 | H90: =KORISNICI!H94 -> 150 | I90: =G90*H90 -> 0
A91: 5.1.2 | C91: B | D91: debljina d=10 cm | E91: d=10 cm | F91: m2 | H91: =KORISNICI!H95 -> 99 | I91: 0
A92: 5.1.3 | C92: C | D92: debljina d=12 cm | E92: d=12 cm | F92: m2 | H92: =KORISNICI!H96 -> 0 | I92: 0
A93: 5.1.4 | C93: D | D93: debljina d=14 cm | E93: d=14 cm | F93: m2 | H93: =KORISNICI!H97 -> 0 | I93: 0
A94: 5.2 | B94: F | C94: 2 | D94: GrađevinskI lepak za EPS ploče cementni lepak namenjen za lepljenje ploča od ekspandiranog polistirena (EPS) i armiranje armaturne (rabic) mrežice | E94: Construction glue for EPS plates cement adhesive for gluing plates made of expanded polystyrene (EPS) and reinforcing wire (rabic) net | F94: kg | H94: =KORISNICI!H98 -> 1645 | I94: 0
A95: 5.3 | B95: F | C95: 3 | D95: Armaturna (rabic) staklena mrežica. Visokokvalitetna alkalno postojana staklena mrežica | E95: Reinforcing (rabic) fiberglass mesh High quality alkali resistant fiberglass mesh | F95: m2 | H95: =KORISNICI!H99 -> 250 | I95: 0
A96: 5.4 | B96: F | C96: 4 | D96: Aktivni predpremaz pre nanošenja tankoslojnog fasadnog maltera. predpremaz za izjednačavanje upijanja - podloga | E96: Active primer before applying the thin-layer plaster primer for the equalization of absorption surface | F96: kg | H96: =KORISNICI!H100 -> 0 | I96: 0
A97: 5.5 | B97: F | C97: 5 | D97: Fasadni tankoslojni akrilni malter Završni malter u pastoznom stanju, namenjen za zaštitu fasadnih zidnih površina | E97: Facade thin-layer acrylic plaster Finishing plaster in paste-like state, intended for the protection of facade wall surfaces | F97: / | G97: / | H97: / | I97: /
A98: 5.5.1 | C98: A | D98: boja približna RAL 1034 -kajsija | E98: color similar to RAL 1034-apricot | F98: kg | H98: =KORISNICI!H102 -> 0 | I98: =G98*H98 -> 0
A99: 5.5.2 | C99: B | D99: boja približna RAL 6005 -pastelno zelena | E99: color similar to RAL 6005 pastel-green | F99: kg | H99: =KORISNICI!H103 -> 0 | I99: 0
A100: 5.5.3 | C100: C | D100: boja približna RAL 5023 -pastelno plava | E100: color similar to RAL 5023 pastel-blue | F100: kg | H100: =KORISNICI!H104 -> 0 | I100: 0
A101: 5.5.4 | C101: D | D101: boja približna RAL 3011 -pastelno crvena | E101: color similar to RAL 3011 pastel-red | F101: kg | H101: =KORISNICI!H105 -> 0 | I101: 0
A102: 5.5.5 | C102: E | D102: boja približna RAL 8002 -braon | E102: color similar to RAL 8002 brown | F102: kg | H102: =KORISNICI!H106 -> 0 | I102: 0
A104: 6 | B104: H | D104: MATERIJAL ZA HIDRO IZOLACIJE | E104: WATERPROOFING MATERIAL
A105: 6.1 | B105: H | C105: 1 | D105: Bitulit (prethodni premaz za hidroizolaciju) Upotrebljava se u isporučenom stanju (hladan postupak ) bez zagrevanja | E105: Bitulit (previous coating for waterproofing) It is used as delivered (cold process) without heating | F105: kg | H105: =KORISNICI!H109 -> 0 | I105: =G105*H105 -> 0
A106: 6.2 | B106: H | C106: 2 | D106: Poliazbitol (hladni premaz za hidroizolaciju) Upotrebljava se u isporučenom stanju (hladan postupak) bez zagrevanja | E106: POLYASBITOL (cold coating for waterproofing) It is used as delivered (cold process) without heating | F106: kg | H106: =KORISNICI!H110 -> 0 | I106: 0
A107: 6.3 | B107: H | C107: 3 | D107: Ter papir Bitumenska hidroizolaciona traka. | E107: Ter paper Bituminous waterproofing tape. | F107: m2 | H107: =KORISNICI!H111 -> 0 | I107: 0
A108: 6.4 | B108: H | C108: 4 | D108: Kondor V-3 (hidroizolaciona traka) Plastomer-bitumenska traka, uložak stakleni voal, debljina: ≥ 3 mm | E108: Condor V-3 (waterproof tape) Plastomer-bituminous tape, glass mat, thickness: ≥ 3 mm | F108: m2 | H108: =KORISNICI!H112 -> 30 | I108: 0
A110: 7 | B110: S | D110: STOLARIJA | E110: DOORS AND WINDOWS
A111: 7.1 | B111: S | C111: 1 | D111: Ulazna vrata od PVC-a (komplet pozicija). boja profila: bela RAL 9003 broj komora: ≥ 5 komora širina x visina (zidarske mere) | E111: Entrance door of PVC (set position) Profile color: white RAL 9003 Number of chambers: ≥ 5 chambers width x height (masonry measures) | F111: / | G111: / | H111: / | I111: /
A112: 7.1.1 | C112: A | D112: JK 90x210 cm - Leva 90 cm | E112: one wing 90x210 cm - Left 90 cm | F112: kom/pcs | H112: =KORISNICI!H116 -> 0 | I112: =G112*H112 -> 0
A113: 7.1.2 | C113: B | D113: JK 90x210 cm - Desna 90 cm | E113: one wing 90x210 cm - Right 90 cm | F113: kom/pcs | H113: =KORISNICI!H117 -> 1 | I113: 0
A114: 7.1.3 | C114: C | D114: DK 120x210 cm - Leva 90+30 cm | E114: two wings 120x210 cm - Left 90+30 cm | F114: kom/pcs | H114: =KORISNICI!H118 -> 0 | I114: 0
A115: 7.1.4 | C115: D | D115: DK 120x210 cm - Desna 90+30 cm | E115: two wings 120x210 cm - Right 90+30 cm | F115: kom/pcs | H115: =KORISNICI!H119 -> 0 | I115: 0
A116: 7.2 | B116: S | C116: 2 | D116: Prozori od PVC-a (komplet pozicija). Vertikalno i horizontalno otvaranje, boja profila: bela RAL 9003, broj komora: ≥ 5 komora širina x visina (zidarske mere) | E116: Windows made of PVC (set position) Vertical and horizontal opening, color profile: white RAL 9003, the number of chambers: ≥ 5 chambers width x height (masonry measures) | F116: / | G116: / | H116: / | I116: /
A117: 7.2.1 | C117: A | D117: JK 60x60 cm | E117: one wing 60x60 cm | F117: kom/pcs | H117: =KORISNICI!H121 -> 2 | I117: =G117*H117 -> 0
A118: 7.2.2 | C118: B | D118: JK 80x80 cm | E118: one wing 80x80 cm | F118: kom/pcs | H118: =KORISNICI!H122 -> 0 | I118: 0
A119: 7.2.3 | C119: C | D119: JK 80x120 cm | E119: one wing 80x120 cm | F119: kom/pcs | H119: =KORISNICI!H123 -> 0 | I119: 0
A120: 7.2.4 | C120: D | D120: JK 80x140 cm | E120: one wing 80x140 cm | F120: kom/pcs | H120: =KORISNICI!H124 -> 0 | I120: 0
A121: 7.2.5 | C121: E | D121: JK 100x120 cm | E121: one wing 100x120 cm | F121: kom/pcs | H121: =KORISNICI!H125 -> 1 | I121: 0
A122: 7.2.6 | C122: F | D122: JK 100x140 cm | E122: one wing 100x140 cm | F122: kom/pcs | H122: =KORISNICI!H126 -> 0 | I122: 0
A123: 7.2.7 | C123: G | D123: DK 120x120 cm | E123: two wings 120x120 cm | F123: kom/pcs | H123: =KORISNICI!H127 -> 0 | I123: 0
A124: 7.2.8 | C124: H | D124: DK 120x140 cm | E124: two wings 120x140 cm | F124: kom/pcs | H124: =KORISNICI!H128 -> 0 | I124: 0
A125: 7.2.9 | C125: I | D125: DK 140x120 cm | E125: two wings 140x120 cm | F125: kom/pcs | H125: =KORISNICI!H129 -> 0 | I125: 0
A126: 7.2.10 | C126: J | D126: DK 140x140 cm | E126: two wings 140x140 cm | F126: kom/pcs | H126: =KORISNICI!H130 -> 0 | I126: 0
A127: 7.2.11 | C127: K | D127: DK 160x120 cm | E127: two wings 160x120 cm | F127: kom/pcs | H127: =KORISNICI!H131 -> 0 | I127: 0
A128: 7.2.12 | C128: L | D128: DK 160x140 cm | E128: two wings 160x140 cm | F128: kom/pcs | H128: =KORISNICI!H132 -> 5 | I128: 0
A129: 7.3 | B129: S | C129: 3 | D129: Krovni prozor sa aluminijumskom opšivkom od laminirane i impregnirane čamove građe | E129: Roof window with aluminum flashings of laminated and impregnated fir timber | F129: / | G129: / | H129: / | I129: /
A130: 7.3.1 | C130: A | D130: dimenzije 66 x 118 (širinaxvisina) | E130: 66 x 118 (width x height) | F130: kom/pcs | H130: =KORISNICI!H134 -> 0 | I130: =G130*H130 -> 0
A131: 7.3.2 | C131: B | D131: dimenzije 78 x 98 (širinaxvisina) | E131: 78 x 98 (width x height) | F131: kom/pcs | H131: =KORISNICI!H135 -> 0 | I131: 0
A132: 7.3.3 | C132: C | D132: dimenzije 78 x 118 (širinaxvisina) | E132: 78 x 118 (width x height) | F132: kom/pcs | H132: =KORISNICI!H136 -> 0 | I132: 0
A133: 7.4 | B133: S | C133: 4 | D133: Balkonska vrata od PVC-a (komplet pozicija). boja profila: bela RAL 9003 broj komora: ≥ 5 komora širina x visina (zidarske mere) | E133: Balcony doors from PVC (set position) Profile color: white RAL 9003 Number of chambers: ≥ 5 chambers width x height (masonry measures) | F133: / | G133: / | H133: / | I133: /
A134: 7.4.1 | C134: A | D134: JK 90x210 cm - Leva | E134: one wing 90x210 cm - Left | F134: kom/pcs | H134: =KORISNICI!H138 -> 0 | I134: =G134*H134 -> 0
A135: 7.4.2 | C135: B | D135: JK 90x210 cm - Desna | E135: one wing 90x210 cm - Right | F135: kom/pcs | H135: =KORISNICI!H139 -> 0 | I135: 0
A136: 7.4.3 | C136: C | D136: DK 140x210 cm | E136: two wings 140x210 cm | F136: kom/pcs | H136: =KORISNICI!H140 -> 0 | I136: 0
A137: 7.5 | B137: S | C137: 5 | D137: Unutrašnja vrata sa ispunom od kartonskog saća (komplet pozicija). širina x visina (spoljna mera futera) | E137: Internal doors filled with cardboard honeycomb (set position) width x height (external measures footer) | F137: / | G137: / | H137: / | I137: /
A138: 7.5.1 | C138: A | D138: 70x205 cm - Leva (dubina štoka 0-16 cm) | E138: 70x205 cm - Left (depth door 0-16 cm) | F138: kom/pcs | H138: =KORISNICI!H142 -> 0 | I138: =G138*H138 -> 0
A139: 7.5.2 | C139: B | D139: 70x205 cm - Leva (dubina štoka 16-30 cm) | E139: 70x205 cm - Left (depth door 16-30 cm) | F139: kom/pcs | H139: =KORISNICI!H143 -> 0 | I139: 0
A140: 7.5.3 | C140: C | D140: 70x205 cm - Desna (dubina štoka 0-16 cm) | E140: 70x205 cm - Right (depth door 0-16 cm) | F140: kom/pcs | H140: =KORISNICI!H144 -> 0 | I140: 0
A141: 7.5.4 | C141: D | D141: 70x205 cm - Desna (dubina štoka 16-30 cm) | E141: 70x205 cm - Right (depth door 16-30 cm) | F141: kom/pcs | H141: =KORISNICI!H145 -> 0 | I141: 0
A142: 7.5.5 | C142: E | D142: 80x205 cm - Leva (dubina štoka 0-16 cm) | E142: 80x205 cm - Left (depth door 0-16 cm) | F142: kom/pcs | H142: =KORISNICI!H146 -> 0 | I142: 0
A143: 7.5.6 | C143: F | D143: 80x205 cm - Leva (dubina štoka 16-30 cm) | E143: 80x205 cm - Left (depth door 16-30 cm) | F143: kom/pcs | H143: =KORISNICI!H147 -> 0 | I143: 0
A144: 7.5.7 | C144: G | D144: 80x205 cm - Desna (dubina štoka 0-16 cm) | E144: 80x205 cm - Right (depth door 0-16 cm) | F144: kom/pcs | H144: =KORISNICI!H148 -> 0 | I144: 0
A145: 7.5.8 | C145: H | D145: 80x205 cm - Desna (dubina štoka 16-30 cm) | E145: 80x205 cm - Right (depth door 16-30 cm) | F145: kom/pcs | H145: =KORISNICI!H149 -> 0 | I145: 0
A146: 7.5.9 | C146: I | D146: 90x205 cm - Leva (dubina štoka 0-16 cm) | E146: 90x205 cm - Left (depth door 0-16 cm) | F146: kom/pcs | H146: =KORISNICI!H150 -> 0 | I146: 0
A147: 7.5.10 | C147: J | D147: 90x205 cm - Leva (dubina štoka 16-30 cm) | E147: 90x205 cm - Left (depth door 16-30 cm) | F147: kom/pcs | H147: =KORISNICI!H151 -> 0 | I147: 0
A148: 7.5.11 | C148: K | D148: 90x205 cm - Desna (dubina štoka 0-16 cm) | E148: 90x205 cm - Right (depth door 0-16 cm) | F148: kom/pcs | H148: =KORISNICI!H152 -> 0 | I148: 0
A149: 7.5.12 | C149: L | D149: 90x205 cm - Desna (dubina štoka 16-30 cm) | E149: 90x205 cm - Right (depth door 16-30 cm) | F149: kom/pcs | H149: =KORISNICI!H153 -> 0 | I149: 0
A151: 8 | B151: D | D151: OSTALA OPREMA I MATERIJAL | E151: OTHER EQUIPMENT AND SUPPLIES
A152: 8.1 | B152: D | C152: 1 | D152: Jednostruki dimnjak prečnika Ф 140 mm. Troslojni montažni dimnjački sistem namenjen za sva ložišta i sve vrste goriva, bez ventilacije. Sastavljen je od: dimnjačke cevi od tehničke keramike, izolacije oko cevi dimnjaka od kamene vune minimalne specifične težine 80kg/m3, spoljneg dimnjačkog plašta od lakog betona, vatrostalnog lepka u kartušama, vatrootpornih i gasnonepropusnih atestiranih troslojnih vratanaca , kondenz posude, priključaka za reviziju i ložišta, krovne ploče od staklo betona, nosača tervola i tvrdih tervol ploča za priključke, ventilacione rešetke, dilatacione rozete od nerđajućeg čelika. Spoljna dimenzija dimnjačkog plašta za fi14cm=32x32cm. | E152: A single chimney diameter 140 mm. Three-layer prefabricated chimney system designed for all furnaces and all types of fuel, with no ventilation. It is composed of: chimney pipe of technical ceramics, pipe insulation around the chimney of stone wool minimum specific weight of 80kg/m3, external chimney mantle of lightweight concrete, refractory adhesive in cartouches, fireproof and gas impermeable certified three-layer side door, condensate pots, connectors for the audit and furnaces, roof tiles of glass concrete girders Tervola and hard tervol plate connections, ventilation grilles, rosettes expansion of stainless steel. The external dimensions of the chimney sleeve fi14cm = 32x32cm. | F152: m1 | H152: =KORISNICI!H156 -> 0 | I152: =G152*H152 -> 0
A154: 9 | B154: V | D154: Vodovod Kanalizacija Oprema | E154: WATER SUPPLY AND SEWAGE
D155: Vodovod | E155: WATER SUPPLY
A156: 9.1 | B156: V | C156: 1 | D156: Vodovodne polietilenske cevi PE 100 PN16 za radni pritisak 16 bara (SDR 11) | E156: Water supply polyethylene pipe PE 100 PN16 the working pressure of 16 bar (SDR 11) | F156: / | G156: / | H156: / | I156: /
A157: 9.1.1 | C157: A | D157: d25 (s min. 2,3) - 3/4" | E157: d25 (s min. 2,3) - 3/4" | F157: m1 | H157: =KORISNICI!H161 -> 0 | I157: =G157*H157 -> 0
A158: 9.1.2 | C158: B | D158: d32 (s min. 3,0) - 1" | E158: d32 (s min. 3,0) - 1" | F158: m1 | H158: =KORISNICI!H162 -> 0 | I158: 0
A159: 9.1.3 | C159: C | D159: d40 (s min. 3,7) - 5/4" | E159: d40 (s min. 3,7) - 5/4" | F159: m1 | H159: =KORISNICI!H163 -> 0 | I159: 0
A160: 9.2 | B160: V | C160: 2 | D160: Vodovodne cevi PP-R 80 PN20 za radni pritisak 20 bara, bele ili zelene boje (materijal: polipropilen-random kapolimer) | E160: Water pipe PP-R 80 PN20 the working pressure of 20 bar, white or green (material: polypropylene random kapolimer) | F160: / | G160: / | H160: / | I160: /
A161: 9.2.1 | C161: B | D161: d20 (s min. 3,4) - 1/2" | E161: d20 (s min. 3,4) - 1/2" | F161: m1 | H161: =KORISNICI!H165 -> 12 | I161: =G161*H161 -> 0
A162: 9.2.2 | C162: C | D162: d25 (s min. 4,2) - 3/4" | E162: d25 (s min. 4,2) - 3/4" | F162: m1 | H162: =KORISNICI!H166 -> 0 | I162: 0
A163: 9.2.3 | C163: D | D163: d32 (s min. 5,4) - 1" | E163: d32 (s min. 5,4) - 1" | F163: m1 | H163: =KORISNICI!H167 -> 0 | I163: 0
A164: 9.3 | B164: V | C164: 3 | D164: Vodomer sa prirubnicama, holenderima i pripadajućom opremom za montažu, za pritisak do 16 bara | E164: water gauge flanges, unions and associated equipment for assembly, for pressure up to 16 bar | F164: / | G164: / | H164: / | I164: /
A165: 9.3.1 | C165: A | D165: horizontalni 3/4" | E165: Horizontal 3/4" | F165: kom/pcs | H165: =KORISNICI!H169 -> 0 | I165: =G165*H165 -> 0
A166: 9.3.2 | C166: B | D166: horizontalni 1" | E166: Horizontal 1" | F166: kom/pcs | H166: =KORISNICI!H170 -> 0 | I166: 0
A167: 9.3.3 | C167: C | D167: horizontalni 5/4" | E167: Horizontal 5/4" | F167: kom/pcs | H167: =KORISNICI!H171 -> 0 | I167: 0
A168: 9.4 | B168: V | C168: 4 | D168: Ravni propusni ventil sa ogrankom za pražnjenje | E168: Skip straight valve with a branch drain | F168: / | G168: / | H168: / | I168: /
A169: 9.4.1 | C169: A | D169: d25 (s min. 2,3) - 3/4" | E169: d25 (s min. 2,3) - 3/4" | F169: kom/pcs | H169: =KORISNICI!H173 -> 0 | I169: =G169*H169 -> 0
A170: 9.4.2 | C170: B | D170: d32 (s min. 3,0) - 1" | E170: d32 (s min. 3,0) - 1" | F170: kom/pcs | H170: =KORISNICI!H174 -> 0 | I170: 0
A171: 9.5 | B171: V | C171: 5 | D171: Propusni ventil za uzidanje sa kapom | E171: Gate valve for the wall with cap | F171: / | G171: / | H171: / | I171: /
A172: 9.5.1 | C172: A | D172: d20 (s min. 3,4) - 1/2" | E172: d20 (s min. 3,4) - 1/2" | F172: kom/pcs | H172: =KORISNICI!H176 -> 0 | I172: =G172*H172 -> 0
A173: 9.5.2 | C173: B | D173: d25 (s min. 4,2) - 3/4" | E173: d25 (s min. 4,2) - 3/4" | F173: kom/pcs | H173: =KORISNICI!H177 -> 0 | I173: 0
A174: 9.5.3 | C174: C | D174: d32 (s min. 3,0) - 1" | E174: d32 (s min. 3,0) - 1" | F174: kom/pcs | H174: =KORISNICI!H178 -> 0 | I174: 0
A175: 9.6 | B175: V | C175: 6 | D175: Ugaoni "EK" sa kapom | E175: Angle valve "EK" with cap | F175: / | G175: / | H175: / | I175: /
A176: 9.6.1 | C176: A | D176: d20 (s min. 3,4) - 1/2" | E176: d20 (s min. 3,4) - 1/2" | F176: kom/pcs | H176: =KORISNICI!H180 -> 0 | I176: =G176*H176 -> 0
A177: 9.7 | B177: V | C177: 7 | D177: Termička izolacija vodovodnih cevi -tipa plamaflex ISO ili sl. | E177: Thermal insulation of water pipes-type PLAMAFLEX ISO etc.. | F177: / | G177: / | H177: / | I177: /
A178: 9.7.1 | C178: B | D178: d20 (22/9) - 1/2" | E178: d20 (22/9) - 1/2" | F178: m1 | H178: =KORISNICI!H182 -> 0 | I178: =G178*H178 -> 0
A179: 9.7.2 | C179: C | D179: d25 (25/9) - 3/4" | E179: d25 (25/9) - 3/4" | F179: m1 | H179: =KORISNICI!H183 -> 0 | I179: 0
A180: 9.7.3 | C180: D | D180: d32 (35/9)- 1" | E180: d32 (35/9)- 1" | F180: m1 | H180: =KORISNICI!H184 -> 0 | I180: 0
D181: Kanalizacija | E181: SEWAGE
A182: 9.8 | B182: V | C182: 8 | D182: PVC kanalizacione cevi SDR 41 / SN4 / PN5 za spoljni razvod, kućna i ulična kanalizacija | E182: PVC sewer pipe SDR 41 / CH4 / PN5 for external distribution, household and street sewage | F182: / | G182: / | H182: / | I182: /
A183: 9.8.1 | C183: A | D183: d110 (s min. 3,2) dužina 6,0m | E183: d110 (s min. 3,2) length 6,0m | F183: kom/pcs | H183: =KORISNICI!H187 -> 0 | I183: =G183*H183 -> 0
A184: 9.8.2 | C184: B | D184: d160 (s min. 4,0) dužina 6,0m | E184: d160 (s min. 4,0) length 6,0m | F184: kom/pcs | H184: =KORISNICI!H188 -> 0 | I184: 0
A185: 9.9 | B185: V | C185: 9 | D185: Plastične PP cevi SDR 51 / SN2 / PN4 za unutrašnji (kućni) razvod, kućna kanalizacija | E185: Plastic PP pipes SDR 51 / SN2 / PN4 for internal (home) distribution, household sewage | F185: / | G185: / | H185: / | I185: /
A186: 9.9.1 | C186: A | D186: d50 (s min. 1,8) dužina 3,0m | E186: d50 (s min. 1,8) length 3,0m | F186: kom/pcs | H186: =KORISNICI!H190 -> 0 | I186: =G186*H186 -> 0
A187: 9.9.2 | C187: B | D187: d75 (s min. 1,9) dužina 3,0m | E187: d75 (s min. 1,9) length 3,0m | F187: kom/pcs | H187: =KORISNICI!H191 -> 0 | I187: 0
A188: 9.9.3 | C188: C | D188: d110 (s min. 2,7) dužina 3,0m | E188: d110 (s min. 2,7) length 3,0m | F188: kom/pcs | H188: =KORISNICI!H192 -> 0 | I188: 0
A189: 9.10 | B189: V | C189: 10 | D189: Plitki PE podni slivnik d50 sa horizontalnim odvodom dimenzija 150x150mm | E189: Shallow PE floor drain with horizontal outlet d50 size 150x150mm | F189: kom/pcs | H189: =KORISNICI!H193 -> 0 | I189: 0
A190: 9.11 | B190: V | C190: 11 | D190: Zidni sifoni sa odvodnom mesinganom cevi d32 (mašina za pranje veša i sudova) | E190: Wall siphon with drainage brass tubes d32 (washing machines, dishwashers) | F190: kom/pcs | H190: =KORISNICI!H194 -> 0 | I190: 0
D191: Oprema u kupatilu | E191: BATHROOM EQUPIMENT
A192: 9.12 | B192: V | C192: 12 | D192: WC šolja od keramike I klase | E192: Ceramic toilet bowl class 1 | F192: kom/pcs | H192: =KORISNICI!H196 -> 4 | I192: =G192*H192 -> 0
A193: 9.13 | B193: V | C193: 13 | D193: Niskomontažni plastični predzidni vodokotlić za nisku montažu iznad wc šolje sa plovkom i svim potrebnim delovima za funkcionisanje vodokotlića | E193: Low mounting plastic-wall toilet tank for low installation above the toilet bowl float and all the parts required for the operation of flushing | F193: kom/pcs | H193: =KORISNICI!H197 -> 4 | I193: 0
A194: 9.14 | B194: V | C194: 14 | D194: Umivaonikom sa stubom od keramike I klase | E194: Washbasin with ceramic pillar class 1 | F194: kom/pcs | H194: =KORISNICI!H198 -> 4 | I194: 0
A195: 9.15 | B195: V | C195: 15 | D195: Pravougaona akrilna tuš kada dimenzija 90x90cm sa odlivnim ventilom | E195: Rectangular acrylic shower size 90x90cm with discharge valve | F195: kom/pcs | H195: =KORISNICI!H199 -> 4 | I195: 0
A196: 9.16 | B196: V | C196: 16 | D196: Električni akumulacioni bojler 50l vertikalni grejač 2 kW, napon 230V, kazan izrađen od emajliranog lima, sa pratećim materijalom za ugradnju | E196: Electric storage water heater 50l vertical heater 2 kW, 230V, caldron made ​​of enameled steel, with supporting material for installation | F196: kom/pcs | H196: =KORISNICI!H200 -> 4 | I196: 0
A197: 9.17 | B197: V | C197: 17 | D197: Ogledalo sa etažerom (iznad umivaonika) četvrtasto, min. dimenzija 80x60cm | E197: Mirror with shelf above wash basin square, min. 80x60cm | F197: kom/pcs | H197: =KORISNICI!H201 -> 4 | I197: 0
A198: 9.18 | B198: V | C198: 18 | D198: Baterije (slavine) hromirane baterije za hladnu i toplu vodu | E198: Lever chrome lever for cold and hot water | F198: / | G198: / | H198: / | I198: /
A199: 9.18.1 | C199: A | D199: za umivaonik jednoručna stojeća | E199: For washbasin single lever basin standing | F199: kom/pcs | H199: =KORISNICI!H203 -> 4 | I199: =G199*H199 -> 0
A200: 9.18.2 | C200: B | D200: za tuš kadu (sa tuš ručicom i tuš crevom) jednoručna sa poniklovanim savitljivim crevom | E200: For shower bath (with shower head and shower hose) Single lever with nickel hoses | F200: kom/pcs | H200: =KORISNICI!H204 -> 4 | I200: 0
A201: 9.18.3 | C201: C | D201: za mašinu za veš i sudove, holender slavina DN20/15, s pripadajućom opremom za ugradnju | E201: for washing machine and dishwasher, union DN20/15 taps, and all the equipment for installation | F201: kom/pcs | H201: =KORISNICI!H205 -> 6 | I201: 0
D202: Oprema u kuhinji | E202: KITCHEN EQUIPMENT
A203: 9.19 | B203: V | C203: 19 | D203: Korito sudopere od "Inox "-a (dvodelno) (izrađeno od plemenitog nerđajućeg čelika) orjenacione dimenzije: 780 x 435 x 150 mm | E203: kitchen sink "Inox" two-part (made of stainless steel) approx. dim: 780 x 435 x 150 mm | F203: kom/pcs | H203: =KORISNICI!H207 -> 0 | I203: =G203*H203 -> 0
A204: 9.20 | B204: V | C204: 20 | D204: Električni akumulacioni bojler 5l za ugradnju iznad sudopere, vertikalni grejač 2 kW, napon 230V, kazan izrađen od plastike sa pratećim materijalom za ugradnju | E204: Electric storage water heater 5l Fitting over the sink, vertical heater 2 kW, 230V, caldron made ​​of plastic with the materials for installation | F204: kom/pcs | H204: =KORISNICI!H208 -> 1 | I204: 0
A205: 9.21 | B205: V | C205: 21 | D205: Baterija za sudoperu jednoručna stojeća hromirana baterija za hladnu i toplu vodu | E205: Sink-standing single lever chrome mixer for hot and cold water | F205: kom/pcs | H205: =KORISNICI!H209 -> 1 | I205: 0
A207: 10 | B207: E | D207: ELEKTRO MATERIJAL I OPREMA | E207: Electrical materials and equipment
D208: Kablovi i kablovski pribor | E208: Electrical cables and cable accessories
A209: 10.1 | B209: E | C209: 1 | D209: Napojni kablovi | E209: Power cables | F209: / | G209: / | H209: / | I209: /
A210: 10.1.1 | C210: A | D210: X00-A 4x16 mm2 | E210: X00-A 4x16 mm2 | F210: m | H210: =KORISNICI!H214 -> 0 | I210: =G210*H210 -> 0
... 72 more rows

Sheet KORISNICI
G1: POTPROJEKAT/ SUBPROJECT | J1: РСП-Потпројекат 9 СК | M1: РСП-Потпројекат 9 СК | P1: РСП-Потпројекат 9 СК | S1: РСП-Потпројекат 9 СК | V1: РСП-Потпројекат 9 СК | Y1: РСП-Потпројекат 9 СК | AB1: РСП-Потпројекат 9 СК | AE1: РСП-Потпројекат 9 СК | AH1: РСП-Потпројекат 9 СК | AK1: РСП-Потпројекат 9 СК | AN1: РСП-Потпројекат 9 СК | AQ1: РСП-Потпројекат 9 СК | AT1: РСП-Потпројекат 9 СК | AW1: РСП-Потпројекат 9 СК | AZ1: РСП-Потпројекат 9 СК
G2: ID KORISNIKA/ USER ID | J2: 01-40-187/2019-5/2 | M2: 01-40-187/2019-5/3 | P2: 01-40-187/2019-5/7 | S2: 01-40-187/2019--5/12 | V2: 01-40-187/2019-5/18 | Y2: 01-40-187/2019-5/4 | AB2: 01-40-187/2019-5/10 | AE2: 01-40-187/2019-5/16 | AH2: 01-40-187/2019-5/17 | AK2: 01-40-187/2019-5/11 | AN2: 01-40-187/2019-5/6 | AQ2: 01-40-187/2019-5/9 | AT2: 01-40-187/2019-5/14 | AW2: 01-40-187/2019-5/1 | AZ2: 01-40-187/2019-5/13
G3: OPŠTINA ISPORUKE/ MUNICIPALITY | J3: ИРИГ | M3: ИРИГ | P3: ИРИГ | S3: ИРИГ | V3: ИРИГ | Y3: ИРИГ | AB3: ИРИГ | AE3: ИРИГ | AH3: ИРИГ | AK3: ИРИГ | AN3: ИРИГ | AQ3: ИРИГ | AT3: Рума | AW3: ИРИГ | AZ3: ИРИГ
G4: MESTO ISPORUKE/ CITY | J4: ИРИГ | M4: ИРИГ | P4: ИРИГ | S4: Врдник | V4: Ривица | Y4: Врдник | AB4: ИРИГ | AE4: Врдник | AH4: ИРИГ | AK4: ИРИГ | AN4: ИРИГ | AQ4: Јазак | AT4: Жарковац | AW4: Ривица | AZ4: Врдник
A6: KOD/ CODE | D6: Opis građevinskog materijala | E6: Description of building materials | F6: Jed. prod./ UNIT | G6: Jedinična prod.cena/ UNIT PRICE | H6: Zbir Količina po materijalima/ SUM QTY | I6: ZBIR UKUPNO PO MATERIJALIMA/ SUM PRICE | J6: Količina/ QTY | K6: UKUPNO/ TOTAL | M6: Količina/ QTY | N6: UKUPNO/ TOTAL | P6: Količina/ QTY | Q6: UKUPNO/ TOTAL | S6: Količina/ QTY | T6: UKUPNO/ TOTAL | V6: Količina/ QTY | W6: UKUPNO/ TOTAL | Y6: Količina/ QTY | Z6: UKUPNO/ TOTAL | AB6: Količina/ QTY | AC6: UKUPNO/ TOTAL | AE6: Količina/ QTY | AF6: UKUPNO/ TOTAL | AH6: Količina/ QTY | AI6: UKUPNO/ TOTAL | AK6: Količina/ QTY | AL6: UKUPNO/ TOTAL | AN6: Količina/ QTY | AO6: UKUPNO/ TOTAL | AQ6: Količina/ QTY | AR6: UKUPNO/ TOTAL | AT6: Količina/ QTY | AU6: UKUPNO/ TOTAL | AW6: Količina/ QTY | AX6: UKUPNO/ TOTAL | AZ6: Količina/ QTY | BA6: UKUPNO/ TOTAL | BC6: Količina/ QTY | BD6: UKUPNO/ TOTAL | BF6: Količina/ QTY | BG6: UKUPNO/ TOTAL | BI6: Količina/ QTY | BJ6: UKUPNO/ TOTAL | BL6: Količina/ QTY | BM6: UKUPNO/ TOTAL | BO6: Količina/ QTY | BP6: UKUPNO/ TOTAL | BR6: Količina/ QTY | BS6: UKUPNO/ TOTAL | BU6: Količina/ QTY | BV6: UKUPNO/ TOTAL | BX6: Količina/ QTY | BY6: UKUPNO/ TOTAL | CA6: Količina/ QTY | CB6: UKUPNO/ TOTAL | CD6: Količina/ QTY | CE6: UKUPNO/ TOTAL | CG6: Količina/ QTY | CH6: UKUPNO/ TOTAL | CJ6: Količina/ QTY | CK6: UKUPNO/ TOTAL | CM6: Količina/ QTY | CN6: UKUPNO/ TOTAL | CP6: Količina/ QTY | CQ6: UKUPNO/ TOTAL | CS6: Količina/ QTY | CT6: UKUPNO/ TOTAL | CV6: Količina/ QTY | CW6: UKUPNO/ TOTAL | CY6: Količina/ QTY | CZ6: UKUPNO/ TOTAL | DB6: Količina/ QTY | DC6: UKUPNO/ TOTAL | DE6: Količina/ QTY | DF6: UKUPNO/ TOTAL | DH6: Količina/ QTY | DI6: UKUPNO/ TOTAL | DK6: Količina/ QTY | DL6: UKUPNO/ TOTAL | DN6: Količina/ QTY | DO6: UKUPNO/ TOTAL | DQ6: Količina/ QTY | DR6: UKUPNO/ TOTAL | DT6: Količina/ QTY | DU6: UKUPNO/ TOTAL | DW6: Količina/ QTY | DX6: UKUPNO/ TOTAL | DZ6: Količina/ QTY | EA6: UKUPNO/ TOTAL | EC6: Količina/ QTY | ED6: UKUPNO/ TOTAL | EF6: Količina/ QTY | EG6: UKUPNO/ TOTAL | EI6: Količina/ QTY | EJ6: UKUPNO/ TOTAL | EL6: Količina/ QTY | EM6: UKUPNO/ TOTAL | EO6: Količina/ QTY | EP6: UKUPNO/ TOTAL | ER6: Količina/ QTY | ES6: UKUPNO/ TOTAL | EU6: Količina/ QTY | EV6: UKUPNO/ TOTAL | EX6: Količina/ QTY | EY6: UKUPNO/ TOTAL | FA6: Količina/ QTY | FB6: UKUPNO/ TOTAL | FD6: Količina/ QTY | FE6: UKUPNO/ TOTAL | FG6: Količina/ QTY | FH6: UKUPNO/ TOTAL | FJ6: Količina/ QTY | FK6: UKUPNO/ TOTAL | FM6: Količina/ QTY | FN6: UKUPNO/ TOTAL | FP6: Količina/ QTY | FQ6: UKUPNO/ TOTAL | FS6: Količina/ QTY | FT6: UKUPNO/ TOTAL | FV6: Količina/ QTY | FW6: UKUPNO/ TOTAL | FY6: Količina/ QTY | FZ6: UKUPNO/ TOTAL | GB6: Količina/ QTY | GC6: UKUPNO/ TOTAL | GE6: Količina/ QTY | GF6: UKUPNO/ TOTAL | GH6: Količina/ QTY | GI6: UKUPNO/ TOTAL | GK6: Količina/ QTY | GL6: UKUPNO/ TOTAL | GN6: Količina/ QTY | GO6: UKUPNO/ TOTAL | GQ6: Količina/ QTY | GR6: UKUPNO/ TOTAL | GT6: Količina/ QTY | GU6: UKUPNO/ TOTAL | GW6: Količina/ QTY | GX6: UKUPNO/ TOTAL | GZ6: Količina/ QTY | HA6: UKUPNO/ TOTAL | HC6: Količina/ QTY | HD6: UKUPNO/ TOTAL | HF6: Količina/ QTY | HG6: UKUPNO/ TOTAL | HI6: Količina/ QTY | HJ6: UKUPNO/ TOTAL
J7: =CONCATENATE("ID",J2) -> ID01-40-187/2019-5/2 | M7: =CONCATENATE("ID",M2) -> ID01-40-187/2019-5/3 | P7: =CONCATENATE("ID",P2) -> ID01-40-187/2019-5/7 | S7: =CONCATENATE("ID",S2) -> ID01-40-187/2019--5/12 | V7: =CONCATENATE("ID",V2) -> ID01-40-187/2019-5/18 | Y7: =CONCATENATE("ID",Y2) -> ID01-40-187/2019-5/4 | AB7: =CONCATENATE("ID",AB2) -> ID01-40-187/2019-5/10 | AE7: =CONCATENATE("ID",AE2) -> ID01-40-187/2019-5/16 | AH7: =CONCATENATE("ID",AH2) -> ID01-40-187/2019-5/17 | AK7: =CONCATENATE("ID",AK2) -> ID01-40-187/2019-5/11 | AN7: =CONCATENATE("ID",AN2) -> ID01-40-187/2019-5/6 | AQ7: =CONCATENATE("ID",AQ2) -> ID01-40-187/2019-5/9 | AT7: =CONCATENATE("ID",AT2) -> ID01-40-187/2019-5/14 | AW7: =CONCATENATE("ID",AW2) -> ID01-40-187/2019-5/1 | AZ7: =CONCATENATE("ID",AZ2) -> ID01-40-187/2019-5/13 | BC7: =CONCATENATE("ID",BC2) -> ID | BF7: =CONCATENATE("ID",BF2) -> ID | BI7: =CONCATENATE("ID",BI2) -> ID | BL7: =CONCATENATE("ID",BL2) -> ID | BO7: =CONCATENATE("ID",BO2) -> ID | BR7: =CONCATENATE("ID",BR2) -> ID | BU7: =CONCATENATE("ID",BU2) -> ID | BX7: =CONCATENATE("ID",BX2) -> ID | CA7: =CONCATENATE("ID",CA2) -> ID | CD7: =CONCATENATE("ID",CD2) -> ID | CG7: =CONCATENATE("ID",CG2) -> ID | CJ7: =CONCATENATE("ID",CJ2) -> ID | CM7: =CONCATENATE("ID",CM2) -> ID | CP7: =CONCATENATE("ID",CP2) -> ID | CS7: =CONCATENATE("ID",CS2) -> ID | CV7: =CONCATENATE("ID",CV2) -> ID | CY7: =CONCATENATE("ID",CY2) -> ID | DB7: =CONCATENATE("ID",DB2) -> ID | DE7: =CONCATENATE("ID",DE2) -> ID | DH7: =CONCATENATE("ID",DH2) -> ID | DK7: =CONCATENATE("ID",DK2) -> ID | DN7: =CONCATENATE("ID",DN2) -> ID | DQ7: =CONCATENATE("ID",DQ2) -> ID | DT7: =CONCATENATE("ID",DT2) -> ID | DW7: =CONCATENATE("ID",DW2) -> ID | DZ7: =CONCATENATE("ID",DZ2) -> ID | EC7: =CONCATENATE("ID",EC2) -> ID | EF7: =CONCATENATE("ID",EF2) -> ID | EI7: =CONCATENATE("ID",EI2) -> ID | EL7: =CONCATENATE("ID",EL2) -> ID | EO7: =CONCATENATE("ID",EO2) -> ID | ER7: =CONCATENATE("ID",ER2) -> ID | EU7: =CONCATENATE("ID",EU2) -> ID | EX7: =CONCATENATE("ID",EX2) -> ID | FA7: =CONCATENATE("ID",FA2) -> ID | FD7: =CONCATENATE("ID",FD2) -> ID | FG7: =CONCATENATE("ID",FG2) -> ID | FJ7: =CONCATENATE("ID",FJ2) -> ID | FM7: =CONCATENATE("ID",FM2) -> ID | FP7: =CONCATENATE("ID",FP2) -> ID | FS7: =CONCATENATE("ID",FS2) -> ID | FV7: =CONCATENATE("ID",FV2) -> ID | FY7: =CONCATENATE("ID",FY2) -> ID | GB7: =CONCATENATE("ID",GB2) -> ID | GE7: =CONCATENATE("ID",GE2) -> ID | GH7: =CONCATENATE("ID",GH2) -> ID | GK7: =CONCATENATE("ID",GK2) -> ID | GN7: =CONCATENATE("ID",GN2) -> ID | GQ7: =CONCATENATE("ID",GQ2) -> ID | GT7: =CONCATENATE("ID",GT2) -> ID | GW7: =CONCATENATE("ID",GW2) -> ID | GZ7: =CONCATENATE("ID",GZ2) -> ID | HC7: =CONCATENATE("ID",HC2) -> ID | HF7: =CONCATENATE("ID",HF2) -> ID | HI7: =CONCATENATE("ID",HI2) -> ID
A8: 1 | B8: A | D8: OSNOVNI GRAĐEVINSKI MATERIJAL | E8: BASIC BUILDING MATERIALS
A9: 1.1 | B9: O | C9: 1 | D9: Cement za betone do MB 30 | E9: Cement for concrete up to 30 MB | F9: kg | G9: =CENA!G5 -> 0 | H9: =J9+M9+P9+S9+V9+Y9+AB9+AE9+AH9+AK9+AN9+AQ9+AZ9+AW9+AT9+BC9+BF9+BI9+BL9+BO9+BR9+BU9+BX9+CA9+CD9+CG9+CJ9+CM9+CP9+CS9+CV9+CY9+DB9+DE9+DH9+DK9+DN9+DQ9+DT9+DW9+DZ9+EC9+EF9+EI9+EL9+EO9+ER9+EU9+EX9+FA9+FD9+FG9+FJ9+FM9+FP9+FS9+FV9+FY9+GB9+GE9+GH9+GK9+GN9+GQ9+GT9+GW9+GZ9+HC9+HF9+HI9 -> 27700 | I9: =G9*H9 -> 0 | J9: 3000 | M9: 9400 | P9: 300 | S9: 1200 | V9: 1500 | Z9: =$G9*Y9 -> 0 | AC9: =$G9*AB9 -> 0 | AE9: 2000 | AH9: 3400 | AK9: 6900 | AO9: =$G9*AN9 -> 0 | AR9: =$G9*AQ9 -> 0 | AU9: =$G9*AT9 -> 0 | AX9: =$G9*AW9 -> 0 | BA9: =$G9*AZ9 -> 0 | BD9: =$G9*BC9 -> 0 | BG9: =$G9*BF9 -> 0 | BJ9: =$G9*BI9 -> 0 | BM9: =$G9*BL9 -> 0 | BP9: =$G9*BO9 -> 0 | BS9: =$G9*BR9 -> 0 | BV9: =$G9*BU9 -> 0 | BY9: =$G9*BX9 -> 0 | CB9: =$G9*CA9 -> 0 | CE9: =$G9*CD9 -> 0 | CH9: =$G9*CG9 -> 0 | CK9: =$G9*CJ9 -> 0 | CN9: =$G9*CM9 -> 0 | CQ9: =$G9*CP9 -> 0 | CT9: =$G9*CS9 -> 0 | CW9: =$G9*CV9 -> 0 | CZ9: =$G9*CY9 -> 0 | DC9: =$G9*DB9 -> 0 | DF9: =$G9*DE9 -> 0 | DI9: =$G9*DH9 -> 0 | DL9: =$G9*DK9 -> 0 | DO9: =$G9*DN9 -> 0 | DR9: =$G9*DQ9 -> 0 | DU9: =$G9*DT9 -> 0 | DX9: =$G9*DW9 -> 0 | EA9: =$G9*DZ9 -> 0 | ED9: =$G9*EC9 -> 0 | EG9: =$G9*EF9 -> 0 | EJ9: =$G9*EI9 -> 0 | EM9: =$G9*EL9 -> 0 | EP9: =$G9*EO9 -> 0 | ES9: =$G9*ER9 -> 0 | EV9: =$G9*EU9 -> 0 | EY9: =$G9*EX9 -> 0 | FB9: =$G9*FA9 -> 0 | FE9: =$G9*FD9 -> 0 | FH9: =$G9*FG9 -> 0 | FK9: =$G9*FJ9 -> 0 | FN9: =$G9*FM9 -> 0 | FQ9: =$G9*FP9 -> 0 | FT9: =$G9*FS9 -> 0 | FW9: =$G9*FV9 -> 0 | FZ9: =$G9*FY9 -> 0 | GC9: =$G9*GB9 -> 0 | GF9: =$G9*GE9 -> 0 | GI9: =$G9*GH9 -> 0 | GL9: =$G9*GK9 -> 0 | GO9: =$G9*GN9 -> 0 | GR9: =$G9*GQ9 -> 0 | GU9: =$G9*GT9 -> 0 | GX9: =$G9*GW9 -> 0 | HA9: =$G9*GZ9 -> 0 | HD9: =$G9*HC9 -> 0 | HG9: =$G9*HF9 -> 0 | HJ9: =$G9*HI9 -> 0
A10: 1.2 | B10: O | C10: 2 | D10: Hidratisani gašeni kreč pripremljen u prahu | E10: Hydrated slaked lime powdered | F10: kg | G10: =CENA!G6 -> 0 | H10: =J10+M10+P10+S10+V10+Y10+AB10+AE10+AH10+AK10+AN10+AQ10+AZ10+AW10+AT10+BC10+BF10+BI10+BL10+BO10+BR10+BU10+BX10+CA10+CD10+CG10+CJ10+CM10+CP10+CS10+CV10+CY10+DB10+DE10+DH10+DK10+DN10+DQ10+DT10+DW10+DZ10+EC10+EF10+EI10+EL10+EO10+ER10+EU10+EX10+FA10+FD10+FG10+FJ10+FM10+FP10+FS10+FV10+FY10+GB10+GE10+GH10+GK10+GN10+GQ10+GT10+GW10+GZ10+HC10+HF10+HI10 -> 0 | I10: =G10*H10 -> 0 | K10: =$G10*J10 -> 0 | N10: =$G10*M10 -> 0 | Q10: =$G10*P10 -> 0 | T10: =$G10*S10 -> 0 | W10: =$G10*V10 -> 0 | Z10: =$G10*Y10 -> 0 | AC10: =$G10*AB10 -> 0 | AF10: =$G10*AE10 -> 0 | AI10: =$G10*AH10 -> 0 | AL10: =$G10*AK10 -> 0 | AO10: =$G10*AN10 -> 0 | AR10: =$G10*AQ10 -> 0 | AU10: =$G10*AT10 -> 0 | AX10: =$G10*AW10 -> 0 | BA10: =$G10*AZ10 -> 0 | BD10: =$G10*BC10 -> 0 | BG10: 0 | BJ10: 0 | BM10: =$G10*BL10 -> 0 | BP10: =$G10*BO10 -> 0 | BS10: =$G10*BR10 -> 0 | BV10: =$G10*BU10 -> 0 | BY10: =$G10*BX10 -> 0 | CB10: =$G10*CA10 -> 0 | CE10: =$G10*CD10 -> 0 | CH10: =$G10*CG10 -> 0 | CK10: =$G10*CJ10 -> 0 | CN10: =$G10*CM10 -> 0 | CQ10: =$G10*CP10 -> 0 | CT10: =$G10*CS10 -> 0 | CW10: =$G10*CV10 -> 0 | CZ10: =$G10*CY10 -> 0 | DC10: 0 | DF10: 0 | DI10: =$G10*DH10 -> 0 | DL10: =$G10*DK10 -> 0 | DO10: =$G10*DN10 -> 0 | DR10: =$G10*DQ10 -> 0 | DU10: =$G10*DT10 -> 0 | DX10: =$G10*DW10 -> 0 | EA10: =$G10*DZ10 -> 0 | ED10: =$G10*EC10 -> 0 | EG10: =$G10*EF10 -> 0 | EJ10: =$G10*EI10 -> 0 | EM10: =$G10*EL10 -> 0 | EP10: =$G10*EO10 -> 0 | ES10: =$G10*ER10 -> 0 | EV10: =$G10*EU10 -> 0 | EY10: 0 | FB10: 0 | FE10: =$G10*FD10 -> 0 | FH10: =$G10*FG10 -> 0 | FK10: =$G10*FJ10 -> 0 | FN10: =$G10*FM10 -> 0 | FQ10: =$G10*FP10 -> 0 | FT10: =$G10*FS10 -> 0 | FW10: =$G10*FV10 -> 0 | FZ10: =$G10*FY10 -> 0 | GC10: =$G10*GB10 -> 0 | GF10: =$G10*GE10 -> 0 | GI10: =$G10*GH10 -> 0 | GL10: =$G10*GK10 -> 0 | GO10: =$G10*GN10 -> 0 | GR10: =$G10*GQ10 -> 0 | GU10: =$G10*GT10 -> 0 | GX10: =$G10*GW10 -> 0 | HA10: =$G10*GZ10 -> 0 | HD10: =$G10*HC10 -> 0 | HG10: =$G10*HF10 -> 0 | HJ10: =$G10*HI10 -> 0
A11: 1.3 | B11: O | C11: 3 | D11: Rebrasto betonsko gvožđe (RA) | E11: Ribbed reinforcement steel | F11: / | G11: / | H11: / | I11: / | J11: / | K11: / | M11: / | N11: / | P11: / | Q11: / | S11: / | T11: / | V11: / | W11: / | Y11: / | Z11: / | AB11: / | AC11: / | AE11: / | AF11: / | AH11: / | AI11: / | AK11: / | AL11: / | AN11: / | AO11: / | AQ11: / | AR11: / | AT11: / | AU11: / | AW11: / | AX11: / | AZ11: / | BA11: / | BC11: / | BD11: / | BF11: / | BG11: / | BI11: / | BJ11: / | BL11: / | BM11: / | BO11: / | BP11: / | BR11: / | BS11: / | BU11: / | BV11: / | BX11: / | BY11: / | CA11: / | CB11: / | CD11: / | CE11: / | CG11: / | CH11: / | CJ11: / | CK11: / | CM11: / | CN11: / | CP11: / | CQ11: / | CS11: / | CT11: / | CV11: / | CW11: / | CY11: / | CZ11: / | DB11: / | DC11: / | DE11: / | DF11: / | DH11: / | DI11: / | DK11: / | DL11: / | DN11: / | DO11: / | DQ11: / | DR11: / | DT11: / | DU11: / | DW11: / | DX11: / | DZ11: / | EA11: / | EC11: / | ED11: / | EF11: / | EG11: / | EI11: / | EJ11: / | EL11: / | EM11: / | EO11: / | EP11: / | ER11: / | ES11: / | EU11: / | EV11: / | EX11: / | EY11: / | FA11: / | FB11: / | FD11: / | FE11: / | FG11: / | FH11: / | FJ11: / | FK11: / | FM11: / | FN11: / | FP11: / | FQ11: / | FS11: / | FT11: / | FV11: / | FW11: / | FY11: / | FZ11: / | GB11: / | GC11: / | GE11: / | GF11: / | GH11: / | GI11: / | GK11: / | GL11: / | GN11: / | GO11: / | GQ11: / | GR11: / | GT11: / | GU11: / | GW11: / | GX11: / | GZ11: / | HA11: / | HC11: / | HD11: / | HF11: / | HG11: / | HI11: / | HJ11: /
A12: 1.3.1 | C12: A | D12: 10 mm - dužine 12m | E12: 10 mm - length 12m | F12: kg | G12: =CENA!G8 -> 0 | H12: =J12+M12+P12+S12+V12+Y12+AB12+AE12+AH12+AK12+AN12+AQ12+AZ12+AW12+AT12+BC12+BF12+BI12+BL12+BO12+BR12+BU12+BX12+CA12+CD12+CG12+CJ12+CM12+CP12+CS12+CV12+CY12+DB12+DE12+DH12+DK12+DN12+DQ12+DT12+DW12+DZ12+EC12+EF12+EI12+EL12+EO12+ER12+EU12+EX12+FA12+FD12+FG12+FJ12+FM12+FP12+FS12+FV12+FY12+GB12+GE12+GH12+GK12+GN12+GQ12+GT12+GW12+GZ12+HC12+HF12+HI12 -> 12 | I12: =G12*H12 -> 0 | K12: =$G12*J12 -> 0 | L12: =J12/$HM$12 -> 0 | N12: =$G12*M12 -> 0 | O12: =M12/$HM$12 -> 0 | Q12: =$G12*P12 -> 0 | R12: =P12/$HM$12 -> 0 | S12: 12 | U12: =S12/$HM$12 -> 2 | W12: =$G12*V12 -> 0 | X12: =V12/$HM$12 -> 0 | Z12: =$G12*Y12 -> 0 | AA12: =Y12/$HM$12 -> 0 | AC12: =$G12*AB12 -> 0 | AD12: =AB12/$HM$12 -> 0 | AF12: =$G12*AE12 -> 0 | AG12: =AE12/$HM$12 -> 0 | AI12: =$G12*AH12 -> 0 | AJ12: =AH12/$HM$12 -> 0 | AL12: =$G12*AK12 -> 0 | AM12: =AK12/$HM$12 -> 0 | AO12: =$G12*AN12 -> 0 | AP12: =AN12/$HM$12 -> 0 | AR12: =$G12*AQ12 -> 0 | AS12: =AQ12/$HM$12 -> 0 | AU12: =$G12*AT12 -> 0 | AV12: =AT12/$HM$12 -> 0 | AX12: =$G12*AW12 -> 0 | AY12: =AW12/$HM$12 -> 0 | BA12: =$G12*AZ12 -> 0 | BB12: =AZ12/$HM$12 -> 0 | BD12: =$G12*BC12 -> 0 | BE12: =BC12/$HM$12 -> 0 | BG12: =$G12*BF12 -> 0 | BH12: =BF12/$HM$12 -> 0 | BJ12: =$G12*BI12 -> 0 | BK12: =BI12/$HM$12 -> 0 | BM12: =$G12*BL12 -> 0 | BN12: =BL12/$HM$12 -> 0 | BP12: =$G12*BO12 -> 0 | BQ12: =BO12/$HM$12 -> 0 | BS12: =$G12*BR12 -> 0 | BT12: =BR12/$HM$12 -> 0 | BV12: =$G12*BU12 -> 0 | BW12: =BU12/$HM$12 -> 0 | BY12: =$G12*BX12 -> 0 | BZ12: =BX12/$HM$12 -> 0 | CB12: =$G12*CA12 -> 0 | CC12: =CA12/$HM$12 -> 0 | CE12: =$G12*CD12 -> 0 | CF12: =CD12/$HM$12 -> 0 | CH12: =$G12*CG12 -> 0 | CI12: =CG12/$HM$12 -> 0 | CK12: =$G12*CJ12 -> 0 | CL12: =CJ12/$HM$12 -> 0 | CN12: =$G12*CM12 -> 0 | CO12: =CM12/$HM$12 -> 0 | CQ12: =$G12*CP12 -> 0 | CR12: =CP12/$HM$12 -> 0 | CT12: =$G12*CS12 -> 0 | CU12: =CS12/$HM$12 -> 0 | CW12: =$G12*CV12 -> 0 | CX12: =CV12/$HM$12 -> 0 | CZ12: =$G12*CY12 -> 0 | DA12: =CY12/$HM$12 -> 0 | DC12: =$G12*DB12 -> 0 | DD12: =DB12/$HM$12 -> 0 | DF12: =$G12*DE12 -> 0 | DG12: =DE12/$HM$12 -> 0 | DI12: =$G12*DH12 -> 0 | DJ12: =DH12/$HM$12 -> 0 | DL12: =$G12*DK12 -> 0 | DM12: =DK12/$HM$12 -> 0 | DO12: =$G12*DN12 -> 0 | DP12: =DN12/$HM$12 -> 0 | DR12: =$G12*DQ12 -> 0 | DS12: =DQ12/$HM$12 -> 0 | DU12: =$G12*DT12 -> 0 | DV12: =DT12/$HM$12 -> 0 | DX12: =$G12*DW12 -> 0 | DY12: =DW12/$HM$12 -> 0 | EA12: =$G12*DZ12 -> 0 | EB12: =DZ12/$HM$12 -> 0 | ED12: =$G12*EC12 -> 0 | EE12: =EC12/$HM$12 -> 0 | EG12: =$G12*EF12 -> 0 | EH12: =EF12/$HM$12 -> 0 | EJ12: =$G12*EI12 -> 0 | EK12: =EI12/$HM$12 -> 0 | EM12: =$G12*EL12 -> 0 | EN12: =EL12/$HM$12 -> 0 | EP12: =$G12*EO12 -> 0 | EQ12: =EO12/$HM$12 -> 0 | ES12: =$G12*ER12 -> 0 | ET12: =ER12/$HM$12 -> 0 | EV12: =$G12*EU12 -> 0 | EW12: =EU12/$HM$12 -> 0 | EY12: =$G12*EX12 -> 0 | EZ12: =EX12/$HM$12 -> 0 | FB12: =$G12*FA12 -> 0 | FC12: =FA12/$HM$12 -> 0 | FE12: =$G12*FD12 -> 0 | FF12: =FD12/$HM$12 -> 0 | FH12: =$G12*FG12 -> 0 | FI12: =FG12/$HM$12 -> 0 | FK12: =$G12*FJ12 -> 0 | FL12: =FJ12/$HM$12 -> 0 | FN12: =$G12*FM12 -> 0 | FO12: =FM12/$HM$12 -> 0 | FQ12: =$G12*FP12 -> 0 | FR12: =FP12/$HM$12 -> 0 | FT12: =$G12*FS12 -> 0 | FU12: =FS12/$HM$12 -> 0 | FW12: =$G12*FV12 -> 0 | FX12: =FV12/$HM$12 -> 0 | FZ12: =$G12*FY12 -> 0 | GA12: =FY12/$HM$12 -> 0 | GC12: =$G12*GB12 -> 0 | GD12: =GB12/$HM$12 -> 0 | GF12: =$G12*GE12 -> 0 | GG12: =GE12/$HM$12 -> 0 | GI12: =$G12*GH12 -> 0 | GJ12: =GH12/$HM$12 -> 0 | GL12: =$G12*GK12 -> 0 | GM12: =GK12/$HM$12 -> 0 | GO12: =$G12*GN12 -> 0 | GP12: =GN12/$HM$12 -> 0 | GR12: =$G12*GQ12 -> 0 | GS12: =GQ12/$HM$12 -> 0 | GU12: =$G12*GT12 -> 0 | GV12: =GT12/$HM$12 -> 0 | GX12: =$G12*GW12 -> 0 | GY12: =GW12/$HM$12 -> 0 | HA12: =$G12*GZ12 -> 0 | HB12: =GZ12/$HM$12 -> 0 | HD12: =$G12*HC12 -> 0 | HE12: =HC12/$HM$12 -> 0 | HG12: =$G12*HF12 -> 0 | HH12: =HF12/$HM$12 -> 0 | HJ12: =$G12*HI12 -> 0 | HK12: =HI12/$HM$12 -> 0 | HM12: 7.74
A13: 1.3.2 | C13: B | D13: 12 mm - dužine 12m | E13: 12 mm - length 12m | F13: kg | G13: =CENA!G9 -> 0 | H13: 0 | I13: 0 | K13: =$G13*J13 -> 0 | L13: =J13/$HM$13 -> 0 | N13: 0 | O13: =M13/$HM$13 -> 0 | Q13: =$G13*P13 -> 0 | R13: =P13/$HM$13 -> 0 | S13: 0 | T13: =$G13*S13 -> 0 | U13: =S13/$HM$13 -> 0 | W13: =$G13*V13 -> 0 | X13: =V13/$HM$13 -> 0 | Z13: =$G13*Y13 -> 0 | AA13: =Y13/$HM$13 -> 0 | AC13: =$G13*AB13 -> 0 | AD13: =AB13/$HM$13 -> 0 | AF13: =$G13*AE13 -> 0 | AG13: =AE13/$HM$13 -> 0 | AI13: =$G13*AH13 -> 0 | AJ13: =AH13/$HM$13 -> 0 | AL13: =$G13*AK13 -> 0 | AM13: =AK13/$HM$13 -> 0 | AO13: =$G13*AN13 -> 0 | AP13: =AN13/$HM$13 -> 0 | AR13: =$G13*AQ13 -> 0 | AS13: =AQ13/$HM$13 -> 0 | AU13: =$G13*AT13 -> 0 | AV13: =AT13/$HM$13 -> 0 | AX13: =$G13*AW13 -> 0 | AY13: =AW13/$HM$13 -> 0 | BA13: =$G13*AZ13 -> 0 | BB13: =AZ13/$HM$13 -> 0 | BD13: =$G13*BC13 -> 0 | BE13: =BC13/$HM$13 -> 0 | BG13: 0 | BH13: =BF13/$HM$13 -> 0 | BJ13: 0 | BK13: =BI13/$HM$13 -> 0 | BM13: =$G13*BL13 -> 0 | BN13: =BL13/$HM$13 -> 0 | BO13: 0 | BP13: =$G13*BO13 -> 0 | BQ13: =BO13/$HM$13 -> 0 | BS13: =$G13*BR13 -> 0 | BT13: =BR13/$HM$13 -> 0 | BV13: =$G13*BU13 -> 0 | BW13: =BU13/$HM$13 -> 0 | BY13: =$G13*BX13 -> 0 | BZ13: =BX13/$HM$13 -> 0 | CB13: =$G13*CA13 -> 0 | CC13: =CA13/$HM$13 -> 0 | CE13: =$G13*CD13 -> 0 | CF13: =CD13/$HM$13 -> 0 | CH13: =$G13*CG13 -> 0 | CI13: =CG13/$HM$13 -> 0 | CK13: =$G13*CJ13 -> 0 | CL13: =CJ13/$HM$13 -> 0 | CN13: =$G13*CM13 -> 0 | CO13: =CM13/$HM$13 -> 0 | CQ13: =$G13*CP13 -> 0 | CR13: =CP13/$HM$13 -> 0 | CT13: =$G13*CS13 -> 0 | CU13: =CS13/$HM$13 -> 0 | CW13: =$G13*CV13 -> 0 | CX13: =CV13/$HM$13 -> 0 | CZ13: =$G13*CY13 -> 0 | DA13: =CY13/$HM$13 -> 0 | DC13: 0 | DD13: =DB13/$HM$13 -> 0 | DF13: 0 | DG13: =DE13/$HM$13 -> 0 | DI13: =$G13*DH13 -> 0 | DJ13: =DH13/$HM$13 -> 0 | DK13: 0 | DL13: =$G13*DK13 -> 0 | DM13: =DK13/$HM$13 -> 0 | DO13: =$G13*DN13 -> 0 | DP13: =DN13/$HM$13 -> 0 | DR13: =$G13*DQ13 -> 0 | DS13: =DQ13/$HM$13 -> 0 | DU13: =$G13*DT13 -> 0 | DV13: =DT13/$HM$13 -> 0 | DX13: =$G13*DW13 -> 0 | DY13: =DW13/$HM$13 -> 0 | EA13: =$G13*DZ13 -> 0 | EB13: =DZ13/$HM$13 -> 0 | ED13: =$G13*EC13 -> 0 | EE13: =EC13/$HM$13 -> 0 | EG13: =$G13*EF13 -> 0 | EH13: =EF13/$HM$13 -> 0 | EJ13: =$G13*EI13 -> 0 | EK13: =EI13/$HM$13 -> 0 | EM13: =$G13*EL13 -> 0 | EN13: =EL13/$HM$13 -> 0 | EP13: =$G13*EO13 -> 0 | EQ13: =EO13/$HM$13 -> 0 | ES13: =$G13*ER13 -> 0 | ET13: =ER13/$HM$13 -> 0 | EV13: =$G13*EU13 -> 0 | EW13: =EU13/$HM$13 -> 0 | EY13: 0 | EZ13: =EX13/$HM$13 -> 0 | FB13: 0 | FC13: =FA13/$HM$13 -> 0 | FE13: =$G13*FD13 -> 0 | FF13: =FD13/$HM$13 -> 0 | FG13: 0 | FH13: =$G13*FG13 -> 0 | FI13: =FG13/$HM$13 -> 0 | FK13: =$G13*FJ13 -> 0 | FL13: =FJ13/$HM$13 -> 0 | FN13: =$G13*FM13 -> 0 | FO13: =FM13/$HM$13 -> 0 | FQ13: =$G13*FP13 -> 0 | FR13: =FP13/$HM$13 -> 0 | FT13: =$G13*FS13 -> 0 | FU13: =FS13/$HM$13 -> 0 | FW13: =$G13*FV13 -> 0 | FX13: =FV13/$HM$13 -> 0 | FZ13: =$G13*FY13 -> 0 | GA13: =FY13/$HM$13 -> 0 | GC13: =$G13*GB13 -> 0 | GD13: =GB13/$HM$13 -> 0 | GF13: =$G13*GE13 -> 0 | GG13: =GE13/$HM$13 -> 0 | GI13: =$G13*GH13 -> 0 | GJ13: =GH13/$HM$13 -> 0 | GL13: =$G13*GK13 -> 0 | GM13: =GK13/$HM$13 -> 0 | GO13: =$G13*GN13 -> 0 | GP13: =GN13/$HM$13 -> 0 | GR13: =$G13*GQ13 -> 0 | GS13: =GQ13/$HM$13 -> 0 | GU13: =$G13*GT13 -> 0 | GV13: =GT13/$HM$13 -> 0 | GX13: =$G13*GW13 -> 0 | GY13: =GW13/$HM$13 -> 0 | HA13: =$G13*GZ13 -> 0 | HB13: =GZ13/$HM$13 -> 0 | HD13: =$G13*HC13 -> 0 | HE13: =HC13/$HM$13 -> 0 | HG13: =$G13*HF13 -> 0 | HH13: =HF13/$HM$13 -> 0 | HJ13: =$G13*HI13 -> 0 | HK13: =HI13/$HM$13 -> 0 | HM13: 11.14
A14: 1.3.3 | C14: C | D14: 14 mm - dužine 12m | E14: 14 mm - length 12m | F14: kg | G14: =CENA!G10 -> 0 | H14: 0 | I14: 0 | K14: =$G14*J14 -> 0 | L14: =J14/$HM$14 -> 0 | N14: 0 | O14: =M14/$HM$14 -> 0 | Q14: =$G14*P14 -> 0 | R14: =P14/$HM$14 -> 0 | T14: =$G14*S14 -> 0 | U14: =S14/$HM$14 -> 0 | W14: =$G14*V14 -> 0 | X14: =V14/$HM$14 -> 0 | Z14: =$G14*Y14 -> 0 | AA14: =Y14/$HM$14 -> 0 | AC14: =$G14*AB14 -> 0 | AD14: =AB14/$HM$14 -> 0 | AF14: =$G14*AE14 -> 0 | AG14: =AE14/$HM$14 -> 0 | AI14: =$G14*AH14 -> 0 | AJ14: =AH14/$HM$14 -> 0 | AL14: =$G14*AK14 -> 0 | AM14: =AK14/$HM$14 -> 0 | AO14: =$G14*AN14 -> 0 | AP14: =AN14/$HM$14 -> 0 | AR14: =$G14*AQ14 -> 0 | AS14: =AQ14/$HM$14 -> 0 | AU14: =$G14*AT14 -> 0 | AV14: =AT14/$HM$14 -> 0 | AX14: =$G14*AW14 -> 0 | AY14: =AW14/$HM$14 -> 0 | BA14: =$G14*AZ14 -> 0 | BB14: =AZ14/$HM$14 -> 0 | BD14: =$G14*BC14 -> 0 | BE14: =BC14/$HM$14 -> 0 | BG14: 0 | BH14: =BF14/$HM$14 -> 0 | BJ14: 0 | BK14: =BI14/$HM$14 -> 0 | BM14: =$G14*BL14 -> 0 | BN14: =BL14/$HM$14 -> 0 | BP14: =$G14*BO14 -> 0 | BQ14: =BO14/$HM$14 -> 0 | BS14: =$G14*BR14 -> 0 | BT14: =BR14/$HM$14 -> 0 | BV14: =$G14*BU14 -> 0 | BW14: =BU14/$HM$14 -> 0 | BY14: =$G14*BX14 -> 0 | BZ14: =BX14/$HM$14 -> 0 | CB14: =$G14*CA14 -> 0 | CC14: =CA14/$HM$14 -> 0 | CE14: =$G14*CD14 -> 0 | CF14: =CD14/$HM$14 -> 0 | CH14: =$G14*CG14 -> 0 | CI14: =CG14/$HM$14 -> 0 | CK14: =$G14*CJ14 -> 0 | CL14: =CJ14/$HM$14 -> 0 | CN14: =$G14*CM14 -> 0 | CO14: =CM14/$HM$14 -> 0 | CQ14: =$G14*CP14 -> 0 | CR14: =CP14/$HM$14 -> 0 | CT14: =$G14*CS14 -> 0 | CU14: =CS14/$HM$14 -> 0 | CW14: =$G14*CV14 -> 0 | CX14: =CV14/$HM$14 -> 0 | CZ14: =$G14*CY14 -> 0 | DA14: =CY14/$HM$14 -> 0 | DC14: 0 | DD14: =DB14/$HM$14 -> 0 | DF14: 0 | DG14: =DE14/$HM$14 -> 0 | DI14: =$G14*DH14 -> 0 | DJ14: =DH14/$HM$14 -> 0 | DL14: =$G14*DK14 -> 0 | DM14: =DK14/$HM$14 -> 0 | DO14: =$G14*DN14 -> 0 | DP14: =DN14/$HM$14 -> 0 | DR14: =$G14*DQ14 -> 0 | DS14: =DQ14/$HM$14 -> 0 | DU14: =$G14*DT14 -> 0 | DV14: =DT14/$HM$14 -> 0 | DX14: =$G14*DW14 -> 0 | DY14: =DW14/$HM$14 -> 0 | EA14: =$G14*DZ14 -> 0 | EB14: =DZ14/$HM$14 -> 0 | ED14: =$G14*EC14 -> 0 | EE14: =EC14/$HM$14 -> 0 | EG14: =$G14*EF14 -> 0 | EH14: =EF14/$HM$14 -> 0 | EJ14: =$G14*EI14 -> 0 | EK14: =EI14/$HM$14 -> 0 | EM14: =$G14*EL14 -> 0 | EN14: =EL14/$HM$14 -> 0 | EP14: =$G14*EO14 -> 0 | EQ14: =EO14/$HM$14 -> 0 | ES14: =$G14*ER14 -> 0 | ET14: =ER14/$HM$14 -> 0 | EV14: =$G14*EU14 -> 0 | EW14: =EU14/$HM$14 -> 0 | EY14: 0 | EZ14: =EX14/$HM$14 -> 0 | FB14: 0 | FC14: =FA14/$HM$14 -> 0 | FE14: =$G14*FD14 -> 0 | FF14: =FD14/$HM$14 -> 0 | FH14: =$G14*FG14 -> 0 | FI14: =FG14/$HM$14 -> 0 | FK14: =$G14*FJ14 -> 0 | FL14: =FJ14/$HM$14 -> 0 | FN14: =$G14*FM14 -> 0 | FO14: =FM14/$HM$14 -> 0 | FQ14: =$G14*FP14 -> 0 | FR14: =FP14/$HM$14 -> 0 | FT14: =$G14*FS14 -> 0 | FU14: =FS14/$HM$14 -> 0 | FW14: =$G14*FV14 -> 0 | FX14: =FV14/$HM$14 -> 0 | FZ14: =$G14*FY14 -> 0 | GA14: =FY14/$HM$14 -> 0 | GC14: =$G14*GB14 -> 0 | GD14: =GB14/$HM$14 -> 0 | GF14: =$G14*GE14 -> 0 | GG14: =GE14/$HM$14 -> 0 | GI14: =$G14*GH14 -> 0 | GJ14: =GH14/$HM$14 -> 0 | GL14: =$G14*GK14 -> 0 | GM14: =GK14/$HM$14 -> 0 | GO14: =$G14*GN14 -> 0 | GP14: =GN14/$HM$14 -> 0 | GR14: =$G14*GQ14 -> 0 | GS14: =GQ14/$HM$14 -> 0 | GU14: =$G14*GT14 -> 0 | GV14: =GT14/$HM$14 -> 0 | GX14: =$G14*GW14 -> 0 | GY14: =GW14/$HM$14 -> 0 | HA14: =$G14*GZ14 -> 0 | HB14: =GZ14/$HM$14 -> 0 | HD14: =$G14*HC14 -> 0 | HE14: =HC14/$HM$14 -> 0 | HG14: =$G14*HF14 -> 0 | HH14: =HF14/$HM$14 -> 0 | HJ14: =$G14*HI14 -> 0 | HK14: =HI14/$HM$14 -> 0 | HM14: 15.17
A15: 1.3.4 | C15: D | D15: 16 mm - dužine 12m | E15: 16 mm - length 12m | F15: kg | G15: =CENA!G11 -> 0 | H15: 0 | I15: 0 | K15: =$G15*J15 -> 0 | L15: =J15/$HM$15 -> 0 | N15: 0 | O15: =M15/$HM$15 -> 0 | Q15: =$G15*P15 -> 0 | R15: =P15/$HM$15 -> 0 | T15: =$G15*S15 -> 0 | U15: =S15/$HM$15 -> 0 | W15: =$G15*V15 -> 0 | X15: =V15/$HM$15 -> 0 | Z15: =$G15*Y15 -> 0 | AA15: =Y15/$HM$15 -> 0 | AC15: =$G15*AB15 -> 0 | AD15: =AB15/$HM$15 -> 0 | AF15: =$G15*AE15 -> 0 | AG15: =AE15/$HM$15 -> 0 | AI15: =$G15*AH15 -> 0 | AJ15: =AH15/$HM$15 -> 0 | AL15: =$G15*AK15 -> 0 | AM15: =AK15/$HM$15 -> 0 | AO15: =$G15*AN15 -> 0 | AP15: =AN15/$HM$15 -> 0 | AR15: =$G15*AQ15 -> 0 | AS15: =AQ15/$HM$15 -> 0 | AU15: =$G15*AT15 -> 0 | AV15: =AT15/$HM$15 -> 0 | AX15: =$G15*AW15 -> 0 | AY15: =AW15/$HM$15 -> 0 | BA15: =$G15*AZ15 -> 0 | BB15: =AZ15/$HM$15 -> 0 | BD15: =$G15*BC15 -> 0 | BE15: =BC15/$HM$15 -> 0 | BG15: 0 | BH15: =BF15/$HM$15 -> 0 | BJ15: 0 | BK15: =BI15/$HM$15 -> 0 | BM15: =$G15*BL15 -> 0 | BN15: =BL15/$HM$15 -> 0 | BP15: =$G15*BO15 -> 0 | BQ15: =BO15/$HM$15 -> 0 | BS15: =$G15*BR15 -> 0 | BT15: =BR15/$HM$15 -> 0 | BV15: =$G15*BU15 -> 0 | BW15: =BU15/$HM$15 -> 0 | BY15: =$G15*BX15 -> 0 | BZ15: =BX15/$HM$15 -> 0 | CB15: =$G15*CA15 -> 0 | CC15: =CA15/$HM$15 -> 0 | CE15: =$G15*CD15 -> 0 | CF15: =CD15/$HM$15 -> 0 | CH15: =$G15*CG15 -> 0 | CI15: =CG15/$HM$15 -> 0 | CK15: =$G15*CJ15 -> 0 | CL15: =CJ15/$HM$15 -> 0 | CN15: =$G15*CM15 -> 0 | CO15: =CM15/$HM$15 -> 0 | CQ15: =$G15*CP15 -> 0 | CR15: =CP15/$HM$15 -> 0 | CT15: =$G15*CS15 -> 0 | CU15: =CS15/$HM$15 -> 0 | CW15: =$G15*CV15 -> 0 | CX15: =CV15/$HM$15 -> 0 | CZ15: =$G15*CY15 -> 0 | DA15: =CY15/$HM$15 -> 0 | DC15: 0 | DD15: =DB15/$HM$15 -> 0 | DF15: 0 | DG15: =DE15/$HM$15 -> 0 | DI15: =$G15*DH15 -> 0 | DJ15: =DH15/$HM$15 -> 0 | DL15: =$G15*DK15 -> 0 | DM15: =DK15/$HM$15 -> 0 | DO15: =$G15*DN15 -> 0 | DP15: =DN15/$HM$15 -> 0 | DR15: =$G15*DQ15 -> 0 | DS15: =DQ15/$HM$15 -> 0 | DU15: =$G15*DT15 -> 0 | DV15: =DT15/$HM$15 -> 0 | DX15: =$G15*DW15 -> 0 | DY15: =DW15/$HM$15 -> 0 | EA15: =$G15*DZ15 -> 0 | EB15: =DZ15/$HM$15 -> 0 | ED15: =$G15*EC15 -> 0 | EE15: =EC15/$HM$15 -> 0 | EG15: =$G15*EF15 -> 0 | EH15: =EF15/$HM$15 -> 0 | EJ15: =$G15*EI15 -> 0 | EK15: =EI15/$HM$15 -> 0 | EM15: =$G15*EL15 -> 0 | EN15: =EL15/$HM$15 -> 0 | EP15: =$G15*EO15 -> 0 | EQ15: =EO15/$HM$15 -> 0 | ES15: =$G15*ER15 -> 0 | ET15: =ER15/$HM$15 -> 0 | EV15: =$G15*EU15 -> 0 | EW15: =EU15/$HM$15 -> 0 | EY15: 0 | EZ15: =EX15/$HM$15 -> 0 | FB15: 0 | FC15: =FA15/$HM$15 -> 0 | FE15: =$G15*FD15 -> 0 | FF15: =FD15/$HM$15 -> 0 | FH15: =$G15*FG15 -> 0 | FI15: =FG15/$HM$15 -> 0 | FK15: =$G15*FJ15 -> 0 | FL15: =FJ15/$HM$15 -> 0 | FN15: =$G15*FM15 -> 0 | FO15: =FM15/$HM$15 -> 0 | FQ15: =$G15*FP15 -> 0 | FR15: =FP15/$HM$15 -> 0 | FT15: =$G15*FS15 -> 0 | FU15: =FS15/$HM$15 -> 0 | FW15: =$G15*FV15 -> 0 | FX15: =FV15/$HM$15 -> 0 | FZ15: =$G15*FY15 -> 0 | GA15: =FY15/$HM$15 -> 0 | GC15: =$G15*GB15 -> 0 | GD15: =GB15/$HM$15 -> 0 | GF15: =$G15*GE15 -> 0 | GG15: =GE15/$HM$15 -> 0 | GI15: =$G15*GH15 -> 0 | GJ15: =GH15/$HM$15 -> 0 | GL15: =$G15*GK15 -> 0 | GM15: =GK15/$HM$15 -> 0 | GO15: =$G15*GN15 -> 0 | GP15: =GN15/$HM$15 -> 0 | GR15: =$G15*GQ15 -> 0 | GS15: =GQ15/$HM$15 -> 0 | GU15: =$G15*GT15 -> 0 | GV15: =GT15/$HM$15 -> 0 | GX15: =$G15*GW15 -> 0 | GY15: =GW15/$HM$15 -> 0 | HA15: =$G15*GZ15 -> 0 | HB15: =GZ15/$HM$15 -> 0 | HD15: =$G15*HC15 -> 0 | HE15: =HC15/$HM$15 -> 0 | HG15: =$G15*HF15 -> 0 | HH15: =HF15/$HM$15 -> 0 | HJ15: =$G15*HI15 -> 0 | HK15: =HI15/$HM$15 -> 0 | HM15: 19.81
A16: 1.4 | B16: O | C16: 4 | D16: Glatko betonsko gvožđe (GA) | E16: Glibly reinforcement steel | F16: / | G16: / | H16: / | I16: / | J16: / | K16: / | M16: / | N16: / | P16: / | Q16: / | S16: / | T16: / | V16: / | W16: / | Y16: / | Z16: / | AB16: / | AC16: / | AE16: / | AF16: / | AH16: / | AI16: / | AK16: / | AL16: / | AN16: / | AO16: / | AQ16: / | AR16: / | AT16: / | AU16: / | AW16: / | AX16: / | AZ16: / | BA16: / | BC16: / | BD16: / | BF16: / | BG16: / | BI16: / | BJ16: / | BL16: / | BM16: / | BO16: / | BP16: / | BR16: / | BS16: / | BU16: / | BV16: / | BX16: / | BY16: / | CA16: / | CB16: / | CD16: / | CE16: / | CG16: / | CH16: / | CJ16: / | CK16: / | CM16: / | CN16: / | CP16: / | CQ16: / | CS16: / | CT16: / | CV16: / | CW16: / | CY16: / | CZ16: / | DB16: / | DC16: / | DE16: / | DF16: / | DH16: / | DI16: / | DK16: / | DL16: / | DN16: / | DO16: / | DQ16: / | DR16: / | DT16: / | DU16: / | DW16: / | DX16: / | DZ16: / | EA16: / | EC16: / | ED16: / | EF16: / | EG16: / | EI16: / | EJ16: / | EL16: / | EM16: / | EO16: / | EP16: / | ER16: / | ES16: / | EU16: / | EV16: / | EX16: / | EY16: / | FA16: / | FB16: / | FD16: / | FE16: / | FG16: / | FH16: / | FJ16: / | FK16: / | FM16: / | FN16: / | FP16: / | FQ16: / | FS16: / | FT16: / | FV16: / | FW16: / | FY16: / | FZ16: / | GB16: / | GC16: / | GE16: / | GF16: / | GH16: / | GI16: / | GK16: / | GL16: / | GN16: / | GO16: / | GQ16: / | GR16: / | GT16: / | GU16: / | GW16: / | GX16: / | GZ16: / | HA16: / | HC16: / | HD16: / | HF16: / | HG16: / | HI16: / | HJ16: /
A17: 1.4.1 | C17: B | D17: 8 mm - dužine 12m | E17: 8 mm - length 12m | F17: kg | G17: =CENA!G13 -> 0 | H17: =J17+M17+P17+S17+V17+Y17+AB17+AE17+AH17+AK17+AN17+AQ17+AZ17+AW17+AT17+BC17+BF17+BI17+BL17+BO17+BR17+BU17+BX17+CA17+CD17+CG17+CJ17+CM17+CP17+CS17+CV17+CY17+DB17+DE17+DH17+DK17+DN17+DQ17+DT17+DW17+DZ17+EC17+EF17+EI17+EL17+EO17+ER17+EU17+EX17+FA17+FD17+FG17+FJ17+FM17+FP17+FS17+FV17+FY17+GB17+GE17+GH17+GK17+GN17+GQ17+GT17+GW17+GZ17+HC17+HF17+HI17 -> 14.22 | I17: =G17*H17 -> 0 | K17: =$G17*J17 -> 0 | L17: =J17/$HM$17 -> 0 | N17: =$G17*M17 -> 0 | O17: =M17/$HM$17 -> 0 | Q17: =$G17*P17 -> 0 | R17: =P17/$HM$17 -> 0 | T17: =$G17*S17 -> 0 | U17: =S17/$HM$17 -> 0 | W17: =$G17*V17 -> 0 | X17: =V17/$HM$17 -> 0 | Z17: =$G17*Y17 -> 0 | AA17: =Y17/$HM$17 -> 0 | AC17: =$G17*AB17 -> 0 | AD17: =AB17/$HM$17 -> 0 | AE17: 14.22 | AG17: =AE17/$HM$17 -> 3 | AI17: =$G17*AH17 -> 0 | AJ17: =AH17/$HM$17 -> 0 | AL17: =$G17*AK17 -> 0 | AM17: =AK17/$HM$17 -> 0 | AO17: =$G17*AN17 -> 0 | AP17: =AN17/$HM$17 -> 0 | AR17: =$G17*AQ17 -> 0 | AS17: =AQ17/$HM$17 -> 0 | AU17: =$G17*AT17 -> 0 | AV17: =AT17/$HM$17 -> 0 | AX17: =$G17*AW17 -> 0 | AY17: =AW17/$HM$17 -> 0 | BA17: =$G17*AZ17 -> 0 | BB17: =AZ17/$HM$17 -> 0 | BD17: =$G17*BC17 -> 0 | BE17: =BC17/$HM$17 -> 0 | BG17: =$G17*BF17 -> 0 | BH17: =BF17/$HM$17 -> 0 | BJ17: =$G17*BI17 -> 0 | BK17: =BI17/$HM$17 -> 0 | BM17: =$G17*BL17 -> 0 | BN17: =BL17/$HM$17 -> 0 | BP17: =$G17*BO17 -> 0 | BQ17: =BO17/$HM$17 -> 0 | BS17: =$G17*BR17 -> 0 | BT17: =BR17/$HM$17 -> 0 | BV17: =$G17*BU17 -> 0 | BW17: =BU17/$HM$17 -> 0 | BY17: =$G17*BX17 -> 0 | BZ17: =BX17/$HM$17 -> 0 | CB17: =$G17*CA17 -> 0 | CC17: =CA17/$HM$17 -> 0 | CE17: =$G17*CD17 -> 0 | CF17: =CD17/$HM$17 -> 0 | CH17: =$G17*CG17 -> 0 | CI17: =CG17/$HM$17 -> 0 | CK17: =$G17*CJ17 -> 0 | CL17: =CJ17/$HM$17 -> 0 | CN17: =$G17*CM17 -> 0 | CO17: =CM17/$HM$17 -> 0 | CQ17: =$G17*CP17 -> 0 | CR17: =CP17/$HM$17 -> 0 | CT17: =$G17*CS17 -> 0 | CU17: =CS17/$HM$17 -> 0 | CW17: =$G17*CV17 -> 0 | CX17: =CV17/$HM$17 -> 0 | CZ17: =$G17*CY17 -> 0 | DA17: =CY17/$HM$17 -> 0 | DC17: =$G17*DB17 -> 0 | DD17: =DB17/$HM$17 -> 0 | DF17: =$G17*DE17 -> 0 | DG17: =DE17/$HM$17 -> 0 | DI17: =$G17*DH17 -> 0 | DJ17: =DH17/$HM$17 -> 0 | DL17: =$G17*DK17 -> 0 | DM17: =DK17/$HM$17 -> 0 | DO17: =$G17*DN17 -> 0 | DP17: =DN17/$HM$17 -> 0 | DR17: =$G17*DQ17 -> 0 | DS17: =DQ17/$HM$17 -> 0 | DU17: =$G17*DT17 -> 0 | DV17: =DT17/$HM$17 -> 0 | DX17: =$G17*DW17 -> 0 | DY17: =DW17/$HM$17 -> 0 | EA17: =$G17*DZ17 -> 0 | EB17: =DZ17/$HM$17 -> 0 | ED17: =$G17*EC17 -> 0 | EE17: =EC17/$HM$17 -> 0 | EG17: =$G17*EF17 -> 0 | EH17: =EF17/$HM$17 -> 0 | EJ17: =$G17*EI17 -> 0 | EK17: =EI17/$HM$17 -> 0 | EM17: =$G17*EL17 -> 0 | EN17: =EL17/$HM$17 -> 0 | EP17: =$G17*EO17 -> 0 | EQ17: =EO17/$HM$17 -> 0 | ES17: =$G17*ER17 -> 0 | ET17: =ER17/$HM$17 -> 0 | EV17: =$G17*EU17 -> 0 | EW17: =EU17/$HM$17 -> 0 | EY17: =$G17*EX17 -> 0 | EZ17: =EX17/$HM$17 -> 0 | FB17: =$G17*FA17 -> 0 | FC17: =FA17/$HM$17 -> 0 | FE17: =$G17*FD17 -> 0 | FF17: =FD17/$HM$17 -> 0 | FH17: =$G17*FG17 -> 0 | FI17: =FG17/$HM$17 -> 0 | FK17: =$G17*FJ17 -> 0 | FL17: =FJ17/$HM$17 -> 0 | FN17: =$G17*FM17 -> 0 | FO17: =FM17/$HM$17 -> 0 | FQ17: =$G17*FP17 -> 0 | FR17: =FP17/$HM$17 -> 0 | FT17: =$G17*FS17 -> 0 | FU17: =FS17/$HM$17 -> 0 | FW17: =$G17*FV17 -> 0 | FX17: =FV17/$HM$17 -> 0 | FZ17: =$G17*FY17 -> 0 | GA17: =FY17/$HM$17 -> 0 | GC17: =$G17*GB17 -> 0 | GD17: =GB17/$HM$17 -> 0 | GF17: =$G17*GE17 -> 0 | GG17: =GE17/$HM$17 -> 0 | GI17: =$G17*GH17 -> 0 | GJ17: =GH17/$HM$17 -> 0 | GL17: =$G17*GK17 -> 0 | GM17: =GK17/$HM$17 -> 0 | GO17: =$G17*GN17 -> 0 | GP17: =GN17/$HM$17 -> 0 | GR17: =$G17*GQ17 -> 0 | GS17: =GQ17/$HM$17 -> 0 | GU17: =$G17*GT17 -> 0 | GV17: =GT17/$HM$17 -> 0 | GX17: =$G17*GW17 -> 0 | GY17: =GW17/$HM$17 -> 0 | HA17: =$G17*GZ17 -> 0 | HB17: =GZ17/$HM$17 -> 0 | HD17: =$G17*HC17 -> 0 | HE17: =HC17/$HM$17 -> 0 | HG17: =$G17*HF17 -> 0 | HH17: =HF17/$HM$17 -> 0 | HJ17: =$G17*HI17 -> 0 | HK17: =HI17/$HM$17 -> 0 | HM17: 4.74
A18: 1.4.2 | C18: C | D18: 10 mm - dužine 12m | E18: 10 mm - length 12m | F18: kg | G18: =CENA!G14 -> 0 | H18: 14.8 | I18: 0 | K18: =$G18*J18 -> 0 | L18: =J18/$HM$18 -> 0 | N18: 0 | O18: =M18/$HM$18 -> 0 | Q18: =$G18*P18 -> 0 | R18: =P18/$HM$18 -> 0 | T18: =$G18*S18 -> 0 | U18: =S18/$HM$18 -> 0 | W18: =$G18*V18 -> 0 | X18: =V18/$HM$18 -> 0 | Z18: =$G18*Y18 -> 0 | AA18: =Y18/$HM$18 -> 0 | AC18: =$G18*AB18 -> 0 | AD18: =AB18/$HM$18 -> 0 | AE18: 14.8 | AG18: =AE18/$HM$18 -> 2 | AI18: =$G18*AH18 -> 0 | AJ18: =AH18/$HM$18 -> 0 | AL18: =$G18*AK18 -> 0 | AM18: =AK18/$HM$18 -> 0 | AO18: =$G18*AN18 -> 0 | AP18: =AN18/$HM$18 -> 0 | AR18: =$G18*AQ18 -> 0 | AS18: =AQ18/$HM$18 -> 0 | AU18: =$G18*AT18 -> 0 | AV18: =AT18/$HM$18 -> 0 | AX18: =$G18*AW18 -> 0 | AY18: =AW18/$HM$18 -> 0 | BA18: =$G18*AZ18 -> 0 | BB18: =AZ18/$HM$18 -> 0 | BD18: =$G18*BC18 -> 0 | BE18: =BC18/$HM$18 -> 0 | BG18: 0 | BH18: =BF18/$HM$18 -> 0 | BJ18: 0 | BK18: =BI18/$HM$18 -> 0 | BM18: =$G18*BL18 -> 0 | BN18: =BL18/$HM$18 -> 0 | BP18: =$G18*BO18 -> 0 | BQ18: =BO18/$HM$18 -> 0 | BS18: =$G18*BR18 -> 0 | BT18: =BR18/$HM$18 -> 0 | BV18: =$G18*BU18 -> 0 | BW18: =BU18/$HM$18 -> 0 | BY18: =$G18*BX18 -> 0 | BZ18: =BX18/$HM$18 -> 0 | CB18: =$G18*CA18 -> 0 | CC18: =CA18/$HM$18 -> 0 | CE18: =$G18*CD18 -> 0 | CF18: =CD18/$HM$18 -> 0 | CH18: =$G18*CG18 -> 0 | CI18: =CG18/$HM$18 -> 0 | CK18: =$G18*CJ18 -> 0 | CL18: =CJ18/$HM$18 -> 0 | CN18: =$G18*CM18 -> 0 | CO18: =CM18/$HM$18 -> 0 | CQ18: =$G18*CP18 -> 0 | CR18: =CP18/$HM$18 -> 0 | CT18: =$G18*CS18 -> 0 | CU18: =CS18/$HM$18 -> 0 | CW18: =$G18*CV18 -> 0 | CX18: =CV18/$HM$18 -> 0 | CZ18: =$G18*CY18 -> 0 | DA18: =CY18/$HM$18 -> 0 | DC18: 0 | DD18: =DB18/$HM$18 -> 0 | DF18: 0 | DG18: =DE18/$HM$18 -> 0 | DI18: =$G18*DH18 -> 0 | DJ18: =DH18/$HM$18 -> 0 | DL18: =$G18*DK18 -> 0 | DM18: =DK18/$HM$18 -> 0 | DO18: =$G18*DN18 -> 0 | DP18: =DN18/$HM$18 -> 0 | DR18: =$G18*DQ18 -> 0 | DS18: =DQ18/$HM$18 -> 0 | DU18: =$G18*DT18 -> 0 | DV18: =DT18/$HM$18 -> 0 | DX18: =$G18*DW18 -> 0 | DY18: =DW18/$HM$18 -> 0 | EA18: =$G18*DZ18 -> 0 | EB18: =DZ18/$HM$18 -> 0 | ED18: =$G18*EC18 -> 0 | EE18: =EC18/$HM$18 -> 0 | EG18: =$G18*EF18 -> 0 | EH18: =EF18/$HM$18 -> 0 | EJ18: =$G18*EI18 -> 0 | EK18: =EI18/$HM$18 -> 0 | EM18: =$G18*EL18 -> 0 | EN18: =EL18/$HM$18 -> 0 | EP18: =$G18*EO18 -> 0 | EQ18: =EO18/$HM$18 -> 0 | ES18: =$G18*ER18 -> 0 | ET18: =ER18/$HM$18 -> 0 | EV18: =$G18*EU18 -> 0 | EW18: =EU18/$HM$18 -> 0 | EY18: 0 | EZ18: =EX18/$HM$18 -> 0 | FB18: 0 | FC18: =FA18/$HM$18 -> 0 | FE18: =$G18*FD18 -> 0 | FF18: =FD18/$HM$18 -> 0 | FH18: =$G18*FG18 -> 0 | FI18: =FG18/$HM$18 -> 0 | FK18: =$G18*FJ18 -> 0 | FL18: =FJ18/$HM$18 -> 0 | FN18: =$G18*FM18 -> 0 | FO18: =FM18/$HM$18 -> 0 | FQ18: =$G18*FP18 -> 0 | FR18: =FP18/$HM$18 -> 0 | FT18: =$G18*FS18 -> 0 | FU18: =FS18/$HM$18 -> 0 | FW18: =$G18*FV18 -> 0 | FX18: =FV18/$HM$18 -> 0 | FZ18: =$G18*FY18 -> 0 | GA18: =FY18/$HM$18 -> 0 | GC18: =$G18*GB18 -> 0 | GD18: =GB18/$HM$18 -> 0 | GF18: =$G18*GE18 -> 0 | GG18: =GE18/$HM$18 -> 0 | GI18: =$G18*GH18 -> 0 | GJ18: =GH18/$HM$18 -> 0 | GL18: =$G18*GK18 -> 0 | GM18: =GK18/$HM$18 -> 0 | GO18: =$G18*GN18 -> 0 | GP18: =GN18/$HM$18 -> 0 | GR18: =$G18*GQ18 -> 0 | GS18: =GQ18/$HM$18 -> 0 | GU18: =$G18*GT18 -> 0 | GV18: =GT18/$HM$18 -> 0 | GX18: =$G18*GW18 -> 0 | GY18: =GW18/$HM$18 -> 0 | HA18: =$G18*GZ18 -> 0 | HB18: =GZ18/$HM$18 -> 0 | HD18: =$G18*HC18 -> 0 | HE18: =HC18/$HM$18 -> 0 | HG18: =$G18*HF18 -> 0 | HH18: =HF18/$HM$18 -> 0 | HJ18: =$G18*HI18 -> 0 | HK18: =HI18/$HM$18 -> 0 | HM18: 7.4
A19: 1.5 | B19: O | C19: 5 | D19: Armaturna betonska mreža dim. (dxš) 6000 x 2150 = 12,9 m2/kom | E19: Reinforcement mesh dim. (lxw) 6000 x 2150 = 12,9 m2/pcs | F19: / | G19: / | H19: / | I19: / | J19: / | K19: / | M19: / | N19: / | P19: / | Q19: / | S19: / | T19: / | V19: / | W19: / | Y19: / | Z19: / | AB19: / | AC19: / | AE19: / | AF19: / | AH19: / | AI19: / | AK19: / | AL19: / | AN19: / | AO19: / | AQ19: / | AR19: / | AT19: / | AU19: / | AW19: / | AX19: / | AZ19: / | BA19: / | BC19: / | BD19: / | BF19: / | BG19: / | BI19: / | BJ19: / | BL19: / | BM19: / | BO19: / | BP19: / | BR19: / | BS19: / | BU19: / | BV19: / | BX19: / | BY19: / | CA19: / | CB19: / | CD19: / | CE19: / | CG19: / | CH19: / | CJ19: / | CK19: / | CM19: / | CN19: / | CP19: / | CQ19: / | CS19: / | CT19: / | CV19: / | CW19: / | CY19: / | CZ19: / | DB19: / | DC19: / | DE19: / | DF19: / | DH19: / | DI19: / | DK19: / | DL19: / | DN19: / | DO19: / | DQ19: / | DR19: / | DT19: / | DU19: / | DW19: / | DX19: / | DZ19: / | EA19: / | EC19: / | ED19: / | EF19: / | EG19: / | EI19: / | EJ19: / | EL19: / | EM19: / | EO19: / | EP19: / | ER19: / | ES19: / | EU19: / | EV19: / | EX19: / | EY19: / | FA19: / | FB19: / | FD19: / | FE19: / | FG19: / | FH19: / | FJ19: / | FK19: / | FM19: / | FN19: / | FP19: / | FQ19: / | FS19: / | FT19: / | FV19: / | FW19: / | FY19: / | FZ19: / | GB19: / | GC19: / | GE19: / | GF19: / | GH19: / | GI19: / | GK19: / | GL19: / | GN19: / | GO19: / | GQ19: / | GR19: / | GT19: / | GU19: / | GW19: / | GX19: / | GZ19: / | HA19: / | HC19: / | HD19: / | HF19: / | HG19: / | HI19: / | HJ19: /
A20: 1.5.1 | C20: A | D20: Q84 /4x4/150x150/ | E20: Q84 /4x4/150x150/ | F20: kg | G20: =CENA!G16 -> 0 | H20: =J20+M20+P20+S20+V20+Y20+AB20+AE20+AH20+AK20+AN20+AQ20+AZ20+AW20+AT20+BC20+BF20+BI20+BL20+BO20+BR20+BU20+BX20+CA20+CD20+CG20+CJ20+CM20+CP20+CS20+CV20+CY20+DB20+DE20+DH20+DK20+DN20+DQ20+DT20+DW20+DZ20+EC20+EF20+EI20+EL20+EO20+ER20+EU20+EX20+FA20+FD20+FG20+FJ20+FM20+FP20+FS20+FV20+FY20+GB20+GE20+GH20+GK20+GN20+GQ20+GT20+GW20+GZ20+HC20+HF20+HI20 -> 0 | I20: =G20*H20 -> 0 | K20: =$G20*J20 -> 0 | L20: =J20/$HM$20 -> 0 | N20: =$G20*M20 -> 0 | O20: =M20/$HM$20 -> 0 | Q20: =$G20*P20 -> 0 | R20: =P20/$HM$20 -> 0 | T20: =$G20*S20 -> 0 | U20: =S20/$HM$20 -> 0 | W20: =$G20*V20 -> 0 | X20: =V20/$HM$20 -> 0 | Z20: =$G20*Y20 -> 0 | AA20: =Y20/$HM$20 -> 0 | AC20: =$G20*AB20 -> 0 | AD20: =AB20/$HM$20 -> 0 | AF20: =$G20*AE20 -> 0 | AG20: =AE20/$HM$20 -> 0 | AI20: =$G20*AH20 -> 0 | AJ20: =AH20/$HM$20 -> 0 | AL20: =$G20*AK20 -> 0 | AM20: =AK20/$HM$20 -> 0 | AO20: =$G20*AN20 -> 0 | AP20: =AN20/$HM$20 -> 0 | AR20: =$G20*AQ20 -> 0 | AS20: =AQ20/$HM$20 -> 0 | AU20: =$G20*AT20 -> 0 | AV20: =AT20/$HM$20 -> 0 | AX20: =$G20*AW20 -> 0 | AY20: =AW20/$HM$20 -> 0 | BA20: =$G20*AZ20 -> 0 | BB20: =AZ20/$HM$20 -> 0 | BD20: =$G20*BC20 -> 0 | BE20: =BC20/$HM$20 -> 0 | BG20: =$G20*BF20 -> 0 | BH20: =BF20/$HM$20 -> 0 | BJ20: =$G20*BI20 -> 0 | BK20: =BI20/$HM$20 -> 0 | BM20: =$G20*BL20 -> 0 | BN20: =BL20/$HM$20 -> 0 | BP20: =$G20*BO20 -> 0 | BQ20: =BO20/$HM$20 -> 0 | BS20: =$G20*BR20 -> 0 | BT20: =BR20/$HM$20 -> 0 | BV20: =$G20*BU20 -> 0 | BW20: =BU20/$HM$20 -> 0 | BY20: =$G20*BX20 -> 0 | BZ20: =BX20/$HM$20 -> 0 | CB20: =$G20*CA20 -> 0 | CC20: =CA20/$HM$20 -> 0 | CE20: =$G20*CD20 -> 0 | CF20: =CD20/$HM$20 -> 0 | CH20: =$G20*CG20 -> 0 | CI20: =CG20/$HM$20 -> 0 | CK20: =$G20*CJ20 -> 0 | CL20: =CJ20/$HM$20 -> 0 | CN20: =$G20*CM20 -> 0 | CO20: =CM20/$HM$20 -> 0 | CQ20: =$G20*CP20 -> 0 | CR20: =CP20/$HM$20 -> 0 | CT20: =$G20*CS20 -> 0 | CU20: =CS20/$HM$20 -> 0 | CW20: =$G20*CV20 -> 0 | CX20: =CV20/$HM$20 -> 0 | CZ20: =$G20*CY20 -> 0 | DA20: =CY20/$HM$20 -> 0 | DC20: =$G20*DB20 -> 0 | DD20: =DB20/$HM$20 -> 0 | DF20: =$G20*DE20 -> 0 | DG20: =DE20/$HM$20 -> 0 | DI20: =$G20*DH20 -> 0 | DJ20: =DH20/$HM$20 -> 0 | DL20: =$G20*DK20 -> 0 | DM20: =DK20/$HM$20 -> 0 | DO20: =$G20*DN20 -> 0 | DP20: =DN20/$HM$20 -> 0 | DR20: =$G20*DQ20 -> 0 | DS20: =DQ20/$HM$20 -> 0 | DU20: =$G20*DT20 -> 0 | DV20: =DT20/$HM$20 -> 0 | DX20: =$G20*DW20 -> 0 | DY20: =DW20/$HM$20 -> 0 | EA20: =$G20*DZ20 -> 0 | EB20: =DZ20/$HM$20 -> 0 | ED20: =$G20*EC20 -> 0 | EE20: =EC20/$HM$20 -> 0 | EG20: =$G20*EF20 -> 0 | EH20: =EF20/$HM$20 -> 0 | EJ20: =$G20*EI20 -> 0 | EK20: =EI20/$HM$20 -> 0 | EM20: =$G20*EL20 -> 0 | EN20: =EL20/$HM$20 -> 0 | EP20: =$G20*EO20 -> 0 | EQ20: =EO20/$HM$20 -> 0 | ES20: =$G20*ER20 -> 0 | ET20: =ER20/$HM$20 -> 0 | EV20: =$G20*EU20 -> 0 | EW20: =EU20/$HM$20 -> 0 | EY20: =$G20*EX20 -> 0 | EZ20: =EX20/$HM$20 -> 0 | FB20: =$G20*FA20 -> 0 | FC20: =FA20/$HM$20 -> 0 | FE20: =$G20*FD20 -> 0 | FF20: =FD20/$HM$20 -> 0 | FH20: =$G20*FG20 -> 0 | FI20: =FG20/$HM$20 -> 0 | FK20: =$G20*FJ20 -> 0 | FL20: =FJ20/$HM$20 -> 0 | FN20: =$G20*FM20 -> 0 | FO20: =FM20/$HM$20 -> 0 | FQ20: =$G20*FP20 -> 0 | FR20: =FP20/$HM$20 -> 0 | FT20: =$G20*FS20 -> 0 | FU20: =FS20/$HM$20 -> 0 | FW20: =$G20*FV20 -> 0 | FX20: =FV20/$HM$20 -> 0 | FZ20: =$G20*FY20 -> 0 | GA20: =FY20/$HM$20 -> 0 | GC20: =$G20*GB20 -> 0 | GD20: =GB20/$HM$20 -> 0 | GF20: =$G20*GE20 -> 0 | GG20: =GE20/$HM$20 -> 0 | GI20: =$G20*GH20 -> 0 | GJ20: =GH20/$HM$20 -> 0 | GL20: =$G20*GK20 -> 0 | GM20: =GK20/$HM$20 -> 0 | GO20: =$G20*GN20 -> 0 | GP20: =GN20/$HM$20 -> 0 | GR20: =$G20*GQ20 -> 0 | GS20: =GQ20/$HM$20 -> 0 | GU20: =$G20*GT20 -> 0 | GV20: =GT20/$HM$20 -> 0 | GX20: =$G20*GW20 -> 0 | GY20: =GW20/$HM$20 -> 0 | HA20: =$G20*GZ20 -> 0 | HB20: =GZ20/$HM$20 -> 0 | HD20: =$G20*HC20 -> 0 | HE20: =HC20/$HM$20 -> 0 | HG20: =$G20*HF20 -> 0 | HH20: =HF20/$HM$20 -> 0 | HJ20: =$G20*HI20 -> 0 | HK20: =HI20/$HM$20 -> 0 | HM20: 17.6
A21: 1.5.2 | C21: B | D21: Q131 /5x5/150x150/ | E21: Q131 /5x5/150x150/ | F21: kg | G21: =CENA!G17 -> 0 | H21: 492.84 | I21: 0 | K21: =$G21*J21 -> 0 | L21: =J21/$HM$21 -> 0 | M21: 273.8 | O21: =M21/$HM$21 -> 10 | Q21: =$G21*P21 -> 0 | R21: =P21/$HM$21 -> 0 | T21: =$G21*S21 -> 0 | U21: =S21/$HM$21 -> 0 | V21: 109.52 | X21: =V21/$HM$21 -> 4 | Z21: =$G21*Y21 -> 0 | AA21: =Y21/$HM$21 -> 0 | AC21: =$G21*AB21 -> 0 | AD21: =AB21/$HM$21 -> 0 | AE21: 109.52 | AG21: =AE21/$HM$21 -> 4 | AI21: =$G21*AH21 -> 0 | AJ21: =AH21/$HM$21 -> 0 | AL21: =$G21*AK21 -> 0 | AM21: =AK21/$HM$21 -> 0 | AO21: =$G21*AN21 -> 0 | AP21: =AN21/$HM$21 -> 0 | AR21: =$G21*AQ21 -> 0 | AS21: =AQ21/$HM$21 -> 0 | AU21: =$G21*AT21 -> 0 | AV21: =AT21/$HM$21 -> 0 | AX21: =$G21*AW21 -> 0 | AY21: =AW21/$HM$21 -> 0 | BA21: =$G21*AZ21 -> 0 | BB21: =AZ21/$HM$21 -> 0 | BD21: =$G21*BC21 -> 0 | BE21: =BC21/$HM$21 -> 0 | BG21: 0 | BH21: =BF21/$HM$21 -> 0 | BJ21: 0 | BK21: =BI21/$HM$21 -> 0 | BM21: =$G21*BL21 -> 0 | BN21: =BL21/$HM$21 -> 0 | BP21: =$G21*BO21 -> 0 | BQ21: =BO21/$HM$21 -> 0 | BS21: =$G21*BR21 -> 0 | BT21: =BR21/$HM$21 -> 0 | BV21: =$G21*BU21 -> 0 | BW21: =BU21/$HM$21 -> 0 | BY21: =$G21*BX21 -> 0 | BZ21: =BX21/$HM$21 -> 0 | CB21: =$G21*CA21 -> 0 | CC21: =CA21/$HM$21 -> 0 | CE21: =$G21*CD21 -> 0 | CF21: =CD21/$HM$21 -> 0 | CH21: =$G21*CG21 -> 0 | CI21: =CG21/$HM$21 -> 0 | CK21: =$G21*CJ21 -> 0 | CL21: =CJ21/$HM$21 -> 0 | CN21: =$G21*CM21 -> 0 | CO21: =CM21/$HM$21 -> 0 | CQ21: =$G21*CP21 -> 0 | CR21: =CP21/$HM$21 -> 0 | CT21: =$G21*CS21 -> 0 | CU21: =CS21/$HM$21 -> 0 | CW21: =$G21*CV21 -> 0 | CX21: =CV21/$HM$21 -> 0 | CZ21: =$G21*CY21 -> 0 | DA21: =CY21/$HM$21 -> 0 | DC21: 0 | DD21: =DB21/$HM$21 -> 0 | DF21: 0 | DG21: =DE21/$HM$21 -> 0 | DI21: =$G21*DH21 -> 0 | DJ21: =DH21/$HM$21 -> 0 | DL21: =$G21*DK21 -> 0 | DM21: =DK21/$HM$21 -> 0 | DO21: =$G21*DN21 -> 0 | DP21: =DN21/$HM$21 -> 0 | DR21: =$G21*DQ21 -> 0 | DS21: =DQ21/$HM$21 -> 0 | DU21: =$G21*DT21 -> 0 | DV21: =DT21/$HM$21 -> 0 | DX21: =$G21*DW21 -> 0 | DY21: =DW21/$HM$21 -> 0 | EA21: =$G21*DZ21 -> 0 | EB21: =DZ21/$HM$21 -> 0 | ED21: =$G21*EC21 -> 0 | EE21: =EC21/$HM$21 -> 0 | EG21: =$G21*EF21 -> 0 | EH21: =EF21/$HM$21 -> 0 | EJ21: =$G21*EI21 -> 0 | EK21: =EI21/$HM$21 -> 0 | EM21: =$G21*EL21 -> 0 | EN21: =EL21/$HM$21 -> 0 | EP21: =$G21*EO21 -> 0 | EQ21: =EO21/$HM$21 -> 0 | ES21: =$G21*ER21 -> 0 | ET21: =ER21/$HM$21 -> 0 | EV21: =$G21*EU21 -> 0 | EW21: =EU21/$HM$21 -> 0 | EY21: 0 | EZ21: =EX21/$HM$21 -> 0 | FB21: 0 | FC21: =FA21/$HM$21 -> 0 | FE21: =$G21*FD21 -> 0 | FF21: =FD21/$HM$21 -> 0 | FH21: =$G21*FG21 -> 0 | FI21: =FG21/$HM$21 -> 0 | FK21: =$G21*FJ21 -> 0 | FL21: =FJ21/$HM$21 -> 0 | FN21: =$G21*FM21 -> 0 | FO21: =FM21/$HM$21 -> 0 | FQ21: =$G21*FP21 -> 0 | FR21: =FP21/$HM$21 -> 0 | FT21: =$G21*FS21 -> 0 | FU21: =FS21/$HM$21 -> 0 | FW21: =$G21*FV21 -> 0 | FX21: =FV21/$HM$21 -> 0 | FZ21: =$G21*FY21 -> 0 | GA21: =FY21/$HM$21 -> 0 | GC21: =$G21*GB21 -> 0 | GD21: =GB21/$HM$21 -> 0 | GF21: =$G21*GE21 -> 0 | GG21: =GE21/$HM$21 -> 0 | GI21: =$G21*GH21 -> 0 | GJ21: =GH21/$HM$21 -> 0 | GL21: =$G21*GK21 -> 0 | GM21: =GK21/$HM$21 -> 0 | GO21: =$G21*GN21 -> 0 | GP21: =GN21/$HM$21 -> 0 | GR21: =$G21*GQ21 -> 0 | GS21: =GQ21/$HM$21 -> 0 | GU21: =$G21*GT21 -> 0 | GV21: =GT21/$HM$21 -> 0 | GX21: =$G21*GW21 -> 0 | GY21: =GW21/$HM$21 -> 0 | HA21: =$G21*GZ21 -> 0 | HB21: =GZ21/$HM$21 -> 0 | HD21: =$G21*HC21 -> 0 | HE21: =HC21/$HM$21 -> 0 | HG21: =$G21*HF21 -> 0 | HH21: =HF21/$HM$21 -> 0 | HJ21: =$G21*HI21 -> 0 | HK21: =HI21/$HM$21 -> 0 | HM21: 27.38
A22: 1.5.3 | C22: C | D22: Q188 /6x6/150x150/ | E22: Q188 /6x6/150x150/ | F22: kg | G22: =CENA!G18 -> 0 | H22: 0 | I22: 0 | K22: =$G22*J22 -> 0 | L22: =J22/$HM$22 -> 0 | N22: 0 | O22: =M22/$HM$22 -> 0 | Q22: =$G22*P22 -> 0 | R22: =P22/$HM$22 -> 0 | S22: 0 | T22: =$G22*S22 -> 0 | U22: =S22/$HM$22 -> 0 | W22: =$G22*V22 -> 0 | X22: =V22/$HM$22 -> 0 | Z22: =$G22*Y22 -> 0 | AA22: =Y22/$HM$22 -> 0 | AC22: =$G22*AB22 -> 0 | AD22: =AB22/$HM$22 -> 0 | AF22: =$G22*AE22 -> 0 | AG22: =AE22/$HM$22 -> 0 | AI22: =$G22*AH22 -> 0 | AJ22: =AH22/$HM$22 -> 0 | AL22: =$G22*AK22 -> 0 | AM22: =AK22/$HM$22 -> 0 | AO22: =$G22*AN22 -> 0 | AP22: =AN22/$HM$22 -> 0 | AR22: =$G22*AQ22 -> 0 | AS22: =AQ22/$HM$22 -> 0 | AU22: =$G22*AT22 -> 0 | AV22: =AT22/$HM$22 -> 0 | AX22: =$G22*AW22 -> 0 | AY22: =AW22/$HM$22 -> 0 | BA22: =$G22*AZ22 -> 0 | BB22: =AZ22/$HM$22 -> 0 | BD22: =$G22*BC22 -> 0 | BE22: =BC22/$HM$22 -> 0 | BG22: 0 | BH22: =BF22/$HM$22 -> 0 | BJ22: 0 | BK22: =BI22/$HM$22 -> 0 | BM22: =$G22*BL22 -> 0 | BN22: =BL22/$HM$22 -> 0 | BO22: 0 | BP22: =$G22*BO22 -> 0 | BQ22: =BO22/$HM$22 -> 0 | BS22: =$G22*BR22 -> 0 | BT22: =BR22/$HM$22 -> 0 | BV22: =$G22*BU22 -> 0 | BW22: =BU22/$HM$22 -> 0 | BY22: =$G22*BX22 -> 0 | BZ22: =BX22/$HM$22 -> 0 | CB22: =$G22*CA22 -> 0 | CC22: =CA22/$HM$22 -> 0 | CE22: =$G22*CD22 -> 0 | CF22: =CD22/$HM$22 -> 0 | CH22: =$G22*CG22 -> 0 | CI22: =CG22/$HM$22 -> 0 | CK22: =$G22*CJ22 -> 0 | CL22: =CJ22/$HM$22 -> 0 | CN22: =$G22*CM22 -> 0 | CO22: =CM22/$HM$22 -> 0 | CQ22: =$G22*CP22 -> 0 | CR22: =CP22/$HM$22 -> 0 | CT22: =$G22*CS22 -> 0 | CU22: =CS22/$HM$22 -> 0 | CW22: =$G22*CV22 -> 0 | CX22: =CV22/$HM$22 -> 0 | CZ22: =$G22*CY22 -> 0 | DA22: =CY22/$HM$22 -> 0 | DC22: 0 | DD22: =DB22/$HM$22 -> 0 | DF22: 0 | DG22: =DE22/$HM$22 -> 0 | DI22: =$G22*DH22 -> 0 | DJ22: =DH22/$HM$22 -> 0 | DK22: 0 | DL22: =$G22*DK22 -> 0 | DM22: =DK22/$HM$22 -> 0 | DO22: =$G22*DN22 -> 0 | DP22: =DN22/$HM$22 -> 0 | DR22: =$G22*DQ22 -> 0 | DS22: =DQ22/$HM$22 -> 0 | DU22: =$G22*DT22 -> 0 | DV22: =DT22/$HM$22 -> 0 | DX22: =$G22*DW22 -> 0 | DY22: =DW22/$HM$22 -> 0 | EA22: =$G22*DZ22 -> 0 | EB22: =DZ22/$HM$22 -> 0 | ED22: =$G22*EC22 -> 0 | EE22: =EC22/$HM$22 -> 0 | EG22: =$G22*EF22 -> 0 | EH22: =EF22/$HM$22 -> 0 | EJ22: =$G22*EI22 -> 0 | EK22: =EI22/$HM$22 -> 0 | EM22: =$G22*EL22 -> 0 | EN22: =EL22/$HM$22 -> 0 | EP22: =$G22*EO22 -> 0 | EQ22: =EO22/$HM$22 -> 0 | ES22: =$G22*ER22 -> 0 | ET22: =ER22/$HM$22 -> 0 | EV22: =$G22*EU22 -> 0 | EW22: =EU22/$HM$22 -> 0 | EY22: 0 | EZ22: =EX22/$HM$22 -> 0 | FB22: 0 | FC22: =FA22/$HM$22 -> 0 | FE22: =$G22*FD22 -> 0 | FF22: =FD22/$HM$22 -> 0 | FG22: 0 | FH22: =$G22*FG22 -> 0 | FI22: =FG22/$HM$22 -> 0 | FK22: =$G22*FJ22 -> 0 | FL22: =FJ22/$HM$22 -> 0 | FN22: =$G22*FM22 -> 0 | FO22: =FM22/$HM$22 -> 0 | FQ22: =$G22*FP22 -> 0 | FR22: =FP22/$HM$22 -> 0 | FT22: =$G22*FS22 -> 0 | FU22: =FS22/$HM$22 -> 0 | FW22: =$G22*FV22 -> 0 | FX22: =FV22/$HM$22 -> 0 | FZ22: =$G22*FY22 -> 0 | GA22: =FY22/$HM$22 -> 0 | GC22: =$G22*GB22 -> 0 | GD22: =GB22/$HM$22 -> 0 | GF22: =$G22*GE22 -> 0 | GG22: =GE22/$HM$22 -> 0 | GI22: =$G22*GH22 -> 0 | GJ22: =GH22/$HM$22 -> 0 | GL22: =$G22*GK22 -> 0 | GM22: =GK22/$HM$22 -> 0 | GO22: =$G22*GN22 -> 0 | GP22: =GN22/$HM$22 -> 0 | GR22: =$G22*GQ22 -> 0 | GS22: =GQ22/$HM$22 -> 0 | GU22: =$G22*GT22 -> 0 | GV22: =GT22/$HM$22 -> 0 | GX22: =$G22*GW22 -> 0 | GY22: =GW22/$HM$22 -> 0 | HA22: =$G22*GZ22 -> 0 | HB22: =GZ22/$HM$22 -> 0 | HD22: =$G22*HC22 -> 0 | HE22: =HC22/$HM$22 -> 0 | HG22: =$G22*HF22 -> 0 | HH22: =HF22/$HM$22 -> 0 | HJ22: =$G22*HI22 -> 0 | HK22: =HI22/$HM$22 -> 0 | HM22: 39.46
A23: 1.5.4 | C23: D | D23: Q283 /6x6/100x100/ | E23: Q283 /6x6/100x100/ | F23: kg | G23: =CENA!G19 -> 0 | H23: 0 | I23: 0 | K23: =$G23*J23 -> 0 | L23: =J23/$HM$23 -> 0 | N23: 0 | O23: =M23/$HM$23 -> 0 | Q23: =$G23*P23 -> 0 | R23: =P23/$HM$23 -> 0 | T23: =$G23*S23 -> 0 | U23: =S23/$HM$23 -> 0 | W23: =$G23*V23 -> 0 | X23: =V23/$HM$23 -> 0 | Z23: =$G23*Y23 -> 0 | AA23: =Y23/$HM$23 -> 0 | AC23: =$G23*AB23 -> 0 | AD23: =AB23/$HM$23 -> 0 | AF23: =$G23*AE23 -> 0 | AG23: =AE23/$HM$23 -> 0 | AI23: =$G23*AH23 -> 0 | AJ23: =AH23/$HM$23 -> 0 | AL23: =$G23*AK23 -> 0 | AM23: =AK23/$HM$23 -> 0 | AO23: =$G23*AN23 -> 0 | AP23: =AN23/$HM$23 -> 0 | AR23: =$G23*AQ23 -> 0 | AS23: =AQ23/$HM$23 -> 0 | AU23: =$G23*AT23 -> 0 | AV23: =AT23/$HM$23 -> 0 | AX23: =$G23*AW23 -> 0 | AY23: =AW23/$HM$23 -> 0 | BA23: =$G23*AZ23 -> 0 | BB23: =AZ23/$HM$23 -> 0 | BD23: =$G23*BC23 -> 0 | BE23: =BC23/$HM$23 -> 0 | BG23: 0 | BH23: =BF23/$HM$23 -> 0 | BJ23: 0 | BK23: =BI23/$HM$23 -> 0 | BM23: =$G23*BL23 -> 0 | BN23: =BL23/$HM$23 -> 0 | BP23: =$G23*BO23 -> 0 | BQ23: =BO23/$HM$23 -> 0 | BS23: =$G23*BR23 -> 0 | BT23: =BR23/$HM$23 -> 0 | BV23: =$G23*BU23 -> 0 | BW23: =BU23/$HM$23 -> 0 | BY23: =$G23*BX23 -> 0 | BZ23: =BX23/$HM$23 -> 0 | CB23: =$G23*CA23 -> 0 | CC23: =CA23/$HM$23 -> 0 | CE23: =$G23*CD23 -> 0 | CF23: =CD23/$HM$23 -> 0 | CH23: =$G23*CG23 -> 0 | CI23: =CG23/$HM$23 -> 0 | CK23: =$G23*CJ23 -> 0 | CL23: =CJ23/$HM$23 -> 0 | CN23: =$G23*CM23 -> 0 | CO23: =CM23/$HM$23 -> 0 | CQ23: =$G23*CP23 -> 0 | CR23: =CP23/$HM$23 -> 0 | CT23: =$G23*CS23 -> 0 | CU23: =CS23/$HM$23 -> 0 | CW23: =$G23*CV23 -> 0 | CX23: =CV23/$HM$23 -> 0 | CZ23: =$G23*CY23 -> 0 | DA23: =CY23/$HM$23 -> 0 | DC23: 0 | DD23: =DB23/$HM$23 -> 0 | DF23: 0 | DG23: =DE23/$HM$23 -> 0 | DI23: =$G23*DH23 -> 0 | DJ23: =DH23/$HM$23 -> 0 | DL23: =$G23*DK23 -> 0 | DM23: =DK23/$HM$23 -> 0 | DO23: =$G23*DN23 -> 0 | DP23: =DN23/$HM$23 -> 0 | DR23: =$G23*DQ23 -> 0 | DS23: =DQ23/$HM$23 -> 0 | DU23: =$G23*DT23 -> 0 | DV23: =DT23/$HM$23 -> 0 | DX23: =$G23*DW23 -> 0 | DY23: =DW23/$HM$23 -> 0 | EA23: =$G23*DZ23 -> 0 | EB23: =DZ23/$HM$23 -> 0 | ED23: =$G23*EC23 -> 0 | EE23: =EC23/$HM$23 -> 0 | EG23: =$G23*EF23 -> 0 | EH23: =EF23/$HM$23 -> 0 | EJ23: =$G23*EI23 -> 0 | EK23: =EI23/$HM$23 -> 0 | EM23: =$G23*EL23 -> 0 | EN23: =EL23/$HM$23 -> 0 | EP23: =$G23*EO23 -> 0 | EQ23: =EO23/$HM$23 -> 0 | ES23: =$G23*ER23 -> 0 | ET23: =ER23/$HM$23 -> 0 | EV23: =$G23*EU23 -> 0 | EW23: =EU23/$HM$23 -> 0 | EY23: 0 | EZ23: =EX23/$HM$23 -> 0 | FB23: 0 | FC23: =FA23/$HM$23 -> 0 | FE23: =$G23*FD23 -> 0 | FF23: =FD23/$HM$23 -> 0 | FH23: =$G23*FG23 -> 0 | FI23: =FG23/$HM$23 -> 0 | FK23: =$G23*FJ23 -> 0 | FL23: =FJ23/$HM$23 -> 0 | FN23: =$G23*FM23 -> 0 | FO23: =FM23/$HM$23 -> 0 | FQ23: =$G23*FP23 -> 0 | FR23: =FP23/$HM$23 -> 0 | FT23: =$G23*FS23 -> 0 | FU23: =FS23/$HM$23 -> 0 | FW23: =$G23*FV23 -> 0 | FX23: =FV23/$HM$23 -> 0 | FZ23: =$G23*FY23 -> 0 | GA23: =FY23/$HM$23 -> 0 | GC23: =$G23*GB23 -> 0 | GD23: =GB23/$HM$23 -> 0 | GF23: =$G23*GE23 -> 0 | GG23: =GE23/$HM$23 -> 0 | GI23: =$G23*GH23 -> 0 | GJ23: =GH23/$HM$23 -> 0 | GL23: =$G23*GK23 -> 0 | GM23: =GK23/$HM$23 -> 0 | GO23: =$G23*GN23 -> 0 | GP23: =GN23/$HM$23 -> 0 | GR23: =$G23*GQ23 -> 0 | GS23: =GQ23/$HM$23 -> 0 | GU23: =$G23*GT23 -> 0 | GV23: =GT23/$HM$23 -> 0 | GX23: =$G23*GW23 -> 0 | GY23: =GW23/$HM$23 -> 0 | HA23: =$G23*GZ23 -> 0 | HB23: =GZ23/$HM$23 -> 0 | HD23: =$G23*HC23 -> 0 | HE23: =HC23/$HM$23 -> 0 | HG23: =$G23*HF23 -> 0 | HH23: =HF23/$HM$23 -> 0 | HJ23: =$G23*HI23 -> 0 | HK23: =HI23/$HM$23 -> 0 | HM23: 58.21
A24: 1.5.5 | C24: E | D24: Q335 /8x8/150x150/ | E24: Q335 /8x8/150x150/ | F24: kg | G24: =CENA!G20 -> 0 | H24: 0 | I24: 0 | K24: =$G24*J24 -> 0 | L24: =J24/$HM$24 -> 0 | N24: 0 | O24: =M24/$HM$24 -> 0 | Q24: =$G24*P24 -> 0 | R24: =P24/$HM$24 -> 0 | T24: =$G24*S24 -> 0 | U24: =S24/$HM$24 -> 0 | W24: =$G24*V24 -> 0 | X24: =V24/$HM$24 -> 0 | Z24: =$G24*Y24 -> 0 | AA24: =Y24/$HM$24 -> 0 | AC24: =$G24*AB24 -> 0 | AD24: =AB24/$HM$24 -> 0 | AF24: =$G24*AE24 -> 0 | AG24: =AE24/$HM$24 -> 0 | AI24: =$G24*AH24 -> 0 | AJ24: =AH24/$HM$24 -> 0 | AL24: =$G24*AK24 -> 0 | AM24: =AK24/$HM$24 -> 0 | AO24: =$G24*AN24 -> 0 | AP24: =AN24/$HM$24 -> 0 | AR24: =$G24*AQ24 -> 0 | AS24: =AQ24/$HM$24 -> 0 | AU24: =$G24*AT24 -> 0 | AV24: =AT24/$HM$24 -> 0 | AX24: =$G24*AW24 -> 0 | AY24: =AW24/$HM$24 -> 0 | BA24: =$G24*AZ24 -> 0 | BB24: =AZ24/$HM$24 -> 0 | BD24: =$G24*BC24 -> 0 | BE24: =BC24/$HM$24 -> 0 | BG24: 0 | BH24: =BF24/$HM$24 -> 0 | BJ24: 0 | BK24: =BI24/$HM$24 -> 0 | BM24: =$G24*BL24 -> 0 | BN24: =BL24/$HM$24 -> 0 | BP24: =$G24*BO24 -> 0 | BQ24: =BO24/$HM$24 -> 0 | BS24: =$G24*BR24 -> 0 | BT24: =BR24/$HM$24 -> 0 | BV24: =$G24*BU24 -> 0 | BW24: =BU24/$HM$24 -> 0 | BY24: =$G24*BX24 -> 0 | BZ24: =BX24/$HM$24 -> 0 | CB24: =$G24*CA24 -> 0 | CC24: =CA24/$HM$24 -> 0 | CE24: =$G24*CD24 -> 0 | CF24: =CD24/$HM$24 -> 0 | CH24: =$G24*CG24 -> 0 | CI24: =CG24/$HM$24 -> 0 | CK24: =$G24*CJ24 -> 0 | CL24: =CJ24/$HM$24 -> 0 | CN24: =$G24*CM24 -> 0 | CO24: =CM24/$HM$24 -> 0 | CQ24: =$G24*CP24 -> 0 | CR24: =CP24/$HM$24 -> 0 | CT24: =$G24*CS24 -> 0 | CU24: =CS24/$HM$24 -> 0 | CW24: =$G24*CV24 -> 0 | CX24: =CV24/$HM$24 -> 0 | CZ24: =$G24*CY24 -> 0 | DA24: =CY24/$HM$24 -> 0 | DC24: 0 | DD24: =DB24/$HM$24 -> 0 | DF24: 0 | DG24: =DE24/$HM$24 -> 0 | DI24: =$G24*DH24 -> 0 | DJ24: =DH24/$HM$24 -> 0 | DL24: =$G24*DK24 -> 0 | DM24: =DK24/$HM$24 -> 0 | DO24: =$G24*DN24 -> 0 | DP24: =DN24/$HM$24 -> 0 | DR24: =$G24*DQ24 -> 0 | DS24: =DQ24/$HM$24 -> 0 | DU24: =$G24*DT24 -> 0 | DV24: =DT24/$HM$24 -> 0 | DX24: =$G24*DW24 -> 0 | DY24: =DW24/$HM$24 -> 0 | EA24: =$G24*DZ24 -> 0 | EB24: =DZ24/$HM$24 -> 0 | ED24: =$G24*EC24 -> 0 | EE24: =EC24/$HM$24 -> 0 | EG24: =$G24*EF24 -> 0 | EH24: =EF24/$HM$24 -> 0 | EJ24: =$G24*EI24 -> 0 | EK24: =EI24/$HM$24 -> 0 | EM24: =$G24*EL24 -> 0 | EN24: =EL24/$HM$24 -> 0 | EP24: =$G24*EO24 -> 0 | EQ24: =EO24/$HM$24 -> 0 | ES24: =$G24*ER24 -> 0 | ET24: =ER24/$HM$24 -> 0 | EV24: =$G24*EU24 -> 0 | EW24: =EU24/$HM$24 -> 0 | EY24: 0 | EZ24: =EX24/$HM$24 -> 0 | FB24: 0 | FC24: =FA24/$HM$24 -> 0 | FE24: =$G24*FD24 -> 0 | FF24: =FD24/$HM$24 -> 0 | FH24: =$G24*FG24 -> 0 | FI24: =FG24/$HM$24 -> 0 | FK24: =$G24*FJ24 -> 0 | FL24: =FJ24/$HM$24 -> 0 | FN24: =$G24*FM24 -> 0 | FO24: =FM24/$HM$24 -> 0 | FQ24: =$G24*FP24 -> 0 | FR24: =FP24/$HM$24 -> 0 | FT24: =$G24*FS24 -> 0 | FU24: =FS24/$HM$24 -> 0 | FW24: =$G24*FV24 -> 0 | FX24: =FV24/$HM$24 -> 0 | FZ24: =$G24*FY24 -> 0 | GA24: =FY24/$HM$24 -> 0 | GC24: =$G24*GB24 -> 0 | GD24: =GB24/$HM$24 -> 0 | GF24: =$G24*GE24 -> 0 | GG24: =GE24/$HM$24 -> 0 | GI24: =$G24*GH24 -> 0 | GJ24: =GH24/$HM$24 -> 0 | GL24: =$G24*GK24 -> 0 | GM24: =GK24/$HM$24 -> 0 | GO24: =$G24*GN24 -> 0 | GP24: =GN24/$HM$24 -> 0 | GR24: =$G24*GQ24 -> 0 | GS24: =GQ24/$HM$24 -> 0 | GU24: =$G24*GT24 -> 0 | GV24: =GT24/$HM$24 -> 0 | GX24: =$G24*GW24 -> 0 | GY24: =GW24/$HM$24 -> 0 | HA24: =$G24*GZ24 -> 0 | HB24: =GZ24/$HM$24 -> 0 | HD24: =$G24*HC24 -> 0 | HE24: =HC24/$HM$24 -> 0 | HG24: =$G24*HF24 -> 0 | HH24: =HF24/$HM$24 -> 0 | HJ24: =$G24*HI24 -> 0 | HK24: =HI24/$HM$24 -> 0 | HM24: 70.22
A26: 2 | B26: Z | D26: MATERIJAL ZA ZIDANJE, MALTERISANJE, GLETOVANJE I FARBANJE | E26: MASONRY, PLASTERING FAIRING AND PAINTING MATERIAL
A27: 2.1 | B27: Z | C27: 1 | D27: Giter blok (d/š/v) 250x190x190 mm | E27: Gitter block (l/w/h) 250x190x190 mm | F27: kom/pcs | G27: =CENA!G23 -> 0 | H27: =J27+M27+P27+S27+V27+Y27+AB27+AE27+AH27+AK27+AN27+AQ27+AZ27+AW27+AT27+BC27+BF27+BI27+BL27+BO27+BR27+BU27+BX27+CA27+CD27+CG27+CJ27+CM27+CP27+CS27+CV27+CY27+DB27+DE27+DH27+DK27+DN27+DQ27+DT27+DW27+DZ27+EC27+EF27+EI27+EL27+EO27+ER27+EU27+EX27+FA27+FD27+FG27+FJ27+FM27+FP27+FS27+FV27+FY27+GB27+GE27+GH27+GK27+GN27+GQ27+GT27+GW27+GZ27+HC27+HF27+HI27 -> 3330 | I27: =G27*H27 -> 0 | K27: =$G27*J27 -> 0 | N27: =$G27*M27 -> 0 | P27: 200 | S27: 700 | V27: 480 | Z27: =$G27*Y27 -> 0 | AB27: 450 | AE27: 1500 | AI27: =$G27*AH27 -> 0 | AL27: =$G27*AK27 -> 0 | AO27: =$G27*AN27 -> 0 | AR27: =$G27*AQ27 -> 0 | AU27: =$G27*AT27 -> 0 | AX27: =$G27*AW27 -> 0 | BA27: =$G27*AZ27 -> 0 | BD27: =$G27*BC27 -> 0 | BG27: =$G27*BF27 -> 0 | BJ27: =$G27*BI27 -> 0 | BM27: =$G27*BL27 -> 0 | BP27: =$G27*BO27 -> 0 | BS27: =$G27*BR27 -> 0 | BV27: =$G27*BU27 -> 0 | BY27: =$G27*BX27 -> 0 | CB27: =$G27*CA27 -> 0 | CE27: =$G27*CD27 -> 0 | CH27: =$G27*CG27 -> 0 | CK27: =$G27*CJ27 -> 0 | CN27: =$G27*CM27 -> 0 | CQ27: =$G27*CP27 -> 0 | CT27: =$G27*CS27 -> 0 | CW27: =$G27*CV27 -> 0 | CZ27: =$G27*CY27 -> 0 | DC27: =$G27*DB27 -> 0 | DF27: =$G27*DE27 -> 0 | DI27: =$G27*DH27 -> 0 | DL27: =$G27*DK27 -> 0 | DO27: =$G27*DN27 -> 0 | DR27: =$G27*DQ27 -> 0 | DU27: =$G27*DT27 -> 0 | DX27: =$G27*DW27 -> 0 | EA27: =$G27*DZ27 -> 0 | ED27: =$G27*EC27 -> 0 | EG27: =$G27*EF27 -> 0 | EJ27: =$G27*EI27 -> 0 | EM27: =$G27*EL27 -> 0 | EP27: =$G27*EO27 -> 0 | ES27: =$G27*ER27 -> 0 | EV27: =$G27*EU27 -> 0 | EY27: =$G27*EX27 -> 0 | FB27: =$G27*FA27 -> 0 | FE27: =$G27*FD27 -> 0 | FH27: =$G27*FG27 -> 0 | FK27: =$G27*FJ27 -> 0 | FN27: =$G27*FM27 -> 0 | FQ27: =$G27*FP27 -> 0 | FT27: =$G27*FS27 -> 0 | FW27: =$G27*FV27 -> 0 | FZ27: =$G27*FY27 -> 0 | GC27: =$G27*GB27 -> 0 | GF27: =$G27*GE27 -> 0 | GI27: =$G27*GH27 -> 0 | GL27: =$G27*GK27 -> 0 | GO27: =$G27*GN27 -> 0 | GR27: =$G27*GQ27 -> 0 | GU27: =$G27*GT27 -> 0 | GX27: =$G27*GW27 -> 0 | HA27: =$G27*GZ27 -> 0 | HD27: =$G27*HC27 -> 0 | HG27: =$G27*HF27 -> 0 | HJ27: =$G27*HI27 -> 0
A28: 2.2 | B28: Z | C28: 2 | D28: Giter polublok (12cm) (d/š/v) 250x120x190mm | E28: Gitter half block (12cm) (l/w/h) 250x120x190mm | F28: kom/pcs | G28: =CENA!G24 -> 0 | H28: 0 | I28: 0 | K28: =$G28*J28 -> 0 | N28: 0 | Q28: =$G28*P28 -> 0 | T28: =$G28*S28 -> 0 | W28: =$G28*V28 -> 0 | Z28: =$G28*Y28 -> 0 | AC28: =$G28*AB28 -> 0 | AF28: =$G28*AE28 -> 0 | AI28: =$G28*AH28 -> 0 | AL28: =$G28*AK28 -> 0 | AO28: =$G28*AN28 -> 0 | AR28: =$G28*AQ28 -> 0 | AU28: =$G28*AT28 -> 0 | AX28: =$G28*AW28 -> 0 | BA28: =$G28*AZ28 -> 0 | BD28: =$G28*BC28 -> 0 | BG28: 0 | BJ28: 0 | BM28: =$G28*BL28 -> 0 | BP28: =$G28*BO28 -> 0 | BS28: =$G28*BR28 -> 0 | BV28: =$G28*BU28 -> 0 | BY28: =$G28*BX28 -> 0 | CB28: =$G28*CA28 -> 0 | CE28: =$G28*CD28 -> 0 | CH28: =$G28*CG28 -> 0 | CK28: =$G28*CJ28 -> 0 | CN28: =$G28*CM28 -> 0 | CQ28: =$G28*CP28 -> 0 | CT28: =$G28*CS28 -> 0 | CW28: =$G28*CV28 -> 0 | CZ28: =$G28*CY28 -> 0 | DC28: 0 | DF28: 0 | DI28: =$G28*DH28 -> 0 | DL28: =$G28*DK28 -> 0 | DO28: =$G28*DN28 -> 0 | DR28: =$G28*DQ28 -> 0 | DU28: =$G28*DT28 -> 0 | DX28: =$G28*DW28 -> 0 | EA28: =$G28*DZ28 -> 0 | ED28: =$G28*EC28 -> 0 | EG28: =$G28*EF28 -> 0 | EJ28: =$G28*EI28 -> 0 | EM28: =$G28*EL28 -> 0 | EP28: =$G28*EO28 -> 0 | ES28: =$G28*ER28 -> 0 | EV28: =$G28*EU28 -> 0 | EY28: 0 | FB28: 0 | FE28: =$G28*FD28 -> 0 | FH28: =$G28*FG28 -> 0 | FK28: =$G28*FJ28 -> 0 | FN28: =$G28*FM28 -> 0 | FQ28: =$G28*FP28 -> 0 | FT28: =$G28*FS28 -> 0 | FW28: =$G28*FV28 -> 0 | FZ28: =$G28*FY28 -> 0 | GC28: =$G28*GB28 -> 0 | GF28: =$G28*GE28 -> 0 | GI28: =$G28*GH28 -> 0 | GL28: =$G28*GK28 -> 0 | GO28: =$G28*GN28 -> 0 | GR28: =$G28*GQ28 -> 0 | GU28: =$G28*GT28 -> 0 | GX28: =$G28*GW28 -> 0 | HA28: =$G28*GZ28 -> 0 | HD28: =$G28*HC28 -> 0 | HG28: =$G28*HF28 -> 0 | HJ28: =$G28*HI28 -> 0
A29: 2.3 | B29: Z | C29: 3 | D29: Opeka puna (d/š/v) 250x120x65 mm | E29: Brick (full-without holes) (l/w/h) 250x120x65 mm | F29: kom/pcs | G29: =CENA!G25 -> 0 | H29: 512 | I29: 0 | K29: =$G29*J29 -> 0 | N29: 0 | Q29: =$G29*P29 -> 0 | T29: =$G29*S29 -> 0 | W29: =$G29*V29 -> 0 | Z29: =$G29*Y29 -> 0 | AC29: =$G29*AB29 -> 0 | AF29: =$G29*AE29 -> 0 | AI29: =$G29*AH29 -> 0 | AK29: 512 | AO29: =$G29*AN29 -> 0 | AR29: =$G29*AQ29 -> 0 | AU29: =$G29*AT29 -> 0 | AX29: =$G29*AW29 -> 0 | BA29: =$G29*AZ29 -> 0 | BD29: =$G29*BC29 -> 0 | BG29: 0 | BJ29: 0 | BM29: =$G29*BL29 -> 0 | BP29: =$G29*BO29 -> 0 | BS29: =$G29*BR29 -> 0 | BV29: =$G29*BU29 -> 0 | BY29: =$G29*BX29 -> 0 | CB29: =$G29*CA29 -> 0 | CE29: =$G29*CD29 -> 0 | CH29: =$G29*CG29 -> 0 | CK29: =$G29*CJ29 -> 0 | CN29: =$G29*CM29 -> 0 | CQ29: =$G29*CP29 -> 0 | CT29: =$G29*CS29 -> 0 | CW29: =$G29*CV29 -> 0 | CZ29: =$G29*CY29 -> 0 | DC29: 0 | DF29: 0 | DI29: =$G29*DH29 -> 0 | DL29: =$G29*DK29 -> 0 | DO29: =$G29*DN29 -> 0 | DR29: =$G29*DQ29 -> 0 | DU29: =$G29*DT29 -> 0 | DX29: =$G29*DW29 -> 0 | EA29: =$G29*DZ29 -> 0 | ED29: =$G29*EC29 -> 0 | EG29: =$G29*EF29 -> 0 | EJ29: =$G29*EI29 -> 0 | EM29: =$G29*EL29 -> 0 | EP29: =$G29*EO29 -> 0 | ES29: =$G29*ER29 -> 0 | EV29: =$G29*EU29 -> 0 | EY29: 0 | FB29: 0 | FE29: =$G29*FD29 -> 0 | FH29: =$G29*FG29 -> 0 | FK29: =$G29*FJ29 -> 0 | FN29: =$G29*FM29 -> 0 | FQ29: =$G29*FP29 -> 0 | FT29: =$G29*FS29 -> 0 | FW29: =$G29*FV29 -> 0 | FZ29: =$G29*FY29 -> 0 | GC29: =$G29*GB29 -> 0 | GF29: =$G29*GE29 -> 0 | GI29: =$G29*GH29 -> 0 | GL29: =$G29*GK29 -> 0 | GO29: =$G29*GN29 -> 0 | GR29: =$G29*GQ29 -> 0 | GU29: =$G29*GT29 -> 0 | GX29: =$G29*GW29 -> 0 | HA29: =$G29*GZ29 -> 0 | HD29: =$G29*HC29 -> 0 | HG29: =$G29*HF29 -> 0 | HJ29: =$G29*HI29 -> 0
A30: 2.4 | B30: Z | C30: 4 | D30: Blok od porobetona za pregradni zid (d/š/v) 625x200x200 mm | E30: Aerated concrete block for partition wall (l/w/h) 625x200x200 mm | F30: kom/pcs | G30: =CENA!G26 -> 0 | H30: 0 | I30: 0 | K30: =$G30*J30 -> 0 | N30: 0 | Q30: =$G30*P30 -> 0 | T30: =$G30*S30 -> 0 | W30: =$G30*V30 -> 0 | Z30: =$G30*Y30 -> 0 | AC30: =$G30*AB30 -> 0 | AF30: =$G30*AE30 -> 0 | AI30: =$G30*AH30 -> 0 | AL30: =$G30*AK30 -> 0 | AO30: =$G30*AN30 -> 0 | AR30: =$G30*AQ30 -> 0 | AU30: =$G30*AT30 -> 0 | AX30: =$G30*AW30 -> 0 | BA30: =$G30*AZ30 -> 0 | BD30: =$G30*BC30 -> 0 | BG30: 0 | BJ30: 0 | BM30: =$G30*BL30 -> 0 | BP30: =$G30*BO30 -> 0 | BS30: =$G30*BR30 -> 0 | BV30: =$G30*BU30 -> 0 | BY30: =$G30*BX30 -> 0 | CB30: =$G30*CA30 -> 0 | CE30: =$G30*CD30 -> 0 | CH30: =$G30*CG30 -> 0 | CK30: =$G30*CJ30 -> 0 | CN30: =$G30*CM30 -> 0 | CQ30: =$G30*CP30 -> 0 | CT30: =$G30*CS30 -> 0 | CW30: =$G30*CV30 -> 0 | CZ30: =$G30*CY30 -> 0 | DC30: 0 | DF30: 0 | DI30: =$G30*DH30 -> 0 | DL30: =$G30*DK30 -> 0 | DO30: =$G30*DN30 -> 0 | DR30: =$G30*DQ30 -> 0 | DU30: =$G30*DT30 -> 0 | DX30: =$G30*DW30 -> 0 | EA30: =$G30*DZ30 -> 0 | ED30: =$G30*EC30 -> 0 | EG30: =$G30*EF30 -> 0 | EJ30: =$G30*EI30 -> 0 | EM30: =$G30*EL30 -> 0 | EP30: =$G30*EO30 -> 0 | ES30: =$G30*ER30 -> 0 | EV30: =$G30*EU30 -> 0 | EY30: 0 | FB30: 0 | FE30: =$G30*FD30 -> 0 | FH30: =$G30*FG30 -> 0 | FK30: =$G30*FJ30 -> 0 | FN30: =$G30*FM30 -> 0 | FQ30: =$G30*FP30 -> 0 | FT30: =$G30*FS30 -> 0 | FW30: =$G30*FV30 -> 0 | FZ30: =$G30*FY30 -> 0 | GC30: =$G30*GB30 -> 0 | GF30: =$G30*GE30 -> 0 | GI30: =$G30*GH30 -> 0 | GL30: =$G30*GK30 -> 0 | GO30: =$G30*GN30 -> 0 | GR30: =$G30*GQ30 -> 0 | GU30: =$G30*GT30 -> 0 | GX30: =$G30*GW30 -> 0 | HA30: =$G30*GZ30 -> 0 | HD30: =$G30*HC30 -> 0 | HG30: =$G30*HF30 -> 0 | HJ30: =$G30*HI30 -> 0
A31: 2.5 | B31: Z | C31: 5 | D31: Fert nosači (gredice) Dužina nosača je jednaka dužini binora = širina otvora između zidova + 30 cm. Broj gredica = dužina prostorije x 0,40 | E31: Fert beams Boom length is equal to the length of Binor = width of the openings between the walls + 30 cm. Number of beams = length of room x 0.40 | F31: / | G31: / | H31: / | I31: / | J31: / | K31: / | N31: / | P31: / | Q31: / | S31: / | T31: / | V31: / | W31: / | Y31: / | Z31: / | AB31: / | AC31: / | AE31: / | AF31: / | AH31: / | AI31: / | AK31: / | AL31: / | AN31: / | AO31: / | AQ31: / | AR31: / | AT31: / | AU31: / | AW31: / | AX31: / | AZ31: / | BA31: / | BC31: / | BD31: / | BF31: / | BG31: / | BJ31: / | BL31: / | BM31: / | BO31: / | BP31: / | BR31: / | BS31: / | BU31: / | BV31: / | BX31: / | BY31: / | CA31: / | CB31: / | CD31: / | CE31: / | CG31: / | CH31: / | CJ31: / | CK31: / | CM31: / | CN31: / | CP31: / | CQ31: / | CS31: / | CT31: / | CV31: / | CW31: / | CY31: / | CZ31: / | DB31: / | DC31: / | DF31: / | DH31: / | DI31: / | DK31: / | DL31: / | DN31: / | DO31: / | DQ31: / | DR31: / | DT31: / | DU31: / | DW31: / | DX31: / | DZ31: / | EA31: / | EC31: / | ED31: / | EF31: / | EG31: / | EI31: / | EJ31: / | EL31: / | EM31: / | EO31: / | EP31: / | ER31: / | ES31: / | EU31: / | EV31: / | EX31: / | EY31: / | FB31: / | FD31: / | FE31: / | FG31: / | FH31: / | FJ31: / | FK31: / | FM31: / | FN31: / | FP31: / | FQ31: / | FS31: / | FT31: / | FV31: / | FW31: / | FY31: / | FZ31: / | GB31: / | GC31: / | GE31: / | GF31: / | GH31: / | GI31: / | GK31: / | GL31: / | GN31: / | GO31: / | GQ31: / | GR31: / | GT31: / | GU31: / | GW31: / | GX31: / | GZ31: / | HA31: / | HC31: / | HD31: / | HF31: / | HG31: / | HI31: / | HJ31: /
A32: 2.5.1 | C32: A | D32: 0,00-3,90 m | E32: 0,00-3,90 m | F32: m1 | G32: =CENA!G28 -> 0 | H32: =J32+M32+P32+S32+V32+Y32+AB32+AE32+AH32+AK32+AN32+AQ32+AZ32+AW32+AT32+BC32+BF32+BI32+BL32+BO32+BR32+BU32+BX32+CA32+CD32+CG32+CJ32+CM32+CP32+CS32+CV32+CY32+DB32+DE32+DH32+DK32+DN32+DQ32+DT32+DW32+DZ32+EC32+EF32+EI32+EL32+EO32+ER32+EU32+EX32+FA32+FD32+FG32+FJ32+FM32+FP32+FS32+FV32+FY32+GB32+GE32+GH32+GK32+GN32+GQ32+GT32+GW32+GZ32+HC32+HF32+HI32 -> 14 | I32: =G32*H32 -> 0 | K32: =$G32*J32 -> 0 | L32: =J32/3.9 -> 0 | N32: =$G32*M32 -> 0 | O32: =M32/3.9 -> 0 | Q32: =$G32*P32 -> 0 | S32: 14 | W32: =$G32*V32 -> 0 | Z32: =$G32*Y32 -> 0 | AC32: =$G32*AB32 -> 0 | AF32: =$G32*AE32 -> 0 | AG32: =AE32/3.9 -> 0 | AI32: =$G32*AH32 -> 0 | AJ32: =AH32/3.9 -> 0 | AL32: =$G32*AK32 -> 0 | AO32: =$G32*AN32 -> 0 | AR32: =$G32*AQ32 -> 0 | AS32: =AQ32/3.9 -> 0 | AU32: =$G32*AT32 -> 0 | AV32: =AT32/3.9 -> 0 | AX32: =$G32*AW32 -> 0 | BA32: =$G32*AZ32 -> 0 | BD32: =$G32*BC32 -> 0 | BG32: =$G32*BF32 -> 0 | BH32: =BF32/3.9 -> 0 | BJ32: =$G32*BI32 -> 0 | BK32: =BI32/3.9 -> 0 | BM32: =$G32*BL32 -> 0 | BP32: =$G32*BO32 -> 0 | BS32: =$G32*BR32 -> 0 | BV32: =$G32*BU32 -> 0 | BY32: =$G32*BX32 -> 0 | CB32: =$G32*CA32 -> 0 | CC32: =CA32/3.9 -> 0 | CE32: =$G32*CD32 -> 0 | CF32: =CD32/3.9 -> 0 | CH32: =$G32*CG32 -> 0 | CK32: =$G32*CJ32 -> 0 | CN32: =$G32*CM32 -> 0 | CO32: =CM32/3.9 -> 0 | CQ32: =$G32*CP32 -> 0 | CR32: =CP32/3.9 -> 0 | CT32: =$G32*CS32 -> 0 | CW32: =$G32*CV32 -> 0 | CZ32: =$G32*CY32 -> 0 | DC32: =$G32*DB32 -> 0 | DD32: =DB32/3.9 -> 0 | DF32: =$G32*DE32 -> 0 | DG32: =DE32/3.9 -> 0 | DI32: =$G32*DH32 -> 0 | DL32: =$G32*DK32 -> 0 | DO32: =$G32*DN32 -> 0 | DR32: =$G32*DQ32 -> 0 | DU32: =$G32*DT32 -> 0 | DX32: =$G32*DW32 -> 0 | DY32: =DW32/3.9 -> 0 | EA32: =$G32*DZ32 -> 0 | EB32: =DZ32/3.9 -> 0 | ED32: =$G32*EC32 -> 0 | EG32: =$G32*EF32 -> 0 | EJ32: =$G32*EI32 -> 0 | EK32: =EI32/3.9 -> 0 | EM32: =$G32*EL32 -> 0 | EN32: =EL32/3.9 -> 0 | EP32: =$G32*EO32 -> 0 | ES32: =$G32*ER32 -> 0 | EV32: =$G32*EU32 -> 0 | EY32: =$G32*EX32 -> 0 | EZ32: =EX32/3.9 -> 0 | FB32: =$G32*FA32 -> 0 | FC32: =FA32/3.9 -> 0 | FE32: =$G32*FD32 -> 0 | FH32: =$G32*FG32 -> 0 | FK32: =$G32*FJ32 -> 0 | FN32: =$G32*FM32 -> 0 | FQ32: =$G32*FP32 -> 0 | FT32: =$G32*FS32 -> 0 | FU32: =FS32/3.9 -> 0 | FW32: =$G32*FV32 -> 0 | FX32: =FV32/3.9 -> 0 | FZ32: =$G32*FY32 -> 0 | GC32: =$G32*GB32 -> 0 | GF32: =$G32*GE32 -> 0 | GG32: =GE32/3.9 -> 0 | GI32: =$G32*GH32 -> 0 | GJ32: =GH32/3.9 -> 0 | GL32: =$G32*GK32 -> 0 | GO32: =$G32*GN32 -> 0 | GR32: =$G32*GQ32 -> 0 | GU32: =$G32*GT32 -> 0 | GX32: =$G32*GW32 -> 0 | GY32: =GW32/3.9 -> 0 | HA32: =$G32*GZ32 -> 0 | HB32: =GZ32/3.9 -> 0 | HD32: =$G32*HC32 -> 0 | HG32: =$G32*HF32 -> 0 | HJ32: =$G32*HI32 -> 0
A33: 2.5.2 | C33: B | D33: 3,91-4,50 m | E33: 3,91-4,50 m | F33: m1 | G33: =CENA!G29 -> 0 | H33: 0 | I33: 0 | K33: =$G33*J33 -> 0 | L33: =J33/4.5 -> 0 | N33: 0 | O33: =M33/4.5 -> 0 | Q33: 0 | T33: =$G33*S33 -> 0 | W33: 0 | Z33: 0 | AC33: 0 | AF33: 0 | AG33: =AE33/4.5 -> 0 | AI33: 0 | AJ33: =AH33/4.5 -> 0 | AL33: 0 | AO33: 0 | AR33: 0 | AS33: =AQ33/4.5 -> 0 | AU33: 0 | AV33: =AT33/4.5 -> 0 | AX33: 0 | BA33: 0 | BD33: 0 | BG33: 0 | BH33: =BF33/4.5 -> 0 | BJ33: 0 | BK33: =BI33/4.5 -> 0 | BM33: 0 | BP33: 0 | BS33: 0 | BV33: 0 | BY33: 0 | CB33: 0 | CC33: =CA33/4.5 -> 0 | CE33: 0 | CF33: =CD33/4.5 -> 0 | CH33: 0 | CK33: 0 | CN33: 0 | CO33: =CM33/4.5 -> 0 | CQ33: 0 | CR33: =CP33/4.5 -> 0 | CT33: 0 | CW33: 0 | CZ33: 0 | DC33: 0 | DD33: =DB33/4.5 -> 0 | DF33: 0 | DG33: =DE33/4.5 -> 0 | DI33: 0 | DL33: 0 | DO33: 0 | DR33: 0 | DU33: 0 | DX33: 0 | DY33: =DW33/4.5 -> 0 | EA33: 0 | EB33: =DZ33/4.5 -> 0 | ED33: 0 | EG33: 0 | EJ33: 0 | EK33: =EI33/4.5 -> 0 | EM33: 0 | EN33: =EL33/4.5 -> 0 | EP33: 0 | ES33: 0 | EV33: 0 | EY33: 0 | EZ33: =EX33/4.5 -> 0 | FB33: 0 | FC33: =FA33/4.5 -> 0 | FE33: 0 | FH33: 0 | FK33: 0 | FN33: 0 | FQ33: 0 | FT33: 0 | FU33: =FS33/4.5 -> 0 | FW33: 0 | FX33: =FV33/4.5 -> 0 | FZ33: 0 | GC33: 0 | GF33: 0 | GG33: =GE33/4.5 -> 0 | GI33: 0 | GJ33: =GH33/4.5 -> 0 | GL33: 0 | GO33: 0 | GR33: 0 | GU33: 0 | GX33: 0 | GY33: =GW33/4.5 -> 0 | HA33: 0 | HB33: =GZ33/4.5 -> 0 | HD33: 0 | HG33: 0 | HJ33: 0
A34: 2.5.3 | C34: C | D34: 4,51-4,90 m | E34: 4,51-4,90 m | F34: m1 | G34: =CENA!G30 -> 0 | H34: 0 | I34: 0 | K34: =$G34*J34 -> 0 | L34: =J34/4.9 -> 0 | N34: 0 | O34: =M34/4.9 -> 0 | Q34: 0 | T34: 0 | W34: 0 | Z34: 0 | AC34: 0 | AF34: 0 | AG34: =AE34/4.9 -> 0 | AI34: 0 | AJ34: =AH34/4.9 -> 0 | AL34: 0 | AO34: 0 | AR34: 0 | AS34: =AQ34/4.9 -> 0 | AU34: 0 | AV34: =AT34/4.9 -> 0 | AX34: 0 | BA34: 0 | BD34: 0 | BG34: 0 | BH34: =BF34/4.9 -> 0 | BJ34: 0 | BK34: =BI34/4.9 -> 0 | BM34: 0 | BP34: 0 | BS34: 0 | BV34: 0 | BY34: 0 | CB34: 0 | CC34: =CA34/4.9 -> 0 | CE34: 0 | CF34: =CD34/4.9 -> 0 | CH34: 0 | CK34: 0 | CN34: 0 | CO34: =CM34/4.9 -> 0 | CQ34: 0 | CR34: =CP34/4.9 -> 0 | CT34: 0 | CW34: 0 | CZ34: 0 | DC34: 0 | DD34: =DB34/4.9 -> 0 | DF34: 0 | DG34: =DE34/4.9 -> 0 | DI34: 0 | DL34: 0 | DO34: 0 | DR34: 0 | DU34: 0 | DX34: 0 | DY34: =DW34/4.9 -> 0 | EA34: 0 | EB34: =DZ34/4.9 -> 0 | ED34: 0 | EG34: 0 | EJ34: 0 | EK34: =EI34/4.9 -> 0 | EM34: 0 | EN34: =EL34/4.9 -> 0 | EP34: 0 | ES34: 0 | EV34: 0 | EY34: 0 | EZ34: =EX34/4.9 -> 0 | FB34: 0 | FC34: =FA34/4.9 -> 0 | FE34: 0 | FH34: 0 | FK34: 0 | FN34: 0 | FQ34: 0 | FT34: 0 | FU34: =FS34/4.9 -> 0 | FW34: 0 | FX34: =FV34/4.9 -> 0 | FZ34: 0 | GC34: 0 | GF34: 0 | GG34: =GE34/4.9 -> 0 | GI34: 0 | GJ34: =GH34/4.9 -> 0 | GL34: 0 | GO34: 0 | GR34: 0 | GU34: 0 | GX34: 0 | GY34: =GW34/4.9 -> 0 | HA34: 0 | HB34: =GZ34/4.9 -> 0 | HD34: 0 | HG34: 0 | HJ34: 0
A35: 2.5.4 | C35: D | D35: 4,91-5,30 m | E35: 4,91-5,30 m | F35: m1 | G35: =CENA!G31 -> 0 | H35: 0 | I35: 0 | K35: =$G35*J35 -> 0 | L35: =J35/5.3 -> 0 | N35: 0 | O35: =M35/5.3 -> 0 | Q35: 0 | T35: 0 | W35: 0 | Z35: 0 | AC35: 0 | AF35: 0 | AG35: =AE35/5.3 -> 0 | AI35: 0 | AJ35: =AH35/5.3 -> 0 | AL35: 0 | AO35: 0 | AR35: 0 | AS35: =AQ35/5.3 -> 0 | AU35: 0 | AV35: =AT35/5.3 -> 0 | AX35: 0 | BA35: 0 | BD35: 0 | BG35: 0 | BH35: =BF35/5.3 -> 0 | BJ35: 0 | BK35: =BI35/5.3 -> 0 | BM35: 0 | BP35: 0 | BS35: 0 | BV35: 0 | BY35: 0 | CB35: 0 | CC35: =CA35/5.3 -> 0 | CE35: 0 | CF35: =CD35/5.3 -> 0 | CH35: 0 | CK35: 0 | CN35: 0 | CO35: =CM35/5.3 -> 0 | CQ35: 0 | CR35: =CP35/5.3 -> 0 | CT35: 0 | CW35: 0 | CZ35: 0 | DC35: 0 | DD35: =DB35/5.3 -> 0 | DF35: 0 | DG35: =DE35/5.3 -> 0 | DI35: 0 | DL35: 0 | DO35: 0 | DR35: 0 | DU35: 0 | DX35: 0 | DY35: =DW35/5.3 -> 0 | EA35: 0 | EB35: =DZ35/5.3 -> 0 | ED35: 0 | EG35: 0 | EJ35: 0 | EK35: =EI35/5.3 -> 0 | EM35: 0 | EN35: =EL35/5.3 -> 0 | EP35: 0 | ES35: 0 | EV35: 0 | EY35: 0 | EZ35: =EX35/5.3 -> 0 | FB35: 0 | FC35: =FA35/5.3 -> 0 | FE35: 0 | FH35: 0 | FK35: 0 | FN35: 0 | FQ35: 0 | FT35: 0 | FU35: =FS35/5.3 -> 0 | FW35: 0 | FX35: =FV35/5.3 -> 0 | FZ35: 0 | GC35: 0 | GF35: 0 | GG35: =GE35/5.3 -> 0 | GI35: 0 | GJ35: =GH35/5.3 -> 0 | GL35: 0 | GO35: 0 | GR35: 0 | GU35: 0 | GX35: 0 | GY35: =GW35/5.3 -> 0 | HA35: 0 | HB35: =GZ35/5.3 -> 0 | HD35: 0 | HG35: 0 | HJ35: 0
A36: 2.5.5 | C36: E | D36: 5,31-5,90 m | E36: 5,31-5,90 m | F36: m1 | G36: =CENA!G32 -> 0 | H36: 0 | I36: 0 | K36: =$G36*J36 -> 0 | L36: =J36/5.9 -> 0 | N36: 0 | O36: =M36/5.9 -> 0 | Q36: 0 | T36: 0 | W36: 0 | Z36: 0 | AC36: 0 | AF36: 0 | AG36: =AE36/5.9 -> 0 | AI36: 0 | AJ36: =AH36/5.9 -> 0 | AL36: 0 | AO36: 0 | AR36: 0 | AS36: =AQ36/5.9 -> 0 | AU36: 0 | AV36: =AT36/5.9 -> 0 | AX36: 0 | BA36: 0 | BD36: 0 | BG36: 0 | BH36: =BF36/5.9 -> 0 | BJ36: 0 | BK36: =BI36/5.9 -> 0 | BM36: 0 | BP36: 0 | BS36: 0 | BV36: 0 | BY36: 0 | CB36: 0 | CC36: =CA36/5.9 -> 0 | CE36: 0 | CF36: =CD36/5.9 -> 0 | CH36: 0 | CK36: 0 | CN36: 0 | CO36: =CM36/5.9 -> 0 | CQ36: 0 | CR36: =CP36/5.9 -> 0 | CT36: 0 | CW36: 0 | CZ36: 0 | DC36: 0 | DD36: =DB36/5.9 -> 0 | DF36: 0 | DG36: =DE36/5.9 -> 0 | DI36: 0 | DL36: 0 | DO36: 0 | DR36: 0 | DU36: 0 | DX36: 0 | DY36: =DW36/5.9 -> 0 | EA36: 0 | EB36: =DZ36/5.9 -> 0 | ED36: 0 | EG36: 0 | EJ36: 0 | EK36: =EI36/5.9 -> 0 | EM36: 0 | EN36: =EL36/5.9 -> 0 | EP36: 0 | ES36: 0 | EV36: 0 | EY36: 0 | EZ36: =EX36/5.9 -> 0 | FB36: 0 | FC36: =FA36/5.9 -> 0 | FE36: 0 | FH36: 0 | FK36: 0 | FN36: 0 | FQ36: 0 | FT36: 0 | FU36: =FS36/5.9 -> 0 | FW36: 0 | FX36: =FV36/5.9 -> 0 | FZ36: 0 | GC36: 0 | GF36: 0 | GG36: =GE36/5.9 -> 0 | GI36: 0 | GJ36: =GH36/5.9 -> 0 | GL36: 0 | GO36: 0 | GR36: 0 | GU36: 0 | GX36: 0 | GY36: =GW36/5.9 -> 0 | HA36: 0 | HB36: =GZ36/5.9 -> 0 | HD36: 0 | HG36: 0 | HJ36: 0
A37: 2.5.6 | C37: F | D37: 5,91-6,30 m | E37: 5,91-6,30 m | F37: m1 | G37: =CENA!G33 -> 0 | H37: 0 | I37: 0 | K37: =$G37*J37 -> 0 | L37: =J37/6.3 -> 0 | N37: 0 | O37: =M37/6.3 -> 0 | Q37: 0 | T37: 0 | W37: 0 | Z37: 0 | AC37: 0 | AF37: 0 | AG37: =AE37/6.3 -> 0 | AI37: 0 | AJ37: =AH37/6.3 -> 0 | AL37: 0 | AO37: 0 | AR37: 0 | AS37: =AQ37/6.3 -> 0 | AU37: 0 | AV37: =AT37/6.3 -> 0 | AX37: 0 | BA37: 0 | BD37: 0 | BG37: 0 | BH37: =BF37/6.3 -> 0 | BJ37: 0 | BK37: =BI37/6.3 -> 0 | BM37: 0 | BP37: 0 | BS37: 0 | BV37: 0 | BY37: 0 | CB37: 0 | CC37: =CA37/6.3 -> 0 | CE37: 0 | CF37: =CD37/6.3 -> 0 | CH37: 0 | CK37: 0 | CN37: 0 | CO37: =CM37/6.3 -> 0 | CQ37: 0 | CR37: =CP37/6.3 -> 0 | CT37: 0 | CW37: 0 | CZ37: 0 | DC37: 0 | DD37: =DB37/6.3 -> 0 | DF37: 0 | DG37: =DE37/6.3 -> 0 | DI37: 0 | DL37: 0 | DO37: 0 | DR37: 0 | DU37: 0 | DX37: 0 | DY37: =DW37/6.3 -> 0 | EA37: 0 | EB37: =DZ37/6.3 -> 0 | ED37: 0 | EG37: 0 | EJ37: 0 | EK37: =EI37/6.3 -> 0 | EM37: 0 | EN37: =EL37/6.3 -> 0 | EP37: 0 | ES37: 0 | EV37: 0 | EY37: 0 | EZ37: =EX37/6.3 -> 0 | FB37: 0 | FC37: =FA37/6.3 -> 0 | FE37: 0 | FH37: 0 | FK37: 0 | FN37: 0 | FQ37: 0 | FT37: 0 | FU37: =FS37/6.3 -> 0 | FW37: 0 | FX37: =FV37/6.3 -> 0 | FZ37: 0 | GC37: 0 | GF37: 0 | GG37: =GE37/6.3 -> 0 | GI37: 0 | GJ37: =GH37/6.3 -> 0 | GL37: 0 | GO37: 0 | GR37: 0 | GU37: 0 | GX37: 0 | GY37: =GW37/6.3 -> 0 | HA37: 0 | HB37: =GZ37/6.3 -> 0 | HD37: 0 | HG37: 0 | HJ37: 0
A38: 2.6 | B38: Z | C38: 6 | D38: Fert ispuna (d/š/v) 245x285/275x160 mm | E38: Fert fillings (l/w/h) 245x285/275x160 mm | F38: kom/pcs | G38: =CENA!G34 -> 0 | H38: 200 | I38: 0 | K38: =$G38*J38 -> 0 | N38: 0 | Q38: 0 | S38: 200 | W38: 0 | Z38: 0 | AC38: 0 | AF38: 0 | AI38: 0 | AL38: 0 | AO38: 0 | AR38: 0 | AU38: 0 | AX38: 0 | BA38: 0 | BD38: 0 | BG38: 0 | BJ38: 0 | BM38: 0 | BP38: 0 | BS38: 0 | BV38: 0 | BY38: 0 | CB38: 0 | CE38: 0 | CH38: 0 | CK38: 0 | CN38: 0 | CQ38: 0 | CT38: 0 | CW38: 0 | CZ38: 0 | DC38: 0 | DF38: 0 | DI38: 0 | DL38: 0 | DO38: 0 | DR38: 0 | DU38: 0 | DX38: 0 | EA38: 0 | ED38: 0 | EG38: 0 | EJ38: 0 | EM38: 0 | EP38: 0 | ES38: 0 | EV38: 0 | EY38: 0 | FB38: 0 | FE38: 0 | FH38: 0 | FK38: 0 | FN38: 0 | FQ38: 0 | FT38: 0 | FW38: 0 | FZ38: 0 | GC38: 0 | GF38: 0 | GI38: 0 | GL38: 0 | GO38: 0 | GR38: 0 | GU38: 0 | GX38: 0 | HA38: 0 | HD38: 0 | HG38: 0 | HJ38: 0
A39: 2.7 | B39: Z | C39: 7 | D39: Malter za zidanje Pripremljeno krečno - cementno vezivo | E39: Mortar for masonry Prepared lime - cement binder | F39: kg | G39: =CENA!G35 -> 0 | H39: 520 | I39: 0 | K39: =$G39*J39 -> 0 | N39: 0 | P39: 120 | T39: 0 | W39: 0 | Z39: 0 | AC39: 0 | AF39: 0 | AI39: 0 | AK39: 400 | AO39: 0 | AR39: 0 | AU39: 0 | AX39: 0 | BA39: 0 | BD39: 0 | BG39: 0 | BJ39: 0 | BM39: 0 | BP39: 0 | BS39: 0 | BV39: 0 | BY39: 0 | CB39: 0 | CE39: 0 | CH39: 0 | CK39: 0 | CN39: 0 | CQ39: 0 | CT39: 0 | CW39: 0 | CZ39: 0 | DC39: 0 | DF39: 0 | DI39: 0 | DL39: 0 | DO39: 0 | DR39: 0 | DU39: 0 | DX39: 0 | EA39: 0 | ED39: 0 | EG39: 0 | EJ39: 0 | EM39: 0 | EP39: 0 | ES39: 0 | EV39: 0 | EY39: 0 | FB39: 0 | FE39: 0 | FH39: 0 | FK39: 0 | FN39: 0 | FQ39: 0 | FT39: 0 | FW39: 0 | FZ39: 0 | GC39: 0 | GF39: 0 | GI39: 0 | GL39: 0 | GO39: 0 | GR39: 0 | GU39: 0 | GX39: 0 | HA39: 0 | HD39: 0 | HG39: 0 | HJ39: 0
A40: 2.8 | B40: Z | C40: 8 | D40: Malter za malterisanje Pripremljeno krečno - cementno vezivo | E40: Mortar for plastering Prepared lime - cement binder | F40: kg | G40: =CENA!G36 -> 0 | H40: 1800 | I40: 0 | K40: =$G40*J40 -> 0 | N40: 0 | Q40: 0 | T40: 0 | V40: 400 | Z40: 0 | AC40: 0 | AE40: 800 | AI40: 0 | AK40: 600 | AO40: 0 | AR40: 0 | AU40: 0 | AX40: 0 | BA40: 0 | BD40: 0 | BG40: 0 | BJ40: 0 | BM40: 0 | BP40: 0 | BS40: 0 | BV40: 0 | BY40: 0 | CB40: 0 | CE40: 0 | CH40: 0 | CK40: 0 | CN40: 0 | CQ40: 0 | CT40: 0 | CW40: 0 | CZ40: 0 | DC40: 0 | DF40: 0 | DI40: 0 | DL40: 0 | DO40: 0 | DR40: 0 | DU40: 0 | DX40: 0 | EA40: 0 | ED40: 0 | EG40: 0 | EJ40: 0 | EM40: 0 | EP40: 0 | ES40: 0 | EV40: 0 | EY40: 0 | FB40: 0 | FE40: 0 | FH40: 0 | FK40: 0 | FN40: 0 | FQ40: 0 | FT40: 0 | FW40: 0 | FZ40: 0 | GC40: 0 | GF40: 0 | GI40: 0 | GL40: 0 | GO40: 0 | GR40: 0 | GU40: 0 | GX40: 0 | HA40: 0 | HD40: 0 | HG40: 0 | HJ40: 0
A41: 2.9 | B41: Z | C41: 9 | D41: Krečna glet masa Bezcementna krečna masa za gletovanje | E41: Lime smoothing mass No cement lime compound for smoothing | F41: kg | G41: =CENA!G37 -> 0 | H41: 200 | I41: 0 | K41: =$G41*J41 -> 0 | N41: 0 | Q41: 0 | T41: 0 | W41: 0 | Z41: 0 | AC41: 0 | AF41: 0 | AI41: 0 | AL41: 0 | AO41: 0 | AR41: 0 | AU41: 0 | AX41: 0 | AZ41: 200 | BD41: 0 | BG41: 0 | BJ41: 0 | BM41: 0 | BP41: 0 | BS41: 0 | BV41: 0 | BY41: 0 | CB41: 0 | CE41: 0 | CH41: 0 | CK41: 0 | CN41: 0 | CQ41: 0 | CT41: 0 | CW41: 0 | CZ41: 0 | DC41: 0 | DF41: 0 | DI41: 0 | DL41: 0 | DO41: 0 | DR41: 0 | DU41: 0 | DX41: 0 | EA41: 0 | ED41: 0 | EG41: 0 | EJ41: 0 | EM41: 0 | EP41: 0 | ES41: 0 | EV41: 0 | EY41: 0 | FB41: 0 | FE41: 0 | FH41: 0 | FK41: 0 | FN41: 0 | FQ41: 0 | FT41: 0 | FW41: 0 | FZ41: 0 | GC41: 0 | GF41: 0 | GI41: 0 | GL41: 0 | GO41: 0 | GR41: 0 | GU41: 0 | GX41: 0 | HA41: 0 | HD41: 0 | HG41: 0 | HJ41: 0
A42: 2.10 | B42: Z | C42: 10 | D42: Poludisperzivna boja Poludisperziona boja razrediva vodom | E42: Semi dispersion paint | F42: kg | G42: =CENA!G38 -> 0 | H42: 0 | I42: 0 | K42: =$G42*J42 -> 0 | N42: 0 | Q42: 0 | T42: 0 | W42: 0 | Z42: 0 | AC42: 0 | AF42: 0 | AI42: 0 | AL42: 0 | AO42: 0 | AR42: 0 | AU42: 0 | AX42: 0 | BA42: 0 | BD42: 0 | BG42: 0 | BJ42: 0 | BM42: 0 | BP42: 0 | BS42: 0 | BV42: 0 | BY42: 0 | CB42: 0 | CE42: 0 | CH42: 0 | CK42: 0 | CN42: 0 | CQ42: 0 | CT42: 0 | CW42: 0 | CZ42: 0 | DC42: 0 | DF42: 0 | DI42: 0 | DL42: 0 | DO42: 0 | DR42: 0 | DU42: 0 | DX42: 0 | EA42: 0 | ED42: 0 | EG42: 0 | EJ42: 0 | EM42: 0 | EP42: 0 | ES42: 0 | EV42: 0 | EY42: 0 | FB42: 0 | FE42: 0 | FH42: 0 | FK42: 0 | FN42: 0 | FQ42: 0 | FT42: 0 | FW42: 0 | FZ42: 0 | GC42: 0 | GF42: 0 | GI42: 0 | GL42: 0 | GO42: 0 | GR42: 0 | GU42: 0 | GX42: 0 | HA42: 0 | HD42: 0 | HG42: 0 | HJ42: 0
A44: 3 | B44: K | D44: MATERIJAL ZA KROVNU KONSTRUKCIJU, KROVNI POKRIVAČ, OSB I GIPS KARONSKE TABLE | E44: ROOF CONSTRUCTION AND ROOFING MATERIAL, OSB AND PLASTERBOARD TABLE
A45: 3.1 | B45: K | C45: 1 | D45: Presovani glineni crep I klase dimenzija: 400-450x245-275 mm | E45: Pressed clay tiles class 1 dim: 400-450x245-275 mm | F45: kom/pcs | G45: =CENA!G41 -> 0 | H45: =J45+M45+P45+S45+V45+Y45+AB45+AE45+AH45+AK45+AN45+AQ45+AZ45+AW45+AT45+BC45+BF45+BI45+BL45+BO45+BR45+BU45+BX45+CA45+CD45+CG45+CJ45+CM45+CP45+CS45+CV45+CY45+DB45+DE45+DH45+DK45+DN45+DQ45+DT45+DW45+DZ45+EC45+EF45+EI45+EL45+EO45+ER45+EU45+EX45+FA45+FD45+FG45+FJ45+FM45+FP45+FS45+FV45+FY45+GB45+GE45+GH45+GK45+GN45+GQ45+GT45+GW45+GZ45+HC45+HF45+HI45 -> 7700 | I45: =G45*H45 -> 0 | K45: =$G45*J45 -> 0 | N45: =$G45*M45 -> 0 | Q45: =$G45*P45 -> 0 | T45: =$G45*S45 -> 0 | V45: 500 | Y45: 2500 | AB45: 1280 | AF45: =$G45*AE45 -> 0 | AI45: =$G45*AH45 -> 0 | AL45: =$G45*AK45 -> 0 | AN45: 1920 | AO45: =$G45*AN45 -> 0 | AQ45: 1500 | AR45: =$G45*AQ45 -> 0 | AU45: =$G45*AT45 -> 0 | AX45: =$G45*AW45 -> 0 | BA45: =$G45*AZ45 -> 0 | BD45: =$G45*BC45 -> 0 | BG45: =$G45*BF45 -> 0 | BJ45: =$G45*BI45 -> 0 | BM45: =$G45*BL45 -> 0 | BP45: =$G45*BO45 -> 0 | BS45: =$G45*BR45 -> 0 | BV45: =$G45*BU45 -> 0 | BY45: =$G45*BX45 -> 0 | CB45: =$G45*CA45 -> 0 | CE45: =$G45*CD45 -> 0 | CH45: =$G45*CG45 -> 0 | CK45: =$G45*CJ45 -> 0 | CN45: =$G45*CM45 -> 0 | CQ45: =$G45*CP45 -> 0 | CT45: =$G45*CS45 -> 0 | CW45: =$G45*CV45 -> 0 | CZ45: =$G45*CY45 -> 0 | DC45: =$G45*DB45 -> 0 | DF45: =$G45*DE45 -> 0 | DI45: =$G45*DH45 -> 0 | DL45: =$G45*DK45 -> 0 | DO45: =$G45*DN45 -> 0 | DR45: =$G45*DQ45 -> 0 | DU45: =$G45*DT45 -> 0 | DX45: =$G45*DW45 -> 0 | EA45: =$G45*DZ45 -> 0 | ED45: =$G45*EC45 -> 0 | EG45: =$G45*EF45 -> 0 | EJ45: =$G45*EI45 -> 0 | EM45: =$G45*EL45 -> 0 | EP45: =$G45*EO45 -> 0 | ES45: =$G45*ER45 -> 0 | EV45: =$G45*EU45 -> 0 | EY45: =$G45*EX45 -> 0 | FB45: =$G45*FA45 -> 0 | FE45: =$G45*FD45 -> 0 | FH45: =$G45*FG45 -> 0 | FK45: =$G45*FJ45 -> 0 | FN45: =$G45*FM45 -> 0 | FQ45: =$G45*FP45 -> 0 | FT45: =$G45*FS45 -> 0 | FW45: =$G45*FV45 -> 0 | FZ45: =$G45*FY45 -> 0 | GC45: =$G45*GB45 -> 0 | GF45: =$G45*GE45 -> 0 | GI45: =$G45*GH45 -> 0 | GL45: =$G45*GK45 -> 0 | GO45: =$G45*GN45 -> 0 | GR45: =$G45*GQ45 -> 0 | GU45: =$G45*GT45 -> 0 | GX45: =$G45*GW45 -> 0 | HA45: =$G45*GZ45 -> 0 | HD45: =$G45*HC45 -> 0 | HG45: =$G45*HF45 -> 0 | HJ45: =$G45*HI45 -> 0
A46: 3.2 | B46: K | C46: 3 | D46: Biber crep I klase dimenzija: 180x380 mm | E46: Biber clay tiles class 1 dim: 180x380 mm | F46: kom/pcs | G46: =CENA!G42 -> 0 | H46: 0 | I46: 0 | K46: =$G46*J46 -> 0 | N46: 0 | Q46: =$G46*P46 -> 0 | T46: =$G46*S46 -> 0 | W46: =$G46*V46 -> 0 | Z46: =$G46*Y46 -> 0 | AC46: =$G46*AB46 -> 0 | AF46: =$G46*AE46 -> 0 | AI46: =$G46*AH46 -> 0 | AL46: =$G46*AK46 -> 0 | AO46: =$G46*AN46 -> 0 | AR46: =$G46*AQ46 -> 0 | AU46: =$G46*AT46 -> 0 | AX46: =$G46*AW46 -> 0 | BA46: =$G46*AZ46 -> 0 | BD46: =$G46*BC46 -> 0 | BG46: 0 | BJ46: 0 | BM46: =$G46*BL46 -> 0 | BP46: =$G46*BO46 -> 0 | BS46: =$G46*BR46 -> 0 | BV46: =$G46*BU46 -> 0 | BY46: =$G46*BX46 -> 0 | CB46: =$G46*CA46 -> 0 | CE46: =$G46*CD46 -> 0 | CH46: =$G46*CG46 -> 0 | CK46: =$G46*CJ46 -> 0 | CN46: =$G46*CM46 -> 0 | CQ46: =$G46*CP46 -> 0 | CT46: =$G46*CS46 -> 0 | CW46: =$G46*CV46 -> 0 | CZ46: =$G46*CY46 -> 0 | DC46: 0 | DF46: 0 | DI46: =$G46*DH46 -> 0 | DL46: =$G46*DK46 -> 0 | DO46: =$G46*DN46 -> 0 | DR46: =$G46*DQ46 -> 0 | DU46: =$G46*DT46 -> 0 | DX46: =$G46*DW46 -> 0 | EA46: =$G46*DZ46 -> 0 | ED46: =$G46*EC46 -> 0 | EG46: =$G46*EF46 -> 0 | EJ46: =$G46*EI46 -> 0 | EM46: =$G46*EL46 -> 0 | EP46: =$G46*EO46 -> 0 | ES46: =$G46*ER46 -> 0 | EV46: =$G46*EU46 -> 0 | EY46: 0 | FB46: 0 | FE46: =$G46*FD46 -> 0 | FH46: =$G46*FG46 -> 0 | FK46: =$G46*FJ46 -> 0 | FN46: =$G46*FM46 -> 0 | FQ46: =$G46*FP46 -> 0 | FT46: =$G46*FS46 -> 0 | FW46: =$G46*FV46 -> 0 | FZ46: =$G46*FY46 -> 0 | GC46: =$G46*GB46 -> 0 | GF46: =$G46*GE46 -> 0 | GI46: =$G46*GH46 -> 0 | GL46: =$G46*GK46 -> 0 | GO46: =$G46*GN46 -> 0 | GR46: =$G46*GQ46 -> 0 | GU46: =$G46*GT46 -> 0 | GX46: =$G46*GW46 -> 0 | HA46: =$G46*GZ46 -> 0 | HD46: =$G46*HC46 -> 0 | HG46: =$G46*HF46 -> 0 | HJ46: =$G46*HI46 -> 0
A47: 3.3 | B47: K | C47: 2 | D47: Slemeni crep I klase (žljebnjak) | E47: Ridge clay tiles class 1 | F47: kom/pcs | G47: =CENA!G43 -> 0 | H47: 65 | I47: 0 | K47: =$G47*J47 -> 0 | N47: 0 | Q47: =$G47*P47 -> 0 | T47: =$G47*S47 -> 0 | W47: =$G47*V47 -> 0 | Z47: =$G47*Y47 -> 0 | AB47: 30 | AF47: =$G47*AE47 -> 0 | AI47: =$G47*AH47 -> 0 | AL47: =$G47*AK47 -> 0 | AN47: 35 | AO47: =$G47*AN47 -> 0 | AR47: =$G47*AQ47 -> 0 | AU47: =$G47*AT47 -> 0 | AX47: =$G47*AW47 -> 0 | BA47: =$G47*AZ47 -> 0 | BD47: =$G47*BC47 -> 0 | BG47: 0 | BJ47: 0 | BM47: =$G47*BL47 -> 0 | BP47: =$G47*BO47 -> 0 | BS47: =$G47*BR47 -> 0 | BV47: =$G47*BU47 -> 0 | BY47: =$G47*BX47 -> 0 | CB47: =$G47*CA47 -> 0 | CE47: =$G47*CD47 -> 0 | CH47: =$G47*CG47 -> 0 | CK47: =$G47*CJ47 -> 0 | CN47: =$G47*CM47 -> 0 | CQ47: =$G47*CP47 -> 0 | CT47: =$G47*CS47 -> 0 | CW47: =$G47*CV47 -> 0 | CZ47: =$G47*CY47 -> 0 | DC47: 0 | DF47: 0 | DI47: =$G47*DH47 -> 0 | DL47: =$G47*DK47 -> 0 | DO47: =$G47*DN47 -> 0 | DR47: =$G47*DQ47 -> 0 | DU47: =$G47*DT47 -> 0 | DX47: =$G47*DW47 -> 0 | EA47: =$G47*DZ47 -> 0 | ED47: =$G47*EC47 -> 0 | EG47: =$G47*EF47 -> 0 | EJ47: =$G47*EI47 -> 0 | EM47: =$G47*EL47 -> 0 | EP47: =$G47*EO47 -> 0 | ES47: =$G47*ER47 -> 0 | EV47: =$G47*EU47 -> 0 | EY47: 0 | FB47: 0 | FE47: =$G47*FD47 -> 0 | FH47: =$G47*FG47 -> 0 | FK47: =$G47*FJ47 -> 0 | FN47: =$G47*FM47 -> 0 | FQ47: =$G47*FP47 -> 0 | FT47: =$G47*FS47 -> 0 | FW47: =$G47*FV47 -> 0 | FZ47: =$G47*FY47 -> 0 | GC47: =$G47*GB47 -> 0 | GF47: =$G47*GE47 -> 0 | GI47: =$G47*GH47 -> 0 | GL47: =$G47*GK47 -> 0 | GO47: =$G47*GN47 -> 0 | GR47: =$G47*GQ47 -> 0 | GU47: =$G47*GT47 -> 0 | GX47: =$G47*GW47 -> 0 | HA47: =$G47*GZ47 -> 0 | HD47: =$G47*HC47 -> 0 | HG47: =$G47*HF47 -> 0 | HJ47: =$G47*HI47 -> 0
A48: 3.4 | B48: K | C48: 4 | D48: Paropropusna i vodonepropusna krovna folija kontrola vodene pare iznad termoizolacije | E48: Vapour permeable and waterproof roof sheeting control of water vapor above the insulation | F48: m2 | G48: =CENA!G44 -> 0 | H48: 0 | I48: 0 | K48: =$G48*J48 -> 0 | N48: 0 | Q48: =$G48*P48 -> 0 | T48: =$G48*S48 -> 0 | W48: =$G48*V48 -> 0 | Z48: =$G48*Y48 -> 0 | AC48: =$G48*AB48 -> 0 | AF48: =$G48*AE48 -> 0 | AI48: =$G48*AH48 -> 0 | AL48: =$G48*AK48 -> 0 | AO48: =$G48*AN48 -> 0 | AR48: =$G48*AQ48 -> 0 | AU48: =$G48*AT48 -> 0 | AX48: =$G48*AW48 -> 0 | BA48: =$G48*AZ48 -> 0 | BD48: =$G48*BC48 -> 0 | BG48: 0 | BJ48: 0 | BM48: =$G48*BL48 -> 0 | BP48: =$G48*BO48 -> 0 | BS48: =$G48*BR48 -> 0 | BV48: =$G48*BU48 -> 0 | BY48: =$G48*BX48 -> 0 | CB48: =$G48*CA48 -> 0 | CE48: =$G48*CD48 -> 0 | CH48: =$G48*CG48 -> 0 | CK48: =$G48*CJ48 -> 0 | CN48: =$G48*CM48 -> 0 | CQ48: =$G48*CP48 -> 0 | CT48: =$G48*CS48 -> 0 | CW48: =$G48*CV48 -> 0 | CZ48: =$G48*CY48 -> 0 | DC48: 0 | DF48: 0 | DI48: =$G48*DH48 -> 0 | DL48: =$G48*DK48 -> 0 | DO48: =$G48*DN48 -> 0 | DR48: =$G48*DQ48 -> 0 | DU48: =$G48*DT48 -> 0 | DX48: =$G48*DW48 -> 0 | EA48: =$G48*DZ48 -> 0 | ED48: =$G48*EC48 -> 0 | EG48: =$G48*EF48 -> 0 | EJ48: =$G48*EI48 -> 0 | EM48: =$G48*EL48 -> 0 | EP48: =$G48*EO48 -> 0 | ES48: =$G48*ER48 -> 0 | EV48: =$G48*EU48 -> 0 | EY48: 0 | FB48: 0 | FE48: =$G48*FD48 -> 0 | FH48: =$G48*FG48 -> 0 | FK48: =$G48*FJ48 -> 0 | FN48: =$G48*FM48 -> 0 | FQ48: =$G48*FP48 -> 0 | FT48: =$G48*FS48 -> 0 | FW48: =$G48*FV48 -> 0 | FZ48: =$G48*FY48 -> 0 | GC48: =$G48*GB48 -> 0 | GF48: =$G48*GE48 -> 0 | GI48: =$G48*GH48 -> 0 | GL48: =$G48*GK48 -> 0 | GO48: =$G48*GN48 -> 0 | GR48: =$G48*GQ48 -> 0 | GU48: =$G48*GT48 -> 0 | GX48: =$G48*GW48 -> 0 | HA48: =$G48*GZ48 -> 0 | HD48: =$G48*HC48 -> 0 | HG48: =$G48*HF48 -> 0 | HJ48: =$G48*HI48 -> 0
A49: 3.5 | B49: K | C49: 5 | D49: Staklena mineralna vuna termoizolacija potkrovlja između rogova | E49: Glass Mineral Wool loft insulation between the rafters | F49: / | G49: / | H49: / | I49: / | J49: / | K49: / | M49: / | N49: / | P49: / | Q49: / | S49: / | T49: / | V49: / | W49: / | Y49: / | Z49: / | AB49: / | AC49: / | AE49: / | AF49: / | AH49: / | AI49: / | AK49: / | AL49: / | AN49: / | AO49: / | AQ49: / | AR49: / | AT49: / | AU49: / | AW49: / | AX49: / | AZ49: / | BA49: / | BC49: / | BD49: / | BF49: / | BG49: / | BI49: / | BJ49: / | BL49: / | BM49: / | BO49: / | BP49: / | BR49: / | BS49: / | BU49: / | BV49: / | BX49: / | BY49: / | CA49: / | CB49: / | CD49: / | CE49: / | CG49: / | CH49: / | CJ49: / | CK49: / | CM49: / | CN49: / | CP49: / | CQ49: / | CS49: / | CT49: / | CV49: / | CW49: / | CY49: / | CZ49: / | DB49: / | DC49: / | DE49: / | DF49: / | DH49: / | DI49: / | DK49: / | DL49: / | DN49: / | DO49: / | DQ49: / | DR49: / | DT49: / | DU49: / | DW49: / | DX49: / | DZ49: / | EA49: / | EC49: / | ED49: / | EF49: / | EG49: / | EI49: / | EJ49: / | EL49: / | EM49: / | EO49: / | EP49: / | ER49: / | ES49: / | EU49: / | EV49: / | EX49: / | EY49: / | FA49: / | FB49: / | FD49: / | FE49: / | FG49: / | FH49: / | FJ49: / | FK49: / | FM49: / | FN49: / | FP49: / | FQ49: / | FS49: / | FT49: / | FV49: / | FW49: / | FY49: / | FZ49: / | GB49: / | GC49: / | GE49: / | GF49: / | GH49: / | GI49: / | GK49: / | GL49: / | GN49: / | GO49: / | GQ49: / | GR49: / | GT49: / | GU49: / | GW49: / | GX49: / | GZ49: / | HA49: / | HC49: / | HD49: / | HF49: / | HG49: / | HI49: / | HJ49: /
A50: 3.5.1 | C50: A | D50: debljina d=10 cm | E50: thickness d=10 cm | F50: m2 | G50: =CENA!G46 -> 0 | H50: =J50+M50+P50+S50+V50+Y50+AB50+AE50+AH50+AK50+AN50+AQ50+AZ50+AW50+AT50+BC50+BF50+BI50+BL50+BO50+BR50+BU50+BX50+CA50+CD50+CG50+CJ50+CM50+CP50+CS50+CV50+CY50+DB50+DE50+DH50+DK50+DN50+DQ50+DT50+DW50+DZ50+EC50+EF50+EI50+EL50+EO50+ER50+EU50+EX50+FA50+FD50+FG50+FJ50+FM50+FP50+FS50+FV50+FY50+GB50+GE50+GH50+GK50+GN50+GQ50+GT50+GW50+GZ50+HC50+HF50+HI50 -> 42 | I50: =G50*H50 -> 0 | K50: =$G50*J50 -> 0 | N50: =$G50*M50 -> 0 | Q50: =$G50*P50 -> 0 | S50: 42 | W50: =$G50*V50 -> 0 | Z50: =$G50*Y50 -> 0 | AC50: =$G50*AB50 -> 0 | AF50: =$G50*AE50 -> 0 | AI50: =$G50*AH50 -> 0 | AL50: =$G50*AK50 -> 0 | AO50: =$G50*AN50 -> 0 | AR50: =$G50*AQ50 -> 0 | AU50: =$G50*AT50 -> 0 | AX50: =$G50*AW50 -> 0 | BA50: =$G50*AZ50 -> 0 | BD50: =$G50*BC50 -> 0 | BG50: =$G50*BF50 -> 0 | BJ50: =$G50*BI50 -> 0 | BM50: =$G50*BL50 -> 0 | BP50: =$G50*BO50 -> 0 | BS50: =$G50*BR50 -> 0 | BV50: =$G50*BU50 -> 0 | BY50: =$G50*BX50 -> 0 | CB50: =$G50*CA50 -> 0 | CE50: =$G50*CD50 -> 0 | CH50: =$G50*CG50 -> 0 | CK50: =$G50*CJ50 -> 0 | CN50: =$G50*CM50 -> 0 | CQ50: =$G50*CP50 -> 0 | CT50: =$G50*CS50 -> 0 | CW50: =$G50*CV50 -> 0 | CZ50: =$G50*CY50 -> 0 | DC50: =$G50*DB50 -> 0 | DF50: =$G50*DE50 -> 0 | DI50: =$G50*DH50 -> 0 | DL50: =$G50*DK50 -> 0 | DO50: =$G50*DN50 -> 0 | DR50: =$G50*DQ50 -> 0 | DU50: =$G50*DT50 -> 0 | DX50: =$G50*DW50 -> 0 | EA50: =$G50*DZ50 -> 0 | ED50: =$G50*EC50 -> 0 | EG50: =$G50*EF50 -> 0 | EJ50: =$G50*EI50 -> 0 | EM50: =$G50*EL50 -> 0 | EP50: =$G50*EO50 -> 0 | ES50: =$G50*ER50 -> 0 | EV50: =$G50*EU50 -> 0 | EY50: =$G50*EX50 -> 0 | FB50: =$G50*FA50 -> 0 | FE50: =$G50*FD50 -> 0 | FH50: =$G50*FG50 -> 0 | FK50: =$G50*FJ50 -> 0 | FN50: =$G50*FM50 -> 0 | FQ50: =$G50*FP50 -> 0 | FT50: =$G50*FS50 -> 0 | FW50: =$G50*FV50 -> 0 | FZ50: =$G50*FY50 -> 0 | GC50: =$G50*GB50 -> 0 | GF50: =$G50*GE50 -> 0 | GI50: =$G50*GH50 -> 0 | GL50: =$G50*GK50 -> 0 | GO50: =$G50*GN50 -> 0 | GR50: =$G50*GQ50 -> 0 | GU50: =$G50*GT50 -> 0 | GX50: =$G50*GW50 -> 0 | HA50: =$G50*GZ50 -> 0 | HD50: =$G50*HC50 -> 0 | HG50: =$G50*HF50 -> 0 | HJ50: =$G50*HI50 -> 0
A51: 3.5.2 | C51: B | D51: debljina d=12 cm | E51: thickness d=12 cm | F51: m2 | G51: =CENA!G47 -> 0 | H51: 0 | I51: 0 | K51: =$G51*J51 -> 0 | N51: 0 | Q51: =$G51*P51 -> 0 | T51: =$G51*S51 -> 0 | W51: =$G51*V51 -> 0 | Z51: =$G51*Y51 -> 0 | AC51: =$G51*AB51 -> 0 | AF51: =$G51*AE51 -> 0 | AI51: =$G51*AH51 -> 0 | AL51: =$G51*AK51 -> 0 | AO51: =$G51*AN51 -> 0 | AR51: =$G51*AQ51 -> 0 | AU51: =$G51*AT51 -> 0 | AX51: =$G51*AW51 -> 0 | BA51: =$G51*AZ51 -> 0 | BD51: =$G51*BC51 -> 0 | BG51: 0 | BJ51: 0 | BM51: =$G51*BL51 -> 0 | BP51: =$G51*BO51 -> 0 | BS51: =$G51*BR51 -> 0 | BV51: =$G51*BU51 -> 0 | BY51: =$G51*BX51 -> 0 | CB51: =$G51*CA51 -> 0 | CE51: =$G51*CD51 -> 0 | CH51: =$G51*CG51 -> 0 | CK51: =$G51*CJ51 -> 0 | CN51: =$G51*CM51 -> 0 | CQ51: =$G51*CP51 -> 0 | CT51: =$G51*CS51 -> 0 | CW51: =$G51*CV51 -> 0 | CZ51: =$G51*CY51 -> 0 | DC51: 0 | DF51: 0 | DI51: =$G51*DH51 -> 0 | DL51: =$G51*DK51 -> 0 | DO51: =$G51*DN51 -> 0 | DR51: =$G51*DQ51 -> 0 | DU51: =$G51*DT51 -> 0 | DX51: =$G51*DW51 -> 0 | EA51: =$G51*DZ51 -> 0 | ED51: =$G51*EC51 -> 0 | EG51: =$G51*EF51 -> 0 | EJ51: =$G51*EI51 -> 0 | EM51: =$G51*EL51 -> 0 | EP51: =$G51*EO51 -> 0 | ES51: =$G51*ER51 -> 0 | EV51: =$G51*EU51 -> 0 | EY51: 0 | FB51: 0 | FE51: =$G51*FD51 -> 0 | FH51: =$G51*FG51 -> 0 | FK51: =$G51*FJ51 -> 0 | FN51: =$G51*FM51 -> 0 | FQ51: =$G51*FP51 -> 0 | FT51: =$G51*FS51 -> 0 | FW51: =$G51*FV51 -> 0 | FZ51: =$G51*FY51 -> 0 | GC51: =$G51*GB51 -> 0 | GF51: =$G51*GE51 -> 0 | GI51: =$G51*GH51 -> 0 | GL51: =$G51*GK51 -> 0 | GO51: =$G51*GN51 -> 0 | GR51: =$G51*GQ51 -> 0 | GU51: =$G51*GT51 -> 0 | GX51: =$G51*GW51 -> 0 | HA51: =$G51*GZ51 -> 0 | HD51: =$G51*HC51 -> 0 | HG51: =$G51*HF51 -> 0 | HJ51: =$G51*HI51 -> 0
A52: 3.5.3 | C52: C | D52: debljina d=14 cm | E52: thickness d=14 cm | F52: m2 | G52: =CENA!G48 -> 0 | H52: 0 | I52: 0 | K52: =$G52*J52 -> 0 | N52: 0 | Q52: =$G52*P52 -> 0 | T52: =$G52*S52 -> 0 | W52: =$G52*V52 -> 0 | Z52: =$G52*Y52 -> 0 | AC52: =$G52*AB52 -> 0 | AF52: =$G52*AE52 -> 0 | AI52: =$G52*AH52 -> 0 | AL52: =$G52*AK52 -> 0 | AO52: =$G52*AN52 -> 0 | AR52: =$G52*AQ52 -> 0 | AU52: =$G52*AT52 -> 0 | AX52: =$G52*AW52 -> 0 | BA52: =$G52*AZ52 -> 0 | BD52: =$G52*BC52 -> 0 | BG52: 0 | BJ52: 0 | BM52: =$G52*BL52 -> 0 | BP52: =$G52*BO52 -> 0 | BS52: =$G52*BR52 -> 0 | BV52: =$G52*BU52 -> 0 | BY52: =$G52*BX52 -> 0 | CB52: =$G52*CA52 -> 0 | CE52: =$G52*CD52 -> 0 | CH52: =$G52*CG52 -> 0 | CK52: =$G52*CJ52 -> 0 | CN52: =$G52*CM52 -> 0 | CQ52: =$G52*CP52 -> 0 | CT52: =$G52*CS52 -> 0 | CW52: =$G52*CV52 -> 0 | CZ52: =$G52*CY52 -> 0 | DC52: 0 | DF52: 0 | DI52: =$G52*DH52 -> 0 | DL52: =$G52*DK52 -> 0 | DO52: =$G52*DN52 -> 0 | DR52: =$G52*DQ52 -> 0 | DU52: =$G52*DT52 -> 0 | DX52: =$G52*DW52 -> 0 | EA52: =$G52*DZ52 -> 0 | ED52: =$G52*EC52 -> 0 | EG52: =$G52*EF52 -> 0 | EJ52: =$G52*EI52 -> 0 | EM52: =$G52*EL52 -> 0 | EP52: =$G52*EO52 -> 0 | ES52: =$G52*ER52 -> 0 | EV52: =$G52*EU52 -> 0 | EY52: 0 | FB52: 0 | FE52: =$G52*FD52 -> 0 | FH52: =$G52*FG52 -> 0 | FK52: =$G52*FJ52 -> 0 | FN52: =$G52*FM52 -> 0 | FQ52: =$G52*FP52 -> 0 | FT52: =$G52*FS52 -> 0 | FW52: =$G52*FV52 -> 0 | FZ52: =$G52*FY52 -> 0 | GC52: =$G52*GB52 -> 0 | GF52: =$G52*GE52 -> 0 | GI52: =$G52*GH52 -> 0 | GL52: =$G52*GK52 -> 0 | GO52: =$G52*GN52 -> 0 | GR52: =$G52*GQ52 -> 0 | GU52: =$G52*GT52 -> 0 | GX52: =$G52*GW52 -> 0 | HA52: =$G52*GZ52 -> 0 | HD52: =$G52*HC52 -> 0 | HG52: =$G52*HF52 -> 0 | HJ52: =$G52*HI52 -> 0
A53: 3.6 | B53: K | C53: 6 | D53: Parna brana kontrola vodene pare ispod termoizolacije | E53: Vapor barrier control of water vapor below the insulation | F53: m2 | G53: =CENA!G49 -> 0 | H53: 0 | I53: 0 | K53: =$G53*J53 -> 0 | N53: 0 | Q53: =$G53*P53 -> 0 | T53: =$G53*S53 -> 0 | W53: =$G53*V53 -> 0 | Z53: =$G53*Y53 -> 0 | AC53: =$G53*AB53 -> 0 | AF53: =$G53*AE53 -> 0 | AI53: =$G53*AH53 -> 0 | AL53: =$G53*AK53 -> 0 | AO53: =$G53*AN53 -> 0 | AR53: =$G53*AQ53 -> 0 | AU53: =$G53*AT53 -> 0 | AX53: =$G53*AW53 -> 0 | BA53: =$G53*AZ53 -> 0 | BD53: =$G53*BC53 -> 0 | BG53: 0 | BJ53: 0 | BM53: =$G53*BL53 -> 0 | BP53: =$G53*BO53 -> 0 | BS53: =$G53*BR53 -> 0 | BV53: =$G53*BU53 -> 0 | BY53: =$G53*BX53 -> 0 | CB53: =$G53*CA53 -> 0 | CE53: =$G53*CD53 -> 0 | CH53: =$G53*CG53 -> 0 | CK53: =$G53*CJ53 -> 0 | CN53: =$G53*CM53 -> 0 | CQ53: =$G53*CP53 -> 0 | CT53: =$G53*CS53 -> 0 | CW53: =$G53*CV53 -> 0 | CZ53: =$G53*CY53 -> 0 | DC53: 0 | DF53: 0 | DI53: =$G53*DH53 -> 0 | DL53: =$G53*DK53 -> 0 | DO53: =$G53*DN53 -> 0 | DR53: =$G53*DQ53 -> 0 | DU53: =$G53*DT53 -> 0 | DX53: =$G53*DW53 -> 0 | EA53: =$G53*DZ53 -> 0 | ED53: =$G53*EC53 -> 0 | EG53: =$G53*EF53 -> 0 | EJ53: =$G53*EI53 -> 0 | EM53: =$G53*EL53 -> 0 | EP53: =$G53*EO53 -> 0 | ES53: =$G53*ER53 -> 0 | EV53: =$G53*EU53 -> 0 | EY53: 0 | FB53: 0 | FE53: =$G53*FD53 -> 0 | FH53: =$G53*FG53 -> 0 | FK53: =$G53*FJ53 -> 0 | FN53: =$G53*FM53 -> 0 | FQ53: =$G53*FP53 -> 0 | FT53: =$G53*FS53 -> 0 | FW53: =$G53*FV53 -> 0 | FZ53: =$G53*FY53 -> 0 | GC53: =$G53*GB53 -> 0 | GF53: =$G53*GE53 -> 0 | GI53: =$G53*GH53 -> 0 | GL53: =$G53*GK53 -> 0 | GO53: =$G53*GN53 -> 0 | GR53: =$G53*GQ53 -> 0 | GU53: =$G53*GT53 -> 0 | GX53: =$G53*GW53 -> 0 | HA53: =$G53*GZ53 -> 0 | HD53: =$G53*HC53 -> 0 | HG53: =$G53*HF53 -> 0 | HJ53: =$G53*HI53 -> 0
A54: 3.7 | B54: K | C54: 7 | D54: Čamova rezana građa različitog preseka dužine 400 cm | E54: Fir lumber of different cross-section length 400 cm | F54: / | G54: / | H54: / | I54: / | J54: / | K54: / | M54: / | N54: / | P54: / | Q54: / | S54: / | T54: / | V54: / | W54: / | Y54: / | Z54: / | AB54: / | AC54: / | AE54: / | AF54: / | AH54: / | AI54: / | AK54: / | AL54: / | AN54: / | AO54: / | AQ54: / | AR54: / | AT54: / | AU54: / | AW54: / | AX54: / | AZ54: / | BA54: / | BC54: / | BD54: / | BF54: / | BG54: / | BI54: / | BJ54: / | BL54: / | BM54: / | BO54: / | BP54: / | BR54: / | BS54: / | BU54: / | BV54: / | BX54: / | BY54: / | CA54: / | CB54: / | CD54: / | CE54: / | CG54: / | CH54: / | CJ54: / | CK54: / | CM54: / | CN54: / | CP54: / | CQ54: / | CS54: / | CT54: / | CV54: / | CW54: / | CY54: / | CZ54: / | DB54: / | DC54: / | DE54: / | DF54: / | DH54: / | DI54: / | DK54: / | DL54: / | DN54: / | DO54: / | DQ54: / | DR54: / | DT54: / | DU54: / | DW54: / | DX54: / | DZ54: / | EA54: / | EC54: / | ED54: / | EF54: / | EG54: / | EI54: / | EJ54: / | EL54: / | EM54: / | EO54: / | EP54: / | ER54: / | ES54: / | EU54: / | EV54: / | EX54: / | EY54: / | FA54: / | FB54: / | FD54: / | FE54: / | FG54: / | FH54: / | FJ54: / | FK54: / | FM54: / | FN54: / | FP54: / | FQ54: / | FS54: / | FT54: / | FV54: / | FW54: / | FY54: / | FZ54: / | GB54: / | GC54: / | GE54: / | GF54: / | GH54: / | GI54: / | GK54: / | GL54: / | GN54: / | GO54: / | GQ54: / | GR54: / | GT54: / | GU54: / | GW54: / | GX54: / | GZ54: / | HA54: / | HC54: / | HD54: / | HF54: / | HG54: / | HI54: / | HJ54: /
A55: 3.7.1 | C55: A | D55: Rog/Venčanica/Raspinjača 10/12 cm | E55: rafters / wall plate / ridge collar 10/12 cm | F55: m3 | G55: =CENA!G51 -> 0 | H55: =J55+M55+P55+S55+V55+Y55+AB55+AE55+AH55+AK55+AN55+AQ55+AZ55+AW55+AT55+BC55+BF55+BI55+BL55+BO55+BR55+BU55+BX55+CA55+CD55+CG55+CJ55+CM55+CP55+CS55+CV55+CY55+DB55+DE55+DH55+DK55+DN55+DQ55+DT55+DW55+DZ55+EC55+EF55+EI55+EL55+EO55+ER55+EU55+EX55+FA55+FD55+FG55+FJ55+FM55+FP55+FS55+FV55+FY55+GB55+GE55+GH55+GK55+GN55+GQ55+GT55+GW55+GZ55+HC55+HF55+HI55 -> 0 | I55: =G55*H55 -> 0 | K55: =$G55*J55 -> 0 | L55: =J55/$HM$55 -> 0 | N55: =$G55*M55 -> 0 | O55: =M55/$HM$55 -> 0 | Q55: =$G55*P55 -> 0 | R55: =P55/$HM$55 -> 0 | S55: 0 | T55: =$G55*S55 -> 0 | U55: =S55/$HM$55 -> 0 | W55: =$G55*V55 -> 0 | X55: =V55/$HM$55 -> 0 | Z55: =$G55*Y55 -> 0 | AA55: =Y55/$HM$55 -> 0 | AC55: =$G55*AB55 -> 0 | AD55: =AB55/$HM$55 -> 0 | AF55: =$G55*AE55 -> 0 | AG55: =AE55/$HM$55 -> 0 | AI55: =$G55*AH55 -> 0 | AJ55: =AH55/$HM$55 -> 0 | AL55: =$G55*AK55 -> 0 | AM55: =AK55/$HM$55 -> 0 | AO55: =$G55*AN55 -> 0 | AP55: =AN55/$HM$55 -> 0 | AR55: =$G55*AQ55 -> 0 | AS55: =AQ55/$HM$55 -> 0 | AU55: =$G55*AT55 -> 0 | AV55: =AT55/$HM$55 -> 0 | AX55: =$G55*AW55 -> 0 | AY55: =AW55/$HM$55 -> 0 | BA55: =$G55*AZ55 -> 0 | BB55: =AZ55/$HM$55 -> 0 | BD55: =$G55*BC55 -> 0 | BE55: =BC55/$HM$55 -> 0 | BG55: =$G55*BF55 -> 0 | BH55: =BF55/$HM$55 -> 0 | BJ55: =$G55*BI55 -> 0 | BK55: =BI55/$HM$55 -> 0 | BM55: =$G55*BL55 -> 0 | BN55: =BL55/$HM$55 -> 0 | BO55: 0 | BP55: =$G55*BO55 -> 0 | BQ55: =BO55/$HM$55 -> 0 | BS55: =$G55*BR55 -> 0 | BT55: =BR55/$HM$55 -> 0 | BV55: =$G55*BU55 -> 0 | BW55: =BU55/$HM$55 -> 0 | BY55: =$G55*BX55 -> 0 | BZ55: =BX55/$HM$55 -> 0 | CB55: =$G55*CA55 -> 0 | CC55: =CA55/$HM$55 -> 0 | CE55: =$G55*CD55 -> 0 | CF55: =CD55/$HM$55 -> 0 | CH55: =$G55*CG55 -> 0 | CI55: =CG55/$HM$55 -> 0 | CK55: =$G55*CJ55 -> 0 | CL55: =CJ55/$HM$55 -> 0 | CN55: =$G55*CM55 -> 0 | CO55: =CM55/$HM$55 -> 0 | CQ55: =$G55*CP55 -> 0 | CR55: =CP55/$HM$55 -> 0 | CT55: =$G55*CS55 -> 0 | CU55: =CS55/$HM$55 -> 0 | CW55: =$G55*CV55 -> 0 | CX55: =CV55/$HM$55 -> 0 | CZ55: =$G55*CY55 -> 0 | DA55: =CY55/$HM$55 -> 0 | DC55: =$G55*DB55 -> 0 | DD55: =DB55/$HM$55 -> 0 | DF55: =$G55*DE55 -> 0 | DG55: =DE55/$HM$55 -> 0 | DI55: =$G55*DH55 -> 0 | DJ55: =DH55/$HM$55 -> 0 | DK55: 0 | DL55: =$G55*DK55 -> 0 | DM55: =DK55/$HM$55 -> 0 | DO55: =$G55*DN55 -> 0 | DP55: =DN55/$HM$55 -> 0 | DR55: =$G55*DQ55 -> 0 | DS55: =DQ55/$HM$55 -> 0 | DU55: =$G55*DT55 -> 0 | DV55: =DT55/$HM$55 -> 0 | DX55: =$G55*DW55 -> 0 | DY55: =DW55/$HM$55 -> 0 | EA55: =$G55*DZ55 -> 0 | EB55: =DZ55/$HM$55 -> 0 | ED55: =$G55*EC55 -> 0 | EE55: =EC55/$HM$55 -> 0 | EG55: =$G55*EF55 -> 0 | EH55: =EF55/$HM$55 -> 0 | EJ55: =$G55*EI55 -> 0 | EK55: =EI55/$HM$55 -> 0 | EM55: =$G55*EL55 -> 0 | EN55: =EL55/$HM$55 -> 0 | EP55: =$G55*EO55 -> 0 | EQ55: =EO55/$HM$55 -> 0 | ES55: =$G55*ER55 -> 0 | ET55: =ER55/$HM$55 -> 0 | EV55: =$G55*EU55 -> 0 | EW55: =EU55/$HM$55 -> 0 | EY55: =$G55*EX55 -> 0 | EZ55: =EX55/$HM$55 -> 0 | FB55: =$G55*FA55 -> 0 | FC55: =FA55/$HM$55 -> 0 | FE55: =$G55*FD55 -> 0 | FF55: =FD55/$HM$55 -> 0 | FG55: 0 | FH55: =$G55*FG55 -> 0 | FI55: =FG55/$HM$55 -> 0 | FK55: =$G55*FJ55 -> 0 | FL55: =FJ55/$HM$55 -> 0 | FN55: =$G55*FM55 -> 0 | FO55: =FM55/$HM$55 -> 0 | FQ55: =$G55*FP55 -> 0 | FR55: =FP55/$HM$55 -> 0 | FT55: =$G55*FS55 -> 0 | FU55: =FS55/$HM$55 -> 0 | FW55: =$G55*FV55 -> 0 | FX55: =FV55/$HM$55 -> 0 | FZ55: =$G55*FY55 -> 0 | GA55: =FY55/$HM$55 -> 0 | GC55: =$G55*GB55 -> 0 | GD55: =GB55/$HM$55 -> 0 | GF55: =$G55*GE55 -> 0 | GG55: =GE55/$HM$55 -> 0 | GI55: =$G55*GH55 -> 0 | GJ55: =GH55/$HM$55 -> 0 | GL55: =$G55*GK55 -> 0 | GM55: =GK55/$HM$55 -> 0 | GO55: =$G55*GN55 -> 0 | GP55: =GN55/$HM$55 -> 0 | GR55: =$G55*GQ55 -> 0 | GS55: =GQ55/$HM$55 -> 0 | GU55: =$G55*GT55 -> 0 | GV55: =GT55/$HM$55 -> 0 | GX55: =$G55*GW55 -> 0 | GY55: =GW55/$HM$55 -> 0 | HA55: =$G55*GZ55 -> 0 | HB55: =GZ55/$HM$55 -> 0 | HD55: =$G55*HC55 -> 0 | HE55: =HC55/$HM$55 -> 0 | HG55: =$G55*HF55 -> 0 | HH55: =HF55/$HM$55 -> 0 | HJ55: =$G55*HI55 -> 0 | HK55: =HI55/$HM$55 -> 0 | HM55: 0.048
A56: 3.7.2 | C56: B | D56: Rog/Stub/Grebenjača/Slemenja. 12/14 cm | E56: column / pile / hip rafter / ridge 12/14 cm | F56: m3 | G56: =CENA!G52 -> 0 | H56: 0 | I56: 0 | K56: =$G56*J56 -> 0 | L56: =J56/$HM$56 -> 0 | N56: 0 | O56: =M56/$HM$56 -> 0 | Q56: =$G56*P56 -> 0 | R56: =P56/$HM$56 -> 0 | S56: 0 | T56: =$G56*S56 -> 0 | U56: =S56/$HM$56 -> 0 | W56: =$G56*V56 -> 0 | X56: =V56/$HM$56 -> 0 | Z56: =$G56*Y56 -> 0 | AA56: =Y56/$HM$56 -> 0 | AC56: =$G56*AB56 -> 0 | AD56: =AB56/$HM$56 -> 0 | AF56: =$G56*AE56 -> 0 | AG56: =AE56/$HM$56 -> 0 | AI56: =$G56*AH56 -> 0 | AJ56: =AH56/$HM$56 -> 0 | AL56: =$G56*AK56 -> 0 | AM56: =AK56/$HM$56 -> 0 | AO56: =$G56*AN56 -> 0 | AP56: =AN56/$HM$56 -> 0 | AR56: =$G56*AQ56 -> 0 | AS56: =AQ56/$HM$56 -> 0 | AU56: =$G56*AT56 -> 0 | AV56: =AT56/$HM$56 -> 0 | AX56: =$G56*AW56 -> 0 | AY56: =AW56/$HM$56 -> 0 | BA56: =$G56*AZ56 -> 0 | BB56: =AZ56/$HM$56 -> 0 | BD56: =$G56*BC56 -> 0 | BE56: =BC56/$HM$56 -> 0 | BG56: 0 | BH56: =BF56/$HM$56 -> 0 | BJ56: 0 | BK56: =BI56/$HM$56 -> 0 | BM56: =$G56*BL56 -> 0 | BN56: =BL56/$HM$56 -> 0 | BO56: 0 | BP56: =$G56*BO56 -> 0 | BQ56: =BO56/$HM$56 -> 0 | BS56: =$G56*BR56 -> 0 | BT56: =BR56/$HM$56 -> 0 | BV56: =$G56*BU56 -> 0 | BW56: =BU56/$HM$56 -> 0 | BY56: =$G56*BX56 -> 0 | BZ56: =BX56/$HM$56 -> 0 | CB56: =$G56*CA56 -> 0 | CC56: =CA56/$HM$56 -> 0 | CE56: =$G56*CD56 -> 0 | CF56: =CD56/$HM$56 -> 0 | CH56: =$G56*CG56 -> 0 | CI56: =CG56/$HM$56 -> 0 | CK56: =$G56*CJ56 -> 0 | CL56: =CJ56/$HM$56 -> 0 | CN56: =$G56*CM56 -> 0 | CO56: =CM56/$HM$56 -> 0 | CQ56: =$G56*CP56 -> 0 | CR56: =CP56/$HM$56 -> 0 | CT56: =$G56*CS56 -> 0 | CU56: =CS56/$HM$56 -> 0 | CW56: =$G56*CV56 -> 0 | CX56: =CV56/$HM$56 -> 0 | CZ56: =$G56*CY56 -> 0 | DA56: =CY56/$HM$56 -> 0 | DC56: 0 | DD56: =DB56/$HM$56 -> 0 | DF56: 0 | DG56: =DE56/$HM$56 -> 0 | DI56: =$G56*DH56 -> 0 | DJ56: =DH56/$HM$56 -> 0 | DK56: 0 | DL56: =$G56*DK56 -> 0 | DM56: =DK56/$HM$56 -> 0 | DO56: =$G56*DN56 -> 0 | DP56: =DN56/$HM$56 -> 0 | DR56: =$G56*DQ56 -> 0 | DS56: =DQ56/$HM$56 -> 0 | DU56: =$G56*DT56 -> 0 | DV56: =DT56/$HM$56 -> 0 | DX56: =$G56*DW56 -> 0 | DY56: =DW56/$HM$56 -> 0 | EA56: =$G56*DZ56 -> 0 | EB56: =DZ56/$HM$56 -> 0 | ED56: =$G56*EC56 -> 0 | EE56: =EC56/$HM$56 -> 0 | EG56: =$G56*EF56 -> 0 | EH56: =EF56/$HM$56 -> 0 | EJ56: =$G56*EI56 -> 0 | EK56: =EI56/$HM$56 -> 0 | EM56: =$G56*EL56 -> 0 | EN56: =EL56/$HM$56 -> 0 | EP56: =$G56*EO56 -> 0 | EQ56: =EO56/$HM$56 -> 0 | ES56: =$G56*ER56 -> 0 | ET56: =ER56/$HM$56 -> 0 | EV56: =$G56*EU56 -> 0 | EW56: =EU56/$HM$56 -> 0 | EY56: 0 | EZ56: =EX56/$HM$56 -> 0 | FB56: 0 | FC56: =FA56/$HM$56 -> 0 | FE56: =$G56*FD56 -> 0 | FF56: =FD56/$HM$56 -> 0 | FG56: 0 | FH56: =$G56*FG56 -> 0 | FI56: =FG56/$HM$56 -> 0 | FK56: =$G56*FJ56 -> 0 | FL56: =FJ56/$HM$56 -> 0 | FN56: =$G56*FM56 -> 0 | FO56: =FM56/$HM$56 -> 0 | FQ56: =$G56*FP56 -> 0 | FR56: =FP56/$HM$56 -> 0 | FT56: =$G56*FS56 -> 0 | FU56: =FS56/$HM$56 -> 0 | FW56: =$G56*FV56 -> 0 | FX56: =FV56/$HM$56 -> 0 | FZ56: =$G56*FY56 -> 0 | GA56: =FY56/$HM$56 -> 0 | GC56: =$G56*GB56 -> 0 | GD56: =GB56/$HM$56 -> 0 | GF56: =$G56*GE56 -> 0 | GG56: =GE56/$HM$56 -> 0 | GI56: =$G56*GH56 -> 0 | GJ56: =GH56/$HM$56 -> 0 | GL56: =$G56*GK56 -> 0 | GM56: =GK56/$HM$56 -> 0 | GO56: =$G56*GN56 -> 0 | GP56: =GN56/$HM$56 -> 0 | GR56: =$G56*GQ56 -> 0 | GS56: =GQ56/$HM$56 -> 0 | GU56: =$G56*GT56 -> 0 | GV56: =GT56/$HM$56 -> 0 | GX56: =$G56*GW56 -> 0 | GY56: =GW56/$HM$56 -> 0 | HA56: =$G56*GZ56 -> 0 | HB56: =GZ56/$HM$56 -> 0 | HD56: =$G56*HC56 -> 0 | HE56: =HC56/$HM$56 -> 0 | HG56: =$G56*HF56 -> 0 | HH56: =HF56/$HM$56 -> 0 | HJ56: =$G56*HI56 -> 0 | HK56: =HI56/$HM$56 -> 0 | HM56: 0.0672
A57: 3.7.3 | C57: C | D57: Stub/Grebenjača 14/14 cm | E57: column / hip rafter 14/14 cm | F57: m3 | G57: =CENA!G53 -> 0 | H57: 0 | I57: 0 | K57: =$G57*J57 -> 0 | L57: =J57/$HM$57 -> 0 | N57: 0 | O57: =M57/$HM$57 -> 0 | Q57: =$G57*P57 -> 0 | R57: =P57/$HM$57 -> 0 | S57: 0 | T57: =$G57*S57 -> 0 | U57: =S57/$HM$57 -> 0 | W57: =$G57*V57 -> 0 | X57: =V57/$HM$57 -> 0 | Z57: =$G57*Y57 -> 0 | AA57: =Y57/$HM$57 -> 0 | AC57: =$G57*AB57 -> 0 | AD57: =AB57/$HM$57 -> 0 | AF57: =$G57*AE57 -> 0 | AG57: =AE57/$HM$57 -> 0 | AI57: =$G57*AH57 -> 0 | AJ57: =AH57/$HM$57 -> 0 | AL57: =$G57*AK57 -> 0 | AM57: =AK57/$HM$57 -> 0 | AO57: =$G57*AN57 -> 0 | AP57: =AN57/$HM$57 -> 0 | AR57: =$G57*AQ57 -> 0 | AS57: =AQ57/$HM$57 -> 0 | AU57: =$G57*AT57 -> 0 | AV57: =AT57/$HM$57 -> 0 | AX57: =$G57*AW57 -> 0 | AY57: =AW57/$HM$57 -> 0 | BA57: =$G57*AZ57 -> 0 | BB57: =AZ57/$HM$57 -> 0 | BD57: =$G57*BC57 -> 0 | BE57: =BC57/$HM$57 -> 0 | BG57: 0 | BH57: =BF57/$HM$57 -> 0 | BJ57: 0 | BK57: =BI57/$HM$57 -> 0 | BM57: =$G57*BL57 -> 0 | BN57: =BL57/$HM$57 -> 0 | BO57: 0 | BP57: =$G57*BO57 -> 0 | BQ57: =BO57/$HM$57 -> 0 | BS57: =$G57*BR57 -> 0 | BT57: =BR57/$HM$57 -> 0 | BV57: =$G57*BU57 -> 0 | BW57: =BU57/$HM$57 -> 0 | BY57: =$G57*BX57 -> 0 | BZ57: =BX57/$HM$57 -> 0 | CB57: =$G57*CA57 -> 0 | CC57: =CA57/$HM$57 -> 0 | CE57: =$G57*CD57 -> 0 | CF57: =CD57/$HM$57 -> 0 | CH57: =$G57*CG57 -> 0 | CI57: =CG57/$HM$57 -> 0 | CK57: =$G57*CJ57 -> 0 | CL57: =CJ57/$HM$57 -> 0 | CN57: =$G57*CM57 -> 0 | CO57: =CM57/$HM$57 -> 0 | CQ57: =$G57*CP57 -> 0 | CR57: =CP57/$HM$57 -> 0 | CT57: =$G57*CS57 -> 0 | CU57: =CS57/$HM$57 -> 0 | CW57: =$G57*CV57 -> 0 | CX57: =CV57/$HM$57 -> 0 | CZ57: =$G57*CY57 -> 0 | DA57: =CY57/$HM$57 -> 0 | DC57: 0 | DD57: =DB57/$HM$57 -> 0 | DF57: 0 | DG57: =DE57/$HM$57 -> 0 | DI57: =$G57*DH57 -> 0 | DJ57: =DH57/$HM$57 -> 0 | DK57: 0 | DL57: =$G57*DK57 -> 0 | DM57: =DK57/$HM$57 -> 0 | DO57: =$G57*DN57 -> 0 | DP57: =DN57/$HM$57 -> 0 | DR57: =$G57*DQ57 -> 0 | DS57: =DQ57/$HM$57 -> 0 | DU57: =$G57*DT57 -> 0 | DV57: =DT57/$HM$57 -> 0 | DX57: =$G57*DW57 -> 0 | DY57: =DW57/$HM$57 -> 0 | EA57: =$G57*DZ57 -> 0 | EB57: =DZ57/$HM$57 -> 0 | ED57: =$G57*EC57 -> 0 | EE57: =EC57/$HM$57 -> 0 | EG57: =$G57*EF57 -> 0 | EH57: =EF57/$HM$57 -> 0 | EJ57: =$G57*EI57 -> 0 | EK57: =EI57/$HM$57 -> 0 | EM57: =$G57*EL57 -> 0 | EN57: =EL57/$HM$57 -> 0 | EP57: =$G57*EO57 -> 0 | EQ57: =EO57/$HM$57 -> 0 | ES57: =$G57*ER57 -> 0 | ET57: =ER57/$HM$57 -> 0 | EV57: =$G57*EU57 -> 0 | EW57: =EU57/$HM$57 -> 0 | EY57: 0 | EZ57: =EX57/$HM$57 -> 0 | FB57: 0 | FC57: =FA57/$HM$57 -> 0 | FE57: =$G57*FD57 -> 0 | FF57: =FD57/$HM$57 -> 0 | FG57: 0 | FH57: =$G57*FG57 -> 0 | FI57: =FG57/$HM$57 -> 0 | FK57: =$G57*FJ57 -> 0 | FL57: =FJ57/$HM$57 -> 0 | FN57: =$G57*FM57 -> 0 | FO57: =FM57/$HM$57 -> 0 | FQ57: =$G57*FP57 -> 0 | FR57: =FP57/$HM$57 -> 0 | FT57: =$G57*FS57 -> 0 | FU57: =FS57/$HM$57 -> 0 | FW57: =$G57*FV57 -> 0 | FX57: =FV57/$HM$57 -> 0 | FZ57: =$G57*FY57 -> 0 | GA57: =FY57/$HM$57 -> 0 | GC57: =$G57*GB57 -> 0 | GD57: =GB57/$HM$57 -> 0 | GF57: =$G57*GE57 -> 0 | GG57: =GE57/$HM$57 -> 0 | GI57: =$G57*GH57 -> 0 | GJ57: =GH57/$HM$57 -> 0 | GL57: =$G57*GK57 -> 0 | GM57: =GK57/$HM$57 -> 0 | GO57: =$G57*GN57 -> 0 | GP57: =GN57/$HM$57 -> 0 | GR57: =$G57*GQ57 -> 0 | GS57: =GQ57/$HM$57 -> 0 | GU57: =$G57*GT57 -> 0 | GV57: =GT57/$HM$57 -> 0 | GX57: =$G57*GW57 -> 0 | GY57: =GW57/$HM$57 -> 0 | HA57: =$G57*GZ57 -> 0 | HB57: =GZ57/$HM$57 -> 0 | HD57: =$G57*HC57 -> 0 | HE57: =HC57/$HM$57 -> 0 | HG57: =$G57*HF57 -> 0 | HH57: =HF57/$HM$57 -> 0 | HJ57: =$G57*HI57 -> 0 | HK57: =HI57/$HM$57 -> 0 | HM57: 0.0784
A58: 3.7.4 | C58: H | D58: Tavanjače 18/26 cm | E58: attic beams 18/26 cm | F58: m3 | G58: =CENA!G54 -> 0 | H58: 0 | I58: 0 | K58: =$G58*J58 -> 0 | L58: =J58/$HM$58 -> 0 | N58: 0 | O58: =M58/$HM$58 -> 0 | Q58: =$G58*P58 -> 0 | R58: =P58/$HM$58 -> 0 | S58: 0 | T58: =$G58*S58 -> 0 | U58: =S58/$HM$58 -> 0 | W58: =$G58*V58 -> 0 | X58: =V58/$HM$58 -> 0 | Z58: =$G58*Y58 -> 0 | AA58: =Y58/$HM$58 -> 0 | AC58: =$G58*AB58 -> 0 | AD58: =AB58/$HM$58 -> 0 | AF58: =$G58*AE58 -> 0 | AG58: =AE58/$HM$58 -> 0 | AI58: =$G58*AH58 -> 0 | AJ58: =AH58/$HM$58 -> 0 | AL58: =$G58*AK58 -> 0 | AM58: =AK58/$HM$58 -> 0 | AO58: =$G58*AN58 -> 0 | AP58: =AN58/$HM$58 -> 0 | AR58: =$G58*AQ58 -> 0 | AS58: =AQ58/$HM$58 -> 0 | AU58: =$G58*AT58 -> 0 | AV58: =AT58/$HM$58 -> 0 | AX58: =$G58*AW58 -> 0 | AY58: =AW58/$HM$58 -> 0 | BA58: =$G58*AZ58 -> 0 | BB58: =AZ58/$HM$58 -> 0 | BD58: =$G58*BC58 -> 0 | BE58: =BC58/$HM$58 -> 0 | BG58: 0 | BH58: =BF58/$HM$58 -> 0 | BJ58: 0 | BK58: =BI58/$HM$58 -> 0 | BM58: =$G58*BL58 -> 0 | BN58: =BL58/$HM$58 -> 0 | BO58: 0 | BP58: =$G58*BO58 -> 0 | BQ58: =BO58/$HM$58 -> 0 | BS58: =$G58*BR58 -> 0 | BT58: =BR58/$HM$58 -> 0 | BV58: =$G58*BU58 -> 0 | BW58: =BU58/$HM$58 -> 0 | BY58: =$G58*BX58 -> 0 | BZ58: =BX58/$HM$58 -> 0 | CB58: =$G58*CA58 -> 0 | CC58: =CA58/$HM$58 -> 0 | CE58: =$G58*CD58 -> 0 | CF58: =CD58/$HM$58 -> 0 | CH58: =$G58*CG58 -> 0 | CI58: =CG58/$HM$58 -> 0 | CK58: =$G58*CJ58 -> 0 | CL58: =CJ58/$HM$58 -> 0 | CN58: =$G58*CM58 -> 0 | CO58: =CM58/$HM$58 -> 0 | CQ58: =$G58*CP58 -> 0 | CR58: =CP58/$HM$58 -> 0 | CT58: =$G58*CS58 -> 0 | CU58: =CS58/$HM$58 -> 0 | CW58: =$G58*CV58 -> 0 | CX58: =CV58/$HM$58 -> 0 | CZ58: =$G58*CY58 -> 0 | DA58: =CY58/$HM$58 -> 0 | DC58: 0 | DD58: =DB58/$HM$58 -> 0 | DF58: 0 | DG58: =DE58/$HM$58 -> 0 | DI58: =$G58*DH58 -> 0 | DJ58: =DH58/$HM$58 -> 0 | DK58: 0 | DL58: =$G58*DK58 -> 0 | DM58: =DK58/$HM$58 -> 0 | DO58: =$G58*DN58 -> 0 | DP58: =DN58/$HM$58 -> 0 | DR58: =$G58*DQ58 -> 0 | DS58: =DQ58/$HM$58 -> 0 | DU58: =$G58*DT58 -> 0 | DV58: =DT58/$HM$58 -> 0 | DX58: =$G58*DW58 -> 0 | DY58: =DW58/$HM$58 -> 0 | EA58: =$G58*DZ58 -> 0 | EB58: =DZ58/$HM$58 -> 0 | ED58: =$G58*EC58 -> 0 | EE58: =EC58/$HM$58 -> 0 | EG58: =$G58*EF58 -> 0 | EH58: =EF58/$HM$58 -> 0 | EJ58: =$G58*EI58 -> 0 | EK58: =EI58/$HM$58 -> 0 | EM58: =$G58*EL58 -> 0 | EN58: =EL58/$HM$58 -> 0 | EP58: =$G58*EO58 -> 0 | EQ58: =EO58/$HM$58 -> 0 | ES58: =$G58*ER58 -> 0 | ET58: =ER58/$HM$58 -> 0 | EV58: =$G58*EU58 -> 0 | EW58: =EU58/$HM$58 -> 0 | EY58: 0 | EZ58: =EX58/$HM$58 -> 0 | FB58: 0 | FC58: =FA58/$HM$58 -> 0 | FE58: =$G58*FD58 -> 0 | FF58: =FD58/$HM$58 -> 0 | FG58: 0 | FH58: =$G58*FG58 -> 0 | FI58: =FG58/$HM$58 -> 0 | FK58: =$G58*FJ58 -> 0 | FL58: =FJ58/$HM$58 -> 0 | FN58: =$G58*FM58 -> 0 | FO58: =FM58/$HM$58 -> 0 | FQ58: =$G58*FP58 -> 0 | FR58: =FP58/$HM$58 -> 0 | FT58: =$G58*FS58 -> 0 | FU58: =FS58/$HM$58 -> 0 | FW58: =$G58*FV58 -> 0 | FX58: =FV58/$HM$58 -> 0 | FZ58: =$G58*FY58 -> 0 | GA58: =FY58/$HM$58 -> 0 | GC58: =$G58*GB58 -> 0 | GD58: =GB58/$HM$58 -> 0 | GF58: =$G58*GE58 -> 0 | GG58: =GE58/$HM$58 -> 0 | GI58: =$G58*GH58 -> 0 | GJ58: =GH58/$HM$58 -> 0 | GL58: =$G58*GK58 -> 0 | GM58: =GK58/$HM$58 -> 0 | GO58: =$G58*GN58 -> 0 | GP58: =GN58/$HM$58 -> 0 | GR58: =$G58*GQ58 -> 0 | GS58: =GQ58/$HM$58 -> 0 | GU58: =$G58*GT58 -> 0 | GV58: =GT58/$HM$58 -> 0 | GX58: =$G58*GW58 -> 0 | GY58: =GW58/$HM$58 -> 0 | HA58: =$G58*GZ58 -> 0 | HB58: =GZ58/$HM$58 -> 0 | HD58: =$G58*HC58 -> 0 | HE58: =HC58/$HM$58 -> 0 | HG58: =$G58*HF58 -> 0 | HH58: =HF58/$HM$58 -> 0 | HJ58: =$G58*HI58 -> 0 | HK58: =HI58/$HM$58 -> 0 | HM58: 0.1872
A59: 3.8 | B59: K | C59: 8 | D59: Čamova rezana građa različitog preseka dužine 600 cm | E59: Fir lumber of different cross-section length 600 cm | F59: / | G59: / | H59: / | I59: / | J59: / | K59: / | M59: / | N59: / | P59: / | Q59: / | S59: / | T59: / | V59: / | W59: / | Y59: / | Z59: / | AB59: / | AC59: / | AE59: / | AF59: / | AH59: / | AI59: / | AK59: / | AL59: / | AN59: / | AO59: / | AQ59: / | AR59: / | AT59: / | AU59: / | AW59: / | AX59: / | AZ59: / | BA59: / | BC59: / | BD59: / | BF59: / | BG59: / | BI59: / | BJ59: / | BL59: / | BM59: / | BO59: / | BP59: / | BR59: / | BS59: / | BU59: / | BV59: / | BX59: / | BY59: / | CA59: / | CB59: / | CD59: / | CE59: / | CG59: / | CH59: / | CJ59: / | CK59: / | CM59: / | CN59: / | CP59: / | CQ59: / | CS59: / | CT59: / | CV59: / | CW59: / | CY59: / | CZ59: / | DB59: / | DC59: / | DE59: / | DF59: / | DH59: / | DI59: / | DK59: / | DL59: / | DN59: / | DO59: / | DQ59: / | DR59: / | DT59: / | DU59: / | DW59: / | DX59: / | DZ59: / | EA59: / | EC59: / | ED59: / | EF59: / | EG59: / | EI59: / | EJ59: / | EL59: / | EM59: / | EO59: / | EP59: / | ER59: / | ES59: / | EU59: / | EV59: / | EX59: / | EY59: / | FA59: / | FB59: / | FD59: / | FE59: / | FG59: / | FH59: / | FJ59: / | FK59: / | FM59: / | FN59: / | FP59: / | FQ59: / | FS59: / | FT59: / | FV59: / | FW59: / | FY59: / | FZ59: / | GB59: / | GC59: / | GE59: / | GF59: / | GH59: / | GI59: / | GK59: / | GL59: / | GN59: / | GO59: / | GQ59: / | GR59: / | GT59: / | GU59: / | GW59: / | GX59: / | GZ59: / | HA59: / | HC59: / | HD59: / | HF59: / | HG59: / | HI59: / | HJ59: / | HM59: /
A60: 3.8.1 | C60: A | D60: Rog/Venčanica/Raspinjača 10/12 cm | E60: rafters / wall plate / ridge collar 10/12 cm | F60: m3 | G60: =CENA!G56 -> 0 | H60: =J60+M60+P60+S60+V60+Y60+AB60+AE60+AH60+AK60+AN60+AQ60+AZ60+AW60+AT60+BC60+BF60+BI60+BL60+BO60+BR60+BU60+BX60+CA60+CD60+CG60+CJ60+CM60+CP60+CS60+CV60+CY60+DB60+DE60+DH60+DK60+DN60+DQ60+DT60+DW60+DZ60+EC60+EF60+EI60+EL60+EO60+ER60+EU60+EX60+FA60+FD60+FG60+FJ60+FM60+FP60+FS60+FV60+FY60+GB60+GE60+GH60+GK60+GN60+GQ60+GT60+GW60+GZ60+HC60+HF60+HI60 -> 6.1 | I60: =G60*H60 -> 0 | K60: =$G60*J60 -> 0 | L60: =J60/$HM$60 -> 0 | N60: =$G60*M60 -> 0 | O60: =M60/$HM$60 -> 0 | Q60: =$G60*P60 -> 0 | R60: =P60/$HM$60 -> 0 | T60: =$G60*S60 -> 0 | U60: =S60/$HM$60 -> 0 | V60: 0.36 | X60: =V60/$HM$60 -> 5 | Z60: =$G60*Y60 -> 0 | AA60: =Y60/$HM$60 -> 0 | AB60: 3 | AD60: =AB60/$HM$60 -> 42 | AE60: 0.72 | AG60: =AE60/$HM$60 -> 10 | AI60: =$G60*AH60 -> 0 | AJ60: =AH60/$HM$60 -> 0 | AL60: =$G60*AK60 -> 0 | AM60: =AK60/$HM$60 -> 0 | AN60: 2.02 | AO60: =$G60*AN60 -> 0 | AP60: =AN60/$HM$60 -> 28 | AR60: =$G60*AQ60 -> 0 | AS60: =AQ60/$HM$60 -> 0 | AU60: =$G60*AT60 -> 0 | AV60: =AT60/$HM$60 -> 0 | AX60: =$G60*AW60 -> 0 | AY60: =AW60/$HM$60 -> 0 | BA60: =$G60*AZ60 -> 0 | BB60: =AZ60/$HM$60 -> 0 | BD60: =$G60*BC60 -> 0 | BE60: =BC60/$HM$60 -> 0 | BG60: =$G60*BF60 -> 0 | BH60: =BF60/$HM$60 -> 0 | BJ60: =$G60*BI60 -> 0 | BK60: =BI60/$HM$60 -> 0 | BM60: =$G60*BL60 -> 0 | BN60: =BL60/$HM$60 -> 0 | BP60: =$G60*BO60 -> 0 | BQ60: =BO60/$HM$60 -> 0 | BS60: =$G60*BR60 -> 0 | BT60: =BR60/$HM$60 -> 0 | BV60: =$G60*BU60 -> 0 | BW60: =BU60/$HM$60 -> 0 | BY60: =$G60*BX60 -> 0 | BZ60: =BX60/$HM$60 -> 0 | CB60: =$G60*CA60 -> 0 | CC60: =CA60/$HM$60 -> 0 | CE60: =$G60*CD60 -> 0 | CF60: =CD60/$HM$60 -> 0 | CH60: =$G60*CG60 -> 0 | CI60: =CG60/$HM$60 -> 0 | CK60: =$G60*CJ60 -> 0 | CL60: =CJ60/$HM$60 -> 0 | CN60: =$G60*CM60 -> 0 | CO60: =CM60/$HM$60 -> 0 | CQ60: =$G60*CP60 -> 0 | CR60: =CP60/$HM$60 -> 0 | CT60: =$G60*CS60 -> 0 | CU60: =CS60/$HM$60 -> 0 | CW60: =$G60*CV60 -> 0 | CX60: =CV60/$HM$60 -> 0 | CZ60: =$G60*CY60 -> 0 | DA60: =CY60/$HM$60 -> 0 | DC60: =$G60*DB60 -> 0 | DD60: =DB60/$HM$60 -> 0 | DF60: =$G60*DE60 -> 0 | DG60: =DE60/$HM$60 -> 0 | DI60: =$G60*DH60 -> 0 | DJ60: =DH60/$HM$60 -> 0 | DL60: =$G60*DK60 -> 0 | DM60: =DK60/$HM$60 -> 0 | DO60: =$G60*DN60 -> 0 | DP60: =DN60/$HM$60 -> 0 | DR60: =$G60*DQ60 -> 0 | DS60: =DQ60/$HM$60 -> 0 | DU60: =$G60*DT60 -> 0 | DV60: =DT60/$HM$60 -> 0 | DX60: =$G60*DW60 -> 0 | DY60: =DW60/$HM$60 -> 0 | EA60: =$G60*DZ60 -> 0 | EB60: =DZ60/$HM$60 -> 0 | ED60: =$G60*EC60 -> 0 | EE60: =EC60/$HM$60 -> 0 | EG60: =$G60*EF60 -> 0 | EH60: =EF60/$HM$60 -> 0 | EJ60: =$G60*EI60 -> 0 | EK60: =EI60/$HM$60 -> 0 | EM60: =$G60*EL60 -> 0 | EN60: =EL60/$HM$60 -> 0 | EP60: =$G60*EO60 -> 0 | EQ60: =EO60/$HM$60 -> 0 | ES60: =$G60*ER60 -> 0 | ET60: =ER60/$HM$60 -> 0 | EV60: =$G60*EU60 -> 0 | EW60: =EU60/$HM$60 -> 0 | EY60: =$G60*EX60 -> 0 | EZ60: =EX60/$HM$60 -> 0 | FB60: =$G60*FA60 -> 0 | FC60: =FA60/$HM$60 -> 0 | FE60: =$G60*FD60 -> 0 | FF60: =FD60/$HM$60 -> 0 | FH60: =$G60*FG60 -> 0 | FI60: =FG60/$HM$60 -> 0 | FK60: =$G60*FJ60 -> 0 | FL60: =FJ60/$HM$60 -> 0 | FN60: =$G60*FM60 -> 0 | FO60: =FM60/$HM$60 -> 0 | FQ60: =$G60*FP60 -> 0 | FR60: =FP60/$HM$60 -> 0 | FT60: =$G60*FS60 -> 0 | FU60: =FS60/$HM$60 -> 0 | FW60: =$G60*FV60 -> 0 | FX60: =FV60/$HM$60 -> 0 | FZ60: =$G60*FY60 -> 0 | GA60: =FY60/$HM$60 -> 0 | GC60: =$G60*GB60 -> 0 | GD60: =GB60/$HM$60 -> 0 | GF60: =$G60*GE60 -> 0 | GG60: =GE60/$HM$60 -> 0 | GI60: =$G60*GH60 -> 0 | GJ60: =GH60/$HM$60 -> 0 | GL60: =$G60*GK60 -> 0 | GM60: =GK60/$HM$60 -> 0 | GO60: =$G60*GN60 -> 0 | GP60: =GN60/$HM$60 -> 0 | GR60: =$G60*GQ60 -> 0 | GS60: =GQ60/$HM$60 -> 0 | GU60: =$G60*GT60 -> 0 | GV60: =GT60/$HM$60 -> 0 | GX60: =$G60*GW60 -> 0 | GY60: =GW60/$HM$60 -> 0 | HA60: =$G60*GZ60 -> 0 | HB60: =GZ60/$HM$60 -> 0 | HD60: =$G60*HC60 -> 0 | HE60: =HC60/$HM$60 -> 0 | HG60: =$G60*HF60 -> 0 | HH60: =HF60/$HM$60 -> 0 | HJ60: =$G60*HI60 -> 0 | HK60: =HI60/$HM$60 -> 0 | HM60: 0.072
A61: 3.8.2 | C61: B | D61: Rog/Stub/Grebenjača/Slemenja. 12/14 cm | E61: column / pile / hip rafter / ridge 12/14 cm | F61: m3 | G61: =CENA!G57 -> 0 | H61: 2.4 | I61: 0 | J61: 2 | L61: =J61/$HM$61 -> 20 | N61: 0 | O61: =M61/$HM$61 -> 0 | Q61: 0 | R61: =P61/$HM$61 -> 0 | T61: 0 | U61: =S61/$HM$61 -> 0 | W61: =$G61*V61 -> 0 | X61: =V61/$HM$61 -> 0 | Z61: 0 | AA61: =Y61/$HM$61 -> 0 | AC61: =$G61*AB61 -> 0 | AD61: =AB61/$HM$61 -> 0 | AF61: =$G61*AE61 -> 0 | AG61: =AE61/$HM$61 -> 0 | AI61: 0 | AJ61: =AH61/$HM$61 -> 0 | AL61: 0 | AM61: =AK61/$HM$61 -> 0 | AN61: 0.4 | AO61: 0 | AP61: =AN61/$HM$61 -> 4 | AR61: 0 | AS61: =AQ61/$HM$61 -> 0 | AU61: 0 | AV61: =AT61/$HM$61 -> 0 | AX61: 0 | AY61: =AW61/$HM$61 -> 0 | BA61: 0 | BB61: =AZ61/$HM$61 -> 0 | BD61: 0 | BE61: =BC61/$HM$61 -> 0 | BG61: 0 | BH61: =BF61/$HM$61 -> 0 | BJ61: 0 | BK61: =BI61/$HM$61 -> 0 | BM61: 0 | BN61: =BL61/$HM$61 -> 0 | BP61: 0 | BQ61: =BO61/$HM$61 -> 0 | BS61: 0 | BT61: =BR61/$HM$61 -> 0 | BV61: 0 | BW61: =BU61/$HM$61 -> 0 | BY61: 0 | BZ61: =BX61/$HM$61 -> 0 | CB61: 0 | CC61: =CA61/$HM$61 -> 0 | CE61: 0 | CF61: =CD61/$HM$61 -> 0 | CH61: 0 | CI61: =CG61/$HM$61 -> 0 | CK61: 0 | CL61: =CJ61/$HM$61 -> 0 | CN61: 0 | CO61: =CM61/$HM$61 -> 0 | CQ61: 0 | CR61: =CP61/$HM$61 -> 0 | CT61: 0 | CU61: =CS61/$HM$61 -> 0 | CW61: 0 | CX61: =CV61/$HM$61 -> 0 | CZ61: 0 | DA61: =CY61/$HM$61 -> 0 | DC61: 0 | DD61: =DB61/$HM$61 -> 0 | DF61: 0 | DG61: =DE61/$HM$61 -> 0 | DI61: 0 | DJ61: =DH61/$HM$61 -> 0 | DL61: 0 | DM61: =DK61/$HM$61 -> 0 | DO61: 0 | DP61: =DN61/$HM$61 -> 0 | DR61: 0 | DS61: =DQ61/$HM$61 -> 0 | DU61: 0 | DV61: =DT61/$HM$61 -> 0 | DX61: 0 | DY61: =DW61/$HM$61 -> 0 | EA61: 0 | EB61: =DZ61/$HM$61 -> 0 | ED61: 0 | EE61: =EC61/$HM$61 -> 0 | EG61: 0 | EH61: =EF61/$HM$61 -> 0 | EJ61: 0 | EK61: =EI61/$HM$61 -> 0 | EM61: 0 | EN61: =EL61/$HM$61 -> 0 | EP61: 0 | EQ61: =EO61/$HM$61 -> 0 | ES61: 0 | ET61: =ER61/$HM$61 -> 0 | EV61: 0 | EW61: =EU61/$HM$61 -> 0 | EY61: 0 | EZ61: =EX61/$HM$61 -> 0 | FB61: 0 | FC61: =FA61/$HM$61 -> 0 | FE61: 0 | FF61: =FD61/$HM$61 -> 0 | FH61: 0 | FI61: =FG61/$HM$61 -> 0 | FK61: 0 | FL61: =FJ61/$HM$61 -> 0 | FN61: 0 | FO61: =FM61/$HM$61 -> 0 | FQ61: 0 | FR61: =FP61/$HM$61 -> 0 | FT61: 0 | FU61: =FS61/$HM$61 -> 0 | FW61: 0 | FX61: =FV61/$HM$61 -> 0 | FZ61: 0 | GA61: =FY61/$HM$61 -> 0 | GC61: 0 | GD61: =GB61/$HM$61 -> 0 | GF61: 0 | GG61: =GE61/$HM$61 -> 0 | GI61: 0 | GJ61: =GH61/$HM$61 -> 0 | GL61: 0 | GM61: =GK61/$HM$61 -> 0 | GO61: 0 | GP61: =GN61/$HM$61 -> 0 | GR61: 0 | GS61: =GQ61/$HM$61 -> 0 | GU61: 0 | GV61: =GT61/$HM$61 -> 0 | GX61: 0 | GY61: =GW61/$HM$61 -> 0 | HA61: 0 | HB61: =GZ61/$HM$61 -> 0 | HD61: 0 | HE61: =HC61/$HM$61 -> 0 | HG61: 0 | HH61: =HF61/$HM$61 -> 0 | HJ61: 0 | HK61: =HI61/$HM$61 -> 0 | HM61: 0.1008
A62: 3.8.3 | C62: C | D62: Stub/Grebenjača 14/14 cm | E62: column / hip rafter 14/14 cm | F62: m3 | G62: =CENA!G58 -> 0 | H62: 0 | I62: 0 | K62: =$G62*J62 -> 0 | L62: =J62/$HM$62 -> 0 | N62: 0 | O62: =M62/$HM$62 -> 0 | Q62: 0 | R62: =P62/$HM$62 -> 0 | T62: 0 | U62: =S62/$HM$62 -> 0 | W62: 0 | X62: =V62/$HM$62 -> 0 | Z62: 0 | AA62: =Y62/$HM$62 -> 0 | AC62: 0 | AD62: =AB62/$HM$62 -> 0 | AF62: 0 | AG62: =AE62/$HM$62 -> 0 | AI62: 0 | AJ62: =AH62/$HM$62 -> 0 | AL62: 0 | AM62: =AK62/$HM$62 -> 0 | AO62: 0 | AP62: =AN62/$HM$62 -> 0 | AR62: 0 | AS62: =AQ62/$HM$62 -> 0 | AU62: 0 | AV62: =AT62/$HM$62 -> 0 | AX62: 0 | AY62: =AW62/$HM$62 -> 0 | BA62: 0 | BB62: =AZ62/$HM$62 -> 0 | BD62: 0 | BE62: =BC62/$HM$62 -> 0 | BG62: 0 | BH62: =BF62/$HM$62 -> 0 | BJ62: 0 | BK62: =BI62/$HM$62 -> 0 | BM62: 0 | BN62: =BL62/$HM$62 -> 0 | BP62: 0 | BQ62: =BO62/$HM$62 -> 0 | BS62: 0 | BT62: =BR62/$HM$62 -> 0 | BV62: 0 | BW62: =BU62/$HM$62 -> 0 | BY62: 0 | BZ62: =BX62/$HM$62 -> 0 | CB62: 0 | CC62: =CA62/$HM$62 -> 0 | CE62: 0 | CF62: =CD62/$HM$62 -> 0 | CH62: 0 | CI62: =CG62/$HM$62 -> 0 | CK62: 0 | CL62: =CJ62/$HM$62 -> 0 | CN62: 0 | CO62: =CM62/$HM$62 -> 0 | CQ62: 0 | CR62: =CP62/$HM$62 -> 0 | CT62: 0 | CU62: =CS62/$HM$62 -> 0 | CW62: 0 | CX62: =CV62/$HM$62 -> 0 | CZ62: 0 | DA62: =CY62/$HM$62 -> 0 | DC62: 0 | DD62: =DB62/$HM$62 -> 0 | DF62: 0 | DG62: =DE62/$HM$62 -> 0 | DI62: 0 | DJ62: =DH62/$HM$62 -> 0 | DL62: 0 | DM62: =DK62/$HM$62 -> 0 | DO62: 0 | DP62: =DN62/$HM$62 -> 0 | DR62: 0 | DS62: =DQ62/$HM$62 -> 0 | DU62: 0 | DV62: =DT62/$HM$62 -> 0 | DX62: 0 | DY62: =DW62/$HM$62 -> 0 | EA62: 0 | EB62: =DZ62/$HM$62 -> 0 | ED62: 0 | EE62: =EC62/$HM$62 -> 0 | EG62: 0 | EH62: =EF62/$HM$62 -> 0 | EJ62: 0 | EK62: =EI62/$HM$62 -> 0 | EM62: 0 | EN62: =EL62/$HM$62 -> 0 | EP62: 0 | EQ62: =EO62/$HM$62 -> 0 | ES62: 0 | ET62: =ER62/$HM$62 -> 0 | EV62: 0 | EW62: =EU62/$HM$62 -> 0 | EY62: 0 | EZ62: =EX62/$HM$62 -> 0 | FB62: 0 | FC62: =FA62/$HM$62 -> 0 | FE62: 0 | FF62: =FD62/$HM$62 -> 0 | FH62: 0 | FI62: =FG62/$HM$62 -> 0 | FK62: 0 | FL62: =FJ62/$HM$62 -> 0 | FN62: 0 | FO62: =FM62/$HM$62 -> 0 | FQ62: 0 | FR62: =FP62/$HM$62 -> 0 | FT62: 0 | FU62: =FS62/$HM$62 -> 0 | FW62: 0 | FX62: =FV62/$HM$62 -> 0 | FZ62: 0 | GA62: =FY62/$HM$62 -> 0 | GC62: 0 | GD62: =GB62/$HM$62 -> 0 | GF62: 0 | GG62: =GE62/$HM$62 -> 0 | GI62: 0 | GJ62: =GH62/$HM$62 -> 0 | GL62: 0 | GM62: =GK62/$HM$62 -> 0 | GO62: 0 | GP62: =GN62/$HM$62 -> 0 | GR62: 0 | GS62: =GQ62/$HM$62 -> 0 | GU62: 0 | GV62: =GT62/$HM$62 -> 0 | GX62: 0 | GY62: =GW62/$HM$62 -> 0 | HA62: 0 | HB62: =GZ62/$HM$62 -> 0 | HD62: 0 | HE62: =HC62/$HM$62 -> 0 | HG62: 0 | HH62: =HF62/$HM$62 -> 0 | HJ62: 0 | HK62: =HI62/$HM$62 -> 0 | HM62: 0.1176
A63: 3.8.4 | C63: D | D63: Rožnjača 14/16 cm | E63: Purlin 14/16 cm | F63: m3 | G63: =CENA!G59 -> 0 | H63: 0 | I63: 0 | K63: =$G63*J63 -> 0 | L63: =J63/$HM$63 -> 0 | N63: 0 | O63: =M63/$HM$63 -> 0 | Q63: 0 | R63: =P63/$HM$63 -> 0 | T63: 0 | U63: =S63/$HM$63 -> 0 | W63: 0 | X63: =V63/$HM$63 -> 0 | Z63: 0 | AA63: =Y63/$HM$63 -> 0 | AC63: 0 | AD63: =AB63/$HM$63 -> 0 | AF63: 0 | AG63: =AE63/$HM$63 -> 0 | AI63: 0 | AJ63: =AH63/$HM$63 -> 0 | AL63: 0 | AM63: =AK63/$HM$63 -> 0 | AO63: 0 | AP63: =AN63/$HM$63 -> 0 | AR63: 0 | AS63: =AQ63/$HM$63 -> 0 | AU63: 0 | AV63: =AT63/$HM$63 -> 0 | AX63: 0 | AY63: =AW63/$HM$63 -> 0 | BA63: 0 | BB63: =AZ63/$HM$63 -> 0 | BD63: 0 | BE63: =BC63/$HM$63 -> 0 | BG63: 0 | BH63: =BF63/$HM$63 -> 0 | BJ63: 0 | BK63: =BI63/$HM$63 -> 0 | BM63: 0 | BN63: =BL63/$HM$63 -> 0 | BP63: 0 | BQ63: =BO63/$HM$63 -> 0 | BS63: 0 | BT63: =BR63/$HM$63 -> 0 | BV63: 0 | BW63: =BU63/$HM$63 -> 0 | BY63: 0 | BZ63: =BX63/$HM$63 -> 0 | CB63: 0 | CC63: =CA63/$HM$63 -> 0 | CE63: 0 | CF63: =CD63/$HM$63 -> 0 | CH63: 0 | CI63: =CG63/$HM$63 -> 0 | CK63: 0 | CL63: =CJ63/$HM$63 -> 0 | CN63: 0 | CO63: =CM63/$HM$63 -> 0 | CQ63: 0 | CR63: =CP63/$HM$63 -> 0 | CT63: 0 | CU63: =CS63/$HM$63 -> 0 | CW63: 0 | CX63: =CV63/$HM$63 -> 0 | CZ63: 0 | DA63: =CY63/$HM$63 -> 0 | DC63: 0 | DD63: =DB63/$HM$63 -> 0 | DF63: 0 | DG63: =DE63/$HM$63 -> 0 | DI63: 0 | DJ63: =DH63/$HM$63 -> 0 | DL63: 0 | DM63: =DK63/$HM$63 -> 0 | DO63: 0 | DP63: =DN63/$HM$63 -> 0 | DR63: 0 | DS63: =DQ63/$HM$63 -> 0 | DU63: 0 | DV63: =DT63/$HM$63 -> 0 | DX63: 0 | DY63: =DW63/$HM$63 -> 0 | EA63: 0 | EB63: =DZ63/$HM$63 -> 0 | ED63: 0 | EE63: =EC63/$HM$63 -> 0 | EG63: 0 | EH63: =EF63/$HM$63 -> 0 | EJ63: 0 | EK63: =EI63/$HM$63 -> 0 | EM63: 0 | EN63: =EL63/$HM$63 -> 0 | EP63: 0 | EQ63: =EO63/$HM$63 -> 0 | ES63: 0 | ET63: =ER63/$HM$63 -> 0 | EV63: 0 | EW63: =EU63/$HM$63 -> 0 | EY63: 0 | EZ63: =EX63/$HM$63 -> 0 | FB63: 0 | FC63: =FA63/$HM$63 -> 0 | FE63: 0 | FF63: =FD63/$HM$63 -> 0 | FH63: 0 | FI63: =FG63/$HM$63 -> 0 | FK63: 0 | FL63: =FJ63/$HM$63 -> 0 | FN63: 0 | FO63: =FM63/$HM$63 -> 0 | FQ63: 0 | FR63: =FP63/$HM$63 -> 0 | FT63: 0 | FU63: =FS63/$HM$63 -> 0 | FW63: 0 | FX63: =FV63/$HM$63 -> 0 | FZ63: 0 | GA63: =FY63/$HM$63 -> 0 | GC63: 0 | GD63: =GB63/$HM$63 -> 0 | GF63: 0 | GG63: =GE63/$HM$63 -> 0 | GI63: 0 | GJ63: =GH63/$HM$63 -> 0 | GL63: 0 | GM63: =GK63/$HM$63 -> 0 | GO63: 0 | GP63: =GN63/$HM$63 -> 0 | GR63: 0 | GS63: =GQ63/$HM$63 -> 0 | GU63: 0 | GV63: =GT63/$HM$63 -> 0 | GX63: 0 | GY63: =GW63/$HM$63 -> 0 | HA63: 0 | HB63: =GZ63/$HM$63 -> 0 | HD63: 0 | HE63: =HC63/$HM$63 -> 0 | HG63: 0 | HH63: =HF63/$HM$63 -> 0 | HJ63: 0 | HK63: =HI63/$HM$63 -> 0 | HM63: 0.1344
A64: 3.8.5 | C64: E | D64: Kosnik/Pajanta 10/10 cm | E64: Strut 10/10 cm | F64: m3 | G64: =CENA!G60 -> 0 | H64: 0 | I64: 0 | K64: =$G64*J64 -> 0 | L64: =J64/$HM$64 -> 0 | N64: 0 | O64: =M64/$HM$64 -> 0 | Q64: 0 | R64: =P64/$HM$64 -> 0 | T64: 0 | U64: =S64/$HM$64 -> 0 | W64: 0 | X64: =V64/$HM$64 -> 0 | Z64: 0 | AA64: =Y64/$HM$64 -> 0 | AC64: 0 | AD64: =AB64/$HM$64 -> 0 | AF64: 0 | AG64: =AE64/$HM$64 -> 0 | AI64: 0 | AJ64: =AH64/$HM$64 -> 0 | AL64: 0 | AM64: =AK64/$HM$64 -> 0 | AO64: 0 | AP64: =AN64/$HM$64 -> 0 | AR64: 0 | AS64: =AQ64/$HM$64 -> 0 | AU64: 0 | AV64: =AT64/$HM$64 -> 0 | AX64: 0 | AY64: =AW64/$HM$64 -> 0 | BA64: 0 | BB64: =AZ64/$HM$64 -> 0 | BD64: 0 | BE64: =BC64/$HM$64 -> 0 | BG64: 0 | BH64: =BF64/$HM$64 -> 0 | BJ64: 0 | BK64: =BI64/$HM$64 -> 0 | BM64: 0 | BN64: =BL64/$HM$64 -> 0 | BP64: 0 | BQ64: =BO64/$HM$64 -> 0 | BS64: 0 | BT64: =BR64/$HM$64 -> 0 | BV64: 0 | BW64: =BU64/$HM$64 -> 0 | BY64: 0 | BZ64: =BX64/$HM$64 -> 0 | CB64: 0 | CC64: =CA64/$HM$64 -> 0 | CE64: 0 | CF64: =CD64/$HM$64 -> 0 | CH64: 0 | CI64: =CG64/$HM$64 -> 0 | CK64: 0 | CL64: =CJ64/$HM$64 -> 0 | CN64: 0 | CO64: =CM64/$HM$64 -> 0 | CQ64: 0 | CR64: =CP64/$HM$64 -> 0 | CT64: 0 | CU64: =CS64/$HM$64 -> 0 | CW64: 0 | CX64: =CV64/$HM$64 -> 0 | CZ64: 0 | DA64: =CY64/$HM$64 -> 0 | DC64: 0 | DD64: =DB64/$HM$64 -> 0 | DF64: 0 | DG64: =DE64/$HM$64 -> 0 | DI64: 0 | DJ64: =DH64/$HM$64 -> 0 | DL64: 0 | DM64: =DK64/$HM$64 -> 0 | DO64: 0 | DP64: =DN64/$HM$64 -> 0 | DR64: 0 | DS64: =DQ64/$HM$64 -> 0 | DU64: 0 | DV64: =DT64/$HM$64 -> 0 | DX64: 0 | DY64: =DW64/$HM$64 -> 0 | EA64: 0 | EB64: =DZ64/$HM$64 -> 0 | ED64: 0 | EE64: =EC64/$HM$64 -> 0 | EG64: 0 | EH64: =EF64/$HM$64 -> 0 | EJ64: 0 | EK64: =EI64/$HM$64 -> 0 | EM64: 0 | EN64: =EL64/$HM$64 -> 0 | EP64: 0 | EQ64: =EO64/$HM$64 -> 0 | ES64: 0 | ET64: =ER64/$HM$64 -> 0 | EV64: 0 | EW64: =EU64/$HM$64 -> 0 | EY64: 0 | EZ64: =EX64/$HM$64 -> 0 | FB64: 0 | FC64: =FA64/$HM$64 -> 0 | FE64: 0 | FF64: =FD64/$HM$64 -> 0 | FH64: 0 | FI64: =FG64/$HM$64 -> 0 | FK64: 0 | FL64: =FJ64/$HM$64 -> 0 | FN64: 0 | FO64: =FM64/$HM$64 -> 0 | FQ64: 0 | FR64: =FP64/$HM$64 -> 0 | FT64: 0 | FU64: =FS64/$HM$64 -> 0 | FW64: 0 | FX64: =FV64/$HM$64 -> 0 | FZ64: 0 | GA64: =FY64/$HM$64 -> 0 | GC64: 0 | GD64: =GB64/$HM$64 -> 0 | GF64: 0 | GG64: =GE64/$HM$64 -> 0 | GI64: 0 | GJ64: =GH64/$HM$64 -> 0 | GL64: 0 | GM64: =GK64/$HM$64 -> 0 | GO64: 0 | GP64: =GN64/$HM$64 -> 0 | GR64: 0 | GS64: =GQ64/$HM$64 -> 0 | GU64: 0 | GV64: =GT64/$HM$64 -> 0 | GX64: 0 | GY64: =GW64/$HM$64 -> 0 | HA64: 0 | HB64: =GZ64/$HM$64 -> 0 | HD64: 0 | HE64: =HC64/$HM$64 -> 0 | HG64: 0 | HH64: =HF64/$HM$64 -> 0 | HJ64: 0 | HK64: =HI64/$HM$64 -> 0 | HM64: 0.06
A65: 3.8.6 | C65: F | D65: Klešta 6/12 cm | E65: Collar tie 6/12 cm | F65: m3 | G65: =CENA!G61 -> 0 | H65: 0 | I65: 0 | K65: =$G65*J65 -> 0 | L65: =J65/$HM$65 -> 0 | N65: 0 | O65: =M65/$HM$65 -> 0 | Q65: 0 | R65: =P65/$HM$65 -> 0 | T65: 0 | U65: =S65/$HM$65 -> 0 | W65: 0 | X65: =V65/$HM$65 -> 0 | Z65: 0 | AA65: =Y65/$HM$65 -> 0 | AC65: 0 | AD65: =AB65/$HM$65 -> 0 | AF65: 0 | AG65: =AE65/$HM$65 -> 0 | AI65: 0 | AJ65: =AH65/$HM$65 -> 0 | AL65: 0 | AM65: =AK65/$HM$65 -> 0 | AO65: 0 | AP65: =AN65/$HM$65 -> 0 | AR65: 0 | AS65: =AQ65/$HM$65 -> 0 | AU65: 0 | AV65: =AT65/$HM$65 -> 0 | AX65: 0 | AY65: =AW65/$HM$65 -> 0 | BA65: 0 | BB65: =AZ65/$HM$65 -> 0 | BD65: 0 | BE65: =BC65/$HM$65 -> 0 | BG65: 0 | BH65: =BF65/$HM$65 -> 0 | BJ65: 0 | BK65: =BI65/$HM$65 -> 0 | BM65: 0 | BN65: =BL65/$HM$65 -> 0 | BP65: 0 | BQ65: =BO65/$HM$65 -> 0 | BS65: 0 | BT65: =BR65/$HM$65 -> 0 | BV65: 0 | BW65: =BU65/$HM$65 -> 0 | BY65: 0 | BZ65: =BX65/$HM$65 -> 0 | CB65: 0 | CC65: =CA65/$HM$65 -> 0 | CE65: 0 | CF65: =CD65/$HM$65 -> 0 | CH65: 0 | CI65: =CG65/$HM$65 -> 0 | CK65: 0 | CL65: =CJ65/$HM$65 -> 0 | CN65: 0 | CO65: =CM65/$HM$65 -> 0 | CQ65: 0 | CR65: =CP65/$HM$65 -> 0 | CT65: 0 | CU65: =CS65/$HM$65 -> 0 | CW65: 0 | CX65: =CV65/$HM$65 -> 0 | CZ65: 0 | DA65: =CY65/$HM$65 -> 0 | DC65: 0 | DD65: =DB65/$HM$65 -> 0 | DF65: 0 | DG65: =DE65/$HM$65 -> 0 | DI65: 0 | DJ65: =DH65/$HM$65 -> 0 | DL65: 0 | DM65: =DK65/$HM$65 -> 0 | DO65: 0 | DP65: =DN65/$HM$65 -> 0 | DR65: 0 | DS65: =DQ65/$HM$65 -> 0 | DU65: 0 | DV65: =DT65/$HM$65 -> 0 | DX65: 0 | DY65: =DW65/$HM$65 -> 0 | EA65: 0 | EB65: =DZ65/$HM$65 -> 0 | ED65: 0 | EE65: =EC65/$HM$65 -> 0 | EG65: 0 | EH65: =EF65/$HM$65 -> 0 | EJ65: 0 | EK65: =EI65/$HM$65 -> 0 | EM65: 0 | EN65: =EL65/$HM$65 -> 0 | EP65: 0 | EQ65: =EO65/$HM$65 -> 0 | ES65: 0 | ET65: =ER65/$HM$65 -> 0 | EV65: 0 | EW65: =EU65/$HM$65 -> 0 | EY65: 0 | EZ65: =EX65/$HM$65 -> 0 | FB65: 0 | FC65: =FA65/$HM$65 -> 0 | FE65: 0 | FF65: =FD65/$HM$65 -> 0 | FH65: 0 | FI65: =FG65/$HM$65 -> 0 | FK65: 0 | FL65: =FJ65/$HM$65 -> 0 | FN65: 0 | FO65: =FM65/$HM$65 -> 0 | FQ65: 0 | FR65: =FP65/$HM$65 -> 0 | FT65: 0 | FU65: =FS65/$HM$65 -> 0 | FW65: 0 | FX65: =FV65/$HM$65 -> 0 | FZ65: 0 | GA65: =FY65/$HM$65 -> 0 | GC65: 0 | GD65: =GB65/$HM$65 -> 0 | GF65: 0 | GG65: =GE65/$HM$65 -> 0 | GI65: 0 | GJ65: =GH65/$HM$65 -> 0 | GL65: 0 | GM65: =GK65/$HM$65 -> 0 | GO65: 0 | GP65: =GN65/$HM$65 -> 0 | GR65: 0 | GS65: =GQ65/$HM$65 -> 0 | GU65: 0 | GV65: =GT65/$HM$65 -> 0 | GX65: 0 | GY65: =GW65/$HM$65 -> 0 | HA65: 0 | HB65: =GZ65/$HM$65 -> 0 | HD65: 0 | HE65: =HC65/$HM$65 -> 0 | HG65: 0 | HH65: =HF65/$HM$65 -> 0 | HJ65: 0 | HK65: =HI65/$HM$65 -> 0 | HM65: 0.0432
A66: 3.8.7 | C66: G | D66: Krovna štafla 5/8 cm | E66: Roof battens 5/8 cm | F66: m3 | G66: =CENA!G62 -> 0 | H66: 0.32 | I66: 0 | K66: =$G66*J66 -> 0 | L66: =J66/$HM$66 -> 0 | N66: 0 | O66: =M66/$HM$66 -> 0 | Q66: 0 | R66: =P66/$HM$66 -> 0 | T66: 0 | U66: =S66/$HM$66 -> 0 | W66: 0 | X66: =V66/$HM$66 -> 0 | Z66: 0 | AA66: =Y66/$HM$66 -> 0 | AB66: 0.08 | AD66: =AB66/$HM$66 -> 3 | AE66: 0.24 | AG66: =AE66/$HM$66 -> 10 | AI66: 0 | AJ66: =AH66/$HM$66 -> 0 | AL66: 0 | AM66: =AK66/$HM$66 -> 0 | AO66: 0 | AP66: =AN66/$HM$66 -> 0 | AR66: 0 | AS66: =AQ66/$HM$66 -> 0 | AU66: 0 | AV66: =AT66/$HM$66 -> 0 | AX66: 0 | AY66: =AW66/$HM$66 -> 0 | BA66: 0 | BB66: =AZ66/$HM$66 -> 0 | BD66: 0 | BE66: =BC66/$HM$66 -> 0 | BG66: 0 | BH66: =BF66/$HM$66 -> 0 | BJ66: 0 | BK66: =BI66/$HM$66 -> 0 | BM66: 0 | BN66: =BL66/$HM$66 -> 0 | BP66: 0 | BQ66: =BO66/$HM$66 -> 0 | BS66: 0 | BT66: =BR66/$HM$66 -> 0 | BV66: 0 | BW66: =BU66/$HM$66 -> 0 | BY66: 0 | BZ66: =BX66/$HM$66 -> 0 | CB66: 0 | CC66: =CA66/$HM$66 -> 0 | CE66: 0 | CF66: =CD66/$HM$66 -> 0 | CH66: 0 | CI66: =CG66/$HM$66 -> 0 | CK66: 0 | CL66: =CJ66/$HM$66 -> 0 | CN66: 0 | CO66: =CM66/$HM$66 -> 0 | CQ66: 0 | CR66: =CP66/$HM$66 -> 0 | CT66: 0 | CU66: =CS66/$HM$66 -> 0 | CW66: 0 | CX66: =CV66/$HM$66 -> 0 | CZ66: 0 | DA66: =CY66/$HM$66 -> 0 | DC66: 0 | DD66: =DB66/$HM$66 -> 0 | DF66: 0 | DG66: =DE66/$HM$66 -> 0 | DI66: 0 | DJ66: =DH66/$HM$66 -> 0 | DL66: 0 | DM66: =DK66/$HM$66 -> 0 | DO66: 0 | DP66: =DN66/$HM$66 -> 0 | DR66: 0 | DS66: =DQ66/$HM$66 -> 0 | DU66: 0 | DV66: =DT66/$HM$66 -> 0 | DX66: 0 | DY66: =DW66/$HM$66 -> 0 | EA66: 0 | EB66: =DZ66/$HM$66 -> 0 | ED66: 0 | EE66: =EC66/$HM$66 -> 0 | EG66: 0 | EH66: =EF66/$HM$66 -> 0 | EJ66: 0 | EK66: =EI66/$HM$66 -> 0 | EM66: 0 | EN66: =EL66/$HM$66 -> 0 | EP66: 0 | EQ66: =EO66/$HM$66 -> 0 | ES66: 0 | ET66: =ER66/$HM$66 -> 0 | EV66: 0 | EW66: =EU66/$HM$66 -> 0 | EY66: 0 | EZ66: =EX66/$HM$66 -> 0 | FB66: 0 | FC66: =FA66/$HM$66 -> 0 | FE66: 0 | FF66: =FD66/$HM$66 -> 0 | FH66: 0 | FI66: =FG66/$HM$66 -> 0 | FK66: 0 | FL66: =FJ66/$HM$66 -> 0 | FN66: 0 | FO66: =FM66/$HM$66 -> 0 | FQ66: 0 | FR66: =FP66/$HM$66 -> 0 | FT66: 0 | FU66: =FS66/$HM$66 -> 0 | FW66: 0 | FX66: =FV66/$HM$66 -> 0 | FZ66: 0 | GA66: =FY66/$HM$66 -> 0 | GC66: 0 | GD66: =GB66/$HM$66 -> 0 | GF66: 0 | GG66: =GE66/$HM$66 -> 0 | GI66: 0 | GJ66: =GH66/$HM$66 -> 0 | GL66: 0 | GM66: =GK66/$HM$66 -> 0 | GO66: 0 | GP66: =GN66/$HM$66 -> 0 | GR66: 0 | GS66: =GQ66/$HM$66 -> 0 | GU66: 0 | GV66: =GT66/$HM$66 -> 0 | GX66: 0 | GY66: =GW66/$HM$66 -> 0 | HA66: 0 | HB66: =GZ66/$HM$66 -> 0 | HD66: 0 | HE66: =HC66/$HM$66 -> 0 | HG66: 0 | HH66: =HF66/$HM$66 -> 0 | HJ66: 0 | HK66: =HI66/$HM$66 -> 0 | HM66: 0.024
A67: 3.8.8 | C67: H | D67: Tavanjače 18/26 cm | E67: attic beams 18/26 cm | F67: m3 | G67: =CENA!G63 -> 0 | H67: 0 | I67: 0 | K67: =$G67*J67 -> 0 | L67: =J67/$HM$67 -> 0 | N67: 0 | O67: =M67/$HM$67 -> 0 | Q67: 0 | R67: =P67/$HM$67 -> 0 | T67: 0 | U67: =S67/$HM$67 -> 0 | W67: 0 | X67: =V67/$HM$67 -> 0 | Z67: 0 | AA67: =Y67/$HM$67 -> 0 | AC67: 0 | AD67: =AB67/$HM$67 -> 0 | AF67: 0 | AG67: =AE67/$HM$67 -> 0 | AI67: 0 | AJ67: =AH67/$HM$67 -> 0 | AL67: 0 | AM67: =AK67/$HM$67 -> 0 | AO67: 0 | AP67: =AN67/$HM$67 -> 0 | AR67: 0 | AS67: =AQ67/$HM$67 -> 0 | AU67: 0 | AV67: =AT67/$HM$67 -> 0 | AX67: 0 | AY67: =AW67/$HM$67 -> 0 | BA67: 0 | BB67: =AZ67/$HM$67 -> 0 | BD67: 0 | BE67: =BC67/$HM$67 -> 0 | BG67: 0 | BH67: =BF67/$HM$67 -> 0 | BJ67: 0 | BK67: =BI67/$HM$67 -> 0 | BM67: 0 | BN67: =BL67/$HM$67 -> 0 | BP67: 0 | BQ67: =BO67/$HM$67 -> 0 | BS67: 0 | BT67: =BR67/$HM$67 -> 0 | BV67: 0 | BW67: =BU67/$HM$67 -> 0 | BY67: 0 | BZ67: =BX67/$HM$67 -> 0 | CB67: 0 | CC67: =CA67/$HM$67 -> 0 | CE67: 0 | CF67: =CD67/$HM$67 -> 0 | CH67: 0 | CI67: =CG67/$HM$67 -> 0 | CK67: 0 | CL67: =CJ67/$HM$67 -> 0 | CN67: 0 | CO67: =CM67/$HM$67 -> 0 | CQ67: 0 | CR67: =CP67/$HM$67 -> 0 | CT67: 0 | CU67: =CS67/$HM$67 -> 0 | CW67: 0 | CX67: =CV67/$HM$67 -> 0 | CZ67: 0 | DA67: =CY67/$HM$67 -> 0 | DC67: 0 | DD67: =DB67/$HM$67 -> 0 | DF67: 0 | DG67: =DE67/$HM$67 -> 0 | DI67: 0 | DJ67: =DH67/$HM$67 -> 0 | DL67: 0 | DM67: =DK67/$HM$67 -> 0 | DO67: 0 | DP67: =DN67/$HM$67 -> 0 | DR67: 0 | DS67: =DQ67/$HM$67 -> 0 | DU67: 0 | DV67: =DT67/$HM$67 -> 0 | DX67: 0 | DY67: =DW67/$HM$67 -> 0 | EA67: 0 | EB67: =DZ67/$HM$67 -> 0 | ED67: 0 | EE67: =EC67/$HM$67 -> 0 | EG67: 0 | EH67: =EF67/$HM$67 -> 0 | EJ67: 0 | EK67: =EI67/$HM$67 -> 0 | EM67: 0 | EN67: =EL67/$HM$67 -> 0 | EP67: 0 | EQ67: =EO67/$HM$67 -> 0 | ES67: 0 | ET67: =ER67/$HM$67 -> 0 | EV67: 0 | EW67: =EU67/$HM$67 -> 0 | EY67: 0 | EZ67: =EX67/$HM$67 -> 0 | FB67: 0 | FC67: =FA67/$HM$67 -> 0 | FE67: 0 | FF67: =FD67/$HM$67 -> 0 | FH67: 0 | FI67: =FG67/$HM$67 -> 0 | FK67: 0 | FL67: =FJ67/$HM$67 -> 0 | FN67: 0 | FO67: =FM67/$HM$67 -> 0 | FQ67: 0 | FR67: =FP67/$HM$67 -> 0 | FT67: 0 | FU67: =FS67/$HM$67 -> 0 | FW67: 0 | FX67: =FV67/$HM$67 -> 0 | FZ67: 0 | GA67: =FY67/$HM$67 -> 0 | GC67: 0 | GD67: =GB67/$HM$67 -> 0 | GF67: 0 | GG67: =GE67/$HM$67 -> 0 | GI67: 0 | GJ67: =GH67/$HM$67 -> 0 | GL67: 0 | GM67: =GK67/$HM$67 -> 0 | GO67: 0 | GP67: =GN67/$HM$67 -> 0 | GR67: 0 | GS67: =GQ67/$HM$67 -> 0 | GU67: 0 | GV67: =GT67/$HM$67 -> 0 | GX67: 0 | GY67: =GW67/$HM$67 -> 0 | HA67: 0 | HB67: =GZ67/$HM$67 -> 0 | HD67: 0 | HE67: =HC67/$HM$67 -> 0 | HG67: 0 | HH67: =HF67/$HM$67 -> 0 | HJ67: 0 | HK67: =HI67/$HM$67 -> 0 | HM67: 0.2808
A68: 3.9 | B68: K | C68: 9 | D68: Građevinska daska - fosna 4,8/25/400 cm | E68: Fir board 4,8/25/400 cm | F68: m3 | G68: =CENA!G64 -> 0 | H68: 0 | I68: 0 | K68: =$G68*J68 -> 0 | L68: =J68/$HM$68 -> 0 | N68: 0 | O68: =M68/$HM$68 -> 0 | Q68: 0 | R68: =P68/$HM$68 -> 0 | T68: 0 | U68: =S68/$HM$68 -> 0 | W68: 0 | X68: =V68/$HM$68 -> 0 | Z68: 0 | AA68: =Y68/$HM$68 -> 0 | AC68: 0 | AD68: =AB68/$HM$68 -> 0 | AF68: 0 | AG68: =AE68/$HM$68 -> 0 | AI68: 0 | AJ68: =AH68/$HM$68 -> 0 | AL68: 0 | AM68: =AK68/$HM$68 -> 0 | AO68: 0 | AP68: =AN68/$HM$68 -> 0 | AR68: 0 | AS68: =AQ68/$HM$68 -> 0 | AU68: 0 | AV68: =AT68/$HM$68 -> 0 | AX68: 0 | AY68: =AW68/$HM$68 -> 0 | BA68: 0 | BB68: =AZ68/$HM$68 -> 0 | BD68: 0 | BE68: =BC68/$HM$68 -> 0 | BG68: 0 | BH68: =BF68/$HM$68 -> 0 | BJ68: 0 | BK68: =BI68/$HM$68 -> 0 | BM68: 0 | BN68: =BL68/$HM$68 -> 0 | BP68: 0 | BQ68: =BO68/$HM$68 -> 0 | BS68: 0 | BT68: =BR68/$HM$68 -> 0 | BV68: 0 | BW68: =BU68/$HM$68 -> 0 | BY68: 0 | BZ68: =BX68/$HM$68 -> 0 | CB68: 0 | CC68: =CA68/$HM$68 -> 0 | CE68: 0 | CF68: =CD68/$HM$68 -> 0 | CH68: 0 | CI68: =CG68/$HM$68 -> 0 | CK68: 0 | CL68: =CJ68/$HM$68 -> 0 | CN68: 0 | CO68: =CM68/$HM$68 -> 0 | CQ68: 0 | CR68: =CP68/$HM$68 -> 0 | CT68: 0 | CU68: =CS68/$HM$68 -> 0 | CW68: 0 | CX68: =CV68/$HM$68 -> 0 | CZ68: 0 | DA68: =CY68/$HM$68 -> 0 | DC68: 0 | DD68: =DB68/$HM$68 -> 0 | DF68: 0 | DG68: =DE68/$HM$68 -> 0 | DI68: 0 | DJ68: =DH68/$HM$68 -> 0 | DL68: 0 | DM68: =DK68/$HM$68 -> 0 | DO68: 0 | DP68: =DN68/$HM$68 -> 0 | DR68: 0 | DS68: =DQ68/$HM$68 -> 0 | DU68: 0 | DV68: =DT68/$HM$68 -> 0 | DX68: 0 | DY68: =DW68/$HM$68 -> 0 | EA68: 0 | EB68: =DZ68/$HM$68 -> 0 | ED68: 0 | EE68: =EC68/$HM$68 -> 0 | EG68: 0 | EH68: =EF68/$HM$68 -> 0 | EJ68: 0 | EK68: =EI68/$HM$68 -> 0 | EM68: 0 | EN68: =EL68/$HM$68 -> 0 | EP68: 0 | EQ68: =EO68/$HM$68 -> 0 | ES68: 0 | ET68: =ER68/$HM$68 -> 0 | EV68: 0 | EW68: =EU68/$HM$68 -> 0 | EY68: 0 | EZ68: =EX68/$HM$68 -> 0 | FB68: 0 | FC68: =FA68/$HM$68 -> 0 | FE68: 0 | FF68: =FD68/$HM$68 -> 0 | FH68: 0 | FI68: =FG68/$HM$68 -> 0 | FK68: 0 | FL68: =FJ68/$HM$68 -> 0 | FN68: 0 | FO68: =FM68/$HM$68 -> 0 | FQ68: 0 | FR68: =FP68/$HM$68 -> 0 | FT68: 0 | FU68: =FS68/$HM$68 -> 0 | FW68: 0 | FX68: =FV68/$HM$68 -> 0 | FZ68: 0 | GA68: =FY68/$HM$68 -> 0 | GC68: 0 | GD68: =GB68/$HM$68 -> 0 | GF68: 0 | GG68: =GE68/$HM$68 -> 0 | GI68: 0 | GJ68: =GH68/$HM$68 -> 0 | GL68: 0 | GM68: =GK68/$HM$68 -> 0 | GO68: 0 | GP68: =GN68/$HM$68 -> 0 | GR68: 0 | GS68: =GQ68/$HM$68 -> 0 | GU68: 0 | GV68: =GT68/$HM$68 -> 0 | GX68: 0 | GY68: =GW68/$HM$68 -> 0 | HA68: 0 | HB68: =GZ68/$HM$68 -> 0 | HD68: 0 | HE68: =HC68/$HM$68 -> 0 | HG68: 0 | HH68: =HF68/$HM$68 -> 0 | HJ68: 0 | HK68: =HI68/$HM$68 -> 0 | HM68: 0.048
A69: 3.10 | B69: K | C69: 10 | D69: Krovna daska od čamove rezane građe 2,4-2,5/15 cm, isporučuje se dužine l=3,0 metra | E69: Roof fir board 2,4-2,5/15 cm, lenght l=3,0 m | F69: m3 | G69: =CENA!G65 -> 0 | H69: 2.5 | I69: 0 | J69: 1 | N69: 0 | Q69: 0 | T69: 0 | V69: 0.5 | Z69: 0 | AC69: 0 | AE69: 1 | AI69: 0 | AL69: 0 | AO69: 0 | AR69: 0 | AU69: 0 | AX69: 0 | BA69: 0 | BD69: 0 | BG69: 0 | BJ69: 0 | BM69: 0 | BP69: 0 | BS69: 0 | BV69: 0 | BY69: 0 | CB69: 0 | CE69: 0 | CH69: 0 | CK69: 0 | CN69: 0 | CQ69: 0 | CT69: 0 | CW69: 0 | CZ69: 0 | DC69: 0 | DF69: 0 | DI69: 0 | DL69: 0 | DO69: 0 | DR69: 0 | DU69: 0 | DX69: 0 | EA69: 0 | ED69: 0 | EG69: 0 | EJ69: 0 | EM69: 0 | EP69: 0 | ES69: 0 | EV69: 0 | EY69: 0 | FB69: 0 | FE69: 0 | FH69: 0 | FK69: 0 | FN69: 0 | FQ69: 0 | FT69: 0 | FW69: 0 | FZ69: 0 | GC69: 0 | GF69: 0 | GI69: 0 | GL69: 0 | GO69: 0 | GR69: 0 | GU69: 0 | GX69: 0 | HA69: 0 | HD69: 0 | HG69: 0 | HJ69: 0
A70: 3.11 | B70: K | C70: 11 | D70: Krovna letva od čamove rezane građe 3 / 5 cm , isporučuje se dužine l=3,0 metra | E70: Fir batten 3 / 5 cm , lenght l=3,0 m | F70: m1 | G70: =CENA!G66 -> 0 | H70: 2328 | I70: 0 | J70: 600 | L70: =J70/$HM$70 -> 200 | N70: 0 | O70: =M70/$HM$70 -> 0 | Q70: 0 | R70: =P70/$HM$70 -> 0 | T70: 0 | U70: =S70/$HM$70 -> 0 | V70: 510 | X70: =V70/$HM$70 -> 170 | Y70: 27 | AA70: =Y70/$HM$70 -> 9 | AB70: 249 | AD70: 402 | AE70: 528 | AG70: =AE70/$HM$70 -> 176 | AI70: 0 | AJ70: =AH70/$HM$70 -> 0 | AL70: 0 | AM70: =AK70/$HM$70 -> 0 | AN70: 414 | AO70: 0 | AP70: =AN70/$HM$70 -> 138 | AR70: 0 | AS70: =AQ70/$HM$70 -> 0 | AU70: 0 | AV70: =AT70/$HM$70 -> 0 | AX70: 0 | AY70: =AW70/$HM$70 -> 0 | BA70: 0 | BB70: =AZ70/$HM$70 -> 0 | BD70: 0 | BE70: =BC70/$HM$70 -> 0 | BG70: 0 | BH70: =BF70/$HM$70 -> 0 | BJ70: 0 | BK70: =BI70/$HM$70 -> 0 | BM70: 0 | BN70: =BL70/$HM$70 -> 0 | BP70: 0 | BQ70: =BO70/$HM$70 -> 0 | BS70: 0 | BT70: =BR70/$HM$70 -> 0 | BV70: 0 | BW70: =BU70/$HM$70 -> 0 | BY70: 0 | BZ70: 402 | CB70: 0 | CC70: =CA70/$HM$70 -> 0 | CE70: 0 | CF70: =CD70/$HM$70 -> 0 | CH70: 0 | CI70: =CG70/$HM$70 -> 0 | CK70: 0 | CL70: =CJ70/$HM$70 -> 0 | CN70: 0 | CO70: =CM70/$HM$70 -> 0 | CQ70: 0 | CR70: =CP70/$HM$70 -> 0 | CT70: 0 | CU70: =CS70/$HM$70 -> 0 | CW70: 0 | CX70: =CV70/$HM$70 -> 0 | CZ70: 0 | DA70: =CY70/$HM$70 -> 0 | DC70: 0 | DD70: =DB70/$HM$70 -> 0 | DF70: 0 | DG70: =DE70/$HM$70 -> 0 | DI70: 0 | DJ70: =DH70/$HM$70 -> 0 | DL70: 0 | DM70: =DK70/$HM$70 -> 0 | DO70: 0 | DP70: =DN70/$HM$70 -> 0 | DR70: 0 | DS70: =DQ70/$HM$70 -> 0 | DU70: 0 | DV70: 402 | DX70: 0 | DY70: =DW70/$HM$70 -> 0 | EA70: 0 | EB70: =DZ70/$HM$70 -> 0 | ED70: 0 | EE70: =EC70/$HM$70 -> 0 | EG70: 0 | EH70: =EF70/$HM$70 -> 0 | EJ70: 0 | EK70: =EI70/$HM$70 -> 0 | EM70: 0 | EN70: =EL70/$HM$70 -> 0 | EP70: 0 | EQ70: =EO70/$HM$70 -> 0 | ES70: 0 | ET70: =ER70/$HM$70 -> 0 | EV70: 0 | EW70: =EU70/$HM$70 -> 0 | EY70: 0 | EZ70: =EX70/$HM$70 -> 0 | FB70: 0 | FC70: =FA70/$HM$70 -> 0 | FE70: 0 | FF70: =FD70/$HM$70 -> 0 | FH70: 0 | FI70: =FG70/$HM$70 -> 0 | FK70: 0 | FL70: =FJ70/$HM$70 -> 0 | FN70: 0 | FO70: =FM70/$HM$70 -> 0 | FQ70: 0 | FR70: 402 | FT70: 0 | FU70: =FS70/$HM$70 -> 0 | FW70: 0 | FX70: =FV70/$HM$70 -> 0 | FZ70: 0 | GA70: =FY70/$HM$70 -> 0 | GC70: 0 | GD70: =GB70/$HM$70 -> 0 | GF70: 0 | GG70: =GE70/$HM$70 -> 0 | GI70: 0 | GJ70: =GH70/$HM$70 -> 0 | GL70: 0 | GM70: =GK70/$HM$70 -> 0 | GO70: 0 | GP70: =GN70/$HM$70 -> 0 | GR70: 0 | GS70: =GQ70/$HM$70 -> 0 | GU70: 0 | GV70: =GT70/$HM$70 -> 0 | GX70: 0 | GY70: =GW70/$HM$70 -> 0 | HA70: 0 | HB70: =GZ70/$HM$70 -> 0 | HD70: 0 | HE70: =HC70/$HM$70 -> 0 | HG70: 0 | HH70: =HF70/$HM$70 -> 0 | HJ70: 0 | HK70: =HI70/$HM$70 -> 0 | HM70: 3
A71: 3.12 | B71: K | C71: 12 | D71: OSB3 vlagootporne konstruktivne ploče d=18 mm / dim. 2440 x 1220 | E71: OSB3 moisture resistant structural panels d=18 mm / dim. 2440 x 1220 | F71: kom/pcs | G71: =CENA!G67 -> 0 | H71: 42 | I71: 0 | K71: =$G71*J71 -> 0 | N71: 0 | Q71: 0 | S71: 12 | W71: 0 | Y71: 26 | AB71: 4 | AF71: 0 | AI71: 0 | AL71: 0 | AO71: 0 | AR71: 0 | AU71: 0 | AX71: 0 | BA71: 0 | BD71: 0 | BG71: 0 | BJ71: 0 | BM71: 0 | BP71: 0 | BS71: 0 | BV71: 0 | BY71: 0 | CB71: 0 | CE71: 0 | CH71: 0 | CK71: 0 | CN71: 0 | CQ71: 0 | CT71: 0 | CW71: 0 | CZ71: 0 | DC71: 0 | DF71: 0 | DI71: 0 | DL71: 0 | DO71: 0 | DR71: 0 | DU71: 0 | DX71: 0 | EA71: 0 | ED71: 0 | EG71: 0 | EJ71: 0 | EM71: 0 | EP71: 0 | ES71: 0 | EV71: 0 | EY71: 0 | FB71: 0 | FE71: 0 | FH71: 0 | FK71: 0 | FN71: 0 | FQ71: 0 | FT71: 0 | FW71: 0 | FZ71: 0 | GC71: 0 | GF71: 0 | GI71: 0 | GL71: 0 | GO71: 0 | GR71: 0 | GU71: 0 | GX71: 0 | HA71: 0 | HD71: 0 | HG71: 0 | HJ71: 0
A72: 3.13 | B72: K | C72: 13 | D72: Standardne gips kartonske ploče - Tip A dimenzije: 1200-1250 x 2000 mm | E72: Standard plasterboard table - Type A dim: 1200-1250 x 2000 mm | F72: kom/pcs | G72: =CENA!G68 -> 0 | H72: 239 | I72: 0 | K72: =$G72*J72 -> 0 | N72: 0 | Q72: 0 | S72: 25 | W72: 0 | Z72: 0 | AC72: 0 | AF72: 0 | AH72: 22 | AL72: 0 | AO72: 0 | AR72: 0 | AU72: 0 | AX72: 0 | AZ72: 192 | BD72: 0 | BG72: 0 | BJ72: 0 | BM72: 0 | BP72: 0 | BS72: 0 | BV72: 0 | BY72: 0 | CB72: 0 | CE72: 0 | CH72: 0 | CK72: 0 | CN72: 0 | CQ72: 0 | CT72: 0 | CW72: 0 | CZ72: 0 | DC72: 0 | DF72: 0 | DI72: 0 | DL72: 0 | DO72: 0 | DR72: 0 | DU72: 0 | DX72: 0 | EA72: 0 | ED72: 0 | EG72: 0 | EJ72: 0 | EM72: 0 | EP72: 0 | ES72: 0 | EV72: 0 | EY72: 0 | FB72: 0 | FE72: 0 | FH72: 0 | FK72: 0 | FN72: 0 | FQ72: 0 | FT72: 0 | FW72: 0 | FZ72: 0 | GC72: 0 | GF72: 0 | GI72: 0 | GL72: 0 | GO72: 0 | GR72: 0 | GU72: 0 | GX72: 0 | HA72: 0 | HD72: 0 | HG72: 0 | HJ72: 0
A73: 3.14 | B73: K | C73: 14 | D73: Vlagootporne gips kartonske ploče - Tip H2 dimenzije: 1200-1250 x 2000 mm | E73: Moisture resistant Plasterboard - Type H2 dim: 1200-1250 x 2000 mm | F73: kom/pcs | G73: =CENA!G69 -> 0 | H73: 109 | I73: 0 | K73: =$G73*J73 -> 0 | N73: 0 | Q73: 0 | T73: 0 | W73: 0 | Z73: 0 | AC73: 0 | AF73: 0 | AH73: 3 | AK73: 56 | AO73: 0 | AQ73: 50 | AR73: 0 | AU73: 0 | AX73: 0 | BA73: 0 | BD73: 0 | BG73: 0 | BJ73: 0 | BM73: 0 | BP73: 0 | BS73: 0 | BV73: 0 | BY73: 0 | CB73: 0 | CE73: 0 | CH73: 0 | CK73: 0 | CN73: 0 | CQ73: 0 | CT73: 0 | CW73: 0 | CZ73: 0 | DC73: 0 | DF73: 0 | DI73: 0 | DL73: 0 | DO73: 0 | DR73: 0 | DU73: 0 | DX73: 0 | EA73: 0 | ED73: 0 | EG73: 0 | EJ73: 0 | EM73: 0 | EP73: 0 | ES73: 0 | EV73: 0 | EY73: 0 | FB73: 0 | FE73: 0 | FH73: 0 | FK73: 0 | FN73: 0 | FQ73: 0 | FT73: 0 | FW73: 0 | FZ73: 0 | GC73: 0 | GF73: 0 | GI73: 0 | GL73: 0 | GO73: 0 | GR73: 0 | GU73: 0 | GX73: 0 | HA73: 0 | HD73: 0 | HG73: 0 | HJ73: 0
A74: 3.15 | B74: K | C74: 15 | D74: Čelični pocinkovani i farbani olučni elementi prečnika: Ø 100 mm dužine 600 cm | E74: Galvanized steel and painted gutter elements diameter: Ø 100 mm length 600 cm | F74: / | G74: / | H74: / | I74: / | J74: / | K74: / | M74: / | N74: / | P74: / | Q74: / | S74: / | T74: / | V74: / | W74: / | Y74: / | Z74: / | AB74: / | AC74: / | AE74: / | AF74: / | AH74: / | AI74: / | AK74: / | AL74: / | AN74: / | AO74: / | AQ74: / | AR74: / | AT74: / | AU74: / | AW74: / | AX74: / | AZ74: / | BA74: / | BC74: / | BD74: / | BF74: / | BG74: / | BI74: / | BJ74: / | BL74: / | BM74: / | BO74: / | BP74: / | BR74: / | BS74: / | BU74: / | BV74: / | BX74: / | BY74: / | CA74: / | CB74: / | CD74: / | CE74: / | CG74: / | CH74: / | CJ74: / | CK74: / | CM74: / | CN74: / | CP74: / | CQ74: / | CS74: / | CT74: / | CV74: / | CW74: / | CY74: / | CZ74: / | DB74: / | DC74: / | DE74: / | DF74: / | DH74: / | DI74: / | DK74: / | DL74: / | DN74: / | DO74: / | DQ74: / | DR74: / | DT74: / | DU74: / | DW74: / | DX74: / | DZ74: / | EA74: / | EC74: / | ED74: / | EF74: / | EG74: / | EI74: / | EJ74: / | EL74: / | EM74: / | EO74: / | EP74: / | ER74: / | ES74: / | EU74: / | EV74: / | EX74: / | EY74: / | FA74: / | FB74: / | FD74: / | FE74: / | FG74: / | FH74: / | FJ74: / | FK74: / | FM74: / | FN74: / | FP74: / | FQ74: / | FS74: / | FT74: / | FV74: / | FW74: / | FY74: / | FZ74: / | GB74: / | GC74: / | GE74: / | GF74: / | GH74: / | GI74: / | GK74: / | GL74: / | GN74: / | GO74: / | GQ74: / | GR74: / | GT74: / | GU74: / | GW74: / | GX74: / | GZ74: / | HA74: / | HC74: / | HD74: / | HF74: / | HG74: / | HI74: / | HJ74: /
A75: 3.15.1 | C75: A | D75: Horizontalni polukružni | E75: horizontal semicircular gutter | F75: kom/pcs | G75: =CENA!G71 -> 0 | H75: =J75+M75+P75+S75+V75+Y75+AB75+AE75+AH75+AK75+AN75+AQ75+AZ75+AW75+AT75+BC75+BF75+BI75+BL75+BO75+BR75+BU75+BX75+CA75+CD75+CG75+CJ75+CM75+CP75+CS75+CV75+CY75+DB75+DE75+DH75+DK75+DN75+DQ75+DT75+DW75+DZ75+EC75+EF75+EI75+EL75+EO75+ER75+EU75+EX75+FA75+FD75+FG75+FJ75+FM75+FP75+FS75+FV75+FY75+GB75+GE75+GH75+GK75+GN75+GQ75+GT75+GW75+GZ75+HC75+HF75+HI75 -> 0 | I75: =G75*H75 -> 0 | K75: =$G75*J75 -> 0 | N75: =$G75*M75 -> 0 | Q75: =$G75*P75 -> 0 | T75: =$G75*S75 -> 0 | W75: =$G75*V75 -> 0 | Z75: =$G75*Y75 -> 0 | AC75: =$G75*AB75 -> 0 | AF75: =$G75*AE75 -> 0 | AI75: =$G75*AH75 -> 0 | AL75: =$G75*AK75 -> 0 | AO75: =$G75*AN75 -> 0 | AR75: =$G75*AQ75 -> 0 | AU75: =$G75*AT75 -> 0 | AX75: =$G75*AW75 -> 0 | BA75: =$G75*AZ75 -> 0 | BD75: =$G75*BC75 -> 0 | BG75: =$G75*BF75 -> 0 | BJ75: =$G75*BI75 -> 0 | BM75: =$G75*BL75 -> 0 | BP75: =$G75*BO75 -> 0 | BS75: =$G75*BR75 -> 0 | BV75: =$G75*BU75 -> 0 | BY75: =$G75*BX75 -> 0 | CB75: =$G75*CA75 -> 0 | CE75: =$G75*CD75 -> 0 | CH75: =$G75*CG75 -> 0 | CK75: =$G75*CJ75 -> 0 | CN75: =$G75*CM75 -> 0 | CQ75: =$G75*CP75 -> 0 | CT75: =$G75*CS75 -> 0 | CW75: =$G75*CV75 -> 0 | CZ75: =$G75*CY75 -> 0 | DC75: =$G75*DB75 -> 0 | DF75: =$G75*DE75 -> 0 | DI75: =$G75*DH75 -> 0 | DL75: =$G75*DK75 -> 0 | DO75: =$G75*DN75 -> 0 | DR75: =$G75*DQ75 -> 0 | DU75: =$G75*DT75 -> 0 | DX75: =$G75*DW75 -> 0 | EA75: =$G75*DZ75 -> 0 | ED75: =$G75*EC75 -> 0 | EG75: =$G75*EF75 -> 0 | EJ75: =$G75*EI75 -> 0 | EM75: =$G75*EL75 -> 0 | EP75: =$G75*EO75 -> 0 | ES75: =$G75*ER75 -> 0 | EV75: =$G75*EU75 -> 0 | EY75: =$G75*EX75 -> 0 | FB75: =$G75*FA75 -> 0 | FE75: =$G75*FD75 -> 0 | FH75: =$G75*FG75 -> 0 | FK75: =$G75*FJ75 -> 0 | FN75: =$G75*FM75 -> 0 | FQ75: =$G75*FP75 -> 0 | FT75: =$G75*FS75 -> 0 | FW75: =$G75*FV75 -> 0 | FZ75: =$G75*FY75 -> 0 | GC75: =$G75*GB75 -> 0 | GF75: =$G75*GE75 -> 0 | GI75: =$G75*GH75 -> 0 | GL75: =$G75*GK75 -> 0 | GO75: =$G75*GN75 -> 0 | GR75: =$G75*GQ75 -> 0 | GU75: =$G75*GT75 -> 0 | GX75: =$G75*GW75 -> 0 | HA75: =$G75*GZ75 -> 0 | HD75: =$G75*HC75 -> 0 | HG75: =$G75*HF75 -> 0 | HJ75: =$G75*HI75 -> 0
A76: 3.15.2 | C76: B | D76: Vertikalni kružni oluk | E76: Vertical circular gutter | F76: kom/pcs | G76: =CENA!G72 -> 0 | H76: =J76+M76+P76+S76+V76+Y76+AB76+AE76+AH76+AK76+AN76+AQ76+AZ76+AW76+AT76+BC76+BF76+BI76+BL76+BO76+BR76+BU76+BX76+CA76+CD76+CG76+CJ76+CM76+CP76+CS76+CV76+CY76+DB76+DE76+DH76+DK76+DN76+DQ76+DT76+DW76+DZ76+EC76+EF76+EI76+EL76+EO76+ER76+EU76+EX76+FA76+FD76+FG76+FJ76+FM76+FP76+FS76+FV76+FY76+GB76+GE76+GH76+GK76+GN76+GQ76+GT76+GW76+GZ76+HC76+HF76+HI76 -> 0 | I76: 0 | K76: =$G76*J76 -> 0 | N76: 0 | Q76: =$G76*P76 -> 0 | T76: =$G76*S76 -> 0 | W76: =$G76*V76 -> 0 | Z76: =$G76*Y76 -> 0 | AC76: =$G76*AB76 -> 0 | AF76: =$G76*AE76 -> 0 | AI76: =$G76*AH76 -> 0 | AL76: =$G76*AK76 -> 0 | AO76: =$G76*AN76 -> 0 | AR76: =$G76*AQ76 -> 0 | AU76: =$G76*AT76 -> 0 | AX76: =$G76*AW76 -> 0 | BA76: =$G76*AZ76 -> 0 | BD76: =$G76*BC76 -> 0 | BG76: 0 | BJ76: 0 | BM76: =$G76*BL76 -> 0 | BP76: =$G76*BO76 -> 0 | BS76: =$G76*BR76 -> 0 | BV76: =$G76*BU76 -> 0 | BY76: =$G76*BX76 -> 0 | CB76: =$G76*CA76 -> 0 | CE76: =$G76*CD76 -> 0 | CH76: =$G76*CG76 -> 0 | CK76: =$G76*CJ76 -> 0 | CN76: =$G76*CM76 -> 0 | CQ76: =$G76*CP76 -> 0 | CT76: =$G76*CS76 -> 0 | CW76: =$G76*CV76 -> 0 | CZ76: =$G76*CY76 -> 0 | DC76: 0 | DF76: 0 | DI76: =$G76*DH76 -> 0 | DL76: =$G76*DK76 -> 0 | DO76: =$G76*DN76 -> 0 | DR76: =$G76*DQ76 -> 0 | DU76: =$G76*DT76 -> 0 | DX76: =$G76*DW76 -> 0 | EA76: =$G76*DZ76 -> 0 | ED76: =$G76*EC76 -> 0 | EG76: =$G76*EF76 -> 0 | EJ76: =$G76*EI76 -> 0 | EM76: =$G76*EL76 -> 0 | EP76: =$G76*EO76 -> 0 | ES76: =$G76*ER76 -> 0 | EV76: =$G76*EU76 -> 0 | EY76: 0 | FB76: 0 | FE76: =$G76*FD76 -> 0 | FH76: =$G76*FG76 -> 0 | FK76: =$G76*FJ76 -> 0 | FN76: =$G76*FM76 -> 0 | FQ76: =$G76*FP76 -> 0 | FT76: =$G76*FS76 -> 0 | FW76: =$G76*FV76 -> 0 | FZ76: =$G76*FY76 -> 0 | GC76: =$G76*GB76 -> 0 | GF76: =$G76*GE76 -> 0 | GI76: =$G76*GH76 -> 0 | GL76: =$G76*GK76 -> 0 | GO76: =$G76*GN76 -> 0 | GR76: =$G76*GQ76 -> 0 | GU76: =$G76*GT76 -> 0 | GX76: =$G76*GW76 -> 0 | HA76: =$G76*GZ76 -> 0 | HD76: =$G76*HC76 -> 0 | HG76: =$G76*HF76 -> 0 | HJ76: =$G76*HI76 -> 0
A78: 4 | B78: P | D78: MATERIJAL ZA PODOVE, LAMINAT, PLOČICE I XPS | E78: FLOORING, LAMINATE, TILES AND XPS
A79: 4.1 | B79: P | C79: 1 | D79: Unutrašnje podne keramičke pločice Min. dimenzije pločica: 200x300 mm | E79: Floor tiles for inside Min. tile size: 200x300 mm | F79: m2 | G79: =CENA!G75 -> 0 | H79: =J79+M79+P79+S79+V79+Y79+AB79+AE79+AH79+AK79+AN79+AQ79+AZ79+AW79+AT79+BC79+BF79+BI79+BL79+BO79+BR79+BU79+BX79+CA79+CD79+CG79+CJ79+CM79+CP79+CS79+CV79+CY79+DB79+DE79+DH79+DK79+DN79+DQ79+DT79+DW79+DZ79+EC79+EF79+EI79+EL79+EO79+ER79+EU79+EX79+FA79+FD79+FG79+FJ79+FM79+FP79+FS79+FV79+FY79+GB79+GE79+GH79+GK79+GN79+GQ79+GT79+GW79+GZ79+HC79+HF79+HI79 -> 80 | I79: =G79*H79 -> 0 | J79: 47 | N79: =$G79*M79 -> 0 | P79: 8 | T79: =$G79*S79 -> 0 | W79: =$G79*V79 -> 0 | Z79: =$G79*Y79 -> 0 | AC79: =$G79*AB79 -> 0 | AF79: =$G79*AE79 -> 0 | AH79: 9 | AL79: =$G79*AK79 -> 0 | AO79: =$G79*AN79 -> 0 | AQ79: 10 | AR79: =$G79*AQ79 -> 0 | AU79: =$G79*AT79 -> 0 | AX79: =$G79*AW79 -> 0 | AZ79: 6 | BD79: =$G79*BC79 -> 0 | BG79: =$G79*BF79 -> 0 | BJ79: =$G79*BI79 -> 0 | BM79: =$G79*BL79 -> 0 | BP79: =$G79*BO79 -> 0 | BS79: =$G79*BR79 -> 0 | BV79: =$G79*BU79 -> 0 | BY79: =$G79*BX79 -> 0 | CB79: =$G79*CA79 -> 0 | CE79: =$G79*CD79 -> 0 | CH79: =$G79*CG79 -> 0 | CK79: =$G79*CJ79 -> 0 | CN79: =$G79*CM79 -> 0 | CQ79: =$G79*CP79 -> 0 | CT79: =$G79*CS79 -> 0 | CW79: =$G79*CV79 -> 0 | CZ79: =$G79*CY79 -> 0 | DC79: =$G79*DB79 -> 0 | DF79: =$G79*DE79 -> 0 | DI79: =$G79*DH79 -> 0 | DL79: =$G79*DK79 -> 0 | DO79: =$G79*DN79 -> 0 | DR79: =$G79*DQ79 -> 0 | DU79: =$G79*DT79 -> 0 | DX79: =$G79*DW79 -> 0 | EA79: =$G79*DZ79 -> 0 | ED79: =$G79*EC79 -> 0 | EG79: =$G79*EF79 -> 0 | EJ79: =$G79*EI79 -> 0 | EM79: =$G79*EL79 -> 0 | EP79: =$G79*EO79 -> 0 | ES79: =$G79*ER79 -> 0 | EV79: =$G79*EU79 -> 0 | EY79: =$G79*EX79 -> 0 | FB79: =$G79*FA79 -> 0 | FE79: =$G79*FD79 -> 0 | FH79: =$G79*FG79 -> 0 | FK79: =$G79*FJ79 -> 0 | FN79: =$G79*FM79 -> 0 | FQ79: =$G79*FP79 -> 0 | FT79: =$G79*FS79 -> 0 | FW79: =$G79*FV79 -> 0 | FZ79: =$G79*FY79 -> 0 | GC79: =$G79*GB79 -> 0 | GF79: =$G79*GE79 -> 0 | GI79: =$G79*GH79 -> 0 | GL79: =$G79*GK79 -> 0 | GO79: =$G79*GN79 -> 0 | GR79: =$G79*GQ79 -> 0 | GU79: =$G79*GT79 -> 0 | GX79: =$G79*GW79 -> 0 | HA79: =$G79*GZ79 -> 0 | HD79: =$G79*HC79 -> 0 | HG79: =$G79*HF79 -> 0 | HJ79: =$G79*HI79 -> 0
A80: 4.2 | B80: P | C80: 2 | D80: Unutrašnje zidne keramičke pločice Min. dimenzije pločica: 200x300 mm | E80: Wall tiles for inside Min. tile size: 200x300 mm | F80: m2 | G80: =CENA!G76 -> 0 | H80: 79 | I80: 0 | K80: =$G80*J80 -> 0 | N80: 0 | P80: 19 | T80: 0 | W80: 0 | Z80: 0 | AC80: 0 | AF80: 0 | AH80: 25 | AL80: 0 | AO80: 0 | AQ80: 15 | AR80: 0 | AU80: 0 | AX80: 0 | AZ80: 20 | BD80: 0 | BG80: 0 | BJ80: 0 | BM80: 0 | BP80: 0 | BS80: 0 | BV80: 0 | BY80: 0 | CB80: 0 | CE80: 0 | CH80: 0 | CK80: 0 | CN80: 0 | CQ80: 0 | CT80: 0 | CW80: 0 | CZ80: 0 | DC80: 0 | DF80: 0 | DI80: 0 | DL80: 0 | DO80: 0 | DR80: 0 | DU80: 0 | DX80: 0 | EA80: 0 | ED80: 0 | EG80: 0 | EJ80: 0 | EM80: 0 | EP80: 0 | ES80: 0 | EV80: 0 | EY80: 0 | FB80: 0 | FE80: 0 | FH80: 0 | FK80: 0 | FN80: 0 | FQ80: 0 | FT80: 0 | FW80: 0 | FZ80: 0 | GC80: 0 | GF80: 0 | GI80: 0 | GL80: 0 | GO80: 0 | GR80: 0 | GU80: 0 | GX80: 0 | HA80: 0 | HD80: 0 | HG80: 0 | HJ80: 0
A81: 4.3 | B81: P | C81: 3 | D81: Lepak za keramičke pločice Fleksibilni, polimer-cementni lepak | E81: Glue for ceramic tiles Flexible, polymer-cement glue | F81: kg | G81: =CENA!G77 -> 0 | H81: 1000 | I81: 0 | K81: =$G81*J81 -> 0 | N81: 0 | P81: 225 | T81: 0 | W81: 0 | Z81: 0 | AC81: 0 | AF81: 0 | AH81: 175 | AL81: 0 | AO81: 0 | AQ81: 600 | AR81: 0 | AU81: 0 | AX81: 0 | BA81: =$G81*AZ81 -> 0 | BD81: 0 | BG81: 0 | BJ81: 0 | BM81: 0 | BP81: 0 | BS81: 0 | BV81: 0 | BY81: 0 | CB81: 0 | CE81: 0 | CH81: 0 | CK81: 0 | CN81: 0 | CQ81: 0 | CT81: 0 | CW81: 0 | CZ81: 0 | DC81: 0 | DF81: 0 | DI81: 0 | DL81: 0 | DO81: 0 | DR81: 0 | DU81: 0 | DX81: 0 | EA81: 0 | ED81: 0 | EG81: 0 | EJ81: 0 | EM81: 0 | EP81: 0 | ES81: 0 | EV81: 0 | EY81: 0 | FB81: 0 | FE81: 0 | FH81: 0 | FK81: 0 | FN81: 0 | FQ81: 0 | FT81: 0 | FW81: 0 | FZ81: 0 | GC81: 0 | GF81: 0 | GI81: 0 | GL81: 0 | GO81: 0 | GR81: 0 | GU81: 0 | GX81: 0 | HA81: 0 | HD81: 0 | HG81: 0 | HJ81: 0
A82: 4.4 | B82: P | C82: 4 | D82: Fleksibilna masa za fugovanje Vodoodbojna fug masa na bazi cementa | E82: Flexible mass for grouting Waterproof grout cement based | F82: kg | G82: =CENA!G78 -> 0 | H82: 4 | I82: 0 | K82: =$G82*J82 -> 0 | N82: 0 | Q82: =$G82*P82 -> 0 | T82: 0 | W82: 0 | Z82: 0 | AC82: 0 | AF82: 0 | AI82: =$G82*AH82 -> 0 | AL82: 0 | AO82: 0 | AQ82: 4 | AR82: 0 | AU82: 0 | AX82: 0 | BA82: 0 | BD82: 0 | BG82: 0 | BJ82: 0 | BM82: 0 | BP82: 0 | BS82: 0 | BV82: 0 | BY82: 0 | CB82: 0 | CE82: 0 | CH82: 0 | CK82: 0 | CN82: 0 | CQ82: 0 | CT82: 0 | CW82: 0 | CZ82: 0 | DC82: 0 | DF82: 0 | DI82: 0 | DL82: 0 | DO82: 0 | DR82: 0 | DU82: 0 | DX82: 0 | EA82: 0 | ED82: 0 | EG82: 0 | EJ82: 0 | EM82: 0 | EP82: 0 | ES82: 0 | EV82: 0 | EY82: 0 | FB82: 0 | FE82: 0 | FH82: 0 | FK82: 0 | FN82: 0 | FQ82: 0 | FT82: 0 | FW82: 0 | FZ82: 0 | GC82: 0 | GF82: 0 | GI82: 0 | GL82: 0 | GO82: 0 | GR82: 0 | GU82: 0 | GX82: 0 | HA82: 0 | HD82: 0 | HG82: 0 | HJ82: 0
A83: 4.5 | B83: P | C83: 5 | D83: Laminat - jakopresovani (HLP) sa klik sistemom, dezen: hrast natur (prirodni) | E83: Laminate (HLP) with click system, design: oak natural (natural) | F83: m2 | G83: =CENA!G79 -> 0 | H83: 110 | I83: 0 | K83: =$G83*J83 -> 0 | N83: 0 | P83: 40 | T83: 0 | W83: 0 | Z83: 0 | AC83: 0 | AF83: 0 | AH83: 18 | AL83: 0 | AO83: 0 | AR83: 0 | AU83: 0 | AX83: 0 | AZ83: 52 | BD83: 0 | BG83: 0 | BJ83: 0 | BM83: 0 | BP83: 0 | BS83: 0 | BV83: 0 | BY83: 0 | CB83: 0 | CE83: 0 | CH83: 0 | CK83: 0 | CN83: 0 | CQ83: 0 | CT83: 0 | CW83: 0 | CZ83: 0 | DC83: 0 | DF83: 0 | DI83: 0 | DL83: 0 | DO83: 0 | DR83: 0 | DU83: 0 | DX83: 0 | EA83: 0 | ED83: 0 | EG83: 0 | EJ83: 0 | EM83: 0 | EP83: 0 | ES83: 0 | EV83: 0 | EY83: 0 | FB83: 0 | FE83: 0 | FH83: 0 | FK83: 0 | FN83: 0 | FQ83: 0 | FT83: 0 | FW83: 0 | FZ83: 0 | GC83: 0 | GF83: 0 | GI83: 0 | GL83: 0 | GO83: 0 | GR83: 0 | GU83: 0 | GX83: 0 | HA83: 0 | HD83: 0 | HG83: 0 | HJ83: 0
A84: 4.6 | B84: P | C84: 6 | D84: Lajsne za laminat od medijapana materijal: medijapan / MDF | E84: Moldings for laminate MDF Material: MDF / MDF | F84: m1 | G84: =CENA!G80 -> 0 | H84: 78 | I84: 0 | K84: =$G84*J84 -> 0 | L84: =J84/2.6 -> 0 | N84: 0 | O84: =M84/2.6 -> 0 | P84: 26 | R84: =P84/2.6 -> 10 | T84: 0 | U84: =S84/2.6 -> 0 | W84: 0 | X84: =V84/2.6 -> 0 | Z84: 0 | AA84: =Y84/2.6 -> 0 | AC84: 0 | AD84: =AB84/2.6 -> 0 | AF84: 0 | AG84: =AE84/2.6 -> 0 | AI84: 0 | AJ84: =AH84/2.6 -> 0 | AL84: 0 | AM84: =AK84/2.6 -> 0 | AO84: 0 | AP84: =AN84/2.6 -> 0 | AR84: 0 | AS84: =AQ84/2.6 -> 0 | AU84: 0 | AV84: =AT84/2.6 -> 0 | AX84: 0 | AY84: =AW84/2.6 -> 0 | AZ84: 52 | BB84: =AZ84/2.6 -> 20 | BD84: 0 | BE84: =BC84/2.6 -> 0 | BG84: 0 | BH84: =BF84/2.6 -> 0 | BJ84: 0 | BK84: =BI84/2.6 -> 0 | BM84: 0 | BN84: =BL84/2.6 -> 0 | BP84: 0 | BQ84: =BO84/2.6 -> 0 | BS84: 0 | BT84: =BR84/2.6 -> 0 | BV84: 0 | BW84: =BU84/2.6 -> 0 | BY84: 0 | BZ84: =BX84/2.6 -> 0 | CB84: 0 | CC84: =CA84/2.6 -> 0 | CE84: 0 | CF84: =CD84/2.6 -> 0 | CH84: 0 | CI84: =CG84/2.6 -> 0 | CK84: 0 | CL84: =CJ84/2.6 -> 0 | CN84: 0 | CO84: =CM84/2.6 -> 0 | CQ84: 0 | CR84: =CP84/2.6 -> 0 | CT84: 0 | CU84: =CS84/2.6 -> 0 | CW84: 0 | CX84: =CV84/2.6 -> 0 | CZ84: 0 | DA84: =CY84/2.6 -> 0 | DC84: 0 | DD84: =DB84/2.6 -> 0 | DF84: 0 | DG84: =DE84/2.6 -> 0 | DI84: 0 | DJ84: =DH84/2.6 -> 0 | DL84: 0 | DM84: =DK84/2.6 -> 0 | DO84: 0 | DP84: =DN84/2.6 -> 0 | DR84: 0 | DS84: =DQ84/2.6 -> 0 | DU84: 0 | DV84: =DT84/2.6 -> 0 | DX84: 0 | DY84: =DW84/2.6 -> 0 | EA84: 0 | EB84: =DZ84/2.6 -> 0 | ED84: 0 | EE84: =EC84/2.6 -> 0 | EG84: 0 | EH84: =EF84/2.6 -> 0 | EJ84: 0 | EK84: =EI84/2.6 -> 0 | EM84: 0 | EN84: =EL84/2.6 -> 0 | EP84: 0 | EQ84: =EO84/2.6 -> 0 | ES84: 0 | ET84: =ER84/2.6 -> 0 | EV84: 0 | EW84: =EU84/2.6 -> 0 | EY84: 0 | EZ84: =EX84/2.6 -> 0 | FB84: 0 | FC84: =FA84/2.6 -> 0 | FE84: 0 | FF84: =FD84/2.6 -> 0 | FH84: 0 | FI84: =FG84/2.6 -> 0 | FK84: 0 | FL84: =FJ84/2.6 -> 0 | FN84: 0 | FO84: =FM84/2.6 -> 0 | FQ84: 0 | FR84: =FP84/2.6 -> 0 | FT84: 0 | FU84: =FS84/2.6 -> 0 | FW84: 0 | FX84: =FV84/2.6 -> 0 | FZ84: 0 | GA84: =FY84/2.6 -> 0 | GC84: 0 | GD84: =GB84/2.6 -> 0 | GF84: 0 | GG84: =GE84/2.6 -> 0 | GI84: 0 | GJ84: =GH84/2.6 -> 0 | GL84: 0 | GM84: =GK84/2.6 -> 0 | GO84: 0 | GP84: =GN84/2.6 -> 0 | GR84: 0 | GS84: =GQ84/2.6 -> 0 | GU84: 0 | GV84: =GT84/2.6 -> 0 | GX84: 0 | GY84: =GW84/2.6 -> 0 | HA84: 0 | HB84: =GZ84/2.6 -> 0 | HD84: 0 | HE84: =HC84/2.6 -> 0 | HG84: 0 | HH84: =HF84/2.6 -> 0 | HJ84: 0 | HK84: =HI84/2.6 -> 0
A85: 4.7 | B85: P | C85: 7 | D85: Podloga za laminat od polietilenske pene Sunđerasta podloga za laminat | E85: The base for laminate of polyethylene foam Foam base for laminate | F85: m2 | G85: =CENA!G81 -> 0 | H85: 33 | I85: 0 | K85: =$G85*J85 -> 0 | N85: 0 | P85: 33 | T85: 0 | W85: 0 | Z85: 0 | AC85: 0 | AF85: 0 | AI85: 0 | AL85: 0 | AO85: 0 | AR85: 0 | AU85: 0 | AX85: 0 | BA85: 0 | BD85: 0 | BG85: 0 | BJ85: 0 | BM85: 0 | BP85: 0 | BS85: 0 | BV85: 0 | BY85: 0 | CB85: 0 | CE85: 0 | CH85: 0 | CK85: 0 | CN85: 0 | CQ85: 0 | CT85: 0 | CW85: 0 | CZ85: 0 | DC85: 0 | DF85: 0 | DI85: 0 | DL85: 0 | DO85: 0 | DR85: 0 | DU85: 0 | DX85: 0 | EA85: 0 | ED85: 0 | EG85: 0 | EJ85: 0 | EM85: 0 | EP85: 0 | ES85: 0 | EV85: 0 | EY85: 0 | FB85: 0 | FE85: 0 | FH85: 0 | FK85: 0 | FN85: 0 | FQ85: 0 | FT85: 0 | FW85: 0 | FZ85: 0 | GC85: 0 | GF85: 0 | GI85: 0 | GL85: 0 | GO85: 0 | GR85: 0 | GU85: 0 | GX85: 0 | HA85: 0 | HD85: 0 | HG85: 0 | HJ85: 0
A86: 4.8 | B86: P | C86: 8 | D86: Cementni suvi estrih (cementna košuljica). Pripremljeno cementno praškasto vezivo | E86: Cement dry screed (cement screed) Prepared cement powder binder | F86: kg | G86: =CENA!G82 -> 0 | H86: 0 | I86: 0 | K86: =$G86*J86 -> 0 | N86: 0 | Q86: 0 | T86: 0 | W86: 0 | Z86: 0 | AC86: 0 | AF86: 0 | AI86: 0 | AL86: 0 | AO86: 0 | AR86: 0 | AU86: 0 | AX86: 0 | BA86: 0 | BD86: 0 | BG86: 0 | BJ86: 0 | BM86: 0 | BP86: 0 | BS86: 0 | BV86: 0 | BY86: 0 | CB86: 0 | CE86: 0 | CH86: 0 | CK86: 0 | CN86: 0 | CQ86: 0 | CT86: 0 | CW86: 0 | CZ86: 0 | DC86: 0 | DF86: 0 | DI86: 0 | DL86: 0 | DO86: 0 | DR86: 0 | DU86: 0 | DX86: 0 | EA86: 0 | ED86: 0 | EG86: 0 | EJ86: 0 | EM86: 0 | EP86: 0 | ES86: 0 | EV86: 0 | EY86: 0 | FB86: 0 | FE86: 0 | FH86: 0 | FK86: 0 | FN86: 0 | FQ86: 0 | FT86: 0 | FW86: 0 | FZ86: 0 | GC86: 0 | GF86: 0 | GI86: 0 | GL86: 0 | GO86: 0 | GR86: 0 | GU86: 0 | GX86: 0 | HA86: 0 | HD86: 0 | HG86: 0 | HJ86: 0
A87: 4.9 | B87: P | C87: 9 | D87: Građevinska PVC folija Za razdvajanje cementne košuljice od termo izolacije. | E87: PVC foil for construction. To separate the cement screed of thermal insulation. | F87: m2 | G87: =CENA!G83 -> 0 | H87: 0 | I87: 0 | K87: =$G87*J87 -> 0 | N87: 0 | Q87: 0 | T87: 0 | W87: 0 | Z87: 0 | AC87: 0 | AF87: 0 | AI87: 0 | AL87: 0 | AO87: 0 | AR87: 0 | AU87: 0 | AX87: 0 | BA87: 0 | BD87: 0 | BG87: 0 | BJ87: 0 | BM87: 0 | BP87: 0 | BS87: 0 | BV87: 0 | BY87: 0 | CB87: 0 | CE87: 0 | CH87: 0 | CK87: 0 | CN87: 0 | CQ87: 0 | CT87: 0 | CW87: 0 | CZ87: 0 | DC87: 0 | DF87: 0 | DI87: 0 | DL87: 0 | DO87: 0 | DR87: 0 | DU87: 0 | DX87: 0 | EA87: 0 | ED87: 0 | EG87: 0 | EJ87: 0 | EM87: 0 | EP87: 0 | ES87: 0 | EV87: 0 | EY87: 0 | FB87: 0 | FE87: 0 | FH87: 0 | FK87: 0 | FN87: 0 | FQ87: 0 | FT87: 0 | FW87: 0 | FZ87: 0 | GC87: 0 | GF87: 0 | GI87: 0 | GL87: 0 | GO87: 0 | GR87: 0 | GU87: 0 | GX87: 0 | HA87: 0 | HD87: 0 | HG87: 0 | HJ87: 0
A88: 4.10 | B88: P | C88: 10 | D88: Stirodur (XPS za izolaciju na podovima) ploča od ekstrudirane polistirenske pene | E88: Stirodur (XPS insulation for floors) panel of extruded polystyrene foam | F88: / | G88: / | H88: / | I88: / | J88: / | K88: / | M88: / | N88: / | P88: / | Q88: / | S88: / | T88: / | V88: / | W88: / | Y88: / | Z88: / | AB88: / | AC88: / | AE88: / | AF88: / | AH88: / | AI88: / | AK88: / | AL88: / | AN88: / | AO88: / | AQ88: / | AR88: / | AT88: / | AU88: / | AW88: / | AX88: / | AZ88: / | BA88: / | BC88: / | BD88: / | BF88: / | BG88: / | BI88: / | BJ88: / | BL88: / | BM88: / | BO88: / | BP88: / | BR88: / | BS88: / | BU88: / | BV88: / | BX88: / | BY88: / | CA88: / | CB88: / | CD88: / | CE88: / | CG88: / | CH88: / | CJ88: / | CK88: / | CM88: / | CN88: / | CP88: / | CQ88: / | CS88: / | CT88: / | CV88: / | CW88: / | CY88: / | CZ88: / | DB88: / | DC88: / | DE88: / | DF88: / | DH88: / | DI88: / | DK88: / | DL88: / | DN88: / | DO88: / | DQ88: / | DR88: / | DT88: / | DU88: / | DW88: / | DX88: / | DZ88: / | EA88: / | EC88: / | ED88: / | EF88: / | EG88: / | EI88: / | EJ88: / | EL88: / | EM88: / | EO88: / | EP88: / | ER88: / | ES88: / | EU88: / | EV88: / | EX88: / | EY88: / | FA88: / | FB88: / | FD88: / | FE88: / | FG88: / | FH88: / | FJ88: / | FK88: / | FM88: / | FN88: / | FP88: / | FQ88: / | FS88: / | FT88: / | FV88: / | FW88: / | FY88: / | FZ88: / | GB88: / | GC88: / | GE88: / | GF88: / | GH88: / | GI88: / | GK88: / | GL88: / | GN88: / | GO88: / | GQ88: / | GR88: / | GT88: / | GU88: / | GW88: / | GX88: / | GZ88: / | HA88: / | HC88: / | HD88: / | HF88: / | HG88: / | HI88: / | HJ88: /
A89: 4.10.1 | C89: A | D89: debljine d=2 cm | E89: d=2 cm | F89: m2 | G89: =CENA!G85 -> 0 | H89: =J89+M89+P89+S89+V89+Y89+AB89+AE89+AH89+AK89+AN89+AQ89+AZ89+AW89+AT89+BC89+BF89+BI89+BL89+BO89+BR89+BU89+BX89+CA89+CD89+CG89+CJ89+CM89+CP89+CS89+CV89+CY89+DB89+DE89+DH89+DK89+DN89+DQ89+DT89+DW89+DZ89+EC89+EF89+EI89+EL89+EO89+ER89+EU89+EX89+FA89+FD89+FG89+FJ89+FM89+FP89+FS89+FV89+FY89+GB89+GE89+GH89+GK89+GN89+GQ89+GT89+GW89+GZ89+HC89+HF89+HI89 -> 30 | I89: =G89*H89 -> 0 | K89: =$G89*J89 -> 0 | N89: =$G89*M89 -> 0 | Q89: =$G89*P89 -> 0 | T89: =$G89*S89 -> 0 | W89: =$G89*V89 -> 0 | Z89: =$G89*Y89 -> 0 | AC89: =$G89*AB89 -> 0 | AF89: =$G89*AE89 -> 0 | AI89: =$G89*AH89 -> 0 | AK89: 30 | AO89: =$G89*AN89 -> 0 | AR89: =$G89*AQ89 -> 0 | AU89: =$G89*AT89 -> 0 | AX89: =$G89*AW89 -> 0 | BA89: =$G89*AZ89 -> 0 | BD89: =$G89*BC89 -> 0 | BG89: =$G89*BF89 -> 0 | BJ89: =$G89*BI89 -> 0 | BM89: =$G89*BL89 -> 0 | BP89: =$G89*BO89 -> 0 | BS89: =$G89*BR89 -> 0 | BV89: =$G89*BU89 -> 0 | BY89: =$G89*BX89 -> 0 | CB89: =$G89*CA89 -> 0 | CE89: =$G89*CD89 -> 0 | CH89: =$G89*CG89 -> 0 | CK89: =$G89*CJ89 -> 0 | CN89: =$G89*CM89 -> 0 | CQ89: =$G89*CP89 -> 0 | CT89: =$G89*CS89 -> 0 | CW89: =$G89*CV89 -> 0 | CZ89: =$G89*CY89 -> 0 | DC89: =$G89*DB89 -> 0 | DF89: =$G89*DE89 -> 0 | DI89: =$G89*DH89 -> 0 | DL89: =$G89*DK89 -> 0 | DO89: =$G89*DN89 -> 0 | DR89: =$G89*DQ89 -> 0 | DU89: =$G89*DT89 -> 0 | DX89: =$G89*DW89 -> 0 | EA89: =$G89*DZ89 -> 0 | ED89: =$G89*EC89 -> 0 | EG89: =$G89*EF89 -> 0 | EJ89: =$G89*EI89 -> 0 | EM89: =$G89*EL89 -> 0 | EP89: =$G89*EO89 -> 0 | ES89: =$G89*ER89 -> 0 | EV89: =$G89*EU89 -> 0 | EY89: =$G89*EX89 -> 0 | FB89: =$G89*FA89 -> 0 | FE89: =$G89*FD89 -> 0 | FH89: =$G89*FG89 -> 0 | FK89: =$G89*FJ89 -> 0 | FN89: =$G89*FM89 -> 0 | FQ89: =$G89*FP89 -> 0 | FT89: =$G89*FS89 -> 0 | FW89: =$G89*FV89 -> 0 | FZ89: =$G89*FY89 -> 0 | GC89: =$G89*GB89 -> 0 | GF89: =$G89*GE89 -> 0 | GI89: =$G89*GH89 -> 0 | GL89: =$G89*GK89 -> 0 | GO89: =$G89*GN89 -> 0 | GR89: =$G89*GQ89 -> 0 | GU89: =$G89*GT89 -> 0 | GX89: =$G89*GW89 -> 0 | HA89: =$G89*GZ89 -> 0 | HD89: =$G89*HC89 -> 0 | HG89: =$G89*HF89 -> 0 | HJ89: =$G89*HI89 -> 0
A90: 4.10.2 | C90: B | D90: debljine d=5 cm | E90: d=5 cm | F90: m2 | G90: =CENA!G86 -> 0 | H90: 48 | I90: 0 | K90: =$G90*J90 -> 0 | N90: 0 | Q90: =$G90*P90 -> 0 | T90: =$G90*S90 -> 0 | V90: 48 | Z90: =$G90*Y90 -> 0 | AC90: =$G90*AB90 -> 0 | AF90: =$G90*AE90 -> 0 | AI90: =$G90*AH90 -> 0 | AL90: =$G90*AK90 -> 0 | AO90: =$G90*AN90 -> 0 | AR90: =$G90*AQ90 -> 0 | AU90: =$G90*AT90 -> 0 | AX90: =$G90*AW90 -> 0 | BA90: =$G90*AZ90 -> 0 | BD90: =$G90*BC90 -> 0 | BG90: 0 | BJ90: 0 | BM90: =$G90*BL90 -> 0 | BP90: =$G90*BO90 -> 0 | BS90: =$G90*BR90 -> 0 | BV90: =$G90*BU90 -> 0 | BY90: =$G90*BX90 -> 0 | CB90: =$G90*CA90 -> 0 | CE90: =$G90*CD90 -> 0 | CH90: =$G90*CG90 -> 0 | CK90: =$G90*CJ90 -> 0 | CN90: =$G90*CM90 -> 0 | CQ90: =$G90*CP90 -> 0 | CT90: =$G90*CS90 -> 0 | CW90: =$G90*CV90 -> 0 | CZ90: =$G90*CY90 -> 0 | DC90: 0 | DF90: 0 | DI90: =$G90*DH90 -> 0 | DL90: =$G90*DK90 -> 0 | DO90: =$G90*DN90 -> 0 | DR90: =$G90*DQ90 -> 0 | DU90: =$G90*DT90 -> 0 | DX90: =$G90*DW90 -> 0 | EA90: =$G90*DZ90 -> 0 | ED90: =$G90*EC90 -> 0 | EG90: =$G90*EF90 -> 0 | EJ90: =$G90*EI90 -> 0 | EM90: =$G90*EL90 -> 0 | EP90: =$G90*EO90 -> 0 | ES90: =$G90*ER90 -> 0 | EV90: =$G90*EU90 -> 0 | EY90: 0 | FB90: 0 | FE90: =$G90*FD90 -> 0 | FH90: =$G90*FG90 -> 0 | FK90: =$G90*FJ90 -> 0 | FN90: =$G90*FM90 -> 0 | FQ90: =$G90*FP90 -> 0 | FT90: =$G90*FS90 -> 0 | FW90: =$G90*FV90 -> 0 | FZ90: =$G90*FY90 -> 0 | GC90: =$G90*GB90 -> 0 | GF90: =$G90*GE90 -> 0 | GI90: =$G90*GH90 -> 0 | GL90: =$G90*GK90 -> 0 | GO90: =$G90*GN90 -> 0 | GR90: =$G90*GQ90 -> 0 | GU90: =$G90*GT90 -> 0 | GX90: =$G90*GW90 -> 0 | HA90: =$G90*GZ90 -> 0 | HD90: =$G90*HC90 -> 0 | HG90: =$G90*HF90 -> 0 | HJ90: =$G90*HI90 -> 0
A92: 5 | B92: F | D92: MATERIJAL ZA IZRADU FASADE | E92: FACADE MATERIAL
A93: 5.1 | B93: F | C93: 1 | D93: EPS za termoizolaciju fasadnih zidova ploča od ekspandiranog polistirena | E93: Thermal insulation for facade walls (EPS) plates made of expanded polystyrene | F93: / | G93: / | H93: / | I93: / | J93: / | K93: / | M93: / | N93: / | P93: / | Q93: / | S93: / | T93: / | V93: / | W93: / | Y93: / | Z93: / | AB93: / | AC93: / | AE93: / | AF93: / | AH93: / | AI93: / | AK93: / | AL93: / | AN93: / | AO93: / | AQ93: / | AR93: / | AT93: / | AU93: / | AW93: / | AX93: / | AZ93: / | BA93: / | BC93: / | BD93: / | BF93: / | BG93: / | BI93: / | BJ93: / | BL93: / | BM93: / | BO93: / | BP93: / | BR93: / | BS93: / | BU93: / | BV93: / | BX93: / | BY93: / | CA93: / | CB93: / | CD93: / | CE93: / | CG93: / | CH93: / | CJ93: / | CK93: / | CM93: / | CN93: / | CP93: / | CQ93: / | CS93: / | CT93: / | CV93: / | CW93: / | CY93: / | CZ93: / | DB93: / | DC93: / | DE93: / | DF93: / | DH93: / | DI93: / | DK93: / | DL93: / | DN93: / | DO93: / | DQ93: / | DR93: / | DT93: / | DU93: / | DW93: / | DX93: / | DZ93: / | EA93: / | EC93: / | ED93: / | EF93: / | EG93: / | EI93: / | EJ93: / | EL93: / | EM93: / | EO93: / | EP93: / | ER93: / | ES93: / | EU93: / | EV93: / | EX93: / | EY93: / | FA93: / | FB93: / | FD93: / | FE93: / | FG93: / | FH93: / | FJ93: / | FK93: / | FM93: / | FN93: / | FP93: / | FQ93: / | FS93: / | FT93: / | FV93: / | FW93: / | FY93: / | FZ93: / | GB93: / | GC93: / | GE93: / | GF93: / | GH93: / | GI93: / | GK93: / | GL93: / | GN93: / | GO93: / | GQ93: / | GR93: / | GT93: / | GU93: / | GW93: / | GX93: / | GZ93: / | HA93: / | HC93: / | HD93: / | HF93: / | HG93: / | HI93: / | HJ93: /
A94: 5.1.1 | C94: A | D94: debljina d=8 cm | E94: d=8 cm | F94: m2 | G94: =CENA!G90 -> 0 | H94: =J94+M94+P94+S94+V94+Y94+AB94+AE94+AH94+AK94+AN94+AQ94+AZ94+AW94+AT94+BC94+BF94+BI94+BL94+BO94+BR94+BU94+BX94+CA94+CD94+CG94+CJ94+CM94+CP94+CS94+CV94+CY94+DB94+DE94+DH94+DK94+DN94+DQ94+DT94+DW94+DZ94+EC94+EF94+EI94+EL94+EO94+ER94+EU94+EX94+FA94+FD94+FG94+FJ94+FM94+FP94+FS94+FV94+FY94+GB94+GE94+GH94+GK94+GN94+GQ94+GT94+GW94+GZ94+HC94+HF94+HI94 -> 150 | I94: =G94*H94 -> 0 | K94: =$G94*J94 -> 0 | N94: =$G94*M94 -> 0 | Q94: =$G94*P94 -> 0 | T94: =$G94*S94 -> 0 | V94: 51 | Z94: =$G94*Y94 -> 0 | AC94: =$G94*AB94 -> 0 | AF94: =$G94*AE94 -> 0 | AI94: =$G94*AH94 -> 0 | AL94: =$G94*AK94 -> 0 | AO94: =$G94*AN94 -> 0 | AR94: =$G94*AQ94 -> 0 | AT94: 99 | AX94: =$G94*AW94 -> 0 | BA94: =$G94*AZ94 -> 0 | BD94: =$G94*BC94 -> 0 | BG94: =$G94*BF94 -> 0 | BJ94: =$G94*BI94 -> 0 | BM94: =$G94*BL94 -> 0 | BP94: =$G94*BO94 -> 0 | BS94: =$G94*BR94 -> 0 | BV94: =$G94*BU94 -> 0 | BY94: =$G94*BX94 -> 0 | CB94: =$G94*CA94 -> 0 | CE94: =$G94*CD94 -> 0 | CH94: =$G94*CG94 -> 0 | CK94: =$G94*CJ94 -> 0 | CN94: =$G94*CM94 -> 0 | CQ94: =$G94*CP94 -> 0 | CT94: =$G94*CS94 -> 0 | CW94: =$G94*CV94 -> 0 | CZ94: =$G94*CY94 -> 0 | DC94: =$G94*DB94 -> 0 | DF94: =$G94*DE94 -> 0 | DI94: =$G94*DH94 -> 0 | DL94: =$G94*DK94 -> 0 | DO94: =$G94*DN94 -> 0 | DR94: =$G94*DQ94 -> 0 | DU94: =$G94*DT94 -> 0 | DX94: =$G94*DW94 -> 0 | EA94: =$G94*DZ94 -> 0 | ED94: =$G94*EC94 -> 0 | EG94: =$G94*EF94 -> 0 | EJ94: =$G94*EI94 -> 0 | EM94: =$G94*EL94 -> 0 | EP94: =$G94*EO94 -> 0 | ES94: =$G94*ER94 -> 0 | EV94: =$G94*EU94 -> 0 | EY94: =$G94*EX94 -> 0 | FB94: =$G94*FA94 -> 0 | FE94: =$G94*FD94 -> 0 | FH94: =$G94*FG94 -> 0 | FK94: =$G94*FJ94 -> 0 | FN94: =$G94*FM94 -> 0 | FQ94: =$G94*FP94 -> 0 | FT94: =$G94*FS94 -> 0 | FW94: =$G94*FV94 -> 0 | FZ94: =$G94*FY94 -> 0 | GC94: =$G94*GB94 -> 0 | GF94: =$G94*GE94 -> 0 | GI94: =$G94*GH94 -> 0 | GL94: =$G94*GK94 -> 0 | GO94: =$G94*GN94 -> 0 | GR94: =$G94*GQ94 -> 0 | GU94: =$G94*GT94 -> 0 | GX94: =$G94*GW94 -> 0 | HA94: =$G94*GZ94 -> 0 | HD94: =$G94*HC94 -> 0 | HG94: =$G94*HF94 -> 0 | HJ94: =$G94*HI94 -> 0
A95: 5.1.2 | C95: B | D95: debljina d=10 cm | E95: d=10 cm | F95: m2 | G95: =CENA!G91 -> 0 | H95: 99 | I95: 0 | K95: =$G95*J95 -> 0 | N95: 0 | Q95: 0 | S95: 99 | W95: =$G95*V95 -> 0 | Z95: 0 | AC95: 0 | AF95: 0 | AI95: 0 | AL95: 0 | AO95: 0 | AR95: 0 | AU95: =$G95*AT95 -> 0 | AX95: 0 | BA95: 0 | BD95: 0 | BG95: 0 | BJ95: 0 | BM95: 0 | BP95: 0 | BS95: 0 | BV95: 0 | BY95: 0 | CB95: 0 | CE95: 0 | CH95: 0 | CK95: 0 | CN95: 0 | CQ95: 0 | CT95: 0 | CW95: 0 | CZ95: 0 | DC95: 0 | DF95: 0 | DI95: 0 | DL95: 0 | DO95: 0 | DR95: 0 | DU95: 0 | DX95: 0 | EA95: 0 | ED95: 0 | EG95: 0 | EJ95: 0 | EM95: 0 | EP95: 0 | ES95: 0 | EV95: 0 | EY95: 0 | FB95: 0 | FE95: 0 | FH95: 0 | FK95: 0 | FN95: 0 | FQ95: 0 | FT95: 0 | FW95: 0 | FZ95: 0 | GC95: 0 | GF95: 0 | GI95: 0 | GL95: 0 | GO95: 0 | GR95: 0 | GU95: 0 | GX95: 0 | HA95: 0 | HD95: 0 | HG95: 0 | HJ95: 0
A96: 5.1.3 | C96: C | D96: debljina d=12 cm | E96: d=12 cm | F96: m2 | G96: =CENA!G92 -> 0 | H96: 0 | I96: 0 | K96: =$G96*J96 -> 0 | N96: 0 | Q96: 0 | T96: 0 | W96: 0 | Z96: 0 | AC96: 0 | AF96: 0 | AI96: 0 | AL96: 0 | AO96: 0 | AR96: 0 | AU96: 0 | AX96: 0 | BA96: 0 | BD96: 0 | BG96: 0 | BJ96: 0 | BM96: 0 | BP96: 0 | BS96: 0 | BV96: 0 | BY96: 0 | CB96: 0 | CE96: 0 | CH96: 0 | CK96: 0 | CN96: 0 | CQ96: 0 | CT96: 0 | CW96: 0 | CZ96: 0 | DC96: 0 | DF96: 0 | DI96: 0 | DL96: 0 | DO96: 0 | DR96: 0 | DU96: 0 | DX96: 0 | EA96: 0 | ED96: 0 | EG96: 0 | EJ96: 0 | EM96: 0 | EP96: 0 | ES96: 0 | EV96: 0 | EY96: 0 | FB96: 0 | FE96: 0 | FH96: 0 | FK96: 0 | FN96: 0 | FQ96: 0 | FT96: 0 | FW96: 0 | FZ96: 0 | GC96: 0 | GF96: 0 | GI96: 0 | GL96: 0 | GO96: 0 | GR96: 0 | GU96: 0 | GX96: 0 | HA96: 0 | HD96: 0 | HG96: 0 | HJ96: 0
A97: 5.1.4 | C97: D | D97: debljina d=14 cm | E97: d=14 cm | F97: m2 | G97: =CENA!G93 -> 0 | H97: 0 | I97: 0 | K97: =$G97*J97 -> 0 | N97: 0 | Q97: 0 | T97: 0 | W97: 0 | Z97: 0 | AC97: 0 | AF97: 0 | AI97: 0 | AL97: 0 | AO97: 0 | AR97: 0 | AU97: 0 | AX97: 0 | BA97: 0 | BD97: 0 | BG97: 0 | BJ97: 0 | BM97: 0 | BP97: 0 | BS97: 0 | BV97: 0 | BY97: 0 | CB97: 0 | CE97: 0 | CH97: 0 | CK97: 0 | CN97: 0 | CQ97: 0 | CT97: 0 | CW97: 0 | CZ97: 0 | DC97: 0 | DF97: 0 | DI97: 0 | DL97: 0 | DO97: 0 | DR97: 0 | DU97: 0 | DX97: 0 | EA97: 0 | ED97: 0 | EG97: 0 | EJ97: 0 | EM97: 0 | EP97: 0 | ES97: 0 | EV97: 0 | EY97: 0 | FB97: 0 | FE97: 0 | FH97: 0 | FK97: 0 | FN97: 0 | FQ97: 0 | FT97: 0 | FW97: 0 | FZ97: 0 | GC97: 0 | GF97: 0 | GI97: 0 | GL97: 0 | GO97: 0 | GR97: 0 | GU97: 0 | GX97: 0 | HA97: 0 | HD97: 0 | HG97: 0 | HJ97: 0
A98: 5.2 | B98: F | C98: 2 | D98: GrađevinskI lepak za EPS ploče cementni lepak namenjen za lepljenje ploča od ekspandiranog polistirena (EPS) i armiranje armaturne (rabic) mrežice | E98: Construction glue for EPS plates cement adhesive for gluing plates made of expanded polystyrene (EPS) and reinforcing wire (rabic) net | F98: kg | G98: =CENA!G94 -> 0 | H98: 1645 | I98: 0 | K98: =$G98*J98 -> 0 | N98: 0 | Q98: 0 | S98: 800 | V98: 125 | Z98: 0 | AC98: 0 | AF98: 0 | AI98: 0 | AK98: 300 | AO98: 0 | AR98: 0 | AT98: 420 | AX98: 0 | BA98: 0 | BD98: 0 | BG98: 0 | BJ98: 0 | BM98: 0 | BP98: 0 | BS98: 0 | BV98: 0 | BY98: 0 | CB98: 0 | CE98: 0 | CH98: 0 | CK98: 0 | CN98: 0 | CQ98: 0 | CT98: 0 | CW98: 0 | CZ98: 0 | DC98: 0 | DF98: 0 | DI98: 0 | DL98: 0 | DO98: 0 | DR98: 0 | DU98: 0 | DX98: 0 | EA98: 0 | ED98: 0 | EG98: 0 | EJ98: 0 | EM98: 0 | EP98: 0 | ES98: 0 | EV98: 0 | EY98: 0 | FB98: 0 | FE98: 0 | FH98: 0 | FK98: 0 | FN98: 0 | FQ98: 0 | FT98: 0 | FW98: 0 | FZ98: 0 | GC98: 0 | GF98: 0 | GI98: 0 | GL98: 0 | GO98: 0 | GR98: 0 | GU98: 0 | GX98: 0 | HA98: 0 | HD98: 0 | HG98: 0 | HJ98: 0
A99: 5.3 | B99: F | C99: 3 | D99: Armaturna (rabic) staklena mrežica. Visokokvalitetna alkalno postojana staklena mrežica | E99: Reinforcing (rabic) fiberglass mesh High quality alkali resistant fiberglass mesh | F99: m2 | G99: =CENA!G95 -> 0 | H99: 250 | I99: 0 | K99: =$G99*J99 -> 0 | N99: 0 | Q99: 0 | S99: 100 | W99: 0 | Z99: 0 | AC99: 0 | AF99: 0 | AI99: 0 | AK99: 50 | AO99: 0 | AR99: 0 | AT99: 100 | AX99: 0 | BA99: 0 | BD99: 0 | BG99: 0 | BJ99: 0 | BM99: 0 | BP99: 0 | BS99: 0 | BV99: 0 | BY99: 0 | CB99: 0 | CE99: 0 | CH99: 0 | CK99: 0 | CN99: 0 | CQ99: 0 | CT99: 0 | CW99: 0 | CZ99: 0 | DC99: 0 | DF99: 0 | DI99: 0 | DL99: 0 | DO99: 0 | DR99: 0 | DU99: 0 | DX99: 0 | EA99: 0 | ED99: 0 | EG99: 0 | EJ99: 0 | EM99: 0 | EP99: 0 | ES99: 0 | EV99: 0 | EY99: 0 | FB99: 0 | FE99: 0 | FH99: 0 | FK99: 0 | FN99: 0 | FQ99: 0 | FT99: 0 | FW99: 0 | FZ99: 0 | GC99: 0 | GF99: 0 | GI99: 0 | GL99: 0 | GO99: 0 | GR99: 0 | GU99: 0 | GX99: 0 | HA99: 0 | HD99: 0 | HG99: 0 | HJ99: 0
A100: 5.4 | B100: F | C100: 4 | D100: Aktivni predpremaz pre nanošenja tankoslojnog fasadnog maltera. predpremaz za izjednačavanje upijanja - podloga | E100: Active primer before applying the thin-layer plaster primer for the equalization of absorption surface | F100: kg | G100: =CENA!G96 -> 0 | H100: 0 | I100: 0 | K100: =$G100*J100 -> 0 | N100: 0 | Q100: 0 | T100: 0 | W100: 0 | Z100: 0 | AC100: 0 | AF100: 0 | AI100: 0 | AL100: 0 | AO100: 0 | AR100: 0 | AU100: 0 | AX100: 0 | BA100: 0 | BD100: 0 | BG100: 0 | BJ100: 0 | BM100: 0 | BP100: 0 | BS100: 0 | BV100: 0 | BY100: 0 | CB100: 0 | CE100: 0 | CH100: 0 | CK100: 0 | CN100: 0 | CQ100: 0 | CT100: 0 | CW100: 0 | CZ100: 0 | DC100: 0 | DF100: 0 | DI100: 0 | DL100: 0 | DO100: 0 | DR100: 0 | DU100: 0 | DX100: 0 | EA100: 0 | ED100: 0 | EG100: 0 | EJ100: 0 | EM100: 0 | EP100: 0 | ES100: 0 | EV100: 0 | EY100: 0 | FB100: 0 | FE100: 0 | FH100: 0 | FK100: 0 | FN100: 0 | FQ100: 0 | FT100: 0 | FW100: 0 | FZ100: 0 | GC100: 0 | GF100: 0 | GI100: 0 | GL100: 0 | GO100: 0 | GR100: 0 | GU100: 0 | GX100: 0 | HA100: 0 | HD100: 0 | HG100: 0 | HJ100: 0
A101: 5.5 | B101: F | C101: 5 | D101: Fasadni tankoslojni akrilni malter Završni malter u pastoznom stanju, namenjen za zaštitu fasadnih zidnih površina | E101: Facade thin-layer acrylic plaster Finishing plaster in paste-like state, intended for the protection of facade wall surfaces | F101: / | G101: / | H101: / | I101: / | J101: / | K101: / | M101: / | N101: / | P101: / | Q101: / | S101: / | T101: / | V101: / | W101: / | Y101: / | Z101: / | AB101: / | AC101: / | AE101: / | AF101: / | AH101: / | AI101: / | AK101: / | AL101: / | AN101: / | AO101: / | AQ101: / | AR101: / | AT101: / | AU101: / | AW101: / | AX101: / | AZ101: / | BA101: / | BC101: / | BD101: / | BF101: / | BG101: / | BI101: / | BJ101: / | BL101: / | BM101: / | BO101: / | BP101: / | BR101: / | BS101: / | BU101: / | BV101: / | BX101: / | BY101: / | CA101: / | CB101: / | CD101: / | CE101: / | CG101: / | CH101: / | CJ101: / | CK101: / | CM101: / | CN101: / | CP101: / | CQ101: / | CS101: / | CT101: / | CV101: / | CW101: / | CY101: / | CZ101: / | DB101: / | DC101: / | DE101: / | DF101: / | DH101: / | DI101: / | DK101: / | DL101: / | DN101: / | DO101: / | DQ101: / | DR101: / | DT101: / | DU101: / | DW101: / | DX101: / | DZ101: / | EA101: / | EC101: / | ED101: / | EF101: / | EG101: / | EI101: / | EJ101: / | EL101: / | EM101: / | EO101: / | EP101: / | ER101: / | ES101: / | EU101: / | EV101: / | EX101: / | EY101: / | FA101: / | FB101: / | FD101: / | FE101: / | FG101: / | FH101: / | FJ101: / | FK101: / | FM101: / | FN101: / | FP101: / | FQ101: / | FS101: / | FT101: / | FV101: / | FW101: / | FY101: / | FZ101: / | GB101: / | GC101: / | GE101: / | GF101: / | GH101: / | GI101: / | GK101: / | GL101: / | GN101: / | GO101: / | GQ101: / | GR101: / | GT101: / | GU101: / | GW101: / | GX101: / | GZ101: / | HA101: / | HC101: / | HD101: / | HF101: / | HG101: / | HI101: / | HJ101: /
A102: 5.5.1 | C102: A | D102: boja približna RAL 1034 -kajsija | E102: color similar to RAL 1034-apricot | F102: kg | G102: =CENA!G98 -> 0 | H102: =J102+M102+P102+S102+V102+Y102+AB102+AE102+AH102+AK102+AN102+AQ102+AZ102+AW102+AT102+BC102+BF102+BI102+BL102+BO102+BR102+BU102+BX102+CA102+CD102+CG102+CJ102+CM102+CP102+CS102+CV102+CY102+DB102+DE102+DH102+DK102+DN102+DQ102+DT102+DW102+DZ102+EC102+EF102+EI102+EL102+EO102+ER102+EU102+EX102+FA102+FD102+FG102+FJ102+FM102+FP102+FS102+FV102+FY102+GB102+GE102+GH102+GK102+GN102+GQ102+GT102+GW102+GZ102+HC102+HF102+HI102 -> 0 | I102: =G102*H102 -> 0 | K102: =$G102*J102 -> 0 | N102: =$G102*M102 -> 0 | Q102: =$G102*P102 -> 0 | T102: =$G102*S102 -> 0 | W102: =$G102*V102 -> 0 | Z102: =$G102*Y102 -> 0 | AC102: =$G102*AB102 -> 0 | AF102: =$G102*AE102 -> 0 | AI102: =$G102*AH102 -> 0 | AL102: =$G102*AK102 -> 0 | AO102: =$G102*AN102 -> 0 | AR102: =$G102*AQ102 -> 0 | AU102: =$G102*AT102 -> 0 | AX102: =$G102*AW102 -> 0 | BA102: =$G102*AZ102 -> 0 | BD102: =$G102*BC102 -> 0 | BG102: =$G102*BF102 -> 0 | BJ102: =$G102*BI102 -> 0 | BM102: =$G102*BL102 -> 0 | BP102: =$G102*BO102 -> 0 | BS102: =$G102*BR102 -> 0 | BV102: =$G102*BU102 -> 0 | BY102: =$G102*BX102 -> 0 | CB102: =$G102*CA102 -> 0 | CE102: =$G102*CD102 -> 0 | CH102: =$G102*CG102 -> 0 | CK102: =$G102*CJ102 -> 0 | CN102: =$G102*CM102 -> 0 | CQ102: =$G102*CP102 -> 0 | CT102: =$G102*CS102 -> 0 | CW102: =$G102*CV102 -> 0 | CZ102: =$G102*CY102 -> 0 | DC102: =$G102*DB102 -> 0 | DF102: =$G102*DE102 -> 0 | DI102: =$G102*DH102 -> 0 | DL102: =$G102*DK102 -> 0 | DO102: =$G102*DN102 -> 0 | DR102: =$G102*DQ102 -> 0 | DU102: =$G102*DT102 -> 0 | DX102: =$G102*DW102 -> 0 | EA102: =$G102*DZ102 -> 0 | ED102: =$G102*EC102 -> 0 | EG102: =$G102*EF102 -> 0 | EJ102: =$G102*EI102 -> 0 | EM102: =$G102*EL102 -> 0 | EP102: =$G102*EO102 -> 0 | ES102: =$G102*ER102 -> 0 | EV102: =$G102*EU102 -> 0 | EY102: =$G102*EX102 -> 0 | FB102: =$G102*FA102 -> 0 | FE102: =$G102*FD102 -> 0 | FH102: =$G102*FG102 -> 0 | FK102: =$G102*FJ102 -> 0 | FN102: =$G102*FM102 -> 0 | FQ102: =$G102*FP102 -> 0 | FT102: =$G102*FS102 -> 0 | FW102: =$G102*FV102 -> 0 | FZ102: =$G102*FY102 -> 0 | GC102: =$G102*GB102 -> 0 | GF102: =$G102*GE102 -> 0 | GI102: =$G102*GH102 -> 0 | GL102: =$G102*GK102 -> 0 | GO102: =$G102*GN102 -> 0 | GR102: =$G102*GQ102 -> 0 | GU102: =$G102*GT102 -> 0 | GX102: =$G102*GW102 -> 0 | HA102: =$G102*GZ102 -> 0 | HD102: =$G102*HC102 -> 0 | HG102: =$G102*HF102 -> 0 | HJ102: =$G102*HI102 -> 0
A103: 5.5.2 | C103: B | D103: boja približna RAL 6005 -pastelno zelena | E103: color similar to RAL 6005 pastel-green | F103: kg | G103: =CENA!G99 -> 0 | H103: 0 | I103: 0 | K103: =$G103*J103 -> 0 | N103: 0 | Q103: =$G103*P103 -> 0 | T103: 0 | W103: =$G103*V103 -> 0 | Z103: =$G103*Y103 -> 0 | AC103: =$G103*AB103 -> 0 | AF103: =$G103*AE103 -> 0 | AI103: =$G103*AH103 -> 0 | AL103: =$G103*AK103 -> 0 | AO103: =$G103*AN103 -> 0 | AR103: =$G103*AQ103 -> 0 | AU103: =$G103*AT103 -> 0 | AX103: =$G103*AW103 -> 0 | BA103: =$G103*AZ103 -> 0 | BD103: =$G103*BC103 -> 0 | BG103: 0 | BJ103: 0 | BM103: =$G103*BL103 -> 0 | BP103: 0 | BS103: =$G103*BR103 -> 0 | BV103: =$G103*BU103 -> 0 | BY103: =$G103*BX103 -> 0 | CB103: =$G103*CA103 -> 0 | CE103: =$G103*CD103 -> 0 | CH103: =$G103*CG103 -> 0 | CK103: =$G103*CJ103 -> 0 | CN103: =$G103*CM103 -> 0 | CQ103: =$G103*CP103 -> 0 | CT103: =$G103*CS103 -> 0 | CW103: =$G103*CV103 -> 0 | CZ103: =$G103*CY103 -> 0 | DC103: 0 | DF103: 0 | DI103: =$G103*DH103 -> 0 | DL103: 0 | DO103: =$G103*DN103 -> 0 | DR103: =$G103*DQ103 -> 0 | DU103: =$G103*DT103 -> 0 | DX103: =$G103*DW103 -> 0 | EA103: =$G103*DZ103 -> 0 | ED103: =$G103*EC103 -> 0 | EG103: =$G103*EF103 -> 0 | EJ103: =$G103*EI103 -> 0 | EM103: =$G103*EL103 -> 0 | EP103: =$G103*EO103 -> 0 | ES103: =$G103*ER103 -> 0 | EV103: =$G103*EU103 -> 0 | EY103: 0 | FB103: 0 | FE103: =$G103*FD103 -> 0 | FH103: 0 | FK103: =$G103*FJ103 -> 0 | FN103: =$G103*FM103 -> 0 | FQ103: =$G103*FP103 -> 0 | FT103: =$G103*FS103 -> 0 | FW103: =$G103*FV103 -> 0 | FZ103: =$G103*FY103 -> 0 | GC103: =$G103*GB103 -> 0 | GF103: =$G103*GE103 -> 0 | GI103: =$G103*GH103 -> 0 | GL103: =$G103*GK103 -> 0 | GO103: =$G103*GN103 -> 0 | GR103: =$G103*GQ103 -> 0 | GU103: =$G103*GT103 -> 0 | GX103: =$G103*GW103 -> 0 | HA103: =$G103*GZ103 -> 0 | HD103: =$G103*HC103 -> 0 | HG103: =$G103*HF103 -> 0 | HJ103: =$G103*HI103 -> 0
A104: 5.5.3 | C104: C | D104: boja približna RAL 5023 -pastelno plava | E104: color similar to RAL 5023 pastel-blue | F104: kg | G104: =CENA!G100 -> 0 | H104: 0 | I104: 0 | K104: =$G104*J104 -> 0 | N104: 0 | Q104: =$G104*P104 -> 0 | T104: 0 | W104: =$G104*V104 -> 0 | Z104: =$G104*Y104 -> 0 | AC104: =$G104*AB104 -> 0 | AF104: =$G104*AE104 -> 0 | AI104: =$G104*AH104 -> 0 | AL104: =$G104*AK104 -> 0 | AO104: =$G104*AN104 -> 0 | AR104: =$G104*AQ104 -> 0 | AU104: =$G104*AT104 -> 0 | AX104: =$G104*AW104 -> 0 | BA104: =$G104*AZ104 -> 0 | BD104: =$G104*BC104 -> 0 | BG104: 0 | BJ104: 0 | BM104: =$G104*BL104 -> 0 | BP104: 0 | BS104: =$G104*BR104 -> 0 | BV104: =$G104*BU104 -> 0 | BY104: =$G104*BX104 -> 0 | CB104: =$G104*CA104 -> 0 | CE104: =$G104*CD104 -> 0 | CH104: =$G104*CG104 -> 0 | CK104: =$G104*CJ104 -> 0 | CN104: =$G104*CM104 -> 0 | CQ104: =$G104*CP104 -> 0 | CT104: =$G104*CS104 -> 0 | CW104: =$G104*CV104 -> 0 | CZ104: =$G104*CY104 -> 0 | DC104: 0 | DF104: 0 | DI104: =$G104*DH104 -> 0 | DL104: 0 | DO104: =$G104*DN104 -> 0 | DR104: =$G104*DQ104 -> 0 | DU104: =$G104*DT104 -> 0 | DX104: =$G104*DW104 -> 0 | EA104: =$G104*DZ104 -> 0 | ED104: =$G104*EC104 -> 0 | EG104: =$G104*EF104 -> 0 | EJ104: =$G104*EI104 -> 0 | EM104: =$G104*EL104 -> 0 | EP104: =$G104*EO104 -> 0 | ES104: =$G104*ER104 -> 0 | EV104: =$G104*EU104 -> 0 | EY104: 0 | FB104: 0 | FE104: =$G104*FD104 -> 0 | FH104: 0 | FK104: =$G104*FJ104 -> 0 | FN104: =$G104*FM104 -> 0 | FQ104: =$G104*FP104 -> 0 | FT104: =$G104*FS104 -> 0 | FW104: =$G104*FV104 -> 0 | FZ104: =$G104*FY104 -> 0 | GC104: =$G104*GB104 -> 0 | GF104: =$G104*GE104 -> 0 | GI104: =$G104*GH104 -> 0 | GL104: =$G104*GK104 -> 0 | GO104: =$G104*GN104 -> 0 | GR104: =$G104*GQ104 -> 0 | GU104: =$G104*GT104 -> 0 | GX104: =$G104*GW104 -> 0 | HA104: =$G104*GZ104 -> 0 | HD104: =$G104*HC104 -> 0 | HG104: =$G104*HF104 -> 0 | HJ104: =$G104*HI104 -> 0
A105: 5.5.4 | C105: D | D105: boja približna RAL 3011 -pastelno crvena | E105: color similar to RAL 3011 pastel-red | F105: kg | G105: =CENA!G101 -> 0 | H105: 0 | I105: 0 | K105: =$G105*J105 -> 0 | N105: 0 | Q105: =$G105*P105 -> 0 | T105: 0 | W105: =$G105*V105 -> 0 | Z105: =$G105*Y105 -> 0 | AC105: =$G105*AB105 -> 0 | AF105: =$G105*AE105 -> 0 | AI105: =$G105*AH105 -> 0 | AL105: =$G105*AK105 -> 0 | AO105: =$G105*AN105 -> 0 | AR105: =$G105*AQ105 -> 0 | AU105: =$G105*AT105 -> 0 | AX105: =$G105*AW105 -> 0 | BA105: =$G105*AZ105 -> 0 | BD105: =$G105*BC105 -> 0 | BG105: 0 | BJ105: 0 | BM105: =$G105*BL105 -> 0 | BP105: 0 | BS105: =$G105*BR105 -> 0 | BV105: =$G105*BU105 -> 0 | BY105: =$G105*BX105 -> 0 | CB105: =$G105*CA105 -> 0 | CE105: =$G105*CD105 -> 0 | CH105: =$G105*CG105 -> 0 | CK105: =$G105*CJ105 -> 0 | CN105: =$G105*CM105 -> 0 | CQ105: =$G105*CP105 -> 0 | CT105: =$G105*CS105 -> 0 | CW105: =$G105*CV105 -> 0 | CZ105: =$G105*CY105 -> 0 | DC105: 0 | DF105: 0 | DI105: =$G105*DH105 -> 0 | DL105: 0 | DO105: =$G105*DN105 -> 0 | DR105: =$G105*DQ105 -> 0 | DU105: =$G105*DT105 -> 0 | DX105: =$G105*DW105 -> 0 | EA105: =$G105*DZ105 -> 0 | ED105: =$G105*EC105 -> 0 | EG105: =$G105*EF105 -> 0 | EJ105: =$G105*EI105 -> 0 | EM105: =$G105*EL105 -> 0 | EP105: =$G105*EO105 -> 0 | ES105: =$G105*ER105 -> 0 | EV105: =$G105*EU105 -> 0 | EY105: 0 | FB105: 0 | FE105: =$G105*FD105 -> 0 | FH105: 0 | FK105: =$G105*FJ105 -> 0 | FN105: =$G105*FM105 -> 0 | FQ105: =$G105*FP105 -> 0 | FT105: =$G105*FS105 -> 0 | FW105: =$G105*FV105 -> 0 | FZ105: =$G105*FY105 -> 0 | GC105: =$G105*GB105 -> 0 | GF105: =$G105*GE105 -> 0 | GI105: =$G105*GH105 -> 0 | GL105: =$G105*GK105 -> 0 | GO105: =$G105*GN105 -> 0 | GR105: =$G105*GQ105 -> 0 | GU105: =$G105*GT105 -> 0 | GX105: =$G105*GW105 -> 0 | HA105: =$G105*GZ105 -> 0 | HD105: =$G105*HC105 -> 0 | HG105: =$G105*HF105 -> 0 | HJ105: =$G105*HI105 -> 0
A106: 5.5.5 | C106: E | D106: boja približna RAL 8002 -braon | E106: color similar to RAL 8002 brown | F106: kg | G106: =CENA!G102 -> 0 | H106: 0 | I106: 0 | K106: =$G106*J106 -> 0 | N106: 0 | Q106: =$G106*P106 -> 0 | T106: 0 | W106: =$G106*V106 -> 0 | Z106: =$G106*Y106 -> 0 | AC106: =$G106*AB106 -> 0 | AF106: =$G106*AE106 -> 0 | AI106: =$G106*AH106 -> 0 | AL106: =$G106*AK106 -> 0 | AO106: =$G106*AN106 -> 0 | AR106: =$G106*AQ106 -> 0 | AU106: =$G106*AT106 -> 0 | AX106: =$G106*AW106 -> 0 | BA106: =$G106*AZ106 -> 0 | BD106: =$G106*BC106 -> 0 | BG106: 0 | BJ106: 0 | BM106: =$G106*BL106 -> 0 | BP106: 0 | BS106: =$G106*BR106 -> 0 | BV106: =$G106*BU106 -> 0 | BY106: =$G106*BX106 -> 0 | CB106: =$G106*CA106 -> 0 | CE106: =$G106*CD106 -> 0 | CH106: =$G106*CG106 -> 0 | CK106: =$G106*CJ106 -> 0 | CN106: =$G106*CM106 -> 0 | CQ106: =$G106*CP106 -> 0 | CT106: =$G106*CS106 -> 0 | CW106: =$G106*CV106 -> 0 | CZ106: =$G106*CY106 -> 0 | DC106: 0 | DF106: 0 | DI106: =$G106*DH106 -> 0 | DL106: 0 | DO106: =$G106*DN106 -> 0 | DR106: =$G106*DQ106 -> 0 | DU106: =$G106*DT106 -> 0 | DX106: =$G106*DW106 -> 0 | EA106: =$G106*DZ106 -> 0 | ED106: =$G106*EC106 -> 0 | EG106: =$G106*EF106 -> 0 | EJ106: =$G106*EI106 -> 0 | EM106: =$G106*EL106 -> 0 | EP106: =$G106*EO106 -> 0 | ES106: =$G106*ER106 -> 0 | EV106: =$G106*EU106 -> 0 | EY106: 0 | FB106: 0 | FE106: =$G106*FD106 -> 0 | FH106: 0 | FK106: =$G106*FJ106 -> 0 | FN106: =$G106*FM106 -> 0 | FQ106: =$G106*FP106 -> 0 | FT106: =$G106*FS106 -> 0 | FW106: =$G106*FV106 -> 0 | FZ106: =$G106*FY106 -> 0 | GC106: =$G106*GB106 -> 0 | GF106: =$G106*GE106 -> 0 | GI106: =$G106*GH106 -> 0 | GL106: =$G106*GK106 -> 0 | GO106: =$G106*GN106 -> 0 | GR106: =$G106*GQ106 -> 0 | GU106: =$G106*GT106 -> 0 | GX106: =$G106*GW106 -> 0 | HA106: =$G106*GZ106 -> 0 | HD106: =$G106*HC106 -> 0 | HG106: =$G106*HF106 -> 0 | HJ106: =$G106*HI106 -> 0
A108: 6 | B108: H | D108: MATERIJAL ZA HIDRO IZOLACIJE | E108: WATERPROOFING MATERIAL
A109: 6.1 | B109: H | C109: 1 | D109: Bitulit (prethodni premaz za hidroizolaciju) Upotrebljava se u isporučenom stanju (hladan postupak ) bez zagrevanja | E109: Bitulit (previous coating for waterproofing) It is used as delivered (cold process) without heating | F109: kg | G109: =CENA!G105 -> 0 | H109: =J109+M109+P109+S109+V109+Y109+AB109+AE109+AH109+AK109+AN109+AQ109+AZ109+AW109+AT109+BC109+BF109+BI109+BL109+BO109+BR109+BU109+BX109+CA109+CD109+CG109+CJ109+CM109+CP109+CS109+CV109+CY109+DB109+DE109+DH109+DK109+DN109+DQ109+DT109+DW109+DZ109+EC109+EF109+EI109+EL109+EO109+ER109+EU109+EX109+FA109+FD109+FG109+FJ109+FM109+FP109+FS109+FV109+FY109+GB109+GE109+GH109+GK109+GN109+GQ109+GT109+GW109+GZ109+HC109+HF109+HI109 -> 0 | I109: =G109*H109 -> 0 | K109: =$G109*J109 -> 0 | N109: =$G109*M109 -> 0 | Q109: =$G109*P109 -> 0 | T109: =$G109*S109 -> 0 | W109: =$G109*V109 -> 0 | Z109: =$G109*Y109 -> 0 | AC109: =$G109*AB109 -> 0 | AF109: =$G109*AE109 -> 0 | AI109: =$G109*AH109 -> 0 | AL109: =$G109*AK109 -> 0 | AO109: =$G109*AN109 -> 0 | AR109: =$G109*AQ109 -> 0 | AU109: =$G109*AT109 -> 0 | AX109: =$G109*AW109 -> 0 | BA109: =$G109*AZ109 -> 0 | BD109: =$G109*BC109 -> 0 | BG109: =$G109*BF109 -> 0 | BJ109: =$G109*BI109 -> 0 | BM109: =$G109*BL109 -> 0 | BP109: =$G109*BO109 -> 0 | BS109: =$G109*BR109 -> 0 | BV109: =$G109*BU109 -> 0 | BY109: =$G109*BX109 -> 0 | CB109: =$G109*CA109 -> 0 | CE109: =$G109*CD109 -> 0 | CH109: =$G109*CG109 -> 0 | CK109: =$G109*CJ109 -> 0 | CN109: =$G109*CM109 -> 0 | CQ109: =$G109*CP109 -> 0 | CT109: =$G109*CS109 -> 0 | CW109: =$G109*CV109 -> 0 | CZ109: =$G109*CY109 -> 0 | DC109: =$G109*DB109 -> 0 | DF109: =$G109*DE109 -> 0 | DI109: =$G109*DH109 -> 0 | DL109: =$G109*DK109 -> 0 | DO109: =$G109*DN109 -> 0 | DR109: =$G109*DQ109 -> 0 | DU109: =$G109*DT109 -> 0 | DX109: =$G109*DW109 -> 0 | EA109: =$G109*DZ109 -> 0 | ED109: =$G109*EC109 -> 0 | EG109: =$G109*EF109 -> 0 | EJ109: =$G109*EI109 -> 0 | EM109: =$G109*EL109 -> 0 | EP109: =$G109*EO109 -> 0 | ES109: =$G109*ER109 -> 0 | EV109: =$G109*EU109 -> 0 | EY109: =$G109*EX109 -> 0 | FB109: =$G109*FA109 -> 0 | FE109: =$G109*FD109 -> 0 | FH109: =$G109*FG109 -> 0 | FK109: =$G109*FJ109 -> 0 | FN109: =$G109*FM109 -> 0 | FQ109: =$G109*FP109 -> 0 | FT109: =$G109*FS109 -> 0 | FW109: =$G109*FV109 -> 0 | FZ109: =$G109*FY109 -> 0 | GC109: =$G109*GB109 -> 0 | GF109: =$G109*GE109 -> 0 | GI109: =$G109*GH109 -> 0 | GL109: =$G109*GK109 -> 0 | GO109: =$G109*GN109 -> 0 | GR109: =$G109*GQ109 -> 0 | GU109: =$G109*GT109 -> 0 | GX109: =$G109*GW109 -> 0 | HA109: =$G109*GZ109 -> 0 | HD109: =$G109*HC109 -> 0 | HG109: =$G109*HF109 -> 0 | HJ109: =$G109*HI109 -> 0
A110: 6.2 | B110: H | C110: 2 | D110: Poliazbitol (hladni premaz za hidroizolaciju) Upotrebljava se u isporučenom stanju (hladan postupak) bez zagrevanja | E110: POLYASBITOL (cold coating for waterproofing) It is used as delivered (cold process) without heating | F110: kg | G110: =CENA!G106 -> 0 | H110: 0 | I110: 0 | K110: =$G110*J110 -> 0 | N110: 0 | Q110: =$G110*P110 -> 0 | T110: =$G110*S110 -> 0 | W110: =$G110*V110 -> 0 | Z110: =$G110*Y110 -> 0 | AC110: =$G110*AB110 -> 0 | AF110: =$G110*AE110 -> 0 | AI110: =$G110*AH110 -> 0 | AL110: =$G110*AK110 -> 0 | AO110: =$G110*AN110 -> 0 | AR110: =$G110*AQ110 -> 0 | AU110: =$G110*AT110 -> 0 | AX110: =$G110*AW110 -> 0 | BA110: =$G110*AZ110 -> 0 | BD110: =$G110*BC110 -> 0 | BG110: 0 | BJ110: 0 | BM110: =$G110*BL110 -> 0 | BP110: =$G110*BO110 -> 0 | BS110: =$G110*BR110 -> 0 | BV110: =$G110*BU110 -> 0 | BY110: =$G110*BX110 -> 0 | CB110: =$G110*CA110 -> 0 | CE110: =$G110*CD110 -> 0 | CH110: =$G110*CG110 -> 0 | CK110: =$G110*CJ110 -> 0 | CN110: =$G110*CM110 -> 0 | CQ110: =$G110*CP110 -> 0 | CT110: =$G110*CS110 -> 0 | CW110: =$G110*CV110 -> 0 | CZ110: =$G110*CY110 -> 0 | DC110: 0 | DF110: 0 | DI110: =$G110*DH110 -> 0 | DL110: =$G110*DK110 -> 0 | DO110: =$G110*DN110 -> 0 | DR110: =$G110*DQ110 -> 0 | DU110: =$G110*DT110 -> 0 | DX110: =$G110*DW110 -> 0 | EA110: =$G110*DZ110 -> 0 | ED110: =$G110*EC110 -> 0 | EG110: =$G110*EF110 -> 0 | EJ110: =$G110*EI110 -> 0 | EM110: =$G110*EL110 -> 0 | EP110: =$G110*EO110 -> 0 | ES110: =$G110*ER110 -> 0 | EV110: =$G110*EU110 -> 0 | EY110: 0 | FB110: 0 | FE110: =$G110*FD110 -> 0 | FH110: =$G110*FG110 -> 0 | FK110: =$G110*FJ110 -> 0 | FN110: =$G110*FM110 -> 0 | FQ110: =$G110*FP110 -> 0 | FT110: =$G110*FS110 -> 0 | FW110: =$G110*FV110 -> 0 | FZ110: =$G110*FY110 -> 0 | GC110: =$G110*GB110 -> 0 | GF110: =$G110*GE110 -> 0 | GI110: =$G110*GH110 -> 0 | GL110: =$G110*GK110 -> 0 | GO110: =$G110*GN110 -> 0 | GR110: =$G110*GQ110 -> 0 | GU110: =$G110*GT110 -> 0 | GX110: =$G110*GW110 -> 0 | HA110: =$G110*GZ110 -> 0 | HD110: =$G110*HC110 -> 0 | HG110: =$G110*HF110 -> 0 | HJ110: =$G110*HI110 -> 0
A111: 6.3 | B111: H | C111: 3 | D111: Ter papir Bitumenska hidroizolaciona traka. | E111: Ter paper Bituminous waterproofing tape. | F111: m2 | G111: =CENA!G107 -> 0 | H111: 0 | I111: 0 | K111: =$G111*J111 -> 0 | N111: 0 | Q111: =$G111*P111 -> 0 | T111: =$G111*S111 -> 0 | W111: =$G111*V111 -> 0 | Z111: =$G111*Y111 -> 0 | AC111: =$G111*AB111 -> 0 | AF111: =$G111*AE111 -> 0 | AI111: =$G111*AH111 -> 0 | AL111: =$G111*AK111 -> 0 | AO111: =$G111*AN111 -> 0 | AR111: =$G111*AQ111 -> 0 | AU111: =$G111*AT111 -> 0 | AX111: =$G111*AW111 -> 0 | BA111: =$G111*AZ111 -> 0 | BD111: =$G111*BC111 -> 0 | BG111: 0 | BJ111: 0 | BM111: =$G111*BL111 -> 0 | BP111: =$G111*BO111 -> 0 | BS111: =$G111*BR111 -> 0 | BV111: =$G111*BU111 -> 0 | BY111: =$G111*BX111 -> 0 | CB111: =$G111*CA111 -> 0 | CE111: =$G111*CD111 -> 0 | CH111: =$G111*CG111 -> 0 | CK111: =$G111*CJ111 -> 0 | CN111: =$G111*CM111 -> 0 | CQ111: =$G111*CP111 -> 0 | CT111: =$G111*CS111 -> 0 | CW111: =$G111*CV111 -> 0 | CZ111: =$G111*CY111 -> 0 | DC111: 0 | DF111: 0 | DI111: =$G111*DH111 -> 0 | DL111: =$G111*DK111 -> 0 | DO111: =$G111*DN111 -> 0 | DR111: =$G111*DQ111 -> 0 | DU111: =$G111*DT111 -> 0 | DX111: =$G111*DW111 -> 0 | EA111: =$G111*DZ111 -> 0 | ED111: =$G111*EC111 -> 0 | EG111: =$G111*EF111 -> 0 | EJ111: =$G111*EI111 -> 0 | EM111: =$G111*EL111 -> 0 | EP111: =$G111*EO111 -> 0 | ES111: =$G111*ER111 -> 0 | EV111: =$G111*EU111 -> 0 | EY111: 0 | FB111: 0 | FE111: =$G111*FD111 -> 0 | FH111: =$G111*FG111 -> 0 | FK111: =$G111*FJ111 -> 0 | FN111: =$G111*FM111 -> 0 | FQ111: =$G111*FP111 -> 0 | FT111: =$G111*FS111 -> 0 | FW111: =$G111*FV111 -> 0 | FZ111: =$G111*FY111 -> 0 | GC111: =$G111*GB111 -> 0 | GF111: =$G111*GE111 -> 0 | GI111: =$G111*GH111 -> 0 | GL111: =$G111*GK111 -> 0 | GO111: =$G111*GN111 -> 0 | GR111: =$G111*GQ111 -> 0 | GU111: =$G111*GT111 -> 0 | GX111: =$G111*GW111 -> 0 | HA111: =$G111*GZ111 -> 0 | HD111: =$G111*HC111 -> 0 | HG111: =$G111*HF111 -> 0 | HJ111: =$G111*HI111 -> 0
A112: 6.4 | B112: H | C112: 4 | D112: Kondor V-3 (hidroizolaciona traka) Plastomer-bitumenska traka, uložak stakleni voal, debljina: ≥ 3 mm | E112: Condor V-3 (waterproof tape) Plastomer-bituminous tape, glass mat, thickness: ≥ 3 mm | F112: m2 | G112: =CENA!G108 -> 0 | H112: 30 | I112: 0 | K112: =$G112*J112 -> 0 | N112: 0 | Q112: =$G112*P112 -> 0 | T112: =$G112*S112 -> 0 | W112: =$G112*V112 -> 0 | Z112: =$G112*Y112 -> 0 | AC112: =$G112*AB112 -> 0 | AE112: 30 | AI112: =$G112*AH112 -> 0 | AL112: =$G112*AK112 -> 0 | AO112: =$G112*AN112 -> 0 | AR112: =$G112*AQ112 -> 0 | AU112: =$G112*AT112 -> 0 | AX112: =$G112*AW112 -> 0 | BA112: =$G112*AZ112 -> 0 | BD112: =$G112*BC112 -> 0 | BG112: 0 | BJ112: 0 | BM112: =$G112*BL112 -> 0 | BP112: =$G112*BO112 -> 0 | BS112: =$G112*BR112 -> 0 | BV112: =$G112*BU112 -> 0 | BY112: =$G112*BX112 -> 0 | CB112: =$G112*CA112 -> 0 | CE112: =$G112*CD112 -> 0 | CH112: =$G112*CG112 -> 0 | CK112: =$G112*CJ112 -> 0 | CN112: =$G112*CM112 -> 0 | CQ112: =$G112*CP112 -> 0 | CT112: =$G112*CS112 -> 0 | CW112: =$G112*CV112 -> 0 | CZ112: =$G112*CY112 -> 0 | DC112: 0 | DF112: 0 | DI112: =$G112*DH112 -> 0 | DL112: =$G112*DK112 -> 0 | DO112: =$G112*DN112 -> 0 | DR112: =$G112*DQ112 -> 0 | DU112: =$G112*DT112 -> 0 | DX112: =$G112*DW112 -> 0 | EA112: =$G112*DZ112 -> 0 | ED112: =$G112*EC112 -> 0 | EG112: =$G112*EF112 -> 0 | EJ112: =$G112*EI112 -> 0 | EM112: =$G112*EL112 -> 0 | EP112: =$G112*EO112 -> 0 | ES112: =$G112*ER112 -> 0 | EV112: =$G112*EU112 -> 0 | EY112: 0 | FB112: 0 | FE112: =$G112*FD112 -> 0 | FH112: =$G112*FG112 -> 0 | FK112: =$G112*FJ112 -> 0 | FN112: =$G112*FM112 -> 0 | FQ112: =$G112*FP112 -> 0 | FT112: =$G112*FS112 -> 0 | FW112: =$G112*FV112 -> 0 | FZ112: =$G112*FY112 -> 0 | GC112: =$G112*GB112 -> 0 | GF112: =$G112*GE112 -> 0 | GI112: =$G112*GH112 -> 0 | GL112: =$G112*GK112 -> 0 | GO112: =$G112*GN112 -> 0 | GR112: =$G112*GQ112 -> 0 | GU112: =$G112*GT112 -> 0 | GX112: =$G112*GW112 -> 0 | HA112: =$G112*GZ112 -> 0 | HD112: =$G112*HC112 -> 0 | HG112: =$G112*HF112 -> 0 | HJ112: =$G112*HI112 -> 0
A114: 7 | B114: S | D114: STOLARIJA | E114: DOORS AND WINDOWS
A115: 7.1 | B115: S | C115: 1 | D115: Ulazna vrata od PVC-a (komplet pozicija). boja profila: bela RAL 9003 broj komora: ≥ 5 komora širina x visina (zidarske mere) | E115: Entrance door of PVC (set position) Profile color: white RAL 9003 Number of chambers: ≥ 5 chambers width x height (masonry measures) | F115: / | G115: / | H115: / | I115: / | J115: / | K115: / | M115: / | N115: / | P115: / | Q115: / | S115: / | T115: / | V115: / | W115: / | Y115: / | Z115: / | AB115: / | AC115: / | AE115: / | AF115: / | AH115: / | AI115: / | AK115: / | AL115: / | AN115: / | AO115: / | AQ115: / | AR115: / | AT115: / | AU115: / | AW115: / | AX115: / | AZ115: / | BA115: / | BC115: / | BD115: / | BF115: / | BG115: / | BI115: / | BJ115: / | BL115: / | BM115: / | BO115: / | BP115: / | BR115: / | BS115: / | BU115: / | BV115: / | BX115: / | BY115: / | CA115: / | CB115: / | CD115: / | CE115: / | CG115: / | CH115: / | CJ115: / | CK115: / | CM115: / | CN115: / | CP115: / | CQ115: / | CS115: / | CT115: / | CV115: / | CW115: / | CY115: / | CZ115: / | DB115: / | DC115: / | DE115: / | DF115: / | DH115: / | DI115: / | DK115: / | DL115: / | DN115: / | DO115: / | DQ115: / | DR115: / | DT115: / | DU115: / | DW115: / | DX115: / | DZ115: / | EA115: / | EC115: / | ED115: / | EF115: / | EG115: / | EI115: / | EJ115: / | EL115: / | EM115: / | EO115: / | EP115: / | ER115: / | ES115: / | EU115: / | EV115: / | EX115: / | EY115: / | FA115: / | FB115: / | FD115: / | FE115: / | FG115: / | FH115: / | FJ115: / | FK115: / | FM115: / | FN115: / | FP115: / | FQ115: / | FS115: / | FT115: / | FV115: / | FW115: / | FY115: / | FZ115: / | GB115: / | GC115: / | GE115: / | GF115: / | GH115: / | GI115: / | GK115: / | GL115: / | GN115: / | GO115: / | GQ115: / | GR115: / | GT115: / | GU115: / | GW115: / | GX115: / | GZ115: / | HA115: / | HC115: / | HD115: / | HF115: / | HG115: / | HI115: / | HJ115: /
A116: 7.1.1 | C116: A | D116: JK 90x210 cm - Leva 90 cm | E116: one wing 90x210 cm - Left 90 cm | F116: kom/pcs | G116: =CENA!G112 -> 0 | H116: =J116+M116+P116+S116+V116+Y116+AB116+AE116+AH116+AK116+AN116+AQ116+AZ116+AW116+AT116+BC116+BF116+BI116+BL116+BO116+BR116+BU116+BX116+CA116+CD116+CG116+CJ116+CM116+CP116+CS116+CV116+CY116+DB116+DE116+DH116+DK116+DN116+DQ116+DT116+DW116+DZ116+EC116+EF116+EI116+EL116+EO116+ER116+EU116+EX116+FA116+FD116+FG116+FJ116+FM116+FP116+FS116+FV116+FY116+GB116+GE116+GH116+GK116+GN116+GQ116+GT116+GW116+GZ116+HC116+HF116+HI116 -> 0 | I116: =G116*H116 -> 0 | K116: =$G116*J116 -> 0 | N116: =$G116*M116 -> 0 | Q116: =$G116*P116 -> 0 | T116: =$G116*S116 -> 0 | W116: =$G116*V116 -> 0 | Z116: =$G116*Y116 -> 0 | AC116: =$G116*AB116 -> 0 | AF116: =$G116*AE116 -> 0 | AI116: =$G116*AH116 -> 0 | AL116: =$G116*AK116 -> 0 | AO116: =$G116*AN116 -> 0 | AR116: =$G116*AQ116 -> 0 | AU116: =$G116*AT116 -> 0 | AX116: =$G116*AW116 -> 0 | BA116: =$G116*AZ116 -> 0 | BD116: =$G116*BC116 -> 0 | BG116: =$G116*BF116 -> 0 | BJ116: =$G116*BI116 -> 0 | BM116: =$G116*BL116 -> 0 | BP116: =$G116*BO116 -> 0 | BS116: =$G116*BR116 -> 0 | BV116: =$G116*BU116 -> 0 | BY116: =$G116*BX116 -> 0 | CB116: =$G116*CA116 -> 0 | CE116: =$G116*CD116 -> 0 | CH116: =$G116*CG116 -> 0 | CK116: =$G116*CJ116 -> 0 | CN116: =$G116*CM116 -> 0 | CQ116: =$G116*CP116 -> 0 | CT116: =$G116*CS116 -> 0 | CW116: =$G116*CV116 -> 0 | CZ116: =$G116*CY116 -> 0 | DC116: =$G116*DB116 -> 0 | DF116: =$G116*DE116 -> 0 | DI116: =$G116*DH116 -> 0 | DL116: =$G116*DK116 -> 0 | DO116: =$G116*DN116 -> 0 | DR116: =$G116*DQ116 -> 0 | DU116: =$G116*DT116 -> 0 | DX116: =$G116*DW116 -> 0 | EA116: =$G116*DZ116 -> 0 | ED116: =$G116*EC116 -> 0 | EG116: =$G116*EF116 -> 0 | EJ116: =$G116*EI116 -> 0 | EM116: =$G116*EL116 -> 0 | EP116: =$G116*EO116 -> 0 | ES116: =$G116*ER116 -> 0 | EV116: =$G116*EU116 -> 0 | EY116: =$G116*EX116 -> 0 | FB116: =$G116*FA116 -> 0 | FE116: =$G116*FD116 -> 0 | FH116: =$G116*FG116 -> 0 | FK116: =$G116*FJ116 -> 0 | FN116: =$G116*FM116 -> 0 | FQ116: =$G116*FP116 -> 0 | FT116: =$G116*FS116 -> 0 | FW116: =$G116*FV116 -> 0 | FZ116: =$G116*FY116 -> 0 | GC116: =$G116*GB116 -> 0 | GF116: =$G116*GE116 -> 0 | GI116: =$G116*GH116 -> 0 | GL116: =$G116*GK116 -> 0 | GO116: =$G116*GN116 -> 0 | GR116: =$G116*GQ116 -> 0 | GU116: =$G116*GT116 -> 0 | GX116: =$G116*GW116 -> 0 | HA116: =$G116*GZ116 -> 0 | HD116: =$G116*HC116 -> 0 | HG116: =$G116*HF116 -> 0 | HJ116: =$G116*HI116 -> 0
A117: 7.1.2 | C117: B | D117: JK 90x210 cm - Desna 90 cm | E117: one wing 90x210 cm - Right 90 cm | F117: kom/pcs | G117: =CENA!G113 -> 0 | H117: 1 | I117: 0 | K117: =$G117*J117 -> 0 | N117: 0 | P117: 1 | T117: 0 | W117: =$G117*V117 -> 0 | Z117: =$G117*Y117 -> 0 | AC117: =$G117*AB117 -> 0 | AF117: =$G117*AE117 -> 0 | AI117: =$G117*AH117 -> 0 | AL117: =$G117*AK117 -> 0 | AO117: =$G117*AN117 -> 0 | AR117: =$G117*AQ117 -> 0 | AU117: =$G117*AT117 -> 0 | AX117: =$G117*AW117 -> 0 | BA117: =$G117*AZ117 -> 0 | BD117: =$G117*BC117 -> 0 | BG117: 0 | BJ117: 0 | BM117: =$G117*BL117 -> 0 | BP117: 0 | BS117: =$G117*BR117 -> 0 | BV117: =$G117*BU117 -> 0 | BY117: =$G117*BX117 -> 0 | CB117: =$G117*CA117 -> 0 | CE117: =$G117*CD117 -> 0 | CH117: =$G117*CG117 -> 0 | CK117: =$G117*CJ117 -> 0 | CN117: =$G117*CM117 -> 0 | CQ117: =$G117*CP117 -> 0 | CT117: =$G117*CS117 -> 0 | CW117: =$G117*CV117 -> 0 | CZ117: =$G117*CY117 -> 0 | DC117: 0 | DF117: 0 | DI117: =$G117*DH117 -> 0 | DL117: 0 | DO117: =$G117*DN117 -> 0 | DR117: =$G117*DQ117 -> 0 | DU117: =$G117*DT117 -> 0 | DX117: =$G117*DW117 -> 0 | EA117: =$G117*DZ117 -> 0 | ED117: =$G117*EC117 -> 0 | EG117: =$G117*EF117 -> 0 | EJ117: =$G117*EI117 -> 0 | EM117: =$G117*EL117 -> 0 | EP117: =$G117*EO117 -> 0 | ES117: =$G117*ER117 -> 0 | EV117: =$G117*EU117 -> 0 | EY117: 0 | FB117: 0 | FE117: =$G117*FD117 -> 0 | FH117: 0 | FK117: =$G117*FJ117 -> 0 | FN117: =$G117*FM117 -> 0 | FQ117: =$G117*FP117 -> 0 | FT117: =$G117*FS117 -> 0 | FW117: =$G117*FV117 -> 0 | FZ117: =$G117*FY117 -> 0 | GC117: =$G117*GB117 -> 0 | GF117: =$G117*GE117 -> 0 | GI117: =$G117*GH117 -> 0 | GL117: =$G117*GK117 -> 0 | GO117: =$G117*GN117 -> 0 | GR117: =$G117*GQ117 -> 0 | GU117: =$G117*GT117 -> 0 | GX117: =$G117*GW117 -> 0 | HA117: =$G117*GZ117 -> 0 | HD117: =$G117*HC117 -> 0 | HG117: =$G117*HF117 -> 0 | HJ117: =$G117*HI117 -> 0
A118: 7.1.3 | C118: C | D118: DK 120x210 cm - Leva 90+30 cm | E118: two wings 120x210 cm - Left 90+30 cm | F118: kom/pcs | G118: =CENA!G114 -> 0 | H118: 0 | I118: 0 | K118: =$G118*J118 -> 0 | N118: 0 | T118: 0 | W118: =$G118*V118 -> 0 | Z118: =$G118*Y118 -> 0 | AC118: =$G118*AB118 -> 0 | AF118: =$G118*AE118 -> 0 | AI118: =$G118*AH118 -> 0 | AL118: =$G118*AK118 -> 0 | AO118: =$G118*AN118 -> 0 | AR118: =$G118*AQ118 -> 0 | AU118: =$G118*AT118 -> 0 | AX118: =$G118*AW118 -> 0 | BA118: =$G118*AZ118 -> 0 | BD118: =$G118*BC118 -> 0 | BG118: 0 | BJ118: 0 | BM118: =$G118*BL118 -> 0 | BP118: 0 | BS118: =$G118*BR118 -> 0 | BV118: =$G118*BU118 -> 0 | BY118: =$G118*BX118 -> 0 | CB118: =$G118*CA118 -> 0 | CE118: =$G118*CD118 -> 0 | CH118: =$G118*CG118 -> 0 | CK118: =$G118*CJ118 -> 0 | CN118: =$G118*CM118 -> 0 | CQ118: =$G118*CP118 -> 0 | CT118: =$G118*CS118 -> 0 | CW118: =$G118*CV118 -> 0 | CZ118: =$G118*CY118 -> 0 | DC118: 0 | DF118: 0 | DI118: =$G118*DH118 -> 0 | DL118: 0 | DO118: =$G118*DN118 -> 0 | DR118: =$G118*DQ118 -> 0 | DU118: =$G118*DT118 -> 0 | DX118: =$G118*DW118 -> 0 | EA118: =$G118*DZ118 -> 0 | ED118: =$G118*EC118 -> 0 | EG118: =$G118*EF118 -> 0 | EJ118: =$G118*EI118 -> 0 | EM118: =$G118*EL118 -> 0 | EP118: =$G118*EO118 -> 0 | ES118: =$G118*ER118 -> 0 | EV118: =$G118*EU118 -> 0 | EY118: 0 | FB118: 0 | FE118: =$G118*FD118 -> 0 | FH118: 0 | FK118: =$G118*FJ118 -> 0 | FN118: =$G118*FM118 -> 0 | FQ118: =$G118*FP118 -> 0 | FT118: =$G118*FS118 -> 0 | FW118: =$G118*FV118 -> 0 | FZ118: =$G118*FY118 -> 0 | GC118: =$G118*GB118 -> 0 | GF118: =$G118*GE118 -> 0 | GI118: =$G118*GH118 -> 0 | GL118: =$G118*GK118 -> 0 | GO118: =$G118*GN118 -> 0 | GR118: =$G118*GQ118 -> 0 | GU118: =$G118*GT118 -> 0 | GX118: =$G118*GW118 -> 0 | HA118: =$G118*GZ118 -> 0 | HD118: =$G118*HC118 -> 0 | HG118: =$G118*HF118 -> 0 | HJ118: =$G118*HI118 -> 0
A119: 7.1.4 | C119: D | D119: DK 120x210 cm - Desna 90+30 cm | E119: two wings 120x210 cm - Right 90+30 cm | F119: kom/pcs | G119: =CENA!G115 -> 0 | H119: 0 | I119: 0 | K119: =$G119*J119 -> 0 | N119: 0 | Q119: =$G119*P119 -> 0 | T119: 0 | W119: =$G119*V119 -> 0 | Z119: =$G119*Y119 -> 0 | AC119: =$G119*AB119 -> 0 | AF119: =$G119*AE119 -> 0 | AI119: =$G119*AH119 -> 0 | AL119: =$G119*AK119 -> 0 | AO119: =$G119*AN119 -> 0 | AR119: =$G119*AQ119 -> 0 | AU119: =$G119*AT119 -> 0 | AX119: =$G119*AW119 -> 0 | BA119: =$G119*AZ119 -> 0 | BD119: =$G119*BC119 -> 0 | BG119: 0 | BJ119: 0 | BM119: =$G119*BL119 -> 0 | BP119: 0 | BS119: =$G119*BR119 -> 0 | BV119: =$G119*BU119 -> 0 | BY119: =$G119*BX119 -> 0 | CB119: =$G119*CA119 -> 0 | CE119: =$G119*CD119 -> 0 | CH119: =$G119*CG119 -> 0 | CK119: =$G119*CJ119 -> 0 | CN119: =$G119*CM119 -> 0 | CQ119: =$G119*CP119 -> 0 | CT119: =$G119*CS119 -> 0 | CW119: =$G119*CV119 -> 0 | CZ119: =$G119*CY119 -> 0 | DC119: 0 | DF119: 0 | DI119: =$G119*DH119 -> 0 | DL119: 0 | DO119: =$G119*DN119 -> 0 | DR119: =$G119*DQ119 -> 0 | DU119: =$G119*DT119 -> 0 | DX119: =$G119*DW119 -> 0 | EA119: =$G119*DZ119 -> 0 | ED119: =$G119*EC119 -> 0 | EG119: =$G119*EF119 -> 0 | EJ119: =$G119*EI119 -> 0 | EM119: =$G119*EL119 -> 0 | EP119: =$G119*EO119 -> 0 | ES119: =$G119*ER119 -> 0 | EV119: =$G119*EU119 -> 0 | EY119: 0 | FB119: 0 | FE119: =$G119*FD119 -> 0 | FH119: 0 | FK119: =$G119*FJ119 -> 0 | FN119: =$G119*FM119 -> 0 | FQ119: =$G119*FP119 -> 0 | FT119: =$G119*FS119 -> 0 | FW119: =$G119*FV119 -> 0 | FZ119: =$G119*FY119 -> 0 | GC119: =$G119*GB119 -> 0 | GF119: =$G119*GE119 -> 0 | GI119: =$G119*GH119 -> 0 | GL119: =$G119*GK119 -> 0 | GO119: =$G119*GN119 -> 0 | GR119: =$G119*GQ119 -> 0 | GU119: =$G119*GT119 -> 0 | GX119: =$G119*GW119 -> 0 | HA119: =$G119*GZ119 -> 0 | HD119: =$G119*HC119 -> 0 | HG119: =$G119*HF119 -> 0 | HJ119: =$G119*HI119 -> 0
A120: 7.2 | B120: S | C120: 2 | D120: Prozori od PVC-a (komplet pozicija). Vertikalno i horizontalno otvaranje, boja profila: bela RAL 9003, broj komora: ≥ 5 komora širina x visina (zidarske mere) | E120: Windows made of PVC (set position) Vertical and horizontal opening, color profile: white RAL 9003, the number of chambers: ≥ 5 chambers width x height (masonry measures) | F120: / | G120: / | H120: / | I120: / | J120: / | K120: / | M120: / | N120: / | P120: / | Q120: / | S120: / | T120: / | V120: / | W120: / | Y120: / | Z120: / | AB120: / | AC120: / | AE120: / | AF120: / | AH120: / | AI120: / | AK120: / | AL120: / | AN120: / | AO120: / | AQ120: / | AR120: / | AT120: / | AU120: / | AW120: / | AX120: / | AZ120: / | BA120: / | BC120: / | BD120: / | BF120: / | BG120: / | BI120: / | BJ120: / | BL120: / | BM120: / | BO120: / | BP120: / | BR120: / | BS120: / | BU120: / | BV120: / | BX120: / | BY120: / | CA120: / | CB120: / | CD120: / | CE120: / | CG120: / | CH120: / | CJ120: / | CK120: / | CM120: / | CN120: / | CP120: / | CQ120: / | CS120: / | CT120: / | CV120: / | CW120: / | CY120: / | CZ120: / | DB120: / | DC120: / | DE120: / | DF120: / | DH120: / | DI120: / | DK120: / | DL120: / | DN120: / | DO120: / | DQ120: / | DR120: / | DT120: / | DU120: / | DW120: / | DX120: / | DZ120: / | EA120: / | EC120: / | ED120: / | EF120: / | EG120: / | EI120: / | EJ120: / | EL120: / | EM120: / | EO120: / | EP120: / | ER120: / | ES120: / | EU120: / | EV120: / | EX120: / | EY120: / | FA120: / | FB120: / | FD120: / | FE120: / | FG120: / | FH120: / | FJ120: / | FK120: / | FM120: / | FN120: / | FP120: / | FQ120: / | FS120: / | FT120: / | FV120: / | FW120: / | FY120: / | FZ120: / | GB120: / | GC120: / | GE120: / | GF120: / | GH120: / | GI120: / | GK120: / | GL120: / | GN120: / | GO120: / | GQ120: / | GR120: / | GT120: / | GU120: / | GW120: / | GX120: / | GZ120: / | HA120: / | HC120: / | HD120: / | HF120: / | HG120: / | HI120: / | HJ120: /
A121: 7.2.1 | C121: A | D121: JK 60x60 cm | E121: one wing 60x60 cm | F121: kom/pcs | G121: =CENA!G117 -> 0 | H121: =J121+M121+P121+S121+V121+Y121+AB121+AE121+AH121+AK121+AN121+AQ121+AZ121+AW121+AT121+BC121+BF121+BI121+BL121+BO121+BR121+BU121+BX121+CA121+CD121+CG121+CJ121+CM121+CP121+CS121+CV121+CY121+DB121+DE121+DH121+DK121+DN121+DQ121+DT121+DW121+DZ121+EC121+EF121+EI121+EL121+EO121+ER121+EU121+EX121+FA121+FD121+FG121+FJ121+FM121+FP121+FS121+FV121+FY121+GB121+GE121+GH121+GK121+GN121+GQ121+GT121+GW121+GZ121+HC121+HF121+HI121 -> 2 | I121: =G121*H121 -> 0 | K121: =$G121*J121 -> 0 | N121: =$G121*M121 -> 0 | Q121: =$G121*P121 -> 0 | T121: =$G121*S121 -> 0 | W121: =$G121*V121 -> 0 | Z121: =$G121*Y121 -> 0 | AC121: =$G121*AB121 -> 0 | AF121: =$G121*AE121 -> 0 | AI121: =$G121*AH121 -> 0 | AL121: =$G121*AK121 -> 0 | AO121: =$G121*AN121 -> 0 | AR121: =$G121*AQ121 -> 0 | AT121: 2 | AX121: =$G121*AW121 -> 0 | BA121: =$G121*AZ121 -> 0 | BD121: =$G121*BC121 -> 0 | BG121: =$G121*BF121 -> 0 | BJ121: =$G121*BI121 -> 0 | BM121: =$G121*BL121 -> 0 | BP121: =$G121*BO121 -> 0 | BS121: =$G121*BR121 -> 0 | BV121: =$G121*BU121 -> 0 | BY121: =$G121*BX121 -> 0 | CB121: =$G121*CA121 -> 0 | CE121: =$G121*CD121 -> 0 | CH121: =$G121*CG121 -> 0 | CK121: =$G121*CJ121 -> 0 | CN121: =$G121*CM121 -> 0 | CQ121: =$G121*CP121 -> 0 | CT121: =$G121*CS121 -> 0 | CW121: =$G121*CV121 -> 0 | CZ121: =$G121*CY121 -> 0 | DC121: =$G121*DB121 -> 0 | DF121: =$G121*DE121 -> 0 | DI121: =$G121*DH121 -> 0 | DL121: =$G121*DK121 -> 0 | DO121: =$G121*DN121 -> 0 | DR121: =$G121*DQ121 -> 0 | DU121: =$G121*DT121 -> 0 | DX121: =$G121*DW121 -> 0 | EA121: =$G121*DZ121 -> 0 | ED121: =$G121*EC121 -> 0 | EG121: =$G121*EF121 -> 0 | EJ121: =$G121*EI121 -> 0 | EM121: =$G121*EL121 -> 0 | EP121: =$G121*EO121 -> 0 | ES121: =$G121*ER121 -> 0 | EV121: =$G121*EU121 -> 0 | EY121: =$G121*EX121 -> 0 | FB121: =$G121*FA121 -> 0 | FE121: =$G121*FD121 -> 0 | FH121: =$G121*FG121 -> 0 | FK121: =$G121*FJ121 -> 0 | FN121: =$G121*FM121 -> 0 | FQ121: =$G121*FP121 -> 0 | FT121: =$G121*FS121 -> 0 | FW121: =$G121*FV121 -> 0 | FZ121: =$G121*FY121 -> 0 | GC121: =$G121*GB121 -> 0 | GF121: =$G121*GE121 -> 0 | GI121: =$G121*GH121 -> 0 | GL121: =$G121*GK121 -> 0 | GO121: =$G121*GN121 -> 0 | GR121: =$G121*GQ121 -> 0 | GU121: =$G121*GT121 -> 0 | GX121: =$G121*GW121 -> 0 | HA121: =$G121*GZ121 -> 0 | HD121: =$G121*HC121 -> 0 | HG121: =$G121*HF121 -> 0 | HJ121: =$G121*HI121 -> 0
A122: 7.2.2 | C122: B | D122: JK 80x80 cm | E122: one wing 80x80 cm | F122: kom/pcs | G122: =CENA!G118 -> 0 | H122: 0 | I122: 0 | K122: =$G122*J122 -> 0 | N122: 0 | Q122: 0 | T122: 0 | W122: 0 | Z122: 0 | AC122: 0 | AF122: 0 | AI122: 0 | AL122: 0 | AO122: 0 | AR122: 0 | AU122: =$G122*AT122 -> 0 | AX122: 0 | BA122: 0 | BD122: 0 | BG122: 0 | BJ122: 0 | BM122: 0 | BP122: 0 | BS122: 0 | BV122: 0 | BY122: 0 | CB122: 0 | CE122: 0 | CH122: 0 | CK122: 0 | CN122: 0 | CQ122: 0 | CT122: 0 | CW122: 0 | CZ122: 0 | DC122: 0 | DF122: 0 | DI122: 0 | DL122: 0 | DO122: 0 | DR122: 0 | DU122: 0 | DX122: 0 | EA122: 0 | ED122: 0 | EG122: 0 | EJ122: 0 | EM122: 0 | EP122: 0 | ES122: 0 | EV122: 0 | EY122: 0 | FB122: 0 | FE122: 0 | FH122: 0 | FK122: 0 | FN122: 0 | FQ122: 0 | FT122: 0 | FW122: 0 | FZ122: 0 | GC122: 0 | GF122: 0 | GI122: 0 | GL122: 0 | GO122: 0 | GR122: 0 | GU122: 0 | GX122: 0 | HA122: 0 | HD122: 0 | HG122: 0 | HJ122: 0
A123: 7.2.3 | C123: C | D123: JK 80x120 cm | E123: one wing 80x120 cm | F123: kom/pcs | G123: =CENA!G119 -> 0 | H123: 0 | I123: 0 | K123: =$G123*J123 -> 0 | N123: 0 | Q123: 0 | T123: 0 | W123: 0 | Z123: 0 | AC123: 0 | AF123: 0 | AI123: 0 | AL123: 0 | AO123: 0 | AR123: 0 | AU123: 0 | AX123: 0 | BA123: 0 | BD123: 0 | BG123: 0 | BJ123: 0 | BM123: 0 | BP123: 0 | BS123: 0 | BV123: 0 | BY123: 0 | CB123: 0 | CE123: 0 | CH123: 0 | CK123: 0 | CN123: 0 | CQ123: 0 | CT123: 0 | CW123: 0 | CZ123: 0 | DC123: 0 | DF123: 0 | DI123: 0 | DL123: 0 | DO123: 0 | DR123: 0 | DU123: 0 | DX123: 0 | EA123: 0 | ED123: 0 | EG123: 0 | EJ123: 0 | EM123: 0 | EP123: 0 | ES123: 0 | EV123: 0 | EY123: 0 | FB123: 0 | FE123: 0 | FH123: 0 | FK123: 0 | FN123: 0 | FQ123: 0 | FT123: 0 | FW123: 0 | FZ123: 0 | GC123: 0 | GF123: 0 | GI123: 0 | GL123: 0 | GO123: 0 | GR123: 0 | GU123: 0 | GX123: 0 | HA123: 0 | HD123: 0 | HG123: 0 | HJ123: 0
A124: 7.2.4 | C124: D | D124: JK 80x140 cm | E124: one wing 80x140 cm | F124: kom/pcs | G124: =CENA!G120 -> 0 | H124: 0 | I124: 0 | K124: =$G124*J124 -> 0 | N124: 0 | Q124: 0 | T124: 0 | W124: 0 | Z124: 0 | AC124: 0 | AF124: 0 | AI124: 0 | AL124: 0 | AO124: 0 | AR124: 0 | AU124: 0 | AX124: 0 | BA124: 0 | BD124: 0 | BG124: 0 | BJ124: 0 | BM124: 0 | BP124: 0 | BS124: 0 | BV124: 0 | BY124: 0 | CB124: 0 | CE124: 0 | CH124: 0 | CK124: 0 | CN124: 0 | CQ124: 0 | CT124: 0 | CW124: 0 | CZ124: 0 | DC124: 0 | DF124: 0 | DI124: 0 | DL124: 0 | DO124: 0 | DR124: 0 | DU124: 0 | DX124: 0 | EA124: 0 | ED124: 0 | EG124: 0 | EJ124: 0 | EM124: 0 | EP124: 0 | ES124: 0 | EV124: 0 | EY124: 0 | FB124: 0 | FE124: 0 | FH124: 0 | FK124: 0 | FN124: 0 | FQ124: 0 | FT124: 0 | FW124: 0 | FZ124: 0 | GC124: 0 | GF124: 0 | GI124: 0 | GL124: 0 | GO124: 0 | GR124: 0 | GU124: 0 | GX124: 0 | HA124: 0 | HD124: 0 | HG124: 0 | HJ124: 0
A125: 7.2.5 | C125: E | D125: JK 100x120 cm | E125: one wing 100x120 cm | F125: kom/pcs | G125: =CENA!G121 -> 0 | H125: 1 | I125: 0 | K125: =$G125*J125 -> 0 | N125: 0 | Q125: 0 | T125: 0 | W125: 0 | Z125: 0 | AC125: 0 | AF125: 0 | AI125: 0 | AL125: 0 | AO125: 0 | AR125: 0 | AT125: 1 | AX125: 0 | BA125: 0 | BD125: 0 | BG125: 0 | BJ125: 0 | BM125: 0 | BP125: 0 | BS125: 0 | BV125: 0 | BY125: 0 | CB125: 0 | CE125: 0 | CH125: 0 | CK125: 0 | CN125: 0 | CQ125: 0 | CT125: 0 | CW125: 0 | CZ125: 0 | DC125: 0 | DF125: 0 | DI125: 0 | DL125: 0 | DO125: 0 | DR125: 0 | DU125: 0 | DX125: 0 | EA125: 0 | ED125: 0 | EG125: 0 | EJ125: 0 | EM125: 0 | EP125: 0 | ES125: 0 | EV125: 0 | EY125: 0 | FB125: 0 | FE125: 0 | FH125: 0 | FK125: 0 | FN125: 0 | FQ125: 0 | FT125: 0 | FW125: 0 | FZ125: 0 | GC125: 0 | GF125: 0 | GI125: 0 | GL125: 0 | GO125: 0 | GR125: 0 | GU125: 0 | GX125: 0 | HA125: 0 | HD125: 0 | HG125: 0 | HJ125: 0
A126: 7.2.6 | C126: F | D126: JK 100x140 cm | E126: one wing 100x140 cm | F126: kom/pcs | G126: =CENA!G122 -> 0 | H126: 0 | I126: 0 | K126: =$G126*J126 -> 0 | N126: 0 | Q126: 0 | T126: 0 | W126: 0 | Z126: 0 | AC126: 0 | AF126: 0 | AI126: 0 | AL126: 0 | AO126: 0 | AR126: 0 | AU126: 0 | AX126: 0 | BA126: 0 | BD126: 0 | BG126: 0 | BJ126: 0 | BM126: 0 | BP126: 0 | BS126: 0 | BV126: 0 | BY126: 0 | CB126: 0 | CE126: 0 | CH126: 0 | CK126: 0 | CN126: 0 | CQ126: 0 | CT126: 0 | CW126: 0 | CZ126: 0 | DC126: 0 | DF126: 0 | DI126: 0 | DL126: 0 | DO126: 0 | DR126: 0 | DU126: 0 | DX126: 0 | EA126: 0 | ED126: 0 | EG126: 0 | EJ126: 0 | EM126: 0 | EP126: 0 | ES126: 0 | EV126: 0 | EY126: 0 | FB126: 0 | FE126: 0 | FH126: 0 | FK126: 0 | FN126: 0 | FQ126: 0 | FT126: 0 | FW126: 0 | FZ126: 0 | GC126: 0 | GF126: 0 | GI126: 0 | GL126: 0 | GO126: 0 | GR126: 0 | GU126: 0 | GX126: 0 | HA126: 0 | HD126: 0 | HG126: 0 | HJ126: 0
A127: 7.2.7 | C127: G | D127: DK 120x120 cm | E127: two wings 120x120 cm | F127: kom/pcs | G127: =CENA!G123 -> 0 | H127: 0 | I127: 0 | K127: =$G127*J127 -> 0 | N127: 0 | Q127: 0 | T127: 0 | W127: 0 | Z127: 0 | AC127: 0 | AF127: 0 | AI127: 0 | AL127: 0 | AO127: 0 | AR127: 0 | AU127: 0 | AX127: 0 | BA127: 0 | BD127: 0 | BG127: 0 | BJ127: 0 | BM127: 0 | BP127: 0 | BS127: 0 | BV127: 0 | BY127: 0 | CB127: 0 | CE127: 0 | CH127: 0 | CK127: 0 | CN127: 0 | CQ127: 0 | CT127: 0 | CW127: 0 | CZ127: 0 | DC127: 0 | DF127: 0 | DI127: 0 | DL127: 0 | DO127: 0 | DR127: 0 | DU127: 0 | DX127: 0 | EA127: 0 | ED127: 0 | EG127: 0 | EJ127: 0 | EM127: 0 | EP127: 0 | ES127: 0 | EV127: 0 | EY127: 0 | FB127: 0 | FE127: 0 | FH127: 0 | FK127: 0 | FN127: 0 | FQ127: 0 | FT127: 0 | FW127: 0 | FZ127: 0 | GC127: 0 | GF127: 0 | GI127: 0 | GL127: 0 | GO127: 0 | GR127: 0 | GU127: 0 | GX127: 0 | HA127: 0 | HD127: 0 | HG127: 0 | HJ127: 0
A128: 7.2.8 | C128: H | D128: DK 120x140 cm | E128: two wings 120x140 cm | F128: kom/pcs | G128: =CENA!G124 -> 0 | H128: 0 | I128: 0 | K128: =$G128*J128 -> 0 | N128: 0 | Q128: 0 | T128: 0 | W128: 0 | Z128: 0 | AC128: 0 | AF128: 0 | AI128: 0 | AL128: 0 | AO128: 0 | AR128: 0 | AU128: 0 | AX128: 0 | BA128: 0 | BD128: 0 | BG128: 0 | BJ128: 0 | BM128: 0 | BP128: 0 | BS128: 0 | BV128: 0 | BY128: 0 | CB128: 0 | CE128: 0 | CH128: 0 | CK128: 0 | CN128: 0 | CQ128: 0 | CT128: 0 | CW128: 0 | CZ128: 0 | DC128: 0 | DF128: 0 | DI128: 0 | DL128: 0 | DO128: 0 | DR128: 0 | DU128: 0 | DX128: 0 | EA128: 0 | ED128: 0 | EG128: 0 | EJ128: 0 | EM128: 0 | EP128: 0 | ES128: 0 | EV128: 0 | EY128: 0 | FB128: 0 | FE128: 0 | FH128: 0 | FK128: 0 | FN128: 0 | FQ128: 0 | FT128: 0 | FW128: 0 | FZ128: 0 | GC128: 0 | GF128: 0 | GI128: 0 | GL128: 0 | GO128: 0 | GR128: 0 | GU128: 0 | GX128: 0 | HA128: 0 | HD128: 0 | HG128: 0 | HJ128: 0
A129: 7.2.9 | C129: I | D129: DK 140x120 cm | E129: two wings 140x120 cm | F129: kom/pcs | G129: =CENA!G125 -> 0 | H129: 0 | I129: 0 | K129: =$G129*J129 -> 0 | N129: 0 | Q129: 0 | T129: 0 | W129: 0 | Z129: 0 | AC129: 0 | AF129: 0 | AI129: 0 | AL129: 0 | AO129: 0 | AR129: 0 | AU129: 0 | AX129: 0 | BA129: 0 | BD129: 0 | BG129: 0 | BJ129: 0 | BM129: 0 | BP129: 0 | BS129: 0 | BV129: 0 | BY129: 0 | CB129: 0 | CE129: 0 | CH129: 0 | CK129: 0 | CN129: 0 | CQ129: 0 | CT129: 0 | CW129: 0 | CZ129: 0 | DC129: 0 | DF129: 0 | DI129: 0 | DL129: 0 | DO129: 0 | DR129: 0 | DU129: 0 | DX129: 0 | EA129: 0 | ED129: 0 | EG129: 0 | EJ129: 0 | EM129: 0 | EP129: 0 | ES129: 0 | EV129: 0 | EY129: 0 | FB129: 0 | FE129: 0 | FH129: 0 | FK129: 0 | FN129: 0 | FQ129: 0 | FT129: 0 | FW129: 0 | FZ129: 0 | GC129: 0 | GF129: 0 | GI129: 0 | GL129: 0 | GO129: 0 | GR129: 0 | GU129: 0 | GX129: 0 | HA129: 0 | HD129: 0 | HG129: 0 | HJ129: 0
A130: 7.2.10 | C130: J | D130: DK 140x140 cm | E130: two wings 140x140 cm | F130: kom/pcs | G130: =CENA!G126 -> 0 | H130: 0 | I130: 0 | K130: =$G130*J130 -> 0 | N130: 0 | Q130: 0 | T130: 0 | W130: 0 | Z130: 0 | AC130: 0 | AF130: 0 | AI130: 0 | AL130: 0 | AO130: 0 | AR130: 0 | AU130: 0 | AX130: 0 | BA130: 0 | BD130: 0 | BG130: 0 | BJ130: 0 | BM130: 0 | BP130: 0 | BS130: 0 | BV130: 0 | BY130: 0 | CB130: 0 | CE130: 0 | CH130: 0 | CK130: 0 | CN130: 0 | CQ130: 0 | CT130: 0 | CW130: 0 | CZ130: 0 | DC130: 0 | DF130: 0 | DI130: 0 | DL130: 0 | DO130: 0 | DR130: 0 | DU130: 0 | DX130: 0 | EA130: 0 | ED130: 0 | EG130: 0 | EJ130: 0 | EM130: 0 | EP130: 0 | ES130: 0 | EV130: 0 | EY130: 0 | FB130: 0 | FE130: 0 | FH130: 0 | FK130: 0 | FN130: 0 | FQ130: 0 | FT130: 0 | FW130: 0 | FZ130: 0 | GC130: 0 | GF130: 0 | GI130: 0 | GL130: 0 | GO130: 0 | GR130: 0 | GU130: 0 | GX130: 0 | HA130: 0 | HD130: 0 | HG130: 0 | HJ130: 0
A131: 7.2.11 | C131: K | D131: DK 160x120 cm | E131: two wings 160x120 cm | F131: kom/pcs | G131: =CENA!G127 -> 0 | H131: 0 | I131: 0 | K131: =$G131*J131 -> 0 | N131: 0 | Q131: 0 | T131: 0 | W131: 0 | Z131: 0 | AC131: 0 | AF131: 0 | AI131: 0 | AL131: 0 | AO131: 0 | AR131: 0 | AU131: 0 | AX131: 0 | BA131: 0 | BD131: 0 | BG131: 0 | BJ131: 0 | BM131: 0 | BP131: 0 | BS131: 0 | BV131: 0 | BY131: 0 | CB131: 0 | CE131: 0 | CH131: 0 | CK131: 0 | CN131: 0 | CQ131: 0 | CT131: 0 | CW131: 0 | CZ131: 0 | DC131: 0 | DF131: 0 | DI131: 0 | DL131: 0 | DO131: 0 | DR131: 0 | DU131: 0 | DX131: 0 | EA131: 0 | ED131: 0 | EG131: 0 | EJ131: 0 | EM131: 0 | EP131: 0 | ES131: 0 | EV131: 0 | EY131: 0 | FB131: 0 | FE131: 0 | FH131: 0 | FK131: 0 | FN131: 0 | FQ131: 0 | FT131: 0 | FW131: 0 | FZ131: 0 | GC131: 0 | GF131: 0 | GI131: 0 | GL131: 0 | GO131: 0 | GR131: 0 | GU131: 0 | GX131: 0 | HA131: 0 | HD131: 0 | HG131: 0 | HJ131: 0
A132: 7.2.12 | C132: L | D132: DK 160x140 cm | E132: two wings 160x140 cm | F132: kom/pcs | G132: =CENA!G128 -> 0 | H132: 5 | I132: 0 | K132: =$G132*J132 -> 0 | N132: 0 | Q132: 0 | T132: 0 | W132: 0 | Z132: 0 | AC132: 0 | AF132: 0 | AI132: 0 | AL132: 0 | AO132: 0 | AR132: 0 | AT132: 5 | AX132: 0 | BA132: 0 | BD132: 0 | BG132: 0 | BJ132: 0 | BM132: 0 | BP132: 0 | BS132: 0 | BV132: 0 | BY132: 0 | CB132: 0 | CE132: 0 | CH132: 0 | CK132: 0 | CN132: 0 | CQ132: 0 | CT132: 0 | CW132: 0 | CZ132: 0 | DC132: 0 | DF132: 0 | DI132: 0 | DL132: 0 | DO132: 0 | DR132: 0 | DU132: 0 | DX132: 0 | EA132: 0 | ED132: 0 | EG132: 0 | EJ132: 0 | EM132: 0 | EP132: 0 | ES132: 0 | EV132: 0 | EY132: 0 | FB132: 0 | FE132: 0 | FH132: 0 | FK132: 0 | FN132: 0 | FQ132: 0 | FT132: 0 | FW132: 0 | FZ132: 0 | GC132: 0 | GF132: 0 | GI132: 0 | GL132: 0 | GO132: 0 | GR132: 0 | GU132: 0 | GX132: 0 | HA132: 0 | HD132: 0 | HG132: 0 | HJ132: 0
A133: 7.3 | B133: S | C133: 3 | D133: Krovni prozor sa aluminijumskom opšivkom od laminirane i impregnirane čamove građe | E133: Roof window with aluminum flashings of laminated and impregnated fir timber | F133: / | G133: / | H133: / | I133: / | J133: / | K133: / | M133: / | N133: / | P133: / | Q133: / | S133: / | T133: / | V133: / | W133: / | Y133: / | Z133: / | AB133: / | AC133: / | AE133: / | AF133: / | AH133: / | AI133: / | AK133: / | AL133: / | AN133: / | AO133: / | AQ133: / | AR133: / | AT133: / | AW133: / | AX133: / | AZ133: / | BA133: / | BC133: / | BD133: / | BF133: / | BG133: / | BI133: / | BJ133: / | BL133: / | BM133: / | BO133: / | BP133: / | BR133: / | BS133: / | BU133: / | BV133: / | BX133: / | BY133: / | CA133: / | CB133: / | CD133: / | CE133: / | CG133: / | CH133: / | CJ133: / | CK133: / | CM133: / | CN133: / | CP133: / | CQ133: / | CS133: / | CT133: / | CV133: / | CW133: / | CY133: / | CZ133: / | DB133: / | DC133: / | DE133: / | DF133: / | DH133: / | DI133: / | DK133: / | DL133: / | DN133: / | DO133: / | DQ133: / | DR133: / | DT133: / | DU133: / | DW133: / | DX133: / | DZ133: / | EA133: / | EC133: / | ED133: / | EF133: / | EG133: / | EI133: / | EJ133: / | EL133: / | EM133: / | EO133: / | EP133: / | ER133: / | ES133: / | EU133: / | EV133: / | EX133: / | EY133: / | FA133: / | FB133: / | FD133: / | FE133: / | FG133: / | FH133: / | FJ133: / | FK133: / | FM133: / | FN133: / | FP133: / | FQ133: / | FS133: / | FT133: / | FV133: / | FW133: / | FY133: / | FZ133: / | GB133: / | GC133: / | GE133: / | GF133: / | GH133: / | GI133: / | GK133: / | GL133: / | GN133: / | GO133: / | GQ133: / | GR133: / | GT133: / | GU133: / | GW133: / | GX133: / | GZ133: / | HA133: / | HC133: / | HD133: / | HF133: / | HG133: / | HI133: / | HJ133: /
A134: 7.3.1 | C134: A | D134: dimenzije 66 x 118 (širinaxvisina) | E134: 66 x 118 (width x height) | F134: kom/pcs | G134: =CENA!G130 -> 0 | H134: =J134+M134+P134+S134+V134+Y134+AB134+AE134+AH134+AK134+AN134+AQ134+AZ134+AW134+AT134+BC134+BF134+BI134+BL134+BO134+BR134+BU134+BX134+CA134+CD134+CG134+CJ134+CM134+CP134+CS134+CV134+CY134+DB134+DE134+DH134+DK134+DN134+DQ134+DT134+DW134+DZ134+EC134+EF134+EI134+EL134+EO134+ER134+EU134+EX134+FA134+FD134+FG134+FJ134+FM134+FP134+FS134+FV134+FY134+GB134+GE134+GH134+GK134+GN134+GQ134+GT134+GW134+GZ134+HC134+HF134+HI134 -> 0 | I134: =G134*H134 -> 0 | K134: =$G134*J134 -> 0 | N134: =$G134*M134 -> 0 | Q134: =$G134*P134 -> 0 | T134: =$G134*S134 -> 0 | W134: =$G134*V134 -> 0 | Z134: =$G134*Y134 -> 0 | AC134: =$G134*AB134 -> 0 | AF134: =$G134*AE134 -> 0 | AI134: =$G134*AH134 -> 0 | AL134: =$G134*AK134 -> 0 | AO134: =$G134*AN134 -> 0 | AR134: =$G134*AQ134 -> 0 | AU134: =$G134*AT134 -> 0 | AX134: =$G134*AW134 -> 0 | BA134: =$G134*AZ134 -> 0 | BD134: =$G134*BC134 -> 0 | BG134: =$G134*BF134 -> 0 | BJ134: =$G134*BI134 -> 0 | BM134: =$G134*BL134 -> 0 | BP134: =$G134*BO134 -> 0 | BS134: =$G134*BR134 -> 0 | BV134: =$G134*BU134 -> 0 | BY134: =$G134*BX134 -> 0 | CB134: =$G134*CA134 -> 0 | CE134: =$G134*CD134 -> 0 | CH134: =$G134*CG134 -> 0 | CK134: =$G134*CJ134 -> 0 | CN134: =$G134*CM134 -> 0 | CQ134: =$G134*CP134 -> 0 | CT134: =$G134*CS134 -> 0 | CW134: =$G134*CV134 -> 0 | CZ134: =$G134*CY134 -> 0 | DC134: =$G134*DB134 -> 0 | DF134: =$G134*DE134 -> 0 | DI134: =$G134*DH134 -> 0 | DL134: =$G134*DK134 -> 0 | DO134: =$G134*DN134 -> 0 | DR134: =$G134*DQ134 -> 0 | DU134: =$G134*DT134 -> 0 | DX134: =$G134*DW134 -> 0 | EA134: =$G134*DZ134 -> 0 | ED134: =$G134*EC134 -> 0 | EG134: =$G134*EF134 -> 0 | EJ134: =$G134*EI134 -> 0 | EM134: =$G134*EL134 -> 0 | EP134: =$G134*EO134 -> 0 | ES134: =$G134*ER134 -> 0 | EV134: =$G134*EU134 -> 0 | EY134: =$G134*EX134 -> 0 | FB134: =$G134*FA134 -> 0 | FE134: =$G134*FD134 -> 0 | FH134: =$G134*FG134 -> 0 | FK134: =$G134*FJ134 -> 0 | FN134: =$G134*FM134 -> 0 | FQ134: =$G134*FP134 -> 0 | FT134: =$G134*FS134 -> 0 | FW134: =$G134*FV134 -> 0 | FZ134: =$G134*FY134 -> 0 | GC134: =$G134*GB134 -> 0 | GF134: =$G134*GE134 -> 0 | GI134: =$G134*GH134 -> 0 | GL134: =$G134*GK134 -> 0 | GO134: =$G134*GN134 -> 0 | GR134: =$G134*GQ134 -> 0 | GU134: =$G134*GT134 -> 0 | GX134: =$G134*GW134 -> 0 | HA134: =$G134*GZ134 -> 0 | HD134: =$G134*HC134 -> 0 | HG134: =$G134*HF134 -> 0 | HJ134: =$G134*HI134 -> 0
A135: 7.3.2 | C135: B | D135: dimenzije 78 x 98 (širinaxvisina) | E135: 78 x 98 (width x height) | F135: kom/pcs | G135: =CENA!G131 -> 0 | H135: 0 | I135: 0 | K135: =$G135*J135 -> 0 | N135: 0 | Q135: =$G135*P135 -> 0 | T135: 0 | W135: =$G135*V135 -> 0 | Z135: =$G135*Y135 -> 0 | AC135: =$G135*AB135 -> 0 | AF135: =$G135*AE135 -> 0 | AI135: =$G135*AH135 -> 0 | AL135: =$G135*AK135 -> 0 | AO135: =$G135*AN135 -> 0 | AR135: =$G135*AQ135 -> 0 | AU135: =$G135*AT135 -> 0 | AX135: =$G135*AW135 -> 0 | BA135: =$G135*AZ135 -> 0 | BD135: =$G135*BC135 -> 0 | BG135: 0 | BJ135: 0 | BM135: =$G135*BL135 -> 0 | BP135: 0 | BS135: =$G135*BR135 -> 0 | BV135: =$G135*BU135 -> 0 | BY135: =$G135*BX135 -> 0 | CB135: =$G135*CA135 -> 0 | CE135: =$G135*CD135 -> 0 | CH135: =$G135*CG135 -> 0 | CK135: =$G135*CJ135 -> 0 | CN135: =$G135*CM135 -> 0 | CQ135: =$G135*CP135 -> 0 | CT135: =$G135*CS135 -> 0 | CW135: =$G135*CV135 -> 0 | CZ135: =$G135*CY135 -> 0 | DC135: 0 | DF135: 0 | DI135: =$G135*DH135 -> 0 | DL135: 0 | DO135: =$G135*DN135 -> 0 | DR135: =$G135*DQ135 -> 0 | DU135: =$G135*DT135 -> 0 | DX135: =$G135*DW135 -> 0 | EA135: =$G135*DZ135 -> 0 | ED135: =$G135*EC135 -> 0 | EG135: =$G135*EF135 -> 0 | EJ135: =$G135*EI135 -> 0 | EM135: =$G135*EL135 -> 0 | EP135: =$G135*EO135 -> 0 | ES135: =$G135*ER135 -> 0 | EV135: =$G135*EU135 -> 0 | EY135: 0 | FB135: 0 | FE135: =$G135*FD135 -> 0 | FH135: 0 | FK135: =$G135*FJ135 -> 0 | FN135: =$G135*FM135 -> 0 | FQ135: =$G135*FP135 -> 0 | FT135: =$G135*FS135 -> 0 | FW135: =$G135*FV135 -> 0 | FZ135: =$G135*FY135 -> 0 | GC135: =$G135*GB135 -> 0 | GF135: =$G135*GE135 -> 0 | GI135: =$G135*GH135 -> 0 | GL135: =$G135*GK135 -> 0 | GO135: =$G135*GN135 -> 0 | GR135: =$G135*GQ135 -> 0 | GU135: =$G135*GT135 -> 0 | GX135: =$G135*GW135 -> 0 | HA135: =$G135*GZ135 -> 0 | HD135: =$G135*HC135 -> 0 | HG135: =$G135*HF135 -> 0 | HJ135: =$G135*HI135 -> 0
A136: 7.3.3 | C136: C | D136: dimenzije 78 x 118 (širinaxvisina) | E136: 78 x 118 (width x height) | F136: kom/pcs | G136: =CENA!G132 -> 0 | H136: 0 | I136: 0 | K136: =$G136*J136 -> 0 | N136: 0 | Q136: =$G136*P136 -> 0 | T136: 0 | W136: =$G136*V136 -> 0 | Z136: =$G136*Y136 -> 0 | AC136: =$G136*AB136 -> 0 | AF136: =$G136*AE136 -> 0 | AI136: =$G136*AH136 -> 0 | AL136: =$G136*AK136 -> 0 | AO136: =$G136*AN136 -> 0 | AR136: =$G136*AQ136 -> 0 | AU136: =$G136*AT136 -> 0 | AX136: =$G136*AW136 -> 0 | BA136: =$G136*AZ136 -> 0 | BD136: =$G136*BC136 -> 0 | BG136: 0 | BJ136: 0 | BM136: =$G136*BL136 -> 0 | BP136: 0 | BS136: =$G136*BR136 -> 0 | BV136: =$G136*BU136 -> 0 | BY136: =$G136*BX136 -> 0 | CB136: =$G136*CA136 -> 0 | CE136: =$G136*CD136 -> 0 | CH136: =$G136*CG136 -> 0 | CK136: =$G136*CJ136 -> 0 | CN136: =$G136*CM136 -> 0 | CQ136: =$G136*CP136 -> 0 | CT136: =$G136*CS136 -> 0 | CW136: =$G136*CV136 -> 0 | CZ136: =$G136*CY136 -> 0 | DC136: 0 | DF136: 0 | DI136: =$G136*DH136 -> 0 | DL136: 0 | DO136: =$G136*DN136 -> 0 | DR136: =$G136*DQ136 -> 0 | DU136: =$G136*DT136 -> 0 | DX136: =$G136*DW136 -> 0 | EA136: =$G136*DZ136 -> 0 | ED136: =$G136*EC136 -> 0 | EG136: =$G136*EF136 -> 0 | EJ136: =$G136*EI136 -> 0 | EM136: =$G136*EL136 -> 0 | EP136: =$G136*EO136 -> 0 | ES136: =$G136*ER136 -> 0 | EV136: =$G136*EU136 -> 0 | EY136: 0 | FB136: 0 | FE136: =$G136*FD136 -> 0 | FH136: 0 | FK136: =$G136*FJ136 -> 0 | FN136: =$G136*FM136 -> 0 | FQ136: =$G136*FP136 -> 0 | FT136: =$G136*FS136 -> 0 | FW136: =$G136*FV136 -> 0 | FZ136: =$G136*FY136 -> 0 | GC136: =$G136*GB136 -> 0 | GF136: =$G136*GE136 -> 0 | GI136: =$G136*GH136 -> 0 | GL136: =$G136*GK136 -> 0 | GO136: =$G136*GN136 -> 0 | GR136: =$G136*GQ136 -> 0 | GU136: =$G136*GT136 -> 0 | GX136: =$G136*GW136 -> 0 | HA136: =$G136*GZ136 -> 0 | HD136: =$G136*HC136 -> 0 | HG136: =$G136*HF136 -> 0 | HJ136: =$G136*HI136 -> 0
A137: 7.4 | B137: S | C137: 4 | D137: Balkonska vrata od PVC-a (komplet pozicija). boja profila: bela RAL 9003 broj komora: ≥ 5 komora širina x visina (zidarske mere) | E137: Balcony doors from PVC (set position) Profile color: white RAL 9003 Number of chambers: ≥ 5 chambers width x height (masonry measures) | F137: / | G137: / | H137: / | I137: / | J137: / | K137: / | M137: / | N137: / | P137: / | Q137: / | S137: / | T137: / | V137: / | W137: / | Y137: / | Z137: / | AB137: / | AC137: / | AE137: / | AF137: / | AH137: / | AI137: / | AK137: / | AL137: / | AN137: / | AO137: / | AQ137: / | AR137: / | AT137: / | AU137: / | AW137: / | AX137: / | AZ137: / | BA137: / | BC137: / | BD137: / | BF137: / | BG137: / | BI137: / | BJ137: / | BL137: / | BM137: / | BO137: / | BP137: / | BR137: / | BS137: / | BU137: / | BV137: / | BX137: / | BY137: / | CA137: / | CB137: / | CD137: / | CE137: / | CG137: / | CH137: / | CJ137: / | CK137: / | CM137: / | CN137: / | CP137: / | CQ137: / | CS137: / | CT137: / | CV137: / | CW137: / | CY137: / | CZ137: / | DB137: / | DC137: / | DE137: / | DF137: / | DH137: / | DI137: / | DK137: / | DL137: / | DN137: / | DO137: / | DQ137: / | DR137: / | DT137: / | DU137: / | DW137: / | DX137: / | DZ137: / | EA137: / | EC137: / | ED137: / | EF137: / | EG137: / | EI137: / | EJ137: / | EL137: / | EM137: / | EO137: / | EP137: / | ER137: / | ES137: / | EU137: / | EV137: / | EX137: / | EY137: / | FA137: / | FB137: / | FD137: / | FE137: / | FG137: / | FH137: / | FJ137: / | FK137: / | FM137: / | FN137: / | FP137: / | FQ137: / | FS137: / | FT137: / | FV137: / | FW137: / | FY137: / | FZ137: / | GB137: / | GC137: / | GE137: / | GF137: / | GH137: / | GI137: / | GK137: / | GL137: / | GN137: / | GO137: / | GQ137: / | GR137: / | GT137: / | GU137: / | GW137: / | GX137: / | GZ137: / | HA137: / | HC137: / | HD137: / | HF137: / | HG137: / | HI137: / | HJ137: /
A138: 7.4.1 | C138: A | D138: JK 90x210 cm - Leva | E138: one wing 90x210 cm - Left | F138: kom/pcs | G138: =CENA!G134 -> 0 | H138: =J138+M138+P138+S138+V138+Y138+AB138+AE138+AH138+AK138+AN138+AQ138+AZ138+AW138+AT138+BC138+BF138+BI138+BL138+BO138+BR138+BU138+BX138+CA138+CD138+CG138+CJ138+CM138+CP138+CS138+CV138+CY138+DB138+DE138+DH138+DK138+DN138+DQ138+DT138+DW138+DZ138+EC138+EF138+EI138+EL138+EO138+ER138+EU138+EX138+FA138+FD138+FG138+FJ138+FM138+FP138+FS138+FV138+FY138+GB138+GE138+GH138+GK138+GN138+GQ138+GT138+GW138+GZ138+HC138+HF138+HI138 -> 0 | I138: =G138*H138 -> 0 | K138: =$G138*J138 -> 0 | N138: =$G138*M138 -> 0 | Q138: =$G138*P138 -> 0 | T138: =$G138*S138 -> 0 | W138: =$G138*V138 -> 0 | Z138: =$G138*Y138 -> 0 | AC138: =$G138*AB138 -> 0 | AF138: =$G138*AE138 -> 0 | AI138: =$G138*AH138 -> 0 | AL138: =$G138*AK138 -> 0 | AO138: =$G138*AN138 -> 0 | AR138: =$G138*AQ138 -> 0 | AU138: =$G138*AT138 -> 0 | AX138: =$G138*AW138 -> 0 | BA138: =$G138*AZ138 -> 0 | BD138: =$G138*BC138 -> 0 | BG138: =$G138*BF138 -> 0 | BJ138: =$G138*BI138 -> 0 | BM138: =$G138*BL138 -> 0 | BP138: =$G138*BO138 -> 0 | BS138: =$G138*BR138 -> 0 | BV138: =$G138*BU138 -> 0 | BY138: =$G138*BX138 -> 0 | CB138: =$G138*CA138 -> 0 | CE138: =$G138*CD138 -> 0 | CH138: =$G138*CG138 -> 0 | CK138: =$G138*CJ138 -> 0 | CN138: =$G138*CM138 -> 0 | CQ138: =$G138*CP138 -> 0 | CT138: =$G138*CS138 -> 0 | CW138: =$G138*CV138 -> 0 | CZ138: =$G138*CY138 -> 0 | DC138: =$G138*DB138 -> 0 | DF138: =$G138*DE138 -> 0 | DI138: =$G138*DH138 -> 0 | DL138: =$G138*DK138 -> 0 | DO138: =$G138*DN138 -> 0 | DR138: =$G138*DQ138 -> 0 | DU138: =$G138*DT138 -> 0 | DX138: =$G138*DW138 -> 0 | EA138: =$G138*DZ138 -> 0 | ED138: =$G138*EC138 -> 0 | EG138: =$G138*EF138 -> 0 | EJ138: =$G138*EI138 -> 0 | EM138: =$G138*EL138 -> 0 | EP138: =$G138*EO138 -> 0 | ES138: =$G138*ER138 -> 0 | EV138: =$G138*EU138 -> 0 | EY138: =$G138*EX138 -> 0 | FB138: =$G138*FA138 -> 0 | FE138: =$G138*FD138 -> 0 | FH138: =$G138*FG138 -> 0 | FK138: =$G138*FJ138 -> 0 | FN138: =$G138*FM138 -> 0 | FQ138: =$G138*FP138 -> 0 | FT138: =$G138*FS138 -> 0 | FW138: =$G138*FV138 -> 0 | FZ138: =$G138*FY138 -> 0 | GC138: =$G138*GB138 -> 0 | GF138: =$G138*GE138 -> 0 | GI138: =$G138*GH138 -> 0 | GL138: =$G138*GK138 -> 0 | GO138: =$G138*GN138 -> 0 | GR138: =$G138*GQ138 -> 0 | GU138: =$G138*GT138 -> 0 | GX138: =$G138*GW138 -> 0 | HA138: =$G138*GZ138 -> 0 | HD138: =$G138*HC138 -> 0 | HG138: =$G138*HF138 -> 0 | HJ138: =$G138*HI138 -> 0
A139: 7.4.2 | C139: B | D139: JK 90x210 cm - Desna | E139: one wing 90x210 cm - Right | F139: kom/pcs | G139: =CENA!G135 -> 0 | H139: 0 | I139: 0 | K139: =$G139*J139 -> 0 | N139: 0 | Q139: =$G139*P139 -> 0 | T139: 0 | W139: =$G139*V139 -> 0 | Z139: =$G139*Y139 -> 0 | AC139: =$G139*AB139 -> 0 | AF139: =$G139*AE139 -> 0 | AI139: =$G139*AH139 -> 0 | AL139: =$G139*AK139 -> 0 | AO139: =$G139*AN139 -> 0 | AR139: =$G139*AQ139 -> 0 | AU139: =$G139*AT139 -> 0 | AX139: =$G139*AW139 -> 0 | BA139: =$G139*AZ139 -> 0 | BD139: =$G139*BC139 -> 0 | BG139: 0 | BJ139: 0 | BM139: =$G139*BL139 -> 0 | BP139: 0 | BS139: =$G139*BR139 -> 0 | BV139: =$G139*BU139 -> 0 | BY139: =$G139*BX139 -> 0 | CB139: =$G139*CA139 -> 0 | CE139: =$G139*CD139 -> 0 | CH139: =$G139*CG139 -> 0 | CK139: =$G139*CJ139 -> 0 | CN139: =$G139*CM139 -> 0 | CQ139: =$G139*CP139 -> 0 | CT139: =$G139*CS139 -> 0 | CW139: =$G139*CV139 -> 0 | CZ139: =$G139*CY139 -> 0 | DC139: 0 | DF139: 0 | DI139: =$G139*DH139 -> 0 | DL139: 0 | DO139: =$G139*DN139 -> 0 | DR139: =$G139*DQ139 -> 0 | DU139: =$G139*DT139 -> 0 | DX139: =$G139*DW139 -> 0 | EA139: =$G139*DZ139 -> 0 | ED139: =$G139*EC139 -> 0 | EG139: =$G139*EF139 -> 0 | EJ139: =$G139*EI139 -> 0 | EM139: =$G139*EL139 -> 0 | EP139: =$G139*EO139 -> 0 | ES139: =$G139*ER139 -> 0 | EV139: =$G139*EU139 -> 0 | EY139: 0 | FB139: 0 | FE139: =$G139*FD139 -> 0 | FH139: 0 | FK139: =$G139*FJ139 -> 0 | FN139: =$G139*FM139 -> 0 | FQ139: =$G139*FP139 -> 0 | FT139: =$G139*FS139 -> 0 | FW139: =$G139*FV139 -> 0 | FZ139: =$G139*FY139 -> 0 | GC139: =$G139*GB139 -> 0 | GF139: =$G139*GE139 -> 0 | GI139: =$G139*GH139 -> 0 | GL139: =$G139*GK139 -> 0 | GO139: =$G139*GN139 -> 0 | GR139: =$G139*GQ139 -> 0 | GU139: =$G139*GT139 -> 0 | GX139: =$G139*GW139 -> 0 | HA139: =$G139*GZ139 -> 0 | HD139: =$G139*HC139 -> 0 | HG139: =$G139*HF139 -> 0 | HJ139: =$G139*HI139 -> 0
A140: 7.4.3 | C140: C | D140: DK 140x210 cm | E140: two wings 140x210 cm | F140: kom/pcs | G140: =CENA!G136 -> 0 | H140: 0 | I140: 0 | K140: =$G140*J140 -> 0 | N140: 0 | Q140: =$G140*P140 -> 0 | T140: 0 | W140: =$G140*V140 -> 0 | Z140: =$G140*Y140 -> 0 | AC140: =$G140*AB140 -> 0 | AF140: =$G140*AE140 -> 0 | AI140: =$G140*AH140 -> 0 | AL140: =$G140*AK140 -> 0 | AO140: =$G140*AN140 -> 0 | AR140: =$G140*AQ140 -> 0 | AU140: =$G140*AT140 -> 0 | AX140: =$G140*AW140 -> 0 | BA140: =$G140*AZ140 -> 0 | BD140: =$G140*BC140 -> 0 | BG140: 0 | BJ140: 0 | BM140: =$G140*BL140 -> 0 | BP140: 0 | BS140: =$G140*BR140 -> 0 | BV140: =$G140*BU140 -> 0 | BY140: =$G140*BX140 -> 0 | CB140: =$G140*CA140 -> 0 | CE140: =$G140*CD140 -> 0 | CH140: =$G140*CG140 -> 0 | CK140: =$G140*CJ140 -> 0 | CN140: =$G140*CM140 -> 0 | CQ140: =$G140*CP140 -> 0 | CT140: =$G140*CS140 -> 0 | CW140: =$G140*CV140 -> 0 | CZ140: =$G140*CY140 -> 0 | DC140: 0 | DF140: 0 | DI140: =$G140*DH140 -> 0 | DL140: 0 | DO140: =$G140*DN140 -> 0 | DR140: =$G140*DQ140 -> 0 | DU140: =$G140*DT140 -> 0 | DX140: =$G140*DW140 -> 0 | EA140: =$G140*DZ140 -> 0 | ED140: =$G140*EC140 -> 0 | EG140: =$G140*EF140 -> 0 | EJ140: =$G140*EI140 -> 0 | EM140: =$G140*EL140 -> 0 | EP140: =$G140*EO140 -> 0 | ES140: =$G140*ER140 -> 0 | EV140: =$G140*EU140 -> 0 | EY140: 0 | FB140: 0 | FE140: =$G140*FD140 -> 0 | FH140: 0 | FK140: =$G140*FJ140 -> 0 | FN140: =$G140*FM140 -> 0 | FQ140: =$G140*FP140 -> 0 | FT140: =$G140*FS140 -> 0 | FW140: =$G140*FV140 -> 0 | FZ140: =$G140*FY140 -> 0 | GC140: =$G140*GB140 -> 0 | GF140: =$G140*GE140 -> 0 | GI140: =$G140*GH140 -> 0 | GL140: =$G140*GK140 -> 0 | GO140: =$G140*GN140 -> 0 | GR140: =$G140*GQ140 -> 0 | GU140: =$G140*GT140 -> 0 | GX140: =$G140*GW140 -> 0 | HA140: =$G140*GZ140 -> 0 | HD140: =$G140*HC140 -> 0 | HG140: =$G140*HF140 -> 0 | HJ140: =$G140*HI140 -> 0
A141: 7.5 | B141: S | C141: 5 | D141: Unutrašnja vrata sa ispunom od kartonskog saća (komplet pozicija). širina x visina (spoljna mera futera) | E141: Internal doors filled with cardboard honeycomb (set position) width x height (external measures footer) | F141: / | G141: / | H141: / | I141: / | J141: / | K141: / | M141: / | N141: / | P141: / | Q141: / | S141: / | T141: / | V141: / | W141: / | Y141: / | Z141: / | AB141: / | AC141: / | AE141: / | AF141: / | AH141: / | AI141: / | AK141: / | AL141: / | AN141: / | AO141: / | AQ141: / | AR141: / | AT141: / | AU141: / | AW141: / | AX141: / | AZ141: / | BA141: / | BC141: / | BD141: / | BF141: / | BG141: / | BI141: / | BJ141: / | BL141: / | BM141: / | BO141: / | BP141: / | BR141: / | BS141: / | BU141: / | BV141: / | BX141: / | BY141: / | CA141: / | CB141: / | CD141: / | CE141: / | CG141: / | CH141: / | CJ141: / | CK141: / | CM141: / | CN141: / | CP141: / | CQ141: / | CS141: / | CT141: / | CV141: / | CW141: / | CY141: / | CZ141: / | DB141: / | DC141: / | DE141: / | DF141: / | DH141: / | DI141: / | DK141: / | DL141: / | DN141: / | DO141: / | DQ141: / | DR141: / | DT141: / | DU141: / | DW141: / | DX141: / | DZ141: / | EA141: / | EC141: / | ED141: / | EF141: / | EG141: / | EI141: / | EJ141: / | EL141: / | EM141: / | EO141: / | EP141: / | ER141: / | ES141: / | EU141: / | EV141: / | EX141: / | EY141: / | FA141: / | FB141: / | FD141: / | FE141: / | FG141: / | FH141: / | FJ141: / | FK141: / | FM141: / | FN141: / | FP141: / | FQ141: / | FS141: / | FT141: / | FV141: / | FW141: / | FY141: / | FZ141: / | GB141: / | GC141: / | GE141: / | GF141: / | GH141: / | GI141: / | GK141: / | GL141: / | GN141: / | GO141: / | GQ141: / | GR141: / | GT141: / | GU141: / | GW141: / | GX141: / | GZ141: / | HA141: / | HC141: / | HD141: / | HF141: / | HG141: / | HI141: / | HJ141: /
A142: 7.5.1 | C142: A | D142: 70x205 cm - Leva (dubina štoka 0-16 cm) | E142: 70x205 cm - Left (depth door 0-16 cm) | F142: kom/pcs | G142: =CENA!G138 -> 0 | H142: =J142+M142+P142+S142+V142+Y142+AB142+AE142+AH142+AK142+AN142+AQ142+AZ142+AW142+AT142+BC142+BF142+BI142+BL142+BO142+BR142+BU142+BX142+CA142+CD142+CG142+CJ142+CM142+CP142+CS142+CV142+CY142+DB142+DE142+DH142+DK142+DN142+DQ142+DT142+DW142+DZ142+EC142+EF142+EI142+EL142+EO142+ER142+EU142+EX142+FA142+FD142+FG142+FJ142+FM142+FP142+FS142+FV142+FY142+GB142+GE142+GH142+GK142+GN142+GQ142+GT142+GW142+GZ142+HC142+HF142+HI142 -> 0 | I142: =G142*H142 -> 0 | K142: =$G142*J142 -> 0 | N142: =$G142*M142 -> 0 | Q142: =$G142*P142 -> 0 | T142: =$G142*S142 -> 0 | W142: =$G142*V142 -> 0 | Z142: =$G142*Y142 -> 0 | AC142: =$G142*AB142 -> 0 | AF142: =$G142*AE142 -> 0 | AI142: =$G142*AH142 -> 0 | AL142: =$G142*AK142 -> 0 | AO142: =$G142*AN142 -> 0 | AR142: =$G142*AQ142 -> 0 | AU142: =$G142*AT142 -> 0 | AX142: =$G142*AW142 -> 0 | BA142: =$G142*AZ142 -> 0 | BD142: =$G142*BC142 -> 0 | BG142: =$G142*BF142 -> 0 | BJ142: =$G142*BI142 -> 0 | BM142: =$G142*BL142 -> 0 | BP142: =$G142*BO142 -> 0 | BS142: =$G142*BR142 -> 0 | BV142: =$G142*BU142 -> 0 | BY142: =$G142*BX142 -> 0 | CB142: =$G142*CA142 -> 0 | CE142: =$G142*CD142 -> 0 | CH142: =$G142*CG142 -> 0 | CK142: =$G142*CJ142 -> 0 | CN142: =$G142*CM142 -> 0 | CQ142: =$G142*CP142 -> 0 | CT142: =$G142*CS142 -> 0 | CW142: =$G142*CV142 -> 0 | CZ142: =$G142*CY142 -> 0 | DC142: =$G142*DB142 -> 0 | DF142: =$G142*DE142 -> 0 | DI142: =$G142*DH142 -> 0 | DL142: =$G142*DK142 -> 0 | DO142: =$G142*DN142 -> 0 | DR142: =$G142*DQ142 -> 0 | DU142: =$G142*DT142 -> 0 | DX142: =$G142*DW142 -> 0 | EA142: =$G142*DZ142 -> 0 | ED142: =$G142*EC142 -> 0 | EG142: =$G142*EF142 -> 0 | EJ142: =$G142*EI142 -> 0 | EM142: =$G142*EL142 -> 0 | EP142: =$G142*EO142 -> 0 | ES142: =$G142*ER142 -> 0 | EV142: =$G142*EU142 -> 0 | EY142: =$G142*EX142 -> 0 | FB142: =$G142*FA142 -> 0 | FE142: =$G142*FD142 -> 0 | FH142: =$G142*FG142 -> 0 | FK142: =$G142*FJ142 -> 0 | FN142: =$G142*FM142 -> 0 | FQ142: =$G142*FP142 -> 0 | FT142: =$G142*FS142 -> 0 | FW142: =$G142*FV142 -> 0 | FZ142: =$G142*FY142 -> 0 | GC142: =$G142*GB142 -> 0 | GF142: =$G142*GE142 -> 0 | GI142: =$G142*GH142 -> 0 | GL142: =$G142*GK142 -> 0 | GO142: =$G142*GN142 -> 0 | GR142: =$G142*GQ142 -> 0 | GU142: =$G142*GT142 -> 0 | GX142: =$G142*GW142 -> 0 | HA142: =$G142*GZ142 -> 0 | HD142: =$G142*HC142 -> 0 | HG142: =$G142*HF142 -> 0 | HJ142: =$G142*HI142 -> 0
A143: 7.5.2 | C143: B | D143: 70x205 cm - Leva (dubina štoka 16-30 cm) | E143: 70x205 cm - Left (depth door 16-30 cm) | F143: kom/pcs | G143: =CENA!G139 -> 0 | H143: 0 | I143: 0 | K143: =$G143*J143 -> 0 | N143: 0 | Q143: 0 | T143: 0 | W143: 0 | Z143: 0 | AC143: 0 | AF143: 0 | AI143: 0 | AL143: 0 | AO143: 0 | AR143: 0 | AU143: 0 | AX143: 0 | BA143: 0 | BD143: 0 | BG143: 0 | BJ143: 0 | BM143: 0 | BP143: 0 | BS143: 0 | BV143: 0 | BY143: 0 | CB143: 0 | CE143: 0 | CH143: 0 | CK143: 0 | CN143: 0 | CQ143: 0 | CT143: 0 | CW143: 0 | CZ143: 0 | DC143: 0 | DF143: 0 | DI143: 0 | DL143: 0 | DO143: 0 | DR143: 0 | DU143: 0 | DX143: 0 | EA143: 0 | ED143: 0 | EG143: 0 | EJ143: 0 | EM143: 0 | EP143: 0 | ES143: 0 | EV143: 0 | EY143: 0 | FB143: 0 | FE143: 0 | FH143: 0 | FK143: 0 | FN143: 0 | FQ143: 0 | FT143: 0 | FW143: 0 | FZ143: 0 | GC143: 0 | GF143: 0 | GI143: 0 | GL143: 0 | GO143: 0 | GR143: 0 | GU143: 0 | GX143: 0 | HA143: 0 | HD143: 0 | HG143: 0 | HJ143: 0
A144: 7.5.3 | C144: C | D144: 70x205 cm - Desna (dubina štoka 0-16 cm) | E144: 70x205 cm - Right (depth door 0-16 cm) | F144: kom/pcs | G144: =CENA!G140 -> 0 | H144: 0 | I144: 0 | K144: =$G144*J144 -> 0 | N144: 0 | Q144: 0 | T144: 0 | W144: 0 | Z144: 0 | AC144: 0 | AF144: 0 | AI144: 0 | AL144: 0 | AO144: 0 | AR144: 0 | AU144: 0 | AX144: 0 | BA144: 0 | BD144: 0 | BG144: 0 | BJ144: 0 | BM144: 0 | BP144: 0 | BS144: 0 | BV144: 0 | BY144: 0 | CB144: 0 | CE144: 0 | CH144: 0 | CK144: 0 | CN144: 0 | CQ144: 0 | CT144: 0 | CW144: 0 | CZ144: 0 | DC144: 0 | DF144: 0 | DI144: 0 | DL144: 0 | DO144: 0 | DR144: 0 | DU144: 0 | DX144: 0 | EA144: 0 | ED144: 0 | EG144: 0 | EJ144: 0 | EM144: 0 | EP144: 0 | ES144: 0 | EV144: 0 | EY144: 0 | FB144: 0 | FE144: 0 | FH144: 0 | FK144: 0 | FN144: 0 | FQ144: 0 | FT144: 0 | FW144: 0 | FZ144: 0 | GC144: 0 | GF144: 0 | GI144: 0 | GL144: 0 | GO144: 0 | GR144: 0 | GU144: 0 | GX144: 0 | HA144: 0 | HD144: 0 | HG144: 0 | HJ144: 0
A145: 7.5.4 | C145: D | D145: 70x205 cm - Desna (dubina štoka 16-30 cm) | E145: 70x205 cm - Right (depth door 16-30 cm) | F145: kom/pcs | G145: =CENA!G141 -> 0 | H145: 0 | I145: 0 | K145: =$G145*J145 -> 0 | N145: 0 | Q145: 0 | T145: 0 | W145: 0 | Z145: 0 | AC145: 0 | AF145: 0 | AI145: 0 | AL145: 0 | AO145: 0 | AR145: 0 | AU145: 0 | AX145: 0 | BA145: 0 | BD145: 0 | BG145: 0 | BJ145: 0 | BM145: 0 | BP145: 0 | BS145: 0 | BV145: 0 | BY145: 0 | CB145: 0 | CE145: 0 | CH145: 0 | CK145: 0 | CN145: 0 | CQ145: 0 | CT145: 0 | CW145: 0 | CZ145: 0 | DC145: 0 | DF145: 0 | DI145: 0 | DL145: 0 | DO145: 0 | DR145: 0 | DU145: 0 | DX145: 0 | EA145: 0 | ED145: 0 | EG145: 0 | EJ145: 0 | EM145: 0 | EP145: 0 | ES145: 0 | EV145: 0 | EY145: 0 | FB145: 0 | FE145: 0 | FH145: 0 | FK145: 0 | FN145: 0 | FQ145: 0 | FT145: 0 | FW145: 0 | FZ145: 0 | GC145: 0 | GF145: 0 | GI145: 0 | GL145: 0 | GO145: 0 | GR145: 0 | GU145: 0 | GX145: 0 | HA145: 0 | HD145: 0 | HG145: 0 | HJ145: 0
A146: 7.5.5 | C146: E | D146: 80x205 cm - Leva (dubina štoka 0-16 cm) | E146: 80x205 cm - Left (depth door 0-16 cm) | F146: kom/pcs | G146: =CENA!G142 -> 0 | H146: 0 | I146: 0 | K146: =$G146*J146 -> 0 | N146: 0 | Q146: 0 | T146: 0 | W146: 0 | Z146: 0 | AC146: 0 | AF146: 0 | AI146: 0 | AL146: 0 | AO146: 0 | AR146: 0 | AU146: 0 | AX146: 0 | BA146: 0 | BD146: 0 | BG146: 0 | BJ146: 0 | BM146: 0 | BP146: 0 | BS146: 0 | BV146: 0 | BY146: 0 | CB146: 0 | CE146: 0 | CH146: 0 | CK146: 0 | CN146: 0 | CQ146: 0 | CT146: 0 | CW146: 0 | CZ146: 0 | DC146: 0 | DF146: 0 | DI146: 0 | DL146: 0 | DO146: 0 | DR146: 0 | DU146: 0 | DX146: 0 | EA146: 0 | ED146: 0 | EG146: 0 | EJ146: 0 | EM146: 0 | EP146: 0 | ES146: 0 | EV146: 0 | EY146: 0 | FB146: 0 | FE146: 0 | FH146: 0 | FK146: 0 | FN146: 0 | FQ146: 0 | FT146: 0 | FW146: 0 | FZ146: 0 | GC146: 0 | GF146: 0 | GI146: 0 | GL146: 0 | GO146: 0 | GR146: 0 | GU146: 0 | GX146: 0 | HA146: 0 | HD146: 0 | HG146: 0 | HJ146: 0
A147: 7.5.6 | C147: F | D147: 80x205 cm - Leva (dubina štoka 16-30 cm) | E147: 80x205 cm - Left (depth door 16-30 cm) | F147: kom/pcs | G147: =CENA!G143 -> 0 | H147: 0 | I147: 0 | K147: =$G147*J147 -> 0 | N147: 0 | Q147: 0 | T147: 0 | W147: 0 | Z147: 0 | AC147: 0 | AF147: 0 | AI147: 0 | AL147: 0 | AO147: 0 | AR147: 0 | AU147: 0 | AX147: 0 | BA147: 0 | BD147: 0 | BG147: 0 | BJ147: 0 | BM147: 0 | BP147: 0 | BS147: 0 | BV147: 0 | BY147: 0 | CB147: 0 | CE147: 0 | CH147: 0 | CK147: 0 | CN147: 0 | CQ147: 0 | CT147: 0 | CW147: 0 | CZ147: 0 | DC147: 0 | DF147: 0 | DI147: 0 | DL147: 0 | DO147: 0 | DR147: 0 | DU147: 0 | DX147: 0 | EA147: 0 | ED147: 0 | EG147: 0 | EJ147: 0 | EM147: 0 | EP147: 0 | ES147: 0 | EV147: 0 | EY147: 0 | FB147: 0 | FE147: 0 | FH147: 0 | FK147: 0 | FN147: 0 | FQ147: 0 | FT147: 0 | FW147: 0 | FZ147: 0 | GC147: 0 | GF147: 0 | GI147: 0 | GL147: 0 | GO147: 0 | GR147: 0 | GU147: 0 | GX147: 0 | HA147: 0 | HD147: 0 | HG147: 0 | HJ147: 0
A148: 7.5.7 | C148: G | D148: 80x205 cm - Desna (dubina štoka 0-16 cm) | E148: 80x205 cm - Right (depth door 0-16 cm) | F148: kom/pcs | G148: =CENA!G144 -> 0 | H148: 0 | I148: 0 | K148: =$G148*J148 -> 0 | N148: 0 | Q148: 0 | T148: 0 | W148: 0 | Z148: 0 | AC148: 0 | AF148: 0 | AI148: 0 | AL148: 0 | AO148: 0 | AR148: 0 | AU148: 0 | AX148: 0 | BA148: 0 | BD148: 0 | BG148: 0 | BJ148: 0 | BM148: 0 | BP148: 0 | BS148: 0 | BV148: 0 | BY148: 0 | CB148: 0 | CE148: 0 | CH148: 0 | CK148: 0 | CN148: 0 | CQ148: 0 | CT148: 0 | CW148: 0 | CZ148: 0 | DC148: 0 | DF148: 0 | DI148: 0 | DL148: 0 | DO148: 0 | DR148: 0 | DU148: 0 | DX148: 0 | EA148: 0 | ED148: 0 | EG148: 0 | EJ148: 0 | EM148: 0 | EP148: 0 | ES148: 0 | EV148: 0 | EY148: 0 | FB148: 0 | FE148: 0 | FH148: 0 | FK148: 0 | FN148: 0 | FQ148: 0 | FT148: 0 | FW148: 0 | FZ148: 0 | GC148: 0 | GF148: 0 | GI148: 0 | GL148: 0 | GO148: 0 | GR148: 0 | GU148: 0 | GX148: 0 | HA148: 0 | HD148: 0 | HG148: 0 | HJ148: 0
A149: 7.5.8 | C149: H | D149: 80x205 cm - Desna (dubina štoka 16-30 cm) | E149: 80x205 cm - Right (depth door 16-30 cm) | F149: kom/pcs | G149: =CENA!G145 -> 0 | H149: 0 | I149: 0 | K149: =$G149*J149 -> 0 | N149: 0 | Q149: 0 | T149: 0 | W149: 0 | Z149: 0 | AC149: 0 | AF149: 0 | AI149: 0 | AL149: 0 | AO149: 0 | AR149: 0 | AU149: 0 | AX149: 0 | BA149: 0 | BD149: 0 | BG149: 0 | BJ149: 0 | BM149: 0 | BP149: 0 | BS149: 0 | BV149: 0 | BY149: 0 | CB149: 0 | CE149: 0 | CH149: 0 | CK149: 0 | CN149: 0 | CQ149: 0 | CT149: 0 | CW149: 0 | CZ149: 0 | DC149: 0 | DF149: 0 | DI149: 0 | DL149: 0 | DO149: 0 | DR149: 0 | DU149: 0 | DX149: 0 | EA149: 0 | ED149: 0 | EG149: 0 | EJ149: 0 | EM149: 0 | EP149: 0 | ES149: 0 | EV149: 0 | EY149: 0 | FB149: 0 | FE149: 0 | FH149: 0 | FK149: 0 | FN149: 0 | FQ149: 0 | FT149: 0 | FW149: 0 | FZ149: 0 | GC149: 0 | GF149: 0 | GI149: 0 | GL149: 0 | GO149: 0 | GR149: 0 | GU149: 0 | GX149: 0 | HA149: 0 | HD149: 0 | HG149: 0 | HJ149: 0
A150: 7.5.9 | C150: I | D150: 90x205 cm - Leva (dubina štoka 0-16 cm) | E150: 90x205 cm - Left (depth door 0-16 cm) | F150: kom/pcs | G150: =CENA!G146 -> 0 | H150: 0 | I150: 0 | K150: =$G150*J150 -> 0 | N150: 0 | Q150: 0 | T150: 0 | W150: 0 | Z150: 0 | AC150: 0 | AF150: 0 | AI150: 0 | AL150: 0 | AO150: 0 | AR150: 0 | AU150: 0 | AX150: 0 | BA150: 0 | BD150: 0 | BG150: 0 | BJ150: 0 | BM150: 0 | BP150: 0 | BS150: 0 | BV150: 0 | BY150: 0 | CB150: 0 | CE150: 0 | CH150: 0 | CK150: 0 | CN150: 0 | CQ150: 0 | CT150: 0 | CW150: 0 | CZ150: 0 | DC150: 0 | DF150: 0 | DI150: 0 | DL150: 0 | DO150: 0 | DR150: 0 | DU150: 0 | DX150: 0 | EA150: 0 | ED150: 0 | EG150: 0 | EJ150: 0 | EM150: 0 | EP150: 0 | ES150: 0 | EV150: 0 | EY150: 0 | FB150: 0 | FE150: 0 | FH150: 0 | FK150: 0 | FN150: 0 | FQ150: 0 | FT150: 0 | FW150: 0 | FZ150: 0 | GC150: 0 | GF150: 0 | GI150: 0 | GL150: 0 | GO150: 0 | GR150: 0 | GU150: 0 | GX150: 0 | HA150: 0 | HD150: 0 | HG150: 0 | HJ150: 0
A151: 7.5.10 | C151: J | D151: 90x205 cm - Leva (dubina štoka 16-30 cm) | E151: 90x205 cm - Left (depth door 16-30 cm) | F151: kom/pcs | G151: =CENA!G147 -> 0 | H151: 0 | I151: 0 | K151: =$G151*J151 -> 0 | N151: 0 | Q151: 0 | T151: 0 | W151: 0 | Z151: 0 | AC151: 0 | AF151: 0 | AI151: 0 | AL151: 0 | AO151: 0 | AR151: 0 | AU151: 0 | AX151: 0 | BA151: 0 | BD151: 0 | BG151: 0 | BJ151: 0 | BM151: 0 | BP151: 0 | BS151: 0 | BV151: 0 | BY151: 0 | CB151: 0 | CE151: 0 | CH151: 0 | CK151: 0 | CN151: 0 | CQ151: 0 | CT151: 0 | CW151: 0 | CZ151: 0 | DC151: 0 | DF151: 0 | DI151: 0 | DL151: 0 | DO151: 0 | DR151: 0 | DU151: 0 | DX151: 0 | EA151: 0 | ED151: 0 | EG151: 0 | EJ151: 0 | EM151: 0 | EP151: 0 | ES151: 0 | EV151: 0 | EY151: 0 | FB151: 0 | FE151: 0 | FH151: 0 | FK151: 0 | FN151: 0 | FQ151: 0 | FT151: 0 | FW151: 0 | FZ151: 0 | GC151: 0 | GF151: 0 | GI151: 0 | GL151: 0 | GO151: 0 | GR151: 0 | GU151: 0 | GX151: 0 | HA151: 0 | HD151: 0 | HG151: 0 | HJ151: 0
A152: 7.5.11 | C152: K | D152: 90x205 cm - Desna (dubina štoka 0-16 cm) | E152: 90x205 cm - Right (depth door 0-16 cm) | F152: kom/pcs | G152: =CENA!G148 -> 0 | H152: 0 | I152: 0 | K152: =$G152*J152 -> 0 | N152: 0 | Q152: 0 | T152: 0 | W152: 0 | Z152: 0 | AC152: 0 | AF152: 0 | AI152: 0 | AL152: 0 | AO152: 0 | AR152: 0 | AU152: 0 | AX152: 0 | BA152: 0 | BD152: 0 | BG152: 0 | BJ152: 0 | BM152: 0 | BP152: 0 | BS152: 0 | BV152: 0 | BY152: 0 | CB152: 0 | CE152: 0 | CH152: 0 | CK152: 0 | CN152: 0 | CQ152: 0 | CT152: 0 | CW152: 0 | CZ152: 0 | DC152: 0 | DF152: 0 | DI152: 0 | DL152: 0 | DO152: 0 | DR152: 0 | DU152: 0 | DX152: 0 | EA152: 0 | ED152: 0 | EG152: 0 | EJ152: 0 | EM152: 0 | EP152: 0 | ES152: 0 | EV152: 0 | EY152: 0 | FB152: 0 | FE152: 0 | FH152: 0 | FK152: 0 | FN152: 0 | FQ152: 0 | FT152: 0 | FW152: 0 | FZ152: 0 | GC152: 0 | GF152: 0 | GI152: 0 | GL152: 0 | GO152: 0 | GR152: 0 | GU152: 0 | GX152: 0 | HA152: 0 | HD152: 0 | HG152: 0 | HJ152: 0
A153: 7.5.12 | C153: L | D153: 90x205 cm - Desna (dubina štoka 16-30 cm) | E153: 90x205 cm - Right (depth door 16-30 cm) | F153: kom/pcs | G153: =CENA!G149 -> 0 | H153: 0 | I153: 0 | K153: =$G153*J153 -> 0 | N153: 0 | Q153: 0 | T153: 0 | W153: 0 | Z153: 0 | AC153: 0 | AF153: 0 | AI153: 0 | AL153: 0 | AO153: 0 | AR153: 0 | AU153: 0 | AX153: 0 | BA153: 0 | BD153: 0 | BG153: 0 | BJ153: 0 | BM153: 0 | BP153: 0 | BS153: 0 | BV153: 0 | BY153: 0 | CB153: 0 | CE153: 0 | CH153: 0 | CK153: 0 | CN153: 0 | CQ153: 0 | CT153: 0 | CW153: 0 | CZ153: 0 | DC153: 0 | DF153: 0 | DI153: 0 | DL153: 0 | DO153: 0 | DR153: 0 | DU153: 0 | DX153: 0 | EA153: 0 | ED153: 0 | EG153: 0 | EJ153: 0 | EM153: 0 | EP153: 0 | ES153: 0 | EV153: 0 | EY153: 0 | FB153: 0 | FE153: 0 | FH153: 0 | FK153: 0 | FN153: 0 | FQ153: 0 | FT153: 0 | FW153: 0 | FZ153: 0 | GC153: 0 | GF153: 0 | GI153: 0 | GL153: 0 | GO153: 0 | GR153: 0 | GU153: 0 | GX153: 0 | HA153: 0 | HD153: 0 | HG153: 0 | HJ153: 0
A155: 8 | B155: D | D155: OSTALA OPREMA I MATERIJAL | E155: OTHER EQUIPMENT AND SUPPLIES
A156: 8.1 | B156: D | C156: 1 | D156: Jednostruki dimnjak prečnika Ф 140 mm. Troslojni montažni dimnjački sistem namenjen za sva ložišta i sve vrste goriva, bez ventilacije. Sastavljen je od: dimnjačke cevi od tehničke keramike, izolacije oko cevi dimnjaka od kamene vune minimalne specifične težine 80kg/m3, spoljneg dimnjačkog plašta od lakog betona, vatrostalnog lepka u kartušama, vatrootpornih i gasnonepropusnih atestiranih troslojnih vratanaca , kondenz posude, priključaka za reviziju i ložišta, krovne ploče od staklo betona, nosača tervola i tvrdih tervol ploča za priključke, ventilacione rešetke, dilatacione rozete od nerđajućeg čelika. Spoljna dimenzija dimnjačkog plašta za fi14cm=32x32cm. | E156: A single chimney diameter 140 mm. Three-layer prefabricated chimney system designed for all furnaces and all types of fuel, with no ventilation. It is composed of: chimney pipe of technical ceramics, pipe insulation around the chimney of stone wool minimum specific weight of 80kg/m3, external chimney mantle of lightweight concrete, refractory adhesive in cartouches, fireproof and gas impermeable certified three-layer side door, condensate pots, connectors for the audit and furnaces, roof tiles of glass concrete girders Tervola and hard tervol plate connections, ventilation grilles, rosettes expansion of stainless steel. The external dimensions of the chimney sleeve fi14cm = 32x32cm. | F156: m1 | G156: =CENA!G152 -> 0 | H156: =J156+M156+P156+S156+V156+Y156+AB156+AE156+AH156+AK156+AN156+AQ156+AZ156+AW156+AT156+BC156+BF156+BI156+BL156+BO156+BR156+BU156+BX156+CA156+CD156+CG156+CJ156+CM156+CP156+CS156+CV156+CY156+DB156+DE156+DH156+DK156+DN156+DQ156+DT156+DW156+DZ156+EC156+EF156+EI156+EL156+EO156+ER156+EU156+EX156+FA156+FD156+FG156+FJ156+FM156+FP156+FS156+FV156+FY156+GB156+GE156+GH156+GK156+GN156+GQ156+GT156+GW156+GZ156+HC156+HF156+HI156 -> 0 | I156: =G156*H156 -> 0 | K156: =$G156*J156 -> 0 | N156: =$G156*M156 -> 0 | Q156: =$G156*P156 -> 0 | T156: =$G156*S156 -> 0 | W156: =$G156*V156 -> 0 | Z156: =$G156*Y156 -> 0 | AC156: =$G156*AB156 -> 0 | AF156: =$G156*AE156 -> 0 | AI156: =$G156*AH156 -> 0 | AL156: =$G156*AK156 -> 0 | AO156: =$G156*AN156 -> 0 | AR156: =$G156*AQ156 -> 0 | AU156: =$G156*AT156 -> 0 | AX156: =$G156*AW156 -> 0 | BA156: =$G156*AZ156 -> 0 | BD156: =$G156*BC156 -> 0 | BG156: =$G156*BF156 -> 0 | BJ156: =$G156*BI156 -> 0 | BM156: =$G156*BL156 -> 0 | BP156: =$G156*BO156 -> 0 | BS156: =$G156*BR156 -> 0 | BV156: =$G156*BU156 -> 0 | BY156: =$G156*BX156 -> 0 | CB156: =$G156*CA156 -> 0 | CE156: =$G156*CD156 -> 0 | CH156: =$G156*CG156 -> 0 | CK156: =$G156*CJ156 -> 0 | CN156: =$G156*CM156 -> 0 | CQ156: =$G156*CP156 -> 0 | CT156: =$G156*CS156 -> 0 | CW156: =$G156*CV156 -> 0 | CZ156: =$G156*CY156 -> 0 | DC156: =$G156*DB156 -> 0 | DF156: =$G156*DE156 -> 0 | DI156: =$G156*DH156 -> 0 | DL156: =$G156*DK156 -> 0 | DO156: =$G156*DN156 -> 0 | DR156: =$G156*DQ156 -> 0 | DU156: =$G156*DT156 -> 0 | DX156: =$G156*DW156 -> 0 | EA156: =$G156*DZ156 -> 0 | ED156: =$G156*EC156 -> 0 | EG156: =$G156*EF156 -> 0 | EJ156: =$G156*EI156 -> 0 | EM156: =$G156*EL156 -> 0 | EP156: =$G156*EO156 -> 0 | ES156: =$G156*ER156 -> 0 | EV156: =$G156*EU156 -> 0 | EY156: =$G156*EX156 -> 0 | FB156: =$G156*FA156 -> 0 | FE156: =$G156*FD156 -> 0 | FH156: =$G156*FG156 -> 0 | FK156: =$G156*FJ156 -> 0 | FN156: =$G156*FM156 -> 0 | FQ156: =$G156*FP156 -> 0 | FT156: =$G156*FS156 -> 0 | FW156: =$G156*FV156 -> 0 | FZ156: =$G156*FY156 -> 0 | GC156: =$G156*GB156 -> 0 | GF156: =$G156*GE156 -> 0 | GI156: =$G156*GH156 -> 0 | GL156: =$G156*GK156 -> 0 | GO156: =$G156*GN156 -> 0 | GR156: =$G156*GQ156 -> 0 | GU156: =$G156*GT156 -> 0 | GX156: =$G156*GW156 -> 0 | HA156: =$G156*GZ156 -> 0 | HD156: =$G156*HC156 -> 0 | HG156: =$G156*HF156 -> 0 | HJ156: =$G156*HI156 -> 0
A158: 9 | B158: V | D158: Vodovod Kanalizacija Oprema | E158: WATER SUPPLY AND SEWAGE
D159: Vodovod | E159: WATER SUPPLY
A160: 9.1 | B160: V | C160: 1 | D160: Vodovodne polietilenske cevi PE 100 PN16 za radni pritisak 16 bara (SDR 11) | E160: Water supply polyethylene pipe PE 100 PN16 the working pressure of 16 bar (SDR 11) | F160: / | G160: / | H160: / | I160: / | J160: / | K160: / | N160: / | P160: / | Q160: / | S160: / | T160: / | V160: / | W160: / | Y160: / | Z160: / | AB160: / | AC160: / | AE160: / | AF160: / | AH160: / | AI160: / | AK160: / | AL160: / | AN160: / | AO160: / | AQ160: / | AR160: / | AT160: / | AU160: / | AW160: / | AX160: / | AZ160: / | BA160: / | BC160: / | BD160: / | BF160: / | BG160: / | BJ160: / | BL160: / | BM160: / | BO160: / | BP160: / | BR160: / | BS160: / | BU160: / | BV160: / | BX160: / | BY160: / | CA160: / | CB160: / | CD160: / | CE160: / | CG160: / | CH160: / | CJ160: / | CK160: / | CM160: / | CN160: / | CP160: / | CQ160: / | CS160: / | CT160: / | CV160: / | CW160: / | CY160: / | CZ160: / | DB160: / | DC160: / | DF160: / | DH160: / | DI160: / | DK160: / | DL160: / | DN160: / | DO160: / | DQ160: / | DR160: / | DT160: / | DU160: / | DW160: / | DX160: / | DZ160: / | EA160: / | EC160: / | ED160: / | EF160: / | EG160: / | EI160: / | EJ160: / | EL160: / | EM160: / | EO160: / | EP160: / | ER160: / | ES160: / | EU160: / | EV160: / | EX160: / | EY160: / | FB160: / | FD160: / | FE160: / | FG160: / | FH160: / | FJ160: / | FK160: / | FM160: / | FN160: / | FP160: / | FQ160: / | FS160: / | FT160: / | FV160: / | FW160: / | FY160: / | FZ160: / | GB160: / | GC160: / | GE160: / | GF160: / | GH160: / | GI160: / | GK160: / | GL160: / | GN160: / | GO160: / | GQ160: / | GR160: / | GT160: / | GU160: / | GW160: / | GX160: / | GZ160: / | HA160: / | HC160: / | HD160: / | HF160: / | HG160: / | HI160: / | HJ160: /
A161: 9.1.1 | C161: A | D161: d25 (s min. 2,3) - 3/4" | E161: d25 (s min. 2,3) - 3/4" | F161: m1 | G161: =CENA!G157 -> 0 | H161: =J161+M161+P161+S161+V161+Y161+AB161+AE161+AH161+AK161+AN161+AQ161+AZ161+AW161+AT161+BC161+BF161+BI161+BL161+BO161+BR161+BU161+BX161+CA161+CD161+CG161+CJ161+CM161+CP161+CS161+CV161+CY161+DB161+DE161+DH161+DK161+DN161+DQ161+DT161+DW161+DZ161+EC161+EF161+EI161+EL161+EO161+ER161+EU161+EX161+FA161+FD161+FG161+FJ161+FM161+FP161+FS161+FV161+FY161+GB161+GE161+GH161+GK161+GN161+GQ161+GT161+GW161+GZ161+HC161+HF161+HI161 -> 0 | I161: =G161*H161 -> 0 | K161: =$G161*J161 -> 0 | N161: =$G161*M161 -> 0 | Q161: =$G161*P161 -> 0 | T161: =$G161*S161 -> 0 | W161: =$G161*V161 -> 0 | Z161: =$G161*Y161 -> 0 | AC161: =$G161*AB161 -> 0 | AF161: =$G161*AE161 -> 0 | AI161: =$G161*AH161 -> 0 | AL161: =$G161*AK161 -> 0 | AO161: =$G161*AN161 -> 0 | AR161: =$G161*AQ161 -> 0 | AU161: =$G161*AT161 -> 0 | AX161: =$G161*AW161 -> 0 | BA161: =$G161*AZ161 -> 0 | BD161: =$G161*BC161 -> 0 | BG161: =$G161*BF161 -> 0 | BJ161: =$G161*BI161 -> 0 | BM161: =$G161*BL161 -> 0 | BP161: =$G161*BO161 -> 0 | BS161: =$G161*BR161 -> 0 | BV161: =$G161*BU161 -> 0 | BY161: =$G161*BX161 -> 0 | CB161: =$G161*CA161 -> 0 | CE161: =$G161*CD161 -> 0 | CH161: =$G161*CG161 -> 0 | CK161: =$G161*CJ161 -> 0 | CN161: =$G161*CM161 -> 0 | CQ161: =$G161*CP161 -> 0 | CT161: =$G161*CS161 -> 0 | CW161: =$G161*CV161 -> 0 | CZ161: =$G161*CY161 -> 0 | DC161: =$G161*DB161 -> 0 | DF161: =$G161*DE161 -> 0 | DI161: =$G161*DH161 -> 0 | DL161: =$G161*DK161 -> 0 | DO161: =$G161*DN161 -> 0 | DR161: =$G161*DQ161 -> 0 | DU161: =$G161*DT161 -> 0 | DX161: =$G161*DW161 -> 0 | EA161: =$G161*DZ161 -> 0 | ED161: =$G161*EC161 -> 0 | EG161: =$G161*EF161 -> 0 | EJ161: =$G161*EI161 -> 0 | EM161: =$G161*EL161 -> 0 | EP161: =$G161*EO161 -> 0 | ES161: =$G161*ER161 -> 0 | EV161: =$G161*EU161 -> 0 | EY161: =$G161*EX161 -> 0 | FB161: =$G161*FA161 -> 0 | FE161: =$G161*FD161 -> 0 | FH161: =$G161*FG161 -> 0 | FK161: =$G161*FJ161 -> 0 | FN161: =$G161*FM161 -> 0 | FQ161: =$G161*FP161 -> 0 | FT161: =$G161*FS161 -> 0 | FW161: =$G161*FV161 -> 0 | FZ161: =$G161*FY161 -> 0 | GC161: =$G161*GB161 -> 0 | GF161: =$G161*GE161 -> 0 | GI161: =$G161*GH161 -> 0 | GL161: =$G161*GK161 -> 0 | GO161: =$G161*GN161 -> 0 | GR161: =$G161*GQ161 -> 0 | GU161: =$G161*GT161 -> 0 | GX161: =$G161*GW161 -> 0 | HA161: =$G161*GZ161 -> 0 | HD161: =$G161*HC161 -> 0 | HG161: =$G161*HF161 -> 0 | HJ161: =$G161*HI161 -> 0
